Workbook

Sheet Info
B1: Waste assessment tool | C1: Version 1.0
A2: empty background: | B2: these cells are locked and contain formulas or fixed text.
A3: BLUE font: | B3: values used for model scores
A4: yellow background, empty or black font: | B4: values to be manually filled. If there's a formula, it can be replaced with a fixed value if available
A5: orange background: | B5: select from dropdown list
A6: 0 | B6: Score for the assessment
B7: In these pink cells, the user should include links to relevant sources of data, news, best practices etc.

Sheet 1-WASTE
B1: Waste assessment tool | C1: prepared by ACR+ Version 1.0
A3: Select shortlisted City | B3: Kota Pekanbaru | C3: =INDEX('Pop-HDI-waste'!$A$4:$A$548,MATCH(B3,'Pop-HDI-waste'!$C$4:$C$548,0)) -> Riau | F3: Waste composition
A4: OR | G4: Indonesian average | H4: Fill site specific values here | I4: Chosen value
F5: ='Waste composition'!G34 -> Organic | G5: ='Waste composition'!H34 -> 0.404 | I5: =IF(ISBLANK(H5),G5,H5) -> 0.404
A6: Select Province | B6: Sumatera Barat | F6: ='Waste composition'!G35 -> Wood/twigs/leaves | G6: ='Waste composition'!H35 -> 0.112 | I6: =IF(ISBLANK(H6),G6,H6) -> 0.112
A7: Select Regency/City | F7: ='Waste composition'!G36 -> Paper and cardboard | G7: ='Waste composition'!H36 -> 0.12 | I7: 0.12
A8: OR | F8: ='Waste composition'!G37 -> Plastic | G8: ='Waste composition'!H37 -> 0.178 | I8: 0.178
A9: Directly select Regency/city | F9: ='Waste composition'!G38 -> Rubber/leather | G9: ='Waste composition'!H38 -> 0.02 | I9: 0.02
A10: Province | B10: =IFERROR(INDEX('Pop-HDI-waste'!A4:A548,MATCH(B9,'Pop-HDI-waste'!C4:C548,0)),IF(B6=0,C3,B6)) -> Sumatera Barat | F10: ='Waste composition'!G39 -> Cloth | G10: ='Waste composition'!H39 -> 0.029 | I10: 0.029
B11: =IF(B9=0,IF(B7="",B3,B7),B9) -> Kota Pekanbaru | F11: ='Waste composition'!G40 -> Glass | G11: ='Waste composition'!H40 -> 0.025 | I11: 0.025
A12: Map | B12: =HYPERLINK(CONCATENATE("https://www.google.com/maps/search/?api=1&query=",$B$11,"+Indonesia"),"Google maps") -> Google maps | F12: ='Waste composition'!G41 -> Metal | G12: ='Waste composition'!H41 -> 0.03 | I12: 0.03
F13: ='Waste composition'!G42 -> Other | G13: ='Waste composition'!H42 -> 0.08 | I13: =IF(ISBLANK(H13),G13,H13) -> 0.08
H14: =SUM(H5:H13) -> 0 | I14: =SUM(I5:I13) -> 0.998
A15: General data | B15: Selected area | C15: Indonesia
A16: Population (selected area, from database) | B16: =INDEX('Pop-HDI-waste'!$D$4:$D$548,MATCH('1-WASTE'!$B$11,'Pop-HDI-waste'!$C$4:$C$548,0)) -> 1020308
A17: Population (manually fill if better data available)
A18: chosen value | B18: =IF(ISBLANK(B17),B16,B17) -> 1020308
A19: HDI (Human Development Index) | B19: =INDEX('Pop-HDI-waste'!$L$4:$L$548,MATCH('1-WASTE'!$B$11,'Pop-HDI-waste'!$C$4:$C$548,0)) -> 83.67 | C19: =INDEX('Pop-HDI-waste'!$M$4:$M$548,MATCH('1-WASTE'!$B$11,'Pop-HDI-waste'!$C$4:$C$548,0)) -> 0.975 | D19: percentile rank
A21: Percentage of poor population (Province): | B21: =INDEX(Society!$F$7:$F$40,MATCH('1-WASTE'!$B$10,Society!$A$7:$A$40,0)) -> 6.63 | C21: =Society!F41 -> 10.14
A22: Percentage of Households Using Safely Managed Sanitation Services (Province - Urban areas) | B22: =INDEX(Society!$O$7:$O$40,MATCH('1-WASTE'!$B$10,Society!$A$7:$A$40,0)) -> 12.92 | C22: =Society!O41 -> 13.67
A23: Percentage of Households Using Safely Managed Sanitation Services (Province - Rural areas) | B23: =INDEX(Society!$Q$7:$Q$40,MATCH('1-WASTE'!$B$10,Society!$A$7:$A$40,0)) -> 4.2 | C23: =Society!Q41 -> 5.37
A27: Waste generation and management: | J27: Comparisons | M27: =CONCATENATE("Best practices in the same province: ",B10) -> Best practices in the same province: Sumatera Barat
A28: National Statistics database data | D28: Provincial average (per capita) | E28: estimated from provincial average (ton/year) | F28: Fill in if better data is available | G28: Value for model (ton/year) | H28: Value used by the model (ton/day) | J28: Case study | K28: Province | L28: Indonesia | M28: #1 | O28: #2 | Q28: #3
A29: Waste generation (A) | B29: =IF(INDEX('Pop-HDI-waste'!$N$4:$N$548,MATCH($B$11,'Pop-HDI-waste'!$C$4:$C$548,0))=0,"use estimated data : fill on the right",INDEX('Pop-HDI-waste'!$R$4:$R$548,MATCH($B$11,'Pop-HDI-waste'!$C$4:$C$548,0))) -> 369019.82 | C29: ton/year | D29: =INDEX('Pop-HDI-waste'!$AU$4:$AU$37,MATCH('1-WASTE'!$B$10,'Pop-HDI-waste'!$AT$4:$AT$37,0)) -> 0.4868750105 | E29: =D29*$B$18*365/1000 -> 181318.3009 | G29: =IF(ISNUMBER(F29),F29,IF(ISNUMBER(B29),B29,E29)) -> 369019.82 | H29: =G29/365 -> 1011.013205 | J29: =G29*1000/$B$18/365 -> 0.9908902072 | K29: =D29 -> 0.4868750105
A30: Waste reduction (B) | B30: =IF(INDEX('Pop-HDI-waste'!$N$4:$N$548,MATCH('1-WASTE'!$B$11,'Pop-HDI-waste'!$C$4:$C$548,0))=0,"use estimated data : fill on the right",INDEX('Pop-HDI-waste'!$S$4:$S$548,MATCH('1-WASTE'!$B$11,'Pop-HDI-waste'!$C$4:$C$548,0))) -> 16072.7 | C30: ton/year | D30: =INDEX('Pop-HDI-waste'!$AV$4:$AV$37,MATCH('1-WASTE'!$B$10,'Pop-HDI-waste'!$AT$4:$AT$37,0)) -> 0.08178937459 | E30: =D30*$B$18*365/1000 -> 30459.37892 | G30: =IF(ISNUMBER(F30),F30,IF(ISNUMBER(B30),B30,E30)) -> 16072.7 | H30: =G30/365 -> 44.03479452 | J30: =G30*1000/$B$18/365 -> 0.04315833505 | K30: =D30 -> 0.08178937459
A31: Waste reduction (B/A) | G31: =G30/G29 -> 0.04355511311 | J31: =G31 -> 0.04355511311 | K31: =INDEX('Pop-HDI-waste'!$AW$4:$AW$37,MATCH('1-WASTE'!$B$10,'Pop-HDI-waste'!$AT$4:$AT$37,0)) -> 0.1679884423 | M31: =IFERROR(INDEX('Pop-HDI-waste'!$BH$4:$BH$37,MATCH('1-WASTE'!$B$10,'Pop-HDI-waste'!$AT$4:$AT$37,0)),"") -> Kab. Pasaman | N31: =IFERROR(INDEX('Pop-HDI-waste'!$BE$4:$BE$37,MATCH('1-WASTE'!$B$10,'Pop-HDI-waste'!$AT$4:$AT$37,0))/100,"") -> 0.2542 | O31: =IFERROR(INDEX('Pop-HDI-waste'!$BI$4:$BI$37,MATCH('1-WASTE'!$B$10,'Pop-HDI-waste'!$AT$4:$AT$37,0)),"") -> Kota Sawahlunto | P31: =IFERROR(INDEX('Pop-HDI-waste'!$BF$4:$BF$37,MATCH('1-WASTE'!$B$10,'Pop-HDI-waste'!$AT$4:$AT$37,0))/100,"") -> 0.2518 | Q31: =IFERROR(INDEX('Pop-HDI-waste'!$BJ$4:$BJ$37,MATCH('1-WASTE'!$B$10,'Pop-HDI-waste'!$AT$4:$AT$37,0)),"") -> Kab. Solok Selatan | R31: =IFERROR(INDEX('Pop-HDI-waste'!$BG$4:$BG$37,MATCH('1-WASTE'!$B$10,'Pop-HDI-waste'!$AT$4:$AT$37,0))/100,"") -> 0.2376
A32: Waste handling (C) | B32: =IF(INDEX('Pop-HDI-waste'!$N$4:$N$548,MATCH('1-WASTE'!$B$11,'Pop-HDI-waste'!$C$4:$C$548,0))=0,"use estimated data : fill on the right",INDEX('Pop-HDI-waste'!$U$4:$U$548,MATCH('1-WASTE'!$B$11,'Pop-HDI-waste'!$C$4:$C$548,0))) -> 257211.85 | C32: ton/year | D32: =INDEX('Pop-HDI-waste'!$AX$4:$AX$37,MATCH('1-WASTE'!$B$10,'Pop-HDI-waste'!$AT$4:$AT$37,0)) -> 0.2192289697 | E32: =D32*$B$18*365/1000 -> 81643.59113 | G32: =IF(ISNUMBER(F32),F32,IF(ISNUMBER(B32),B32,E32)) -> 257211.85 | H32: 704.69 | J32: =G32*1000/$B$18/365 -> 0.6906639956 | K32: =D32 -> 0.2192289697
A33: Waste handling (C/A) | G33: =G32/G29 -> 0.6970136455 | J33: =G33 -> 0.6970136455
A34: Managed waste (B+C) | B34: =IF(INDEX('Pop-HDI-waste'!$N$4:$N$548,MATCH('1-WASTE'!$B$11,'Pop-HDI-waste'!$C$4:$C$548,0))=0,"use estimated data : fill on the right",INDEX('Pop-HDI-waste'!$W$4:$W$548,MATCH('1-WASTE'!$B$11,'Pop-HDI-waste'!$C$4:$C$548,0))) -> 273284.55 | C34: ton/year | D34: =INDEX('Pop-HDI-waste'!$AZ$4:$AZ$37,MATCH('1-WASTE'!$B$10,'Pop-HDI-waste'!$AT$4:$AT$37,0)) -> 0.3010183443 | E34: =D34*$B$18*365/1000 -> 112102.97 | G34: =IF(ISNUMBER(F34),F34,IF(ISNUMBER(B34),B34,E34)) -> 273284.55 | H34: 748.7247945 | J34: =G34*1000/$B$18/365 -> 0.7338223306 | K34: =D34 -> 0.3010183443
A35: Managed waste (B+C)/A | G35: =G34/G29 -> 0.7405687586 | J35: =G35 -> 0.7405687586 | K35: =INDEX('Pop-HDI-waste'!$AY$4:$AY$37,MATCH('1-WASTE'!$B$10,'Pop-HDI-waste'!$AT$4:$AT$37,0)) -> 0.45027772
A36: Waste recycling (D) | B36: =IF(INDEX('Pop-HDI-waste'!$N$4:$N$548,MATCH('1-WASTE'!$B$11,'Pop-HDI-waste'!$C$4:$C$548,0))=0,"use estimated data : fill on the right",INDEX('Pop-HDI-waste'!$Y$4:$Y$548,MATCH('1-WASTE'!$B$11,'Pop-HDI-waste'!$C$4:$C$548,0))) -> 15911.78 | C36: ton/year | D36: =INDEX('Pop-HDI-waste'!$BB$4:$BB$37,MATCH('1-WASTE'!$B$10,'Pop-HDI-waste'!$AT$4:$AT$37,0)) -> 0.06548353272 | E36: =D36*$B$18*365/1000 -> 24386.88089 | G36: =IF(ISNUMBER(F36),F36,IF(ISNUMBER(B36),B36,E36)) -> 15911.78 | H36: 43.59391781 | J36: =G36*1000/$B$18/365 -> 0.04272623346 | K36: =D36 -> 0.06548353272
A37: Waste Raw materials (E) | B37: =IF(INDEX('Pop-HDI-waste'!$N$4:$N$548,MATCH('1-WASTE'!$B$11,'Pop-HDI-waste'!$C$4:$C$548,0))=0,"use estimated data : fill on the right",INDEX('Pop-HDI-waste'!$Z$4:$Z$548,MATCH('1-WASTE'!$B$11,'Pop-HDI-waste'!$C$4:$C$548,0))) -> 0 | C37: ton/year | D37: =INDEX('Pop-HDI-waste'!$BC$4:$BC$37,MATCH('1-WASTE'!$B$10,'Pop-HDI-waste'!$AT$4:$AT$37,0)) -> 0.001642013493 | E37: =D37*$B$18*365/1000 -> 611.5062186 | G37: =IF(ISNUMBER(F37),F37,IF(ISNUMBER(B37),B37,E37)) -> 0 | H37: 0 | J37: =G37*1000/$B$18/365 -> 0 | K37: =D37 -> 0.001642013493
A38: Recycling rate (D+E)/A | G38: =(G37+G36)/G29 -> 0.04311903897 | H38: 0.0001181343533 | J38: =G38 -> 0.04311903897 | K38: =INDEX('Pop-HDI-waste'!$BD$4:$BD$37,MATCH('1-WASTE'!$B$10,'Pop-HDI-waste'!$AT$4:$AT$37,0)) -> 0.1378701818 | M38: =IFERROR(INDEX('Pop-HDI-waste'!$BN$4:$BN$37,MATCH('1-WASTE'!$B$10,'Pop-HDI-waste'!$AT$4:$AT$37,0)),"") -> Kab. Pasaman | N38: =IFERROR(INDEX('Pop-HDI-waste'!$BK$4:$BK$37,MATCH('1-WASTE'!$B$10,'Pop-HDI-waste'!$AT$4:$AT$37,0))/100,"") -> 0.2542 | O38: =IFERROR(INDEX('Pop-HDI-waste'!$BO$4:$BO$37,MATCH('1-WASTE'!$B$10,'Pop-HDI-waste'!$AT$4:$AT$37,0)),"") -> Kab. Solok Selatan | P38: =IFERROR(INDEX('Pop-HDI-waste'!$BL$4:$BL$37,MATCH('1-WASTE'!$B$10,'Pop-HDI-waste'!$AT$4:$AT$37,0))/100,"") -> 0.2362 | Q38: =IFERROR(INDEX('Pop-HDI-waste'!$BP$4:$BP$37,MATCH('1-WASTE'!$B$10,'Pop-HDI-waste'!$AT$4:$AT$37,0)),"") -> Kab. Sijunjung | R38: =IFERROR(INDEX('Pop-HDI-waste'!$BM$4:$BM$37,MATCH('1-WASTE'!$B$10,'Pop-HDI-waste'!$AT$4:$AT$37,0))/100,"") -> 0.2239
A41: Waste transportation | C41: Notes
A42: Estimation of the number of trucks going to the landfills
A43: Number of trucks/day (average)
A44: Days / year
A45: Volume of 1 truck (average)
A46: Total volume transported | B46: =B45*B43*B44 -> 0 | C46: If different trucks are used, just delete the formula here and put the total volume / year
A47: Estimated volume of waste to be landfilled according to generation and recycling rate | B47: =(G29-G30-G36)/Assumptions!D5 -> 1021319.212
D48: Score | E48: Max | F48: Recommandation
A49: Waste transported compared to waste generation | B49: =B46/B47 -> 0 | D49: =IF(ISNUMBER(B49),IF(B49<='Scores and recommendations'!$A$5,'Scores and recommendations'!$C$5,IF(B49<='Scores and recommendations'!$A$6,'Scores and recommendations'!$C$6,IF(B49<='Scores and recommendations'!$A$7,'Scores and recommendations'!$C$7,'Scores and recommendations'!$C$8))),0) -> 0 | E49: ='Scores and recommendations'!C8 -> 6 | F49: =IF(ISNUMBER(B49),IF(B49<='Scores and recommendations'!$A$5,'Scores and recommendations'!$D$5,IF(B49<='Scores and recommendations'!$A$6,'Scores and recommendations'!$D$6,IF(B49<='Scores and recommendations'!$A$7,'Scores and recommendations'!$D$7,'Scores and recommendations'!$D$8))),0) -> very low. The majority of waste is either dumped into uncontrolled sites, rivers, or burned, generating SLCP (Short Lived Climate Pollutants).
A50: Population covered with waste collection service | C50: Estimate the % of population with regular household waste collection, (see for instance indicator 1 of project https://iswmp.id/indikator )
A51: Amount of not collected waste (ton/year) | B51: =G29*(1-B50) -> 369019.82
A53: TPS: evaluation
A54: number of TPS | D54: .
A55: number of mobile TPS | D55: .
A56: Total TPS | B56: =B55+B54 -> 0
A57: number/10,000 inhabitants | B57: =B56/($B$18/10000) -> 0
A58: Do TPS comply with the requirement of separation into 5 fractions, especially focusing on the organic fraction? | D58: =IFERROR(VLOOKUP(B58,'Scores and recommendations'!$B$26:$D$30,2,FALSE),0) -> 0 | E58: ='Scores and recommendations'!C30 -> 8 | F58: =IFERROR(VLOOKUP(B58,'Scores and recommendations'!$B$26:$D$30,3,FALSE),0) -> 0
A63: Recycling | B63: number | C63: notes/source | D63: Score | E63: Max | F63: Recommendation
A64: Waste banks: number
A65: tons per day received (average of total)
A66: number/10,000 inhabitants | B66: =B64/($B$18/10000) -> 0 | D66: =IF(ISNUMBER(B66),IF(B66<='Scores and recommendations'!$A$12,'Scores and recommendations'!$C$12,IF(B66<='Scores and recommendations'!$A$13,'Scores and recommendations'!$C$13,IF(B66<='Scores and recommendations'!$A$14,'Scores and recommendations'!$C$14,'Scores and recommendations'!$C$15))),0) -> 0 | E66: ='Scores and recommendations'!C15 -> 6 | F66: =IF(ISNUMBER(B66),IF(B66<='Scores and recommendations'!$A$12,'Scores and recommendations'!$D$12,IF(B66<='Scores and recommendations'!$A$13,'Scores and recommendations'!$D$13,IF(B66<='Scores and recommendations'!$A$14,'Scores and recommendations'!$D$14,'Scores and recommendations'!$D$15))),0) -> Low.
A68: total number of TPS 3R
A69: tons per day received (average of total)
B70: =B68/($B$18/10000) -> 0 | D70: =IF(ISNUMBER(B70),IF(B70<='Scores and recommendations'!$A$19,'Scores and recommendations'!$C$19,IF(B70<='Scores and recommendations'!$A$20,'Scores and recommendations'!$C$20,IF(B70<='Scores and recommendations'!$A$21,'Scores and recommendations'!$C$21,'Scores and recommendations'!$C$15))),0) -> 0 | E70: ='Scores and recommendations'!C22 -> 6 | F70: =IF(ISNUMBER(B70),IF(B70<='Scores and recommendations'!$A$19,'Scores and recommendations'!$D$19,IF(B70<='Scores and recommendations'!$A$20,'Scores and recommendations'!$D$20,IF(B70<='Scores and recommendations'!$A$21,'Scores and recommendations'!$D$21,'Scores and recommendations'!$D$22))),0) -> Low.
A71: total number of INACTIVE TPS 3R because of operational / maintenance problems
A73: Composting / black soldier flies sites (small and large scale)
A74: tons per day received (average of total)
A75: % treated of organic fraction generated | B75: =B74/(H29*I5) -> 0 | D75: =IF(ISNUMBER(B75),IF(B75<='Scores and recommendations'!$A$34,'Scores and recommendations'!$C$34,IF(B75<='Scores and recommendations'!$A$35,'Scores and recommendations'!$C$35,IF(B75<='Scores and recommendations'!$A$36,'Scores and recommendations'!$C$36,'Scores and recommendations'!$C$37))),0) -> 0 | E75: ='Scores and recommendations'!C37 -> 6 | F75: =IF(ISNUMBER(B75),IF(B75<='Scores and recommendations'!$A$34,'Scores and recommendations'!$D$34,IF(B75<='Scores and recommendations'!$A$35,'Scores and recommendations'!$D$35,IF(B75<='Scores and recommendations'!$A$36,'Scores and recommendations'!$D$36,'Scores and recommendations'!$D$37))),0) -> A very little amount of organic fraction is treated by composting. | X75: 2
A76: Creative houses
A77: tons per day received (average of total)
A78: Number of waste reduction programs and certifications received by the city: write in yellow cell the number and in pink cell put some hyperlinks
A80: Final disposal sites
A81: TPA landfill sites
A82: tons per day received | B82: =C141+H141+M141+V141 -> 0
A83: RDF plant/incinerator:
A84: tons per day received
A86: TPS 3R: evaluation (all the city)
A87: Give here an overall assessment of the results of sheet 4 - TPS
A88: Is composting activity or black soldier flies performed in TPS 3R? | D88: =IFERROR(VLOOKUP(C88,'Scores and recommendations'!$B$46:$C$50,2,FALSE),0) -> 0 | E88: ='Scores and recommendations'!C46 -> 8 | F88: =IFERROR(VLOOKUP(C88,'Scores and recommendations'!$B$46:$D$50,3,FALSE),0) -> 0
A89: Which are the main barriers for composting in TPS3R? Rank 1 to 5 | B89: Low demand for compost produced
A90: (1: answer is not relevant, 5: highly relevant) | B90: Low market value (composting is not sustainable due to too low selling price of compost)
B91: Too much space required
B92: Odour problems
B93: Food waste collected and sorted is too contamineted by plastics and impurities
D94: Score | E94: Max | F94: Recommendation
B95: Total - barriers to composting | C95: =SUM(C89:C93) -> 0 | D95: =IF(ISNUMBER(C95),IF(C95<='Scores and recommendations'!$A$54,'Scores and recommendations'!$C$54,IF(C95<='Scores and recommendations'!$A$55,'Scores and recommendations'!$C$55,IF(C95<='Scores and recommendations'!$A$56,'Scores and recommendations'!$C$56,'Scores and recommendations'!$C$57))),0) -> 6 | E95: ='Scores and recommendations'!C54 -> 6 | F95: =IF(ISNUMBER(C95),IF(C95<='Scores and recommendations'!$A$54,'Scores and recommendations'!$D$54,IF(C95<='Scores and recommendations'!$A$55,'Scores and recommendations'!$D$55,IF(C95<='Scores and recommendations'!$A$56,'Scores and recommendations'!$D$56,'Scores and recommendations'!$D$57))),0) -> Composting in your area is not facing barriers, which is good aiming at a significant prevention of Greenhouse gases emission.
D99: score | E99: max | F99: %
A100: Overall evaluation: transportation, TPS - TPS3R, composting | D100: =D49+D58+D88+D95+D66+D75 -> 6 | E100: =E49+E58+E88+E95+E66+E75 -> 40 | F100: =D100/E100 -> 0.15
A102: Recommendations: transportation, waste banks, composting
A103: =CONCATENATE("Current waste handling is: ",F49,CHAR(10),"The number of waste banks is ",F66,"and the number of TPS3R is ",F70,CHAR(10),"About the organic fraction, ",F58,F75,F88, " Also, ",F95) -> Current waste handling is: very low. The majority of waste is either dumped into uncontrolled sites, rivers, or burned, generating SLCP (Short Lived Climate Pollutants). The number of waste banks is Low. and the number of TPS3R is Low. About the organic fraction, 0A very little amount of organic fraction is treated by composting. 0 Also, Composting in your area is not facing barriers, which is good aiming at a significant prevention of Greenhouse gases emission.
A108: Landfill (TPA) | B108: Site 1 | C108: Notes | G108: Site 2 | H108: Notes | M108: Site 3 | N108: Notes | V108: Site 4
A109: Map
A110: Name
A111: Average distance from the city centre (km)
A114: Pictures:
A128: Put in these first columns the main TPA (landfill) | H128: Other active landfills here)
A129: Look at incoming waste data and operational features of main landfills in the 'TPA data' sheet or on: | B129: https://sipsn.menlhk.go.id/sipsn/public/home/fasilitas/tpa-tpst
A130: ="% of destination of waste from "&B3 -> % of destination of waste from Kota Pekanbaru
C131: Choice | D131: Score | E131: notes | H131: Choice | I131: Score | J131: notes | M131: Choice | N131: Score | O131: notes | V131: Choice | W131: Score | X131: notes
A132: Operational system | D132: =VLOOKUP(C132,'Scores and recommendations'!$B$60:$C$62,2,FALSE) ->  | I132: =VLOOKUP(H132,'Scores and recommendations'!$B$60:$C$62,2,FALSE) ->  | N132: =VLOOKUP(M132,'Scores and recommendations'!$B$60:$C$62,2,FALSE) ->  | W132: =VLOOKUP(V132,'Scores and recommendations'!$B$60:$C$62,2,FALSE) -> 
A134: Equipment for sorting and pretreatment: | B134: Dry recyclables | D134: =IFERROR(VLOOKUP(C134,'Scores and recommendations'!$B$67:$C$72,2,FALSE),0) -> 0 | I134: =IFERROR(VLOOKUP(H134,'Scores and recommendations'!$B$67:$C$72,2,FALSE),0) -> 0 | N134: =IFERROR(VLOOKUP(M134,'Scores and recommendations'!$B$67:$C$72,2,FALSE),0) -> 0 | W134: =IFERROR(VLOOKUP(V134,'Scores and recommendations'!$B$67:$C$72,2,FALSE),0) -> 0
B135: Organic waste | D135: =IFERROR(VLOOKUP(C135,'Scores and recommendations'!$B$67:$C$72,2,FALSE),0) -> 0 | I135: =IFERROR(VLOOKUP(H135,'Scores and recommendations'!$B$67:$C$72,2,FALSE),0) -> 0 | N135: =IFERROR(VLOOKUP(M135,'Scores and recommendations'!$B$67:$C$72,2,FALSE),0) -> 0 | W135: =IFERROR(VLOOKUP(V135,'Scores and recommendations'!$B$67:$C$72,2,FALSE),0) -> 0
B136: RDF production | D136: =IFERROR(VLOOKUP(C136,'Scores and recommendations'!$B$67:$C$72,2,FALSE),0) -> 0 | I136: =IFERROR(VLOOKUP(H136,'Scores and recommendations'!$B$67:$C$72,2,FALSE),0) -> 0 | N136: =IFERROR(VLOOKUP(M136,'Scores and recommendations'!$B$67:$C$72,2,FALSE),0) -> 0 | W136: =IFERROR(VLOOKUP(V136,'Scores and recommendations'!$B$67:$C$72,2,FALSE),0) -> 0
D138: Score | E138: Max | F138: Recommendation
A139: Evaluation of landfill operation | D139: =SUM(D136,D135,D134,D132) ->  | E139: ='Scores and recommendations'!C79 -> 19 | F139: =IF(D139<='Scores and recommendations'!$A$76,'Scores and recommendations'!$D$76,IF(D139<='Scores and recommendations'!A77,'Scores and recommendations'!D77,IF(D139<='Scores and recommendations'!A78,'Scores and recommendations'!D78,'Scores and recommendations'!D79))) -> 
A140: Following data is available, for some sites, from the SIPSN database
A141: Amounts (tonnes/year): | B141: Incoming waste to the site (must be G32*C130) | C141: =$G$32*C130 -> 0 | H141: =$G$32*H130 -> 0 | M141: =$G$32*M130 -> 0 | V141: =$G$32*V130 -> 0
B142: disposed to landfill | C142: =C141 -> 0 | H142: =H141 -> 0 | M142: =M141 -> 0 | V142: =V141 -> 0
B143: Organic waste processed by composting or stabilization | F143: Recommendation
B144: % of input organics | C144: =IFERROR(C143/C142,"n.a.") -> n.a. | D144: =IF(ISNUMBER(C144),IF(C144='Scores and recommendations'!$A$83,'Scores and recommendations'!$C$83,IF(C144<='Scores and recommendations'!A84,'Scores and recommendations'!C84,IF(C144<='Scores and recommendations'!A85,'Scores and recommendations'!C85,'Scores and recommendations'!C86))),0) -> 0 | E144: ='Scores and recommendations'!C86 -> 6 | F144: =VLOOKUP(D144,'Scores and recommendations'!$C$82:$D$86,2,FALSE) -> The fact that there is no treatment of organics prior to landfilling poses a significant threat in terms of GHG emissions. | H144: =IFERROR(H143/H142,"n.a.") -> n.a. | I144: =IF(ISNUMBER(H144),IF(H144<='Scores and recommendations'!$A$88,'Scores and recommendations'!$C$88,IF(H144<='Scores and recommendations'!#REF!,'Scores and recommendations'!#REF!,IF(H144<='Scores and recommendations'!#REF!,'Scores and recommendations'!#REF!,'Scores and recommendations'!#REF!))),0) -> 0 | M144: =IFERROR(M143/M142,"n.a.") -> n.a. | N144: =IF(ISNUMBER(M144),IF(M144<='Scores and recommendations'!$A$88,'Scores and recommendations'!$C$88,IF(M144<='Scores and recommendations'!#REF!,'Scores and recommendations'!#REF!,IF(M144<='Scores and recommendations'!#REF!,'Scores and recommendations'!#REF!,'Scores and recommendations'!#REF!))),0) -> 0 | V144: =IFERROR(V143/V142,"n.a.") -> n.a. | W144: =IF(ISNUMBER(V144),IF(V144<='Scores and recommendations'!$A$88,'Scores and recommendations'!$C$88,IF(V144<='Scores and recommendations'!#REF!,'Scores and recommendations'!#REF!,IF(V144<='Scores and recommendations'!#REF!,'Scores and recommendations'!#REF!,'Scores and recommendations'!#REF!))),0) -> 0
B145: Processed inorganic waste
B146: Scavenger recovery
A147: Operation start date
A148: Active zone garbage closure | V148: =VLOOKUP(X148,Tabs!J3:K11,2,FALSE) -> Once a month | X148: Sebulan sekali
A149: Leachate treatment | V149: =VLOOKUP(X149,Tabs!L3:M9,2,FALSE) -> There is, the leachate water treatment installation (IPAL) in the TPA is only a depositional pond without biological processes or chemical processes, still functioning well and well maintained. | X149: Ada, Instalasi Pengolahan Air Lindi (IPAL) di TPA hanya berupa kolam pengendapan saja tanpa proses biologi atau proses kimia, masih berfungsi baik dan terawat.
A150: Drainage | V150: Yes
A151: Utilization of methane gas | V151: =VLOOKUP(W151,Tabs!N3:O8,2,FALSE) -> - | W151: -
A152: Residual volume (m3)
A153: Expected lifetime (estimated, current scenario), years
F155: Recommendation
A156: Cumulative expected lifetime of existing landfills according to current generation and recycling (years) | B156: This assumes that all waste generated less the amount recycled is sent to landfill (no illegal dumping) | C156: =((C153*C142)+(H153*H142)+(M153*M142)+(V153*V142))/(G29-G30-G36) -> 0 | D156: =IF(C156<='Scores and recommendations'!$A$90,'Scores and recommendations'!$C$90,IF(C156<='Scores and recommendations'!$A$91,'Scores and recommendations'!$C$91,IF(C156<='Scores and recommendations'!$A$92,'Scores and recommendations'!$C$92,'Scores and recommendations'!$C$93))) -> 0 | E156: ='Scores and recommendations'!C93 -> 6 | F156: =VLOOKUP(D156,'Scores and recommendations'!$C$90:$D$93,2,FALSE) -> The expected lifetime of existing landfills (TPA) is very low. It may be higher than this number just because a lot of illegal open dumping and burning takes place, but urgent actions must be taken to increase recycling, fight open dumping and build new sanitary landfills and treatment plants to ensure a viable long term solution
D158: score | E158: max | F158: %
A159: Overall evaluation: Landfill | D159: =D139+D144+D156 ->  | E159: =E156+E144+E139 -> 31 | F159: =D159/E159 -> 
A161: Recommendations: landfill
A162: =CONCATENATE(F139,CHAR(10),F144,CHAR(10),F156) -> 
B167: Score | C167: Max | D167: %
A168: Overall score - WASTE | B168: =D100+D159 ->  | C168: =E100+E159 -> 71 | D168: =B168/C168 -> 

Sheet 2-GOVERNANCE
A1: Local Governance and Strategies | K1: New project ideas
A2: Main legislation: | B2: https://drive.google.com/file/d/16WhKUeXjd7LnpiVJADhFtye8w-4G9aHj/view
B4: Select answer | C4: Notes | D4: Score | E4: Max | F4: Recommendation | K4: Plastic to fuel treatment plant | L4: https://www.orissa-international.com/business-news/plastic-waste-treatment-sites-to-be-built-in-west-java/
A5: Waste management roadmap | K5: New landfill Kubangdeleg | L5: https://maps.app.goo.gl/oh9WoANV12jNhnc19
A6: Does the city has a waste management roadmap / strategic plan and what's its current level of implementation? | D6: =IFERROR(VLOOKUP(B6,'Scores and recommendations'!$B$101:$D$104,2,FALSE),0) -> 0 | E6: ='Scores and recommendations'!C104 -> 6 | F6: =IFERROR(VLOOKUP(B6,'Scores and recommendations'!$B$101:$D$104,3,FALSE),0) -> 0 | K6: https://www.linkedin.com/posts/asnug-nugraha-b5820544_wastetordf-activity-7123479986799292418-EDLq/?trk=public_profile_like_view
A7: Waste minimization | K7: Jul 2023 article: it will operate in Aug 2023 | L7: https://www.rri.go.id/cirebon/daerah/276764/tpa-kubangdeleg-kabupaten-cirebon-beroperasi-agustus-2023
A8: What’s the local current achievement of the targets stated by Presidential Decree 97 / 2017 (reduction of 30% by volume and recycle 70% by 2025) ? | D8: =IFERROR(VLOOKUP(B8,'Scores and recommendations'!$B$109:$D$112,2,FALSE),0) -> 0 | E8: ='Scores and recommendations'!C112 -> 6 | F8: =IFERROR(VLOOKUP(B8,'Scores and recommendations'!$B$109:$D$112,3,FALSE),0) -> 0 | K8: In 2024 it will be operational and Cirebon will be free of waste | L8: https://www.cirebonkab.go.id/news/2023/08/bulan-depan-tpas-kubangdeleg-mulai-beroperasi-masalah-sampah-di-kabupaten-cirebon-akan-teratasi
A9: Are large generators of food waste listed in a registry with a tracking system of the amount they generate with a view to the goal of 30% reduction of food waste by 2029 being measured? | D9: =IFERROR(VLOOKUP(B9,'Scores and recommendations'!$B$116:$D$119,2,FALSE),0) -> 0 | E9: ='Scores and recommendations'!C119 -> 6 | F9: =IFERROR(VLOOKUP(B9,'Scores and recommendations'!$B$116:$D$119,3,FALSE),0) -> 0 | K9: 7 open dumps cleaned | L9: https://www.cirebonkab.go.id/news/2023/08/bulan-depan-tpas-kubangdeleg-mulai-beroperasi-masalah-sampah-di-kabupaten-cirebon-akan-teratasi
A10: Are incentives / disincentives mechanisms (article 22 - Law 75-2019) applied? | D10: =IFERROR(VLOOKUP(B10,'Scores and recommendations'!$B$123:$D$126,2,FALSE),0) -> 0 | E10: ='Scores and recommendations'!C126 -> 6 | F10: =IFERROR(VLOOKUP(B10,'Scores and recommendations'!$B$123:$D$126,3,FALSE),0) -> 0 | K10: Waste trucks increased to 70 from 40 | L10: https://www.cirebonkab.go.id/news/2023/08/bulan-depan-tpas-kubangdeleg-mulai-beroperasi-masalah-sampah-di-kabupaten-cirebon-akan-teratasi
K11: Now landfill is operating (Dec 2023) | L11: https://kabarcirebon.pikiran-rakyat.com/ciayumajakuning/pr-2937486946/tempat-pembuangan-akhir-sampah-kubangdeleng-kabupaten-cirebon-beroprasi-dlh-optimis-2024-bebas-sampah
A12: Fight plastic waste pollution
A13: Does the city have specific policies to fight plastic pollution such as integrating with the EPR and Plastic Credit mechanisms established by Ministerial Regulation 75-2019? | D13: =IFERROR(VLOOKUP(B13,'Scores and recommendations'!$B$132:$D$135,2,FALSE),0) -> 0 | E13: ='Scores and recommendations'!C135 -> 6 | F13: =IFERROR(VLOOKUP(B13,'Scores and recommendations'!$B$132:$D$135,3,FALSE),0) -> 0 | G13: Example of EPR and plastic credits: | I13: https://ibcsd.or.id/news-insights/update-on-ministerial-regulation-no-75-2019-regarding-epr-and-the-role-of-plastic-credits-as-a-mechanism-to-support-the-waste-reduction-roadmap/ | K13: The capacity of the existing landfill (Gunung Santri) is just a few years | L13: https://desacirebon.com/1124/2023/07/10/penanganan-sampah-dinilai-belum-maksimal-oleh-komisi-iii-dprd-kabupaten-cirebon/
A14: Has the city implemented policies to reduce plastic bags ? | D14: =IFERROR(VLOOKUP(B14,'Scores and recommendations'!$B$139:$D$142,2,FALSE),0) -> 0 | E14: ='Scores and recommendations'!C142 -> 6 | F14: =IFERROR(VLOOKUP(B14,'Scores and recommendations'!$B$139:$D$142,3,FALSE),0) -> 0
A16: Reduce waste open burning
A17: What's the current status and policies to avoid open burning and river dumping? | D17: =IFERROR(VLOOKUP(B17,'Scores and recommendations'!$B$148:$D$151,2,FALSE),0) -> 0 | E17: ='Scores and recommendations'!C151 -> 6 | F17: =IFERROR(VLOOKUP(B17,'Scores and recommendations'!$B$148:$D$151,3,FALSE),0) -> 0
A19: Avoid GHG emissions from organic fraction
A20: Is there a city strategy to promote / expand separation of organic waste including composting either with decentralised schemes (TPS3R) or large scale facilities? | D20: =IFERROR(VLOOKUP(B20,'Scores and recommendations'!$B$157:$D$160,2,FALSE),0) -> 0 | E20: ='Scores and recommendations'!C160 -> 6 | F20: =IFERROR(VLOOKUP(B20,'Scores and recommendations'!$B$157:$D$160,3,FALSE),0) -> 0
B22: =COUNTIF(D6:D20,0) -> 8
B23: Score | C23: Max | D23: %
A24: Overall score - GOVERNANCE | B24: =SUM(D6:D20) -> 0 | C24: =SUM(E6:E20) -> 48 | D24: =B24/C24 -> 0 | E24: =IF(B24<='Scores and recommendations'!$A$163,'Scores and recommendations'!$D$163,IF(B24<='Scores and recommendations'!A164,'Scores and recommendations'!D164,IF(B24<='Scores and recommendations'!A165,'Scores and recommendations'!D165,'Scores and recommendations'!D166))) -> In terms of governance, the overall score is very low. According to the provided answers, a lot of policies and actions have still to be implemented.
A26: Recommendations: governance
A27: =CONCATENATE(E24,CHAR(10)," In ",B22, " answers to the proposed questions, the score has been the lowest, meaning that either there's no knowledge about these issue or no policy is in place for issues related to those questions.") -> In terms of governance, the overall score is very low. According to the provided answers, a lot of policies and actions have still to be implemented. In 8 answers to the proposed questions, the score has been the lowest, meaning that either there's no knowledge about these issue or no policy is in place for issues related to those questions.

Sheet 3-ECONOMICS
B1: Economic data
B2: Note: municipal / recency overall budget data can be taken from this PDF report: | C2: https://www.bps.go.id/en/publication/2023/12/21/f1bd552a7aed9046a4101601/financial-statistics-of-regency-municipality-government-2022-2023.html
C4: Value | D4: Notes | E4: Score | F4: Max | G4: Recommendations
B5: Municipal budget: Overall revenues (Million Rp. /year)
B6: Municipal budget: Overall expenditures (Million Rp. /year)
A7: A | B7: Annual overall cost for waste management (Million Rp. /year): DLH budget, include direct costs and overheads
B9: % of costs dedicated to waste management | C9: =IFERROR(C7/C6,"") ->  | E9: =IF(ISNUMBER(C9),IF(C9='Scores and recommendations'!$A$174,'Scores and recommendations'!$C$174,IF(C9<='Scores and recommendations'!$A$175,'Scores and recommendations'!$C$175,IF(C9<='Scores and recommendations'!$A$176,'Scores and recommendations'!$C$176,'Scores and recommendations'!$C$177))),0) -> 0 | F9: ='Scores and recommendations'!C177 -> 6 | G9: =IFERROR(VLOOKUP(E9,'Scores and recommendations'!$C$174:$D$177,2,FALSE),0) -> The fact that there is no knowledge about costs for waste management is a strong signal of lack of interest on this issue. | H9: compare this result with indonesian average (2.5%) and give recommendations. Source: https://documents1.worldbank.org/curated/en/608321575860426737/pdf/Indonesia-Improvement-of-Solid-Waste-Management-to-Support-Regional-and-Metropolitan-Cities-Project.pdf
B10: Expenditure per tonne of waste generated (Rp./ton) | C10: =$C$7*1000000/'1-WASTE'!G29 -> 0
B11: Expenditure per tonne of waste generated (US$/ton) | C11: =C10/Assumptions!$D$14 -> 0
B12: Expenditure per tonne of waste handled (Rp./ton) | C12: =$C$7*1000000/'1-WASTE'!G34 -> 0
B13: Expenditure per tonne of waste handled (US$/ton) | C13: =C12/Assumptions!$D$14 -> 0 | E13: =IF(ISNUMBER(C13),IF(C13='Scores and recommendations'!$A$181,'Scores and recommendations'!$C$181,IF(C13<='Scores and recommendations'!$A$182,'Scores and recommendations'!$C$182,IF(C13<='Scores and recommendations'!$A$183,'Scores and recommendations'!$C$183,'Scores and recommendations'!$C$184))),0) -> 0 | F13: ='Scores and recommendations'!C184 -> 6 | G13: =IFERROR(VLOOKUP(E13,'Scores and recommendations'!$C$181:$D$184,2,FALSE),0) -> The fact that there is no knowledge about costs for waste management is a strong signal of lack of interest on this issue. | H13: range 2-12
B15: % of municipal waste budget allocated for transportation (% of A) | H15: recommendations: transport cost can be optimized if citizens participate better to source separation scheme. Landfilling costs should be higher than TPS3R treatment cost, to discourage landfilling.
B16: % of municipal waste budget allocated for TPS3R management (% of A) | H16: give recommendations about how an improvement organic waste composting can be beneficial for GHG, even if compost value may be low in dense urban areas.
B17: % of municipal waste budget allocated for large recycling facilities (composting etc. ) (% of A)
B18: % of municipal waste budget allocated for landfill fee (if there's a gate fee) or disposal and operation (if it's owned) (% of A) | H18: give recommendations about how an improvement in landfill operation (methane recovery etc. ) can reduce GHG and externalities
B19: % other costs
B20: Check: sum must be 100% | C20: =SUM(C15:C19) -> 0 | E20: =IF(ISNUMBER(C16),IF((C16+C17)='Scores and recommendations'!$A$188,'Scores and recommendations'!$C$188,IF((C16+C17)<='Scores and recommendations'!$A$189,'Scores and recommendations'!$C$189,IF((C16+C17)<='Scores and recommendations'!$A$190,'Scores and recommendations'!$C$190,'Scores and recommendations'!$C$191))),0) -> 0 | F20: ='Scores and recommendations'!C191 -> 6 | G20: =IFERROR(VLOOKUP(E20,'Scores and recommendations'!$C$188:$D$191,2,FALSE),0) -> The budget for waste management is completely used for transportation and disposal to the landfill. There is no financial support to recycling facilities, making it very difficult for them to implement a successful business model when the recycling market is at early stages.
B21: Calculated landfill tipping fee per ton (Rp./ton) | C21: =C7*C18*1000000/'1-WASTE'!B82 -> 
B22: Double check: official average tipping fee for landfills (Rp./ton)
B23: Calculated landfill tipping fee per ton (US$/ton) | C23: =C21/Assumptions!$D$14 -> 
B25: Waste collection fee for households: minimum (Rp./month/household)
B26: Waste collection fee for households: maximum (Rp./month/household)
B27: Waste collection fee for households: average (Rp./month/household)
B28: % of the MSW management municipal service covered with waste collection fees, if available. If not, leave blank | E28: =IF(ISNUMBER(C28),IF(C28='Scores and recommendations'!$A$194,'Scores and recommendations'!$C$194,IF(C28<='Scores and recommendations'!$A$195,'Scores and recommendations'!$C$195,IF(C28<='Scores and recommendations'!$A$196,'Scores and recommendations'!$C$196,'Scores and recommendations'!$C$197))),0) -> 0 | F28: ='Scores and recommendations'!C197 -> 6 | G28: =IFERROR(VLOOKUP(E28,'Scores and recommendations'!$C$194:$D$197,2,FALSE),0) -> The fact that there is no data about the amount of collected waste fees from producers means that the local authority is lacking a very important informaton, key to improve strategies aimed at cost transparency and polluter pay principle
B30: Average expenditure per household for mobile phone bill | H30: Average expenditure per capita for mobile phone bill was 17,143 which is around 65,000/household in 2018 https://www.ceicdata.com/en/indonesia/average-monthly-expenditure-per-capita/average-monthly-expenditure-per-capita-post-and-telecommunication-mobile-phone-bill
B31: % of waste collection fee compared to the mobile phone bill | C31: =C27/C30 ->  | H31: This could easily be around 100%
B33: Monthly Average Expenditure per Capita For Non Food in Urban Areas (Province, 2023) | C33: =INDEX(Society!$BE$7:$BE$40,MATCH('1-WASTE'!$B$10,Society!$W$7:$W$40,0)) -> 806960.392
B34: per household | C34: =C33*INDEX(Society!$CA$7:$CA$40,MATCH('1-WASTE'!$B$10,Society!$W$7:$W$40,0)) -> 3389233.646
B36: % of waste collection fee compared to monthly households expenditures for non food | C36: =C27/C34 -> 0 | E36: =IF(ISNUMBER(C36),IF(C36<'Scores and recommendations'!$A$202,'Scores and recommendations'!$C$202,IF(C36<='Scores and recommendations'!$A$203,'Scores and recommendations'!$C$203,IF(C36<='Scores and recommendations'!$A$204,'Scores and recommendations'!$C$204,'Scores and recommendations'!$C$205))),0) -> 0 | F36: ='Scores and recommendations'!C205 -> 6 | G36: =IFERROR(VLOOKUP(E36,'Scores and recommendations'!$C$202:$D$205,2,FALSE),0) -> Waste collection fee is too low. In low-income countries, the acceptable value for a waste collection fee, as a proportion of monthly household expenditures, typically falls between 1% to 2% of a household's total income or expenditures, so that's 2-3% of non-food expenditures. This range is considered affordable and sustainable for households, ensuring that good waste management services can be provided without placing an excessive financial burden on low-income families. | H36: In advanced situations this should be 1.5 - 2%
C38: Score | D38: Max | E38: %
B39: Overall score - ECONOMICS | C39: =SUM(E5:E36) -> 0 | D39: =SUM(F5:F36) -> 30 | E39: =C39/D39 -> 0
B41: Recommendations: economics
B42: =CONCATENATE(G9,CHAR(10),G13,CHAR(10),G20,CHAR(10),G28,CHAR(10),G36) -> The fact that there is no knowledge about costs for waste management is a strong signal of lack of interest on this issue. The fact that there is no knowledge about costs for waste management is a strong signal of lack of interest on this issue. The budget for waste management is completely used for transportation and disposal to the landfill. There is no financial support to recycling facilities, making it very difficult for them to implement a successful business model when the recycling market is at early stages. The fact that there is no data about the amount of collected waste fees from producers means that the local authority is lacking a very important informaton, key to improve strategies aimed at cost transparency and polluter pay principle Waste collection fee is too low. In low-income countries, the acceptable value for a waste collection fee, as a proportion of monthly household expenditures, typically falls between 1% to 2% of a household's total income or expenditures, so that's 2-3% of non-food expenditures. This range is considered affordable and sustainable for households, ensuring that good waste management services can be provided without placing an excessive financial burden on low-income families.

Sheet 4-TPS3R - PDU
A2: Assessment of existing TPS 3Rs
A3: Paste here any relevant media, news, info about the TPS3R in your City
A4: Title | B4: Date | C4: Link | D4: Key messages
A10: Is training for the management of existing TPS3r provided by the City?
A11: Yes/no | B11: Examples:
A14: TPS3R Assessment matrix | B14: Describe in this note below about any difficulty faced to find an available TPS3R - PDU to be interviewed amd to get data
A15: Find an average TPS3R - PDU (one that is representative of the average situation) and fill the scoring
A16: Database with existing TPS3R and addresses: | B16: https://sipsn.menlhk.go.id/sipsn/public/home/fasilitas/tps3r
C17: Unit | D17: Score | E17: Max | F17: Notes/recommendations
A18: Source of income | B18: Total in a fixed period (Rp.)
A19: Sale of recyclables (plastic, metal, paper) | C19: Rp./month
A20: Sale of compost | C20: Rp./month
A21: Collection waste levies paid by households | C21: Rp./month
A22: Others | C22: Rp./month
A23: Total income | B23: =SUM(B19:B22) -> 0 | C23: Rp./month
A24: % of income represented by collection fees | B24: =B21/B23 ->  | C24: % | D24: =IF(ISNUMBER(B24),IF(B24<='Scores and recommendations'!$A$211,'Scores and recommendations'!$C$211,IF(B24<='Scores and recommendations'!$A$212,'Scores and recommendations'!$C$212,IF(B24<='Scores and recommendations'!$A$213,'Scores and recommendations'!$C$213,'Scores and recommendations'!$C$214))),0) -> 0 | E24: ='Scores and recommendations'!C214 -> 6 | F24: =IF(ISNUMBER(B24),IF(B24<='Scores and recommendations'!$A$211,'Scores and recommendations'!$D$211,IF(B24<='Scores and recommendations'!$A$212,'Scores and recommendations'!$D$212,IF(B24<='Scores and recommendations'!$A$213,'Scores and recommendations'!$D$213,'Scores and recommendations'!$D$214))),0) -> 0
A25: % of income represented by compost sale | B25: =B20/B23 ->  | C25: % | D25: =IF(ISNUMBER(B25),IF(B25<='Scores and recommendations'!$A$217,'Scores and recommendations'!$C$217,IF(B25<='Scores and recommendations'!$A$218,'Scores and recommendations'!$C$218,IF(B25<='Scores and recommendations'!$A$219,'Scores and recommendations'!$C$219,'Scores and recommendations'!$C$220))),0) -> 0 | E25: ='Scores and recommendations'!C220 -> 6 | F25: =IF(ISNUMBER(B25),IF(B25<='Scores and recommendations'!$A$217,'Scores and recommendations'!$D$217,IF(B25<='Scores and recommendations'!$A$218,'Scores and recommendations'!$D$218,IF(B25<='Scores and recommendations'!$A$219,'Scores and recommendations'!$D$219,'Scores and recommendations'!$D$220))),0) -> 0
A27: Total expenditures
A28: Salary | C28: Rp./month
A29: Maintenance | C29: Rp./month
A30: Ordinary equipments | C30: Rp./month
A31: Tax and administration | C31: Rp./month
A32: Others | C32: Rp./month
A33: Total expenditures | B33: =SUM(B28:B32) -> 0 | C33: Rp./month
A34: Total % income vs. total operational expenditures | B34: =B23/B33 ->  | C34: % | D34: =IF(ISNUMBER(B34),IF(B34<='Scores and recommendations'!$A$223,'Scores and recommendations'!$C$223,IF(B34<='Scores and recommendations'!$A$224,'Scores and recommendations'!$C$224,IF(B34<='Scores and recommendations'!$A$225,'Scores and recommendations'!$C$225,'Scores and recommendations'!$C$226))),0) -> 0 | E34: ='Scores and recommendations'!C226 -> 6 | F34: =IF(ISNUMBER(B34),IF(B34<='Scores and recommendations'!$A$223,'Scores and recommendations'!$D$223,IF(B34<='Scores and recommendations'!$A$224,'Scores and recommendations'!$D$224,IF(B34<='Scores and recommendations'!$A$225,'Scores and recommendations'!$D$225,'Scores and recommendations'!$D$226))),0) -> 0
O37: example: Article | P37: https://www.researchgate.net/publication/331023515_Strategi_Optimalisasi_Pengelolaan_Sampah_Terpadu_Di_Desa_Sanur_Kauh_Denpasar
E38: Areas: | I38: weighted score
A39: Strenghts and Weakness assessment: give a score from 1 to 5: 5 when the sentence is always true | C39: Notes | E39: Organization | F39: Long term Sustainability | G39: Organic fraction | H39: check: total | I39: Organization | J39: Long term Sustainability | K39: Organic fraction
A40: TPS3R structure
A41: Internal organizational structure assessment | E41: 0.8 | F41: 0.2 | G41: 0 | H41: =SUM(E41:G41) -> 1 | I41: =($B41/5)*E41 -> 0 | J41: =($B41/5)*F41 -> 0 | K41: =($B41/5)*G41 -> 0
A42: Adequate equipment for dry recyclables sorting | E42: 0.7 | F42: 0.3 | H42: =SUM(E42:G42) -> 1 | I42: 0 | J42: 0 | K42: 0
A43: Adequate equipment for organic waste composting | E43: 0.2 | G43: 0.8 | H43: 1 | I43: 0 | J43: 0 | K43: 0
A44: Enough Human resources for collection | E44: 0.6 | F44: 0.4 | H44: 1 | I44: 0 | J44: 0 | K44: 0
A45: Enough human resources for dry recyclables sorting | E45: 0.6 | F45: 0.4 | H45: 1 | I45: 0 | J45: 0 | K45: 0
A46: Enough human resources for composting | E46: 0.6 | G46: 0.4 | H46: 1 | I46: 0 | J46: 0 | K46: 0
A47: Are human resources provided with a constant training | E47: 0.8 | F47: 0.2 | H47: 1 | I47: 0 | J47: 0 | K47: 0
A48: Are lab analysis performed on compost produced | E48: 0.2 | G48: 0.8 | H48: =SUM(E48:G48) -> 1 | I48: 0 | J48: 0 | K48: 0
A49: Is the final compost contaminated with small pieces of plastics | F49: 0.2 | G49: 0.8 | H49: =SUM(E49:G49) -> 1 | I49: 0 | J49: 0 | K49: 0
A50: Business model
A51: Operational costs are lower than income (5=lower, 1=higher) | E51: 0.2 | F51: 0.8 | H51: =SUM(E51:G51) -> 1 | I51: =($B51/5)*E51 -> 0 | J51: 0 | K51: 0
A52: Do households pay the waste collection fee timely | E52: 0.4 | F52: 0.6 | H52: 1 | I52: 0 | J52: 0 | K52: 0
A53: Do small businesses pay waste collection fee timely | E53: 0.4 | F53: 0.6 | H53: 1 | I53: 0 | J53: 0 | K53: 0
A54: Are there sanctions and enforcement for those not paying fees | E54: 0.4 | F54: 0.6 | H54: 1 | I54: 0 | J54: 0 | K54: 0
A55: May households be willing to pay a higher fee for a better service (frequency, etc): 5=for sure, 1=no | E55: 0.2 | F55: 0.8 | H55: 1 | I55: 0 | J55: 0 | K55: 0
A56: Business network for the sale of recyclables | E56: 0.5 | F56: 0.5 | H56: 1 | I56: 0 | J56: 0 | K56: 0
A57: Business network for the sale of compost | E57: 0.5 | F57: 0.5 | H57: 1 | I57: 0 | J57: 0 | K57: 0
A58: Waste collection structure
A59: Adequate fleet / pushcarts for waste collection | E59: 0.6 | F59: 0.2 | G59: 0.2 | H59: 1 | I59: =($B59/5)*E59 -> 0 | J59: 0 | K59: 0
A60: Do household separate dry recyclables at source (5) or deliver it mixed (1) | E60: 0.2 | F60: 0.8 | H60: 1 | I60: 0 | J60: 0 | K60: 0
A61: Do households separate food waste at source (5) or deliver it mixed (1) | E61: 0.2 | G61: 0.8 | H61: 1 | I61: 0 | J61: 0 | K61: 0
A62: Do households have separate bins for separating at source (5 = everyone, 1= nobody) | E62: 0.4 | G62: 0.6 | H62: 1 | I62: 0 | J62: 0 | K62: 0
A63: Do large generators of food waste deliver to the TPS3R (5=always, 1 = never) | E63: 0.2 | G63: 0.8 | H63: 1 | I63: 0 | J63: 0 | K63: 0
A64: Relationship with the community
A65: Is there a regulation that bind all communities to become TPS3R customers? | F65: 1 | H65: =SUM(E65:G65) -> 1 | I65: =($B65/5)*E65 -> 0 | J65: 0 | K65: 0
A66: Is it enforced locally? | F66: 1 | H66: 1 | I66: 0 | J66: 0 | K66: 0
A67: Does the collection crew do sensitization to citizens when collecting | E67: 0.6 | F67: 0.2 | G67: 0.2 | H67: =SUM(E67:G67) -> 1 | I67: 0 | J67: 0 | K67: 0
A68: Did the surrounding community approve and support the idea of the the construction of the TPS3R? | F68: 1 | H68: =SUM(E68:G68) -> 1 | I68: 0 | J68: 0 | K68: 0
A69: Complaints from neighbourhood (odors, abandoned waste etc): 5=never, 1=always | E69: 0.4 | F69: 0.3 | G69: 0.3 | H69: 1 | I69: 0 | J69: 0 | K69: 0
A70: Success stories: post in column C link to at least 3 articles/reports/videos of success stories related to TPS3R in your area | D70: Score
A71: Success story 1 | B71: description 2 | D71: =IF(ISBLANK(C71),0,2) -> 0
A72: Success story 2 | B72: descripion 2 | D72: =IF(ISBLANK(C72),0,2) -> 0
A73: Success story 3 | B73: description 3 | D73: 0
D75: max | E75: =SUM(E41:E69) -> 9.7 | F75: =SUM(F41:F69) -> 10.6 | G75: =SUM(G41:G69) -> 5.7 | H75: TOTAL | I75: =SUM(I41:I69) -> 0 | J75: =SUM(J41:J69) -> 0 | K75: =SUM(K41:K69) -> 0
H76: % of max | I76: =I75/E75 -> 0 | J76: =J75/F75 -> 0 | K76: 0
H77: Score | I77: =IF(ISNUMBER(I76),IF(I76<='Scores and recommendations'!$A$230,'Scores and recommendations'!$C$230,IF(I76<='Scores and recommendations'!$A$231,'Scores and recommendations'!$C$231,IF(I76<='Scores and recommendations'!$A$232,'Scores and recommendations'!$C$232,'Scores and recommendations'!$C$233))),0) -> 0 | J77: =IF(ISNUMBER(J76),IF(J76<='Scores and recommendations'!$A$240,'Scores and recommendations'!$C$240,IF(J76<='Scores and recommendations'!$A$241,'Scores and recommendations'!$C$241,IF(J76<='Scores and recommendations'!$A$242,'Scores and recommendations'!$C$242,'Scores and recommendations'!$C$243))),0) -> 0 | K77: =IF(ISNUMBER(K76),IF(K76<='Scores and recommendations'!$A$251,'Scores and recommendations'!$C$251,IF(K76<='Scores and recommendations'!$A$252,'Scores and recommendations'!$C$252,IF(K76<='Scores and recommendations'!$A$253,'Scores and recommendations'!$C$253,'Scores and recommendations'!$C$254))),0) -> 0
H78: Max | I78: ='Scores and recommendations'!C233 -> 6 | J78: ='Scores and recommendations'!C243 -> 6 | K78: ='Scores and recommendations'!C254 -> 6
H79: Recommendation | I79: =IF(ISNUMBER(I76),IF(I76<='Scores and recommendations'!$A$230,'Scores and recommendations'!$D$230,IF(I76<='Scores and recommendations'!$A$231,'Scores and recommendations'!$D$231,IF(I76<='Scores and recommendations'!$A$232,'Scores and recommendations'!$D$232,'Scores and recommendations'!$D$233))),0) -> The organisational capacity is very low and will hamper long term sustainability. Please consider the following: Human resource training addressing not only operational skill for sorting, but also sensitization activities towards households. Maintain and improve the timeliness of waste collection so that a strict obligation to pay waste fees is established. Find the best way to enforce sanctions for those not paying waste fee timely and doing open dumping. | J79: =IF(ISNUMBER(J76),IF(J76<='Scores and recommendations'!$A$240,'Scores and recommendations'!$D$240,IF(J76<='Scores and recommendations'!$A$241,'Scores and recommendations'!$D$241,IF(J76<='Scores and recommendations'!$A$242,'Scores and recommendations'!$D$242,'Scores and recommendations'!$D$243))),0) -> Long term sustainability seems very low. Please consider the following: Get to a higher economic sustainability by increasing household waste fee. Perform a survey amongst farmers and other potential compost users in order to understand the acceptance of compost, misconceptions and willingness to pay a certain price. | K79: =IF(ISNUMBER(K76),IF(K76<='Scores and recommendations'!$A$251,'Scores and recommendations'!$D$251,IF(K76<='Scores and recommendations'!$A$252,'Scores and recommendations'!$D$252,IF(K76<='Scores and recommendations'!$A$253,'Scores and recommendations'!$D$253,'Scores and recommendations'!$D$254))),0) -> Organic fraction of waste is currently neglected. Please consider the following: Optimize the composting equiplment aiming at a better compost quality, to increase the production of compost fertilizer to be acceptable to meet farmers' needs and avoid selling very far away. Do sensitization campaigns with households to explain the benefits of delivering the organic fraction well separated and with no contaminants. Find support to improve machinery for composting in order to optimize the process (e.g. forced ventilation, turning).
A80: Recommendations
A81: =I79 -> The organisational capacity is very low and will hamper long term sustainability. Please consider the following: Human resource training addressing not only operational skill for sorting, but also sensitization activities towards households. Maintain and improve the timeliness of waste collection so that a strict obligation to pay waste fees is established. Find the best way to enforce sanctions for those not paying waste fee timely and doing open dumping.
A82: =J79 -> Long term sustainability seems very low. Please consider the following: Get to a higher economic sustainability by increasing household waste fee. Perform a survey amongst farmers and other potential compost users in order to understand the acceptance of compost, misconceptions and willingness to pay a certain price.
A83: =K79 -> Organic fraction of waste is currently neglected. Please consider the following: Optimize the composting equiplment aiming at a better compost quality, to increase the production of compost fertilizer to be acceptable to meet farmers' needs and avoid selling very far away. Do sensitization campaigns with households to explain the benefits of delivering the organic fraction well separated and with no contaminants. Find support to improve machinery for composting in order to optimize the process (e.g. forced ventilation, turning).
C89: Score | D89: Max | E89: %
B90: Overall score - TPS3R - PDU | C90: =SUM(D24:D25,D34,I77:K77,D71:D73) -> 0 | D90: =SUM(E24:E25,E34,I78:K78+6) -> 54 | E90: =C90/D90 -> 0

Sheet 5-GHG emissions
A1: Total waste generation | B1: ='1-WASTE'!$G$29 -> 369019.82 | C1: ton/year
E2: Notes
A3: Unmanaged waste
A4: Total amount | B4: ='1-WASTE'!B51 -> 369019.82 | C4: ton/year | E4: be careful that the key parameter here is in 1-Waste!B50 (% of population covered with service) | I4: Organic fraction generated | J4: =B1*'1-WASTE'!G5 -> 149084.0073
F5: Source | G5: CO2e estimated | J5: Best scenario
A6: Estimated % open dumping | E6: This is the estimated % of what happens to unmanaged waste | F6: https://www.sciencedirect.com/science/article/pii/S2468227620303756 and others | J6: % | K6: tonnes | L6: CO2e (t/t waste)
A7: Estimated % open burning | E7: This is the estimated % of what happens to unmanaged waste | F7: SWEET model and other sources | I7: composted | J7: 0.7 | K7: =$J$4*J7 -> 104358.8051 | L7: =D11 -> 0.05 | M7: =K7*L7 -> 5217.940255
B8: =SUM(B6:B7) -> 0 | C8: =IF(B8<>1,"Sum must be 100%","") -> Sum must be 100% | E8: This sum must be 100% | I8: sanitary landfill with biogas recovery | J8: 0.3 | K8: =$J$4*J8 -> 44725.20218 | L8: =D17 -> 2 | M8: =K8*L8 -> 89450.40437
D9: Emissions: factor | I9: sanitary landfill | J9: 0 | K9: 0 | L9: =D16 -> 4 | M9: 0
A10: Organic fraction: sum of management | D10: ton CO2eq/ton waste | I10: controlled landfill | J10: 0 | K10: 0 | L10: =D15 -> 9 | M10: 0
A11: Composted in TPS3R - PDU, or large scale facilities | B11: ='1-WASTE'!B74*310 -> 0 | C11: ton/year | D11: 0.05 | E11: This comes from sheet 1-Waste cell B74 | G11: =B11*D11 -> 0 | I11: open dumping | J11: 0 | K11: 0 | L11: =D12 -> 7 | M11: 0
A12: To open dumps | B12: =$B$4*'1-WASTE'!$I$5*B6 -> 0 | C12: ton/year | D12: 7 | G12: =B12*D12 -> 0 | I12: open burning | J12: 0 | K12: 0 | L12: =D13 -> 2.5 | M12: 0
A13: To open burning | B13: =$B$4*'1-WASTE'!$I$5*B7 -> 0 | C13: ton/year | D13: 2.5 | G13: 0 | M13: =SUM(M7:M12) -> 94668.34462 | N13: Total
A14: Type of landfill: controlled, sanitary, sanitary with biogas recovery | B14: ='1-WASTE'!C132 -> 0 | E14: Controlled landfills have fewer environmental protection features compared to sanitary landfills. They may include a liner at the base, but it is often less robust (e.g., clay rather than synthetic materials). They may also have basic leachate collection systems, but not as advanced as those in sanitary landfills.
A15: Not recovered (landfilled) in controlled landfills | B15: =IF($B$14=Tabs!I4,'1-WASTE'!B46*Assumptions!$D$5,0) -> 0 | C15: ton/year | D15: 9 | G15: 0
A16: Not recovered (landfilled) in sanitary landfills | B16: =IF($B$14=Tabs!I5,'1-WASTE'!B47*Assumptions!$D$5,0) -> 0 | C16: ton/year | D16: 4 | G16: 0
A17: Not recovered (landfilled) in sanitary landfills with biogas recovery | B17: =IF($B$14=Tabs!I6,'1-WASTE'!B48*Assumptions!$D$5,0) -> 0 | C17: ton/year | D17: 2 | G17: 0
A19: Current scenario: emissions | B19: =SUM(G11:G17) -> 0
A20: Best scenario: emissions | B20: =M13 -> 94668.34462 | D20: Score | E20: Max | F20: Recommendations
A21: Difference with best scenario | B21: =(B19-B20)/B20 -> -1 | D21: =IF(ISNUMBER(B21),IF(B21>'Scores and recommendations'!$A$260,'Scores and recommendations'!$C$260,IF(B21>='Scores and recommendations'!$A$261,'Scores and recommendations'!$C$261,IF(B21>='Scores and recommendations'!$A$262,'Scores and recommendations'!$C$262,'Scores and recommendations'!$C$263))),0) -> 6 | E21: ='Scores and recommendations'!C263 -> 6 | F21: =IFERROR(VLOOKUP(D21,'Scores and recommendations'!$C$260:$D$263,2,FALSE),0) -> The city has almost reached the best performing scenario in terms of CO2 emissions, congratulations!
B23: Score | C23: Max | D23: %
A24: Overall score - GHG emissions | B24: 12 | C24: 45 | D24: =B24/C24 -> 0.2666666667
A26: Recommendations
A27: =F21 -> The city has almost reached the best performing scenario in terms of CO2 emissions, congratulations!

Sheet Scores and recommendations
B1: 1-WASTE
B3: Waste handling and treatment
B4: % of waste managed | C4: Score | D4: Recommendation
A5: 0.4 | B5: =CONCATENATE("<",TEXT(A5,"0%")," of generated, net of waste banks") -> <40% of generated, net of waste banks | C5: 0 | D5: very low. The majority of waste is either dumped into uncontrolled sites, rivers, or burned, generating SLCP (Short Lived Climate Pollutants).
A6: 0.6 | B6: =CONCATENATE(TEXT(A5,"0%")," - ",TEXT(A6,"0%")," of generated, net of waste banks") -> 40% - 60% of generated, net of waste banks | C6: 2 | D6: low. Apparently, about half of generated waste is either dumped into uncontrolled sites, rivers, or burned, generating SLCP (Short Lived Climate Pollutants).
A7: 0.8 | B7: =CONCATENATE(TEXT(A6,"0%")," - ",TEXT(A7,"0%")," of generated, net of waste banks") -> 60% - 80% of generated, net of waste banks | C7: 4 | D7: higher than indonesian average but still low. A lot of waste is either dumped into uncontrolled sites, rivers, or burned, generating SLCP (Short Lived Climate Pollutants).
B8: =CONCATENATE("> ",TEXT(A7,"0%")," of generated, net of waste banks") -> > 80% of generated, net of waste banks | C8: 6 | D8: Almost all of generated municipal waste is collected. Now the focus should be on closing remaining open dumps and on the treatment side, giving priority to the valorisation of the organic fraction
B11: Number of waste banks / 10,000 inhabitants | C11: Score | D11: Recommendation
A12: 0.4 | B12: =CONCATENATE("<",A12," ") -> <0,4 | C12: 0 | D12: Low.
A13: 0.8 | B13: =CONCATENATE(A12," - ",A13," ") -> 0,4 - 0,8 | C13: 2 | D13: Average.
A14: 1.2 | B14: =CONCATENATE(A13," - ",A14," ") -> 0,8 - 1,2 | C14: 4 | D14: Higher than average.
A15: 1.4 | B15: =CONCATENATE("> ",A14," ") -> > 1,2 | C15: 6 | D15: Much higher than average.
B18: Number of TPS 3R / 10,000 inhabitants | C18: Score | D18: Recommendation
A19: 0.4 | B19: =CONCATENATE("<",A19," ") -> <0,4 | C19: 0 | D19: Low.
A20: 0.8 | B20: =CONCATENATE(A19," - ",A20," ") -> 0,4 - 0,8 | C20: 2 | D20: Average.
A21: 1.2 | B21: =CONCATENATE(A20," - ",A21," ") -> 0,8 - 1,2 | C21: 4 | D21: Higher than average.
A22: 1.4 | B22: =CONCATENATE("> ",A21," ") -> > 1,2 | C22: 6 | D22: Much higher than average.
B24: TPS
B25: ='1-WASTE'!A58 -> Do TPS comply with the requirement of separation into 5 fractions, especially focusing on the organic fraction? | C25: Score | D25: Recommendation
B26: None of them | C26: 0 | D26: TPS are the first point in which citizens and waste collectors approach: the must be designed according to the law to deal with the organic fraction, not to be delivered with mixed waste.
B27: Just a few of them (1 - 40% of TPS) | C27: 2 | D27: TPS are the first point in which citizens and waste collectors approach: the must be designed according to the law to deal with the organic fraction, not to be delivered with mixed waste.
B28: About half of them (40 - 60% of TPS) | C28: 4 | D28: TPS are the first point in which citizens and waste collectors approach: the must be designed according to the law to deal with the organic fraction, not to be delivered with mixed waste.
B29: Most of them (60-99% of TPS) | C29: 6 | D29: TPS are the first point in which citizens and waste collectors approach: the must be designed according to the law to deal with the organic fraction, not to be delivered with mixed waste.
B30: All of them | C30: 8 | D30: TPS are the first point in which citizens and waste collectors approach: the must be designed according to the law to deal with the organic fraction, not to be delivered with mixed waste. It's great that all of them have this separation.
B33: % of waste composted on estimated generation | C33: Score | D33: Recommendation
A34: 0.1 | B34: =CONCATENATE("<",TEXT(A34,"0%")," of generated") -> <10% of generated | C34: 0 | D34: A very little amount of organic fraction is treated by composting.
A35: 0.3 | B35: =CONCATENATE(TEXT(A34,"0%")," - ",TEXT(A35,"0%")," of generated") -> 10% - 30% of generated | C35: 2 | D35: Some of the organic fraction is treated by composting.
A36: 0.5 | B36: =CONCATENATE(TEXT(A35,"0%")," - ",TEXT(A36,"0%")," of generated") -> 30% - 50% of generated | C36: 4 | D36: A significant amount of the organic fraction is treated by composting.
B37: =CONCATENATE("> ",TEXT(A36,"0%")," of generated") -> > 50% of generated | C37: 6 | D37: A very high amount of the organic fraction is treated by composting.
B44: Composting in TPS 3R | C44: Score | D44: Recommendation
B45: ='1-WASTE'!A88 -> Is composting activity or black soldier flies performed in TPS 3R? | F45: Case study of Temesi: | G45: https://youtu.be/aMivfGf8fs4?feature=shared
B46: Yes, always performed | C46: 8 | D46: The fact that composting is always operational is a significant step forward.
B47: Only partially performed, limited amount | C47: 4 | D47: Please focus on the improvement of the implementation of composting in all TPS3R.
B48: Barely never | C48: 0 | D48: Please focus on the implementation of composting in all TPS3R.
B53: ='1-WASTE'!B95 -> Total - barriers to composting | C53: Score | D53: Recommendation
A54: 2 | B54: =CONCATENATE("<",A54," ") -> <2 | C54: 6 | D54: Composting in your area is not facing barriers, which is good aiming at a significant prevention of Greenhouse gases emission.
A55: 6 | B55: =CONCATENATE(A54," - ",A55," ") -> 2 - 6 | C55: 4 | D55: Composting in your area is facing some barriers, try to overcome them aiming at a significant prevention of Greenhouse gases emission.
A56: 10 | B56: =CONCATENATE(A55," - ",A56," ") -> 6 - 10 | C56: 2 | D56: Composting in your area is facing quite strong barriers, be careful with that aiming at a significant prevention of Greenhouse gases emission.
B57: =CONCATENATE("> ",A56," ") -> > 10 | C57: 0 | D57: Composting in your area is facing a lot of barriers, and this is hampering significantly the prevention of Greenhouse gases emission.
B59: =Tabs!I1 -> Landfill - operational system | C59: Score
B60: =Tabs!I3 -> Open dumping | C60: 0
B61: =Tabs!I4 -> Controlled landfill | C61: 2
B62: =Tabs!I5 -> Sanitary landfill | C62: 4
B66: =Tabs!P1 -> Equipment for sorting and pretreatment: | C66: Score
B67: =Tabs!P3 -> Yes, fully operational | C67: =Tabs!Q3 -> 5
B68: =Tabs!P4 -> Only in limited parts | C68: =Tabs!Q4 -> 4
B69: =Tabs!P5 -> Foreseen in the future | C69: =Tabs!Q5 -> 3
B70: =Tabs!P6 -> Not present and not foreseen | C70: =Tabs!Q6 -> 1
B71: =Tabs!P7 -> Don't know | C71: =Tabs!Q7 -> 1
B72: =Tabs!P8 -> 0 | C72: =Tabs!Q8 -> 0
B75: Main landfill - operational evaluation | C75: Score | D75: Recommendation
A76: 4 | B76: overall score | D76: The main landfill seems to be poorly operated, there is lack of machinery for pretreatment and composting prior to landfilling or this data is even unavailable, signaling a lack of knowledge.
A77: 8 | B77: overall score | D77: The main landfill seems to be poorly operated, there is lack of machinery for pretreatment and composting prior to landfilling and some is just foreseen for the future.
A78: 12 | B78: overall score | D78: The main landfill seems to have some machinery for pretreatment and composting prior to landfilling and some is just foreseen for the future, which is a step in the right direction.
B79: overall score max | C79: =C62+C67+C67+C67 -> 19 | D79: The main landfill seems to be well operated, with some machinery for pretreatment and composting prior to landfilling and some is just foreseen for the future, which is a step in the right direction.
B82: ='1-WASTE'!B144 -> % of input organics | C82: Score | D82: Recommendation
A83: 0 | B83: 0% | C83: 0 | D83: The fact that there is no treatment of organics prior to landfilling poses a significant threat in terms of GHG emissions.
A84: 0.1 | B84: =CONCATENATE("<",TEXT(A84,"0%")) -> <10% | C84: 2 | D84: Pre-treatment of organics is limited to a very small amount, so the main part of it converts to methane which if not recovered is an impactful GHG
A85: 0.2 | B85: =CONCATENATE(TEXT(A84,"0%"),"-",TEXT(A85,"0%")) -> 10%-20% | C85: 4 | D85: Pre-treatment of organics is in place but with limited amounts, should be improved to avoid the generation of impactful GHG
B86: =CONCATENATE(">",TEXT(A85,"0%")) -> >20% | C86: 6 | D86: Pre-treatment of organics is in place: ideally all the organic fraction should be treated with composting or biostabilization prior to landfilling according to the most advanced waste legislation
B89: Landfill - expected lifetime | C89: Score | D89: Recommendation
A90: 2 | B90: =CONCATENATE("<",A90," years") -> <2 years | C90: 0 | D90: The expected lifetime of existing landfills (TPA) is very low. It may be higher than this number just because a lot of illegal open dumping and burning takes place, but urgent actions must be taken to increase recycling, fight open dumping and build new sanitary landfills and treatment plants to ensure a viable long term solution
A91: 5 | B91: =CONCATENATE(A90," - ",A91," years") -> 2 - 5 years | C91: 2 | D91: The expected lifetime of existing landfills (TPA) is low. It may be higher than this number just because a lot of illegal open dumping and burning takes place, but urgent actions must be taken to increase recycling, fight open dumping and build new sanitary landfills and treatment plants to ensure a viable long term solution
A92: 10 | B92: =CONCATENATE(A91," - ",A92," years") -> 5 - 10 years | C92: 4 | D92: The expected lifetime of existing landfills (TPA) is not so low, and may be higher than this number just because a lot of illegal open dumping and burning takes place, but quick actions must be taken to increase recycling, fight open dumping and build new sanitary landfills and treatment plants to ensure a viable long term solution
B93: =CONCATENATE("> ",A92," years") -> > 10 years | C93: 6 | D93: The expected lifetime of existing landfills (TPA) is high. However, new ambitious targets must be set to increase recycling, fight open dumping and build new sanitary landfills and treatment plants to ensure a viable long term solution
B95: 2-GOVERNANCE
B99: ='2-GOVERNANCE'!A5 -> Waste management roadmap
B100: ='2-GOVERNANCE'!A6 -> Does the city has a waste management roadmap / strategic plan and what's its current level of implementation? | C100: Score | D100: Recommendation
B101: There is currently no local waste management plan / strategy / roadmap | C101: 0
B102: It has been approved recently, still no monitoring of its progress | C102: 2
B103: It is approved and monitored, but targets are far away from the current situation | C103: 4
B104: It is approved and monitored, and its implementation is on track to achieve the foreseen targets in the reference timeframe | C104: 6
B107: ='2-GOVERNANCE'!A7 -> Waste minimization
B108: ='2-GOVERNANCE'!A8 -> What’s the local current achievement of the targets stated by Presidential Decree 97 / 2017 (reduction of 30% by volume and recycle 70% by 2025) ? | C108: Score
B109: Targets are not monitored | C109: 0
B110: Targets are monitored but far away from meeting them by 2025 | C110: 2
B111: On track to meet the targets by 2025 | C111: 4
B112: Already met the targets | C112: 6
B115: ='2-GOVERNANCE'!A9 -> Are large generators of food waste listed in a registry with a tracking system of the amount they generate with a view to the goal of 30% reduction of food waste by 2029 being measured? | C115: Score
B116: No | C116: 0
B117: Early talks about its implementation | C117: 2
B118: This is part of the implementation of approved local strategic plans | C118: 4
B119: Yes, the registry is operational and amounts are measured | C119: 6
B122: ='2-GOVERNANCE'!A10 -> Are incentives / disincentives mechanisms (article 22 - Law 75-2019) applied? | C122: Score
B123: No | C123: 0
B124: Early talks about its implementation | C124: 2
B125: Variable waste collection fees for users | C125: 4
B126: Variable waste fee and a landfill tax to promote recycling instead of landfilling | C126: 6
B130: ='2-GOVERNANCE'!A12 -> Fight plastic waste pollution
B131: ='2-GOVERNANCE'!A13 -> Does the city have specific policies to fight plastic pollution such as integrating with the EPR and Plastic Credit mechanisms established by Ministerial Regulation 75-2019? | C131: Score
B132: No | C132: 0
B133: Fines for littering | C133: 2
B134: Sensitization campaigns, fines for littering | C134: 4
B135: Yes, EPR is integrated and revenues from EPR are dedicated to improve the collection and sensitization | C135: 6
B138: ='2-GOVERNANCE'!A14 -> Has the city implemented policies to reduce plastic bags ? | C138: Score
B139: No specific policy | C139: 0
B140: Levies on purchase of shopping bags (planned) | C140: 2
B141: Levies on purchase of shopping bags (implemented) | C141: 4
B142: Levies on purchase of shopping bags (implemented), and other strategies | C142: 6
B146: ='2-GOVERNANCE'!A16 -> Reduce waste open burning
B147: ='2-GOVERNANCE'!A17 -> What's the current status and policies to avoid open burning and river dumping? | C147: Score
B148: No specific policy | C148: 0
B149: Prohibition of open burning established | C149: 2
B150: Prohibition, fines and enforcement | C150: 4
B151: Prohibition, fines, enforcement, sensitization campaigns | C151: 6
B154: ='2-GOVERNANCE'!A18 -> 0
B155: ='2-GOVERNANCE'!A19 -> Avoid GHG emissions from organic fraction
B156: ='2-GOVERNANCE'!A20 -> Is there a city strategy to promote / expand separation of organic waste including composting either with decentralised schemes (TPS3R) or large scale facilities? | C156: Score
B157: No specific policy | C157: 0
B158: Composting is active in a few TPS3R or dedicated plants. A small percentage of the population separates organics | C158: 2
B159: Composting is active in most of TPS3R, or in dedicated plants. A significant part of the population and large generators separate organics | C159: 4
B160: Composting is active in most of TPS3R or dedicated plants, and there are plans to build more large scale composting facilities. A significant part of the population and large generators separate organics | C160: 6
B162: Governance - overall evaluation | C162: Score | D162: Recommendation
A163: 12 | B163: overall score | D163: In terms of governance, the overall score is very low. According to the provided answers, a lot of policies and actions have still to be implemented.
A164: 24 | B164: overall score | D164: In terms of governance, the overall score is low. According to the provided answers, a lot of policies and actions have still to be implemented.
A165: 36 | B165: overall score | D165: In terms of governance, the overall score is quite good. According to the provided answers, many policies and actions have been framed, now the implementation and enforcement is crucial.
B166: overall score max | C166: =C104+C112+C119+C126+C135+C142+C151+C160 -> 48 | D166: In terms of governance, the overall score is high. According to the provided answers, many policies and actions have been framed, and their implementation and enforcement seems to be on track.
B171: 3-ECONOMICS
B173: ='3-ECONOMICS'!B9 -> % of costs dedicated to waste management | C173: Score | D173: Recommendation
A174: 0 | B174: Data not available | C174: 0 | D174: The fact that there is no knowledge about costs for waste management is a strong signal of lack of interest on this issue.
A175: 0.02 | B175: =CONCATENATE("<",TEXT(A175,"0%")) -> <2% | C175: 2 | D175: Budget allocated for waste management is low compared to Indonesian average (2.5%) whereas a substantially higher budget of up to 5% or more is normally required to provide adequate services.
A176: 0.04 | B176: =CONCATENATE(TEXT(A175,"0%"),"-",TEXT(A176,"0%")) -> 2%-4% | C176: 4 | D176: Budget allocated for waste management is in line with Indonesian average (2.5%) but a higher budget of up to 5% or more is normally required to provide adequate services.
B177: =CONCATENATE(">",TEXT(A176,"0%")) -> >4% | C177: 6 | D177: Budget allocated for waste management is higher than Indonesian average (2.5%); a budget of up to 5% or more is normally required to provide adequate services.
D178: On average, cities allocate 2.5% of their municipal budgets to solid waste management, whereas a substantially higher budget of up to 5% or more is normally required to provide adequate services. Also at regional level, according to GIZ study, Regional PUPR government budgeting for CAPEX and OPEX for waste management is small (0.3-0.5% APBD). Always reluctant to raise service charges, local governments recognize that the investments and properly priced charges for operational costs will involve a very high tariff compared with present arrangements (currently less than 40% of O&M costs are recovered, this figure varies largely across cities in Indonesia). Local governments are always concerned about the unpopularity of raising fees before the improved quality of the service has been demonstrated. At the same time, it is not sustainable to continue the current situation of heavy subsidies, lack of suitable investment capital, poor revenue generation and expect improved performance in the future.
B180: ='3-ECONOMICS'!$B$13 -> Expenditure per tonne of waste handled (US$/ton) | C180: Score | D180: Recommendation
A181: 0 | B181: Data not available | C181: 0 | D181: The fact that there is no knowledge about costs for waste management is a strong signal of lack of interest on this issue.
A182: 50 | B182: USD / tons | C182: 2 | D182: The expenditure per tonne of waste is too low. Indonesia is now classified as upper-middle income countries, so the affordability limit for total cost of waste management ranges 120-255 USD( (ISWA, 2015).
A183: 100 | B183: USD / tons | C183: 4 | D183: The expenditure per tonne of waste is low. Indonesia is now classified as upper-middle income countries, so the affordability limit for total cost of waste management ranges 120-255 USD( (ISWA, 2015).
B184: USD / tons | C184: 6 | D184: The expenditure per tonne of waste is quite in the range of upper-middle income countries, where Indonesia is now classified, so the affordability limit for total cost of waste management ranges 120-255 USD( (ISWA, 2015).
D185: According to https://eng.mst.dk/media/5kzhajny/study-of-waste-management-in-indonesia-2020.pdf Table 3, for upper-middle income countries the affordability limit for total cost of waste management in USD/tons range is 120-255
B187: % of municipal waste budget allocated for TPS3R management and large recycling facilities. (% of A) | C187: Score | D187: Recommendation
A188: 0 | C188: 0 | D188: The budget for waste management is completely used for transportation and disposal to the landfill. There is no financial support to recycling facilities, making it very difficult for them to implement a successful business model when the recycling market is at early stages.
A189: 0.1 | C189: 2 | D189: The budget for waste management is almost completely used for transportation and disposal to the landfill. There is low financial support to recycling facilities, making it difficult for them to implement a successful business model when the recycling market is at early stages.
A190: 0.2 | C190: 4 | D190: The budget for waste management is primarily used for transportation and disposal to the landfill, but there is also support to recycling facilities, which is good for them to implement a successful business model when the recycling market is at early stages.
C191: 6 | D191: The budget for waste management is not only used for transportation and disposal to the landfill, but also support to recycling facilities, which is good for them to implement a successful business model when the recycling market is at early stages.
B193: ='3-ECONOMICS'!$B$28 -> % of the MSW management municipal service covered with waste collection fees, if available. If not, leave blank | C193: Score | D193: Recommendation
A194: 0 | B194: Data not available | C194: 0 | D194: The fact that there is no data about the amount of collected waste fees from producers means that the local authority is lacking a very important informaton, key to improve strategies aimed at cost transparency and polluter pay principle
A195: 0.1 | B195: =CONCATENATE("<",TEXT(A195,"0%")) -> <10% | C195: 2 | D195: Waste management financial model is unsustainable as it is not able to cover almost zero cost with waste collection fees paid by producers. A new paradigm has to be implemented, aiming at covering all costs.
A196: 0.3 | B196: =CONCATENATE(TEXT(A195,"0%"),"-",TEXT(A196,"0%")) -> 10%-30% | C196: 4 | D196: Waste management financial model is suffers from very low waste collection fees paid by producers, and leaving most of this burden to the municipal budget. Quick actions must be performed to make costs fully transparent and visible to waste producers (polluter pays principle)
B197: =CONCATENATE(">",TEXT(A196,"0%")) -> >30% | C197: 6 | D197: The right steps have been taken to cover waste collection costs with by fees paid by producers, and coverage is much higher than indonesian average. The long term target must be 100% coverage, so that they are fully transparent and visible to waste producers (polluter pays principle)
D198: Wider dissemination of Permendagri 7/2021 for better implementation of financing planning and waste retribution rates. This also supports the implementation of the HKPD Law 1/2022.
B201: ='3-ECONOMICS'!B36 -> % of waste collection fee compared to monthly households expenditures for non food | C201: Score | D201: Recommendation
A202: 0.01 | C202: 0 | D202: Waste collection fee is too low. In low-income countries, the acceptable value for a waste collection fee, as a proportion of monthly household expenditures, typically falls between 1% to 2% of a household's total income or expenditures, so that's 2-3% of non-food expenditures. This range is considered affordable and sustainable for households, ensuring that good waste management services can be provided without placing an excessive financial burden on low-income families.
A203: 0.02 | C203: 2 | D203: Waste collection fee is low. In low-income countries, the acceptable value for a waste collection fee, as a proportion of monthly household expenditures, typically falls between 1% to 2% of a household's total income or expenditures, so that's 2-3% of non-food expenditures. This range is considered affordable and sustainable for households, ensuring that good waste management services can be provided without placing an excessive financial burden on low-income families.
A204: 0.03 | C204: 4 | D204: Waste collection fee is right. In low-income countries, the acceptable value for a waste collection fee, as a proportion of monthly household expenditures, typically falls between 1% to 2% of a household's total income or expenditures, so that's 2-3% of non-food expenditures. This range is considered affordable and sustainable for households, ensuring that good waste management services can be provided without placing an excessive financial burden on low-income families.
C205: 6 | D205: Waste collection fee is quite high, which may result in low willingness to pay if the service is not perfect. In low-income countries, the acceptable value for a waste collection fee, as a proportion of monthly household expenditures, typically falls between 1% to 2% of a household's total income or expenditures, so that's 2-3% of non-food expenditures. This range is considered affordable and sustainable for households, ensuring that good waste management services can be provided without placing an excessive financial burden on low-income families.
D206: Many studies (e.g. the World Bank, What a Waste 2.0 - chapter 6) suggest that households in low-income countries should ideally pay between 1% and 1.5% of their income for waste collection services.the average household expenditure on non-food items typically ranges between 40% to 50% of household income. So the ideal range for this assessment is waste fee = 2 / 3% of non food expenditures
B208: 4-TPS 3R - PDU
B210: ='4-TPS3R - PDU'!A24 -> % of income represented by collection fees | C210: Score | D210: Recommendation
A211: 0.2 | B211: =CONCATENATE("< ",TEXT(A211,"0%")," of total") -> < 20% of total | C211: 0 | D211: The business model of the TPS3R is relying too much on the sale of recyclables. Households should be contributing more by paying a higher collection fee in exchange of a good service.
A212: 0.4 | B212: =CONCATENATE(TEXT(A211,"0%")," - ",TEXT(A212,"0%")," of total") -> 20% - 40% of total | C212: 2 | D212: The business model of the TPS3R is relying too much on the sale of recyclables. Households should be contributing more by paying a higher collection fee in exchange of a good service.
A213: 0.6 | B213: =CONCATENATE(TEXT(A212,"0%")," - ",TEXT(A213,"0%")," of total") -> 40% - 60% of total | C213: 4 | D213: The business model of the TPS3R is quite balanced between household collection fees and the sale of recyclables.
B214: =CONCATENATE("> ",TEXT(A213,"0%")," of total") -> > 60% of total | C214: 6 | D214: The business model of the TPS3R seems biased towards the collection fees for households. Think about the fact that if this is related to the low quality of recyclables separated, households should participate more actively by separating better at source, thus getting more benefit (e.g. discounted collection fees according to quality)
B216: ='4-TPS3R - PDU'!A25 -> % of income represented by compost sale | C216: Score | D216: Recommendation
A217: 0.1 | B217: =CONCATENATE("< ",TEXT(A217,"0%")," of total") -> < 10% of total | C217: 0 | D217: Unfortunately compost production is not active or very low amounts, with low income from its sale.
A218: 0.2 | B218: =CONCATENATE(TEXT(A217,"0%")," - ",TEXT(A218,"0%")," of total") -> 10% - 20% of total | C218: 2 | D218: Compost production is contributing to the business model with some income from its sale.
A219: 0.3 | B219: =CONCATENATE(TEXT(A218,"0%")," - ",TEXT(A219,"0%")," of total") -> 20% - 30% of total | C219: 4 | D219: Compost production is contributing to the business model with a significant income from its sale.
B220: =CONCATENATE("> ",TEXT(A219,"0%")," of total") -> > 30% of total | C220: 6 | D220: Compost production is contributing a lot to the business model generating a significant income from its sale.
B222: ='4-TPS3R - PDU'!A34 -> Total % income vs. total operational expenditures | C222: Score | D222: Recommendation
A223: 0.2 | B223: =CONCATENATE("< ",TEXT(A223,"0%")," of total") -> < 20% of total | C223: 0 | D223: The income is very low compared to operational expenditures, making the business model unsustainable.
A224: 0.4 | B224: =CONCATENATE(TEXT(A223,"0%")," - ",TEXT(A224,"0%")," of total") -> 20% - 40% of total | C224: 2 | D224: The income is low compared to operational expenditures, putting the business model at risk of failure.
A225: 0.6 | B225: =CONCATENATE(TEXT(A224,"0%")," - ",TEXT(A225,"0%")," of total") -> 40% - 60% of total | C225: 4 | D225: The income is still low compared to operational expenditures, putting the business model at risk of failure.
B226: =CONCATENATE("> ",TEXT(A225,"0%")," of total") -> > 60% of total | C226: 6 | D226: The income is comparable to operational expenditures but periodic maintainance and Capex my pose an unexpected risk. putting the business model at risk of failure.
B229: ='4-TPS3R - PDU'!E39 -> Organization | C229: Score | D229: Recommendation
A230: 0.2 | B230: =CONCATENATE("< ",TEXT(A230,"0%")," of max score") -> < 20% of max score | C230: 0 | D230: =CONCATENATE(E230,F231,F232,F233,F234,F235) -> The organisational capacity is very low and will hamper long term sustainability. Please consider the following: Human resource training addressing not only operational skill for sorting, but also sensitization activities towards households. Maintain and improve the timeliness of waste collection so that a strict obligation to pay waste fees is established. Find the best way to enforce sanctions for those not paying waste fee timely and doing open dumping. | E230: The organisational capacity is very low and will hamper long term sustainability. Please consider the following: | F230: Low | G230: Medium | H230: High | I230: Recommendations list
A231: 0.4 | B231: =CONCATENATE(TEXT(A230,"0%")," - ",TEXT(A231,"0%")," of max score") -> 20% - 40% of max score | C231: 2 | D231: =CONCATENATE(E231,G231,G232,G233,G234,G235) -> The organisational capacity is low; some improvements can ensure more effective waste recycling and income. Please consider the following: Human resource training addressing not only operational skill for sorting, but also sensitization activities towards households. Maintain and improve the timeliness of waste collection so that a strict obligation to pay waste fees is established. Find the best way to enforce sanctions for those not paying waste fee timely and doing open dumping. | E231: The organisational capacity is low; some improvements can ensure more effective waste recycling and income. Please consider the following: | F231: =$I231 -> Human resource training addressing not only operational skill for sorting, but also sensitization activities towards households. | G231: =$I231 -> Human resource training addressing not only operational skill for sorting, but also sensitization activities towards households. | H231: Human resource training addressing not only operational skill for sorting, but also sensitization activities towards households. | I231: Human resource training addressing not only operational skill for sorting, but also sensitization activities towards households.
A232: 0.6 | B232: =CONCATENATE(TEXT(A231,"0%")," - ",TEXT(A232,"0%")," of max score") -> 40% - 60% of max score | C232: 4 | D232: =CONCATENATE(E232,H231,H232,H233,H234,H235) -> The organisational capacity is not optimal; with some improvements, higher income can be ensured and operational expenditures can be lower. Please consider the following: Human resource training addressing not only operational skill for sorting, but also sensitization activities towards households. Maintain and improve the timeliness of waste collection so that a strict obligation to pay waste fees is established. Find the best way to enforce sanctions for those not paying waste fee timely and doing open dumping. | E232: The organisational capacity is not optimal; with some improvements, higher income can be ensured and operational expenditures can be lower. Please consider the following: | F232: =$I232 -> Maintain and improve the timeliness of waste collection so that a strict obligation to pay waste fees is established. | G232: Maintain and improve the timeliness of waste collection so that a strict obligation to pay waste fees is established. | H232: Maintain and improve the timeliness of waste collection so that a strict obligation to pay waste fees is established. | I232: Maintain and improve the timeliness of waste collection so that a strict obligation to pay waste fees is established.
B233: =CONCATENATE("> ",TEXT(A232,"0%")," of max score") -> > 60% of max score | C233: 6 | D233: =CONCATENATE(E233,"") -> The organizational capacity is good. Try to mantain this scheme to ensure long term sustainability. | E233: The organizational capacity is good. Try to mantain this scheme to ensure long term sustainability. | F233: Find the best way to enforce sanctions for those not paying waste fee timely and doing open dumping. | G233: Find the best way to enforce sanctions for those not paying waste fee timely and doing open dumping. | H233: Find the best way to enforce sanctions for those not paying waste fee timely and doing open dumping. | I233: Find the best way to enforce sanctions for those not paying waste fee timely and doing open dumping.
I234: …
I235: …
B239: ='4-TPS3R - PDU'!F39 -> Long term Sustainability | C239: Score | D239: Recommendation
A240: 0.2 | B240: =CONCATENATE("< ",TEXT(A240,"0%")," of max score") -> < 20% of max score | C240: 0 | D240: =CONCATENATE(E240,F241,F242,F243,F244,F245) -> Long term sustainability seems very low. Please consider the following: Get to a higher economic sustainability by increasing household waste fee. Perform a survey amongst farmers and other potential compost users in order to understand the acceptance of compost, misconceptions and willingness to pay a certain price. | E240: Long term sustainability seems very low. Please consider the following: | F240: Low | G240: Medium | H240: High | I240: Recommendations list
A241: 0.4 | B241: =CONCATENATE(TEXT(A240,"0%")," - ",TEXT(A241,"0%")," of max score") -> 20% - 40% of max score | C241: 2 | D241: =CONCATENATE(E241,G241,G242,G243,G244,G245) -> Long term sustainability is low. Please consider the following: Providing small waste bins to households to separate at source will increase their willingness to pay. Get to a higher economic sustainability by increasing household waste fee. Perform a survey amongst farmers and other potential compost users in order to understand the acceptance of compost, misconceptions and willingness to pay a certain price. Improve economic sustainability by focusing more on compost a potential for revenues. | E241: Long term sustainability is low. Please consider the following: | G241: =$I241 -> Providing small waste bins to households to separate at source will increase their willingness to pay. | H241: Providing small waste bins to households to separate at source will increase their willingness to pay. | I241: Providing small waste bins to households to separate at source will increase their willingness to pay.
A242: 0.6 | B242: =CONCATENATE(TEXT(A241,"0%")," - ",TEXT(A242,"0%")," of max score") -> 40% - 60% of max score | C242: 4 | D242: =CONCATENATE(E242,H241,H242,H243,H244,H245) -> Long term sustainability is not optimal. Please consider the following: Providing small waste bins to households to separate at source will increase their willingness to pay. Get to a higher economic sustainability by increasing household waste fee. Perform a survey amongst farmers and other potential compost users in order to understand the acceptance of compost, misconceptions and willingness to pay a certain price. Improve economic sustainability by focusing more on compost a potential for revenues. | E242: Long term sustainability is not optimal. Please consider the following: | F242: =$I242 -> Get to a higher economic sustainability by increasing household waste fee. | G242: Get to a higher economic sustainability by increasing household waste fee. | H242: Get to a higher economic sustainability by increasing household waste fee. | I242: Get to a higher economic sustainability by increasing household waste fee.
B243: =CONCATENATE("> ",TEXT(A242,"0%")," of max score") -> > 60% of max score | C243: 6 | D243: =CONCATENATE(E243,"") -> Long term sustainability appears to be solid. | E243: Long term sustainability appears to be solid. | F243: Perform a survey amongst farmers and other potential compost users in order to understand the acceptance of compost, misconceptions and willingness to pay a certain price. | G243: Perform a survey amongst farmers and other potential compost users in order to understand the acceptance of compost, misconceptions and willingness to pay a certain price. | H243: Perform a survey amongst farmers and other potential compost users in order to understand the acceptance of compost, misconceptions and willingness to pay a certain price. | I243: Perform a survey amongst farmers and other potential compost users in order to understand the acceptance of compost, misconceptions and willingness to pay a certain price.
G244: Improve economic sustainability by focusing more on compost a potential for revenues. | H244: Improve economic sustainability by focusing more on compost a potential for revenues. | I244: Improve economic sustainability by focusing more on compost a potential for revenues.
I245: …
B250: ='4-TPS3R - PDU'!G39 -> Organic fraction | C250: Score | D250: Recommendation
A251: 0.2 | B251: =CONCATENATE("< ",TEXT(A251,"0%")," of max score") -> < 20% of max score | C251: 0 | D251: =CONCATENATE(E251,F252,F253,F254,F255,F256) -> Organic fraction of waste is currently neglected. Please consider the following: Optimize the composting equiplment aiming at a better compost quality, to increase the production of compost fertilizer to be acceptable to meet farmers' needs and avoid selling very far away. Do sensitization campaigns with households to explain the benefits of delivering the organic fraction well separated and with no contaminants. Find support to improve machinery for composting in order to optimize the process (e.g. forced ventilation, turning). | E251: Organic fraction of waste is currently neglected. Please consider the following: | F251: Low | G251: Medium | H251: High | I251: Recommendations list
A252: 0.4 | B252: =CONCATENATE(TEXT(A251,"0%")," - ",TEXT(A252,"0%")," of max score") -> 20% - 40% of max score | C252: 2 | D252: =CONCATENATE(E252,G252,G253,G254,G255,G256) -> Organic fraction of waste is currently not addressed enough. Please consider the following: Optimize the composting equiplment aiming at a better compost quality, to increase the production of compost fertilizer to be acceptable to meet farmers' needs and avoid selling very far away. Do sensitization campaigns with households to explain the benefits of delivering the organic fraction well separated and with no contaminants. Find support to improve machinery for composting in order to optimize the process (e.g. forced ventilation, turning). | E252: Organic fraction of waste is currently not addressed enough. Please consider the following: | F252: =$I252 -> Optimize the composting equiplment aiming at a better compost quality, to increase the production of compost fertilizer to be acceptable to meet farmers' needs and avoid selling very far away. | G252: =$I252 -> Optimize the composting equiplment aiming at a better compost quality, to increase the production of compost fertilizer to be acceptable to meet farmers' needs and avoid selling very far away. | H252: Optimize the composting equiplment aiming at a better compost quality, to increase the production of compost fertilizer to be acceptable to meet farmers' needs and avoid selling very far away. | I252: Optimize the composting equiplment aiming at a better compost quality, to increase the production of compost fertilizer to be acceptable to meet farmers' needs and avoid selling very far away.
A253: 0.6 | B253: =CONCATENATE(TEXT(A252,"0%")," - ",TEXT(A253,"0%")," of max score") -> 40% - 60% of max score | C253: 4 | D253: =CONCATENATE(E253,H252,H253,H254,H255,H256) -> Organic fraction of waste con be given more focus. Please consider the following: Optimize the composting equiplment aiming at a better compost quality, to increase the production of compost fertilizer to be acceptable to meet farmers' needs and avoid selling very far away. Do sensitization campaigns with households to explain the benefits of delivering the organic fraction well separated and with no contaminants. Find support to improve machinery for composting in order to optimize the process (e.g. forced ventilation, turning). | E253: Organic fraction of waste con be given more focus. Please consider the following: | F253: =$I253 -> Do sensitization campaigns with households to explain the benefits of delivering the organic fraction well separated and with no contaminants. | G253: Do sensitization campaigns with households to explain the benefits of delivering the organic fraction well separated and with no contaminants. | H253: Do sensitization campaigns with households to explain the benefits of delivering the organic fraction well separated and with no contaminants. | I253: Do sensitization campaigns with households to explain the benefits of delivering the organic fraction well separated and with no contaminants.
B254: =CONCATENATE("> ",TEXT(A253,"0%")," of max score") -> > 60% of max score | C254: 6 | D254: =CONCATENATE(E254,"") -> Organic fraction of waste is apparently well managed. | E254: Organic fraction of waste is apparently well managed. | F254: Find support to improve machinery for composting in order to optimize the process (e.g. forced ventilation, turning). | G254: Find support to improve machinery for composting in order to optimize the process (e.g. forced ventilation, turning). | H254: Find support to improve machinery for composting in order to optimize the process (e.g. forced ventilation, turning). | I254: Find support to improve machinery for composting in order to optimize the process (e.g. forced ventilation, turning).
I255: …
I256: …
B257: 5-GHG EMISSIONS
B259: Distance from best scenario | C259: Score | D259: Recommendation
A260: 4 | B260: =CONCATENATE("> ",TEXT(A260,"0%")) -> > 400% | C260: 0 | D260: The current waste management in terms of CO2 emissions is very far from the best scenario as almost all the organic fraction is either landfilled or open dumped. More initiatives aimed at enhancing source separation of organics and composting are needed.
A261: 2 | B261: =CONCATENATE(TEXT(A260,"0%")," - ",TEXT(A261,"0%")) -> 400% - 200% | C261: 2 | D261: Some preliminary steps have been taken but the current waste management in terms of CO2 emissions is still far from the best scenario as a lot of the organic fraction is either landfilled or open dumped. More initiatives aimed at enhancing source separation of organics and composting are needed.
A262: 1 | B262: =CONCATENATE(TEXT(A261,"0%")," - ",TEXT(A262,"0%")) -> 200% - 100% | C262: 4 | D262: The city is advancing towards a good waste management in terms of CO2 emissions. The best performing scenario is not so far away.
B263: =CONCATENATE("< ",TEXT(A262,"0%")," of max score") -> < 100% of max score | C263: 6 | D263: The city has almost reached the best performing scenario in terms of CO2 emissions, congratulations!

Sheet CHART
B1: Category | C1: Score | D1: Sector Weight | E1: % of 360° | F1: Start Angle | G1: Finish Angle | H1: Chart Labels | I1: 0 | J1: 1 | K1: 2 | L1: 3 | M1: 4 | N1: 5 | O1: 6 | P1: 7 | Q1: 8 | R1: 9 | S1: 10 | T1: 11 | U1: 12 | V1: 13 | W1: 14 | X1: 15 | Y1: 16 | Z1: 17 | AA1: 18 | AB1: 19 | AC1: 20 | AD1: 21 | AE1: 22 | AF1: 23 | AG1: 24 | AH1: 25 | AI1: 26 | AJ1: 27 | AK1: 28 | AL1: 29 | AM1: 30 | AN1: 31 | AO1: 32 | AP1: 33 | AQ1: 34 | AR1: 35 | AS1: 36 | AT1: 37 | AU1: 38 | AV1: 39 | AW1: 40 | AX1: 41 | AY1: 42 | AZ1: 43 | BA1: 44 | BB1: 45 | BC1: 46 | BD1: 47 | BE1: 48 | BF1: 49 | BG1: 50 | BH1: 51 | BI1: 52 | BJ1: 53 | BK1: 54 | BL1: 55 | BM1: 56 | BN1: 57 | BO1: 58 | BP1: 59 | BQ1: 60 | BR1: 61 | BS1: 62 | BT1: 63 | BU1: 64 | BV1: 65 | BW1: 66 | BX1: 67 | BY1: 68 | BZ1: 69 | CA1: 70 | CB1: 71 | CC1: 72 | CD1: 73 | CE1: 74 | CF1: 75 | CG1: 76 | CH1: 77 | CI1: 78 | CJ1: 79 | CK1: 80 | CL1: 81 | CM1: 82 | CN1: 83 | CO1: 84 | CP1: 85 | CQ1: 86 | CR1: 87 | CS1: 88 | CT1: 89 | CU1: 90 | CV1: 91 | CW1: 92 | CX1: 93 | CY1: 94 | CZ1: 95 | DA1: 96 | DB1: 97 | DC1: 98 | DD1: 99 | DE1: 100 | DF1: 101 | DG1: 102 | DH1: 103 | DI1: 104 | DJ1: 105 | DK1: 106 | DL1: 107 | DM1: 108 | DN1: 109 | DO1: 110 | DP1: 111 | DQ1: 112 | DR1: 113 | DS1: 114 | DT1: 115 | DU1: 116 | DV1: 117 | DW1: 118 | DX1: 119 | DY1: 120 | DZ1: 121 | EA1: 122 | EB1: 123 | EC1: 124 | ED1: 125 | EE1: 126 | EF1: 127 | EG1: 128 | EH1: 129 | EI1: 130 | EJ1: 131 | EK1: 132 | EL1: 133 | EM1: 134 | EN1: 135 | EO1: 136 | EP1: 137 | EQ1: 138 | ER1: 139 | ES1: 140 | ET1: 141 | EU1: 142 | EV1: 143 | EW1: 144 | EX1: 145 | EY1: 146 | EZ1: 147 | FA1: 148 | FB1: 149 | FC1: 150 | FD1: 151 | FE1: 152 | FF1: 153 | FG1: 154 | FH1: 155 | FI1: 156 | FJ1: 157 | FK1: 158 | FL1: 159 | FM1: 160 | FN1: 161 | FO1: 162 | FP1: 163 | FQ1: 164 | FR1: 165 | FS1: 166 | FT1: 167 | FU1: 168 | FV1: 169 | FW1: 170 | FX1: 171 | FY1: 172 | FZ1: 173 | GA1: 174 | GB1: 175 | GC1: 176 | GD1: 177 | GE1: 178 | GF1: 179 | GG1: 180 | GH1: 181 | GI1: 182 | GJ1: 183 | GK1: 184 | GL1: 185 | GM1: 186 | GN1: 187 | GO1: 188 | GP1: 189 | GQ1: 190 | GR1: 191 | GS1: 192 | GT1: 193 | GU1: 194 | GV1: 195 | GW1: 196 | GX1: 197 | GY1: 198 | GZ1: 199 | HA1: 200 | HB1: 201 | HC1: 202 | HD1: 203 | HE1: 204 | HF1: 205 | HG1: 206 | HH1: 207 | HI1: 208 | HJ1: 209 | HK1: 210 | HL1: 211 | HM1: 212 | HN1: 213 | HO1: 214 | HP1: 215 | HQ1: 216 | HR1: 217 | HS1: 218 | HT1: 219 | HU1: 220 | HV1: 221 | HW1: 222 | HX1: 223 | HY1: 224 | HZ1: 225 | IA1: 226 | IB1: 227 | IC1: 228 | ID1: 229 | IE1: 230 | IF1: 231 | IG1: 232 | IH1: 233 | II1: 234 | IJ1: 235 | IK1: 236 | IL1: 237 | IM1: 238 | IN1: 239 | IO1: 240 | IP1: 241 | IQ1: 242 | IR1: 243 | IS1: 244 | IT1: 245 | IU1: 246 | IV1: 247 | IW1: 248 | IX1: 249 | IY1: 250 | IZ1: 251 | JA1: 252 | JB1: 253 | JC1: 254 | JD1: 255 | JE1: 256 | JF1: 257 | JG1: 258 | JH1: 259 | JI1: 260 | JJ1: 261 | JK1: 262 | JL1: 263 | JM1: 264 | JN1: 265 | JO1: 266 | JP1: 267 | JQ1: 268 | JR1: 269 | JS1: 270 | JT1: 271 | JU1: 272 | JV1: 273 | JW1: 274 | JX1: 275 | JY1: 276 | JZ1: 277 | KA1: 278 | KB1: 279 | KC1: 280 | KD1: 281 | KE1: 282 | KF1: 283 | KG1: 284 | KH1: 285 | KI1: 286 | KJ1: 287 | KK1: 288 | KL1: 289 | KM1: 290 | KN1: 291 | KO1: 292 | KP1: 293 | KQ1: 294 | KR1: 295 | KS1: 296 | KT1: 297 | KU1: 298 | KV1: 299 | KW1: 300 | KX1: 301 | KY1: 302 | KZ1: 303 | LA1: 304 | LB1: 305 | LC1: 306 | LD1: 307 | LE1: 308 | LF1: 309 | LG1: 310 | LH1: 311 | LI1: 312 | LJ1: 313 | LK1: 314 | LL1: 315 | LM1: 316 | LN1: 317 | LO1: 318 | LP1: 319 | LQ1: 320 | LR1: 321 | LS1: 322 | LT1: 323 | LU1: 324 | LV1: 325 | LW1: 326 | LX1: 327 | LY1: 328 | LZ1: 329 | MA1: 330 | MB1: 331 | MC1: 332 | MD1: 333 | ME1: 334 | MF1: 335 | MG1: 336 | MH1: 337 | MI1: 338 | MJ1: 339 | MK1: 340 | ML1: 341 | MM1: 342 | MN1: 343 | MO1: 344 | MP1: 345 | MQ1: 346 | MR1: 347 | MS1: 348 | MT1: 349 | MU1: 350 | MV1: 351 | MW1: 352 | MX1: 353 | MY1: 354 | MZ1: 355 | NA1: 356 | NB1: 357 | NC1: 358 | ND1: 359 | NE1: 360
B2: 1-WASTE | C2: =E64*10 ->  | D2: 10 | E2: =D2/SUM($D$2:$D$9) -> 0.2 | F2: 0 | G2: =360*SUM($E$2:E2)+1 -> 73 | H2: =B2 -> 1-WASTE | I2: =IF(AND(I$1>=$F2,I$1<=$G2),$C2,0) ->  | CE2: 0 | CF2: 0 | CG2: 0 | CH2: 0 | CI2: 0 | CJ2: 0 | CK2: 0 | CL2: 0 | CM2: 0 | CN2: 0 | CO2: 0 | CP2: 0 | CQ2: 0 | CR2: 0 | CS2: 0 | CT2: 0 | CU2: 0 | CV2: 0 | CW2: 0 | CX2: 0 | CY2: 0 | CZ2: 0 | DA2: 0 | DB2: 0 | DC2: 0 | DD2: 0 | DE2: 0 | DF2: 0 | DG2: 0 | DH2: 0 | DI2: 0 | DJ2: 0 | DK2: 0 | DL2: 0 | DM2: 0 | DN2: 0 | DO2: 0 | DP2: 0 | DQ2: 0 | DR2: 0 | DS2: 0 | DT2: 0 | DU2: 0 | DV2: 0 | DW2: 0 | DX2: 0 | DY2: 0 | DZ2: 0 | EA2: 0 | EB2: 0 | EC2: 0 | ED2: 0 | EE2: 0 | EF2: 0 | EG2: 0 | EH2: 0 | EI2: 0 | EJ2: 0 | EK2: 0 | EL2: 0 | EM2: 0 | EN2: 0 | EO2: 0 | EP2: 0 | EQ2: 0 | ER2: 0 | ES2: 0 | ET2: 0 | EU2: 0 | EV2: 0 | EW2: 0 | EX2: 0 | EY2: 0 | EZ2: 0 | FA2: 0 | FB2: 0 | FC2: 0 | FD2: 0 | FE2: 0 | FF2: 0 | FG2: 0 | FH2: 0 | FI2: 0 | FJ2: 0 | FK2: 0 | FL2: 0 | FM2: 0 | FN2: 0 | FO2: 0 | FP2: 0 | FQ2: 0 | FR2: 0 | FS2: 0 | FT2: 0 | FU2: 0 | FV2: 0 | FW2: 0 | FX2: 0 | FY2: 0 | FZ2: 0 | GA2: 0 | GB2: 0 | GC2: 0 | GD2: 0 | GE2: 0 | GF2: 0 | GG2: 0 | GH2: 0 | GI2: 0 | GJ2: 0 | GK2: 0 | GL2: 0 | GM2: 0 | GN2: 0 | GO2: 0 | GP2: 0 | GQ2: 0 | GR2: 0 | GS2: 0 | GT2: 0 | GU2: 0 | GV2: 0 | GW2: 0 | GX2: 0 | GY2: 0 | GZ2: 0 | HA2: 0 | HB2: 0 | HC2: 0 | HD2: 0 | HE2: 0 | HF2: 0 | HG2: 0 | HH2: 0 | HI2: 0 | HJ2: 0 | HK2: 0 | HL2: 0 | HM2: 0 | HN2: 0 | HO2: 0 | HP2: 0 | HQ2: 0 | HR2: 0 | HS2: 0 | HT2: 0 | HU2: 0 | HV2: 0 | HW2: 0 | HX2: 0 | HY2: 0 | HZ2: 0 | IA2: 0 | IB2: 0 | IC2: 0 | ID2: 0 | IE2: 0 | IF2: 0 | IG2: 0 | IH2: 0 | II2: 0 | IJ2: 0 | IK2: 0 | IL2: 0 | IM2: 0 | IN2: 0 | IO2: 0 | IP2: 0 | IQ2: 0 | IR2: 0 | IS2: 0 | IT2: 0 | IU2: 0 | IV2: 0 | IW2: 0 | IX2: 0 | IY2: 0 | IZ2: 0 | JA2: 0 | JB2: 0 | JC2: 0 | JD2: =IF(AND(JD$1>=$F2,JD$1<=$G2),$C2,0) -> 0 | JE2: 0 | JF2: 0 | JG2: 0 | JH2: 0 | JI2: 0 | JJ2: 0 | JK2: 0 | JL2: 0 | JM2: 0 | JN2: 0 | JO2: 0 | JP2: 0 | JQ2: 0 | JR2: 0 | JS2: 0 | JT2: 0 | JU2: 0 | JV2: 0 | JW2: 0 | JX2: 0 | JY2: 0 | JZ2: 0 | KA2: 0 | KB2: 0 | KC2: 0 | KD2: 0 | KE2: 0 | KF2: 0 | KG2: 0 | KH2: 0 | KI2: 0 | KJ2: 0 | KK2: 0 | KL2: 0 | KM2: 0 | KN2: 0 | KO2: 0 | KP2: 0 | KQ2: 0 | KR2: 0 | KS2: 0 | KT2: 0 | KU2: 0 | KV2: 0 | KW2: 0 | KX2: 0 | KY2: 0 | KZ2: 0 | LA2: 0 | LB2: 0 | LC2: 0 | LD2: 0 | LE2: 0 | LF2: 0 | LG2: 0 | LH2: 0 | LI2: 0 | LJ2: 0 | LK2: 0 | LL2: 0 | LM2: 0 | LN2: 0 | LO2: 0 | LP2: 0 | LQ2: 0 | LR2: 0 | LS2: 0 | LT2: 0 | LU2: 0 | LV2: 0 | LW2: 0 | LX2: 0 | LY2: 0 | LZ2: 0 | MA2: 0 | MB2: 0 | MC2: 0 | MD2: 0 | ME2: 0 | MF2: 0 | MG2: 0 | MH2: 0 | MI2: 0 | MJ2: 0 | MK2: 0 | ML2: 0 | MM2: 0 | MN2: 0 | MO2: 0 | MP2: 0 | MQ2: 0 | MR2: 0 | MS2: 0 | MT2: 0 | MU2: 0 | MV2: 0 | MW2: 0 | MX2: 0 | MY2: 0 | MZ2: 0 | NA2: 0 | NB2: 0 | NC2: 0 | ND2: 0 | NE2: 0
B3: 2-GOVERNANCE | C3: =E71*10 -> 0 | D3: 10 | E3: 0.2 | F3: =G2 -> 73 | G3: =360*SUM($E$2:E3)+1 -> 145 | H3: 2-GOVERNANCE | I3: =IF(AND(I$1>=$F3,I$1<=$G3),$C3,0) -> 0 | J3: 0 | K3: 0 | L3: 0 | M3: 0 | N3: 0 | O3: 0 | P3: 0 | Q3: =IF(AND(Q$1>=$F3,Q$1<=$G3),$C3,0) -> 0 | R3: 0 | S3: 0 | T3: 0 | U3: 0 | V3: 0 | W3: 0 | X3: 0 | Y3: 0 | Z3: 0 | AA3: 0 | AB3: 0 | AC3: 0 | AD3: 0 | AE3: 0 | AF3: 0 | AG3: 0 | AH3: 0 | AI3: 0 | AJ3: 0 | AK3: 0 | AL3: 0 | AM3: 0 | AN3: 0 | AO3: 0 | AP3: 0 | AQ3: 0 | AR3: 0 | AS3: 0 | AT3: 0 | AU3: 0 | AV3: 0 | AW3: 0 | AX3: 0 | AY3: 0 | AZ3: 0 | BA3: 0 | BB3: 0 | BC3: 0 | BD3: 0 | BE3: 0 | BF3: 0 | BG3: 0 | BH3: 0 | BI3: 0 | BJ3: 0 | BK3: 0 | BL3: 0 | BM3: 0 | BN3: 0 | BO3: 0 | BP3: 0 | BQ3: 0 | BR3: 0 | BS3: 0 | BT3: 0 | BU3: 0 | BV3: 0 | BW3: 0 | BX3: 0 | BY3: 0 | BZ3: 0 | CA3: 0 | CB3: 0 | CC3: 0 | CD3: 0 | CE3: 0 | CF3: 0 | CG3: 0 | CH3: 0 | CI3: 0 | CJ3: 0 | CK3: 0 | CL3: 0 | CM3: 0 | CN3: 0 | CO3: 0 | CP3: 0 | CQ3: 0 | CR3: 0 | CS3: 0 | CT3: 0 | CU3: 0 | CV3: 0 | CW3: 0 | CX3: 0 | CY3: 0 | CZ3: 0 | DA3: 0 | DB3: 0 | DC3: 0 | DD3: 0 | DE3: 0 | DF3: 0 | DG3: 0 | DH3: 0 | DI3: 0 | DJ3: 0 | DK3: 0 | DL3: 0 | DM3: 0 | DN3: 0 | DO3: 0 | DP3: 0 | DQ3: 0 | DR3: 0 | DS3: 0 | DT3: 0 | DU3: 0 | DV3: 0 | DW3: 0 | DX3: 0 | DY3: 0 | DZ3: 0 | EA3: 0 | EB3: 0 | EC3: 0 | ED3: 0 | EE3: 0 | EF3: 0 | EG3: 0 | EH3: 0 | EI3: 0 | EJ3: 0 | EK3: 0 | EL3: 0 | EM3: 0 | EN3: 0 | EO3: 0 | EP3: 0 | EQ3: 0 | ER3: 0 | ES3: 0 | ET3: 0 | EU3: 0 | EV3: 0 | EW3: 0 | EX3: 0 | EY3: 0 | EZ3: 0 | FA3: 0 | FB3: 0 | FC3: 0 | FD3: 0 | FE3: 0 | FF3: 0 | FG3: 0 | FH3: 0 | FI3: 0 | FJ3: 0 | FK3: 0 | FL3: 0 | FM3: 0 | FN3: 0 | FO3: 0 | FP3: 0 | FQ3: 0 | FR3: 0 | FS3: 0 | FT3: 0 | FU3: 0 | FV3: 0 | FW3: 0 | FX3: 0 | FY3: 0 | FZ3: 0 | GA3: 0 | GB3: 0 | GC3: 0 | GD3: 0 | GE3: 0 | GF3: 0 | GG3: 0 | GH3: 0 | GI3: 0 | GJ3: 0 | GK3: 0 | GL3: 0 | GM3: 0 | GN3: 0 | GO3: 0 | GP3: 0 | GQ3: 0 | GR3: 0 | GS3: 0 | GT3: 0 | GU3: 0 | GV3: 0 | GW3: 0 | GX3: 0 | GY3: 0 | GZ3: 0 | HA3: 0 | HB3: 0 | HC3: 0 | HD3: 0 | HE3: 0 | HF3: 0 | HG3: 0 | HH3: 0 | HI3: 0 | HJ3: 0 | HK3: 0 | HL3: 0 | HM3: 0 | HN3: 0 | HO3: 0 | HP3: 0 | HQ3: 0 | HR3: 0 | HS3: 0 | HT3: 0 | HU3: 0 | HV3: 0 | HW3: 0 | HX3: 0 | HY3: 0 | HZ3: 0 | IA3: 0 | IB3: 0 | IC3: 0 | ID3: 0 | IE3: 0 | IF3: 0 | IG3: 0 | IH3: 0 | II3: 0 | IJ3: 0 | IK3: 0 | IL3: 0 | IM3: 0 | IN3: 0 | IO3: 0 | IP3: 0 | IQ3: 0 | IR3: 0 | IS3: 0 | IT3: 0 | IU3: 0 | IV3: 0 | IW3: 0 | IX3: 0 | IY3: 0 | IZ3: 0 | JA3: 0 | JB3: 0 | JC3: 0 | JD3: 0 | JE3: 0 | JF3: 0 | JG3: 0 | JH3: 0 | JI3: 0 | JJ3: 0 | JK3: 0 | JL3: 0 | JM3: 0 | JN3: 0 | JO3: 0 | JP3: 0 | JQ3: 0 | JR3: 0 | JS3: 0 | JT3: 0 | JU3: 0 | JV3: 0 | JW3: 0 | JX3: 0 | JY3: 0 | JZ3: 0 | KA3: 0 | KB3: 0 | KC3: 0 | KD3: 0 | KE3: 0 | KF3: 0 | KG3: 0 | KH3: 0 | KI3: 0 | KJ3: 0 | KK3: 0 | KL3: 0 | KM3: 0 | KN3: 0 | KO3: 0 | KP3: 0 | KQ3: 0 | KR3: 0 | KS3: 0 | KT3: 0 | KU3: 0 | KV3: 0 | KW3: 0 | KX3: 0 | KY3: 0 | KZ3: 0 | LA3: 0 | LB3: 0 | LC3: 0 | LD3: 0 | LE3: 0 | LF3: 0 | LG3: 0 | LH3: 0 | LI3: 0 | LJ3: 0 | LK3: 0 | LL3: 0 | LM3: 0 | LN3: 0 | LO3: 0 | LP3: 0 | LQ3: 0 | LR3: 0 | LS3: 0 | LT3: 0 | LU3: 0 | LV3: 0 | LW3: 0 | LX3: 0 | LY3: 0 | LZ3: 0 | MA3: 0 | MB3: 0 | MC3: 0 | MD3: 0 | ME3: 0 | MF3: 0 | MG3: 0 | MH3: 0 | MI3: 0 | MJ3: 0 | MK3: 0 | ML3: 0 | MM3: 0 | MN3: 0 | MO3: 0 | MP3: 0 | MQ3: 0 | MR3: 0 | MS3: 0 | MT3: 0 | MU3: 0 | MV3: 0 | MW3: 0 | MX3: 0 | MY3: 0 | MZ3: 0 | NA3: 0 | NB3: 0 | NC3: 0 | ND3: 0 | NE3: 0
B4: 3-ECONOMICS | C4: =E77*10 -> 0 | D4: 10 | E4: 0.2 | F4: 145 | G4: =360*SUM($E$2:E4)+1 -> 217 | H4: 3-ECONOMICS | I4: 0 | J4: 0 | K4: 0 | L4: 0 | M4: 0 | N4: 0 | O4: 0 | P4: 0 | Q4: 0 | R4: 0 | S4: 0 | T4: 0 | U4: 0 | V4: 0 | W4: 0 | X4: 0 | Y4: =IF(AND(Y$1>=$F4,Y$1<=$G4),$C4,0) -> 0 | Z4: 0 | AA4: 0 | AB4: 0 | AC4: 0 | AD4: 0 | AE4: 0 | AF4: 0 | AG4: 0 | AH4: 0 | AI4: 0 | AJ4: 0 | AK4: 0 | AL4: 0 | AM4: 0 | AN4: 0 | AO4: 0 | AP4: 0 | AQ4: 0 | AR4: 0 | AS4: 0 | AT4: 0 | AU4: 0 | AV4: 0 | AW4: 0 | AX4: 0 | AY4: 0 | AZ4: 0 | BA4: 0 | BB4: 0 | BC4: 0 | BD4: 0 | BE4: 0 | BF4: 0 | BG4: 0 | BH4: 0 | BI4: 0 | BJ4: 0 | BK4: 0 | BL4: 0 | BM4: 0 | BN4: 0 | BO4: 0 | BP4: 0 | BQ4: 0 | BR4: 0 | BS4: 0 | BT4: 0 | BU4: 0 | BV4: 0 | BW4: 0 | BX4: 0 | BY4: 0 | BZ4: 0 | CA4: 0 | CB4: 0 | CC4: 0 | CD4: 0 | CE4: 0 | CF4: 0 | CG4: 0 | CH4: 0 | CI4: 0 | CJ4: 0 | CK4: 0 | CL4: 0 | CM4: 0 | CN4: 0 | CO4: 0 | CP4: 0 | CQ4: 0 | CR4: 0 | CS4: 0 | CT4: 0 | CU4: 0 | CV4: 0 | CW4: 0 | CX4: 0 | CY4: 0 | CZ4: 0 | DA4: 0 | DB4: 0 | DC4: 0 | DD4: 0 | DE4: 0 | DF4: 0 | DG4: 0 | DH4: 0 | DI4: 0 | DJ4: 0 | DK4: 0 | DL4: 0 | DM4: 0 | DN4: 0 | DO4: 0 | DP4: 0 | DQ4: 0 | DR4: 0 | DS4: 0 | DT4: 0 | DU4: 0 | DV4: 0 | DW4: 0 | DX4: 0 | DY4: 0 | DZ4: 0 | EA4: 0 | EB4: 0 | EC4: 0 | ED4: 0 | EE4: 0 | EF4: 0 | EG4: 0 | EH4: 0 | EI4: 0 | EJ4: 0 | EK4: 0 | EL4: 0 | EM4: 0 | EN4: 0 | EO4: 0 | EP4: 0 | EQ4: 0 | ER4: 0 | ES4: 0 | ET4: 0 | EU4: 0 | EV4: 0 | EW4: 0 | EX4: 0 | EY4: 0 | EZ4: 0 | FA4: 0 | FB4: 0 | FC4: 0 | FD4: 0 | FE4: 0 | FF4: 0 | FG4: 0 | FH4: 0 | FI4: 0 | FJ4: 0 | FK4: 0 | FL4: 0 | FM4: 0 | FN4: 0 | FO4: 0 | FP4: 0 | FQ4: 0 | FR4: 0 | FS4: 0 | FT4: 0 | FU4: 0 | FV4: 0 | FW4: 0 | FX4: 0 | FY4: 0 | FZ4: 0 | GA4: 0 | GB4: 0 | GC4: 0 | GD4: 0 | GE4: 0 | GF4: 0 | GG4: 0 | GH4: 0 | GI4: 0 | GJ4: 0 | GK4: 0 | GL4: 0 | GM4: 0 | GN4: 0 | GO4: 0 | GP4: 0 | GQ4: 0 | GR4: 0 | GS4: 0 | GT4: 0 | GU4: 0 | GV4: 0 | GW4: 0 | GX4: 0 | GY4: 0 | GZ4: 0 | HA4: 0 | HB4: 0 | HC4: 0 | HD4: 0 | HE4: 0 | HF4: 0 | HG4: 0 | HH4: 0 | HI4: 0 | HJ4: 0 | HK4: 0 | HL4: 0 | HM4: 0 | HN4: 0 | HO4: 0 | HP4: 0 | HQ4: 0 | HR4: 0 | HS4: 0 | HT4: 0 | HU4: 0 | HV4: 0 | HW4: 0 | HX4: 0 | HY4: 0 | HZ4: 0 | IA4: 0 | IB4: 0 | IC4: 0 | ID4: 0 | IE4: 0 | IF4: 0 | IG4: 0 | IH4: 0 | II4: 0 | IJ4: 0 | IK4: 0 | IL4: 0 | IM4: 0 | IN4: 0 | IO4: 0 | IP4: 0 | IQ4: 0 | IR4: 0 | IS4: 0 | IT4: 0 | IU4: 0 | IV4: 0 | IW4: 0 | IX4: 0 | IY4: 0 | IZ4: 0 | JA4: 0 | JB4: 0 | JC4: 0 | JD4: 0 | JE4: 0 | JF4: 0 | JG4: 0 | JH4: 0 | JI4: 0 | JJ4: 0 | JK4: 0 | JL4: 0 | JM4: 0 | JN4: 0 | JO4: 0 | JP4: 0 | JQ4: 0 | JR4: 0 | JS4: 0 | JT4: 0 | JU4: 0 | JV4: 0 | JW4: 0 | JX4: 0 | JY4: 0 | JZ4: 0 | KA4: 0 | KB4: 0 | KC4: 0 | KD4: 0 | KE4: 0 | KF4: 0 | KG4: 0 | KH4: 0 | KI4: 0 | KJ4: 0 | KK4: 0 | KL4: 0 | KM4: 0 | KN4: 0 | KO4: 0 | KP4: 0 | KQ4: 0 | KR4: 0 | KS4: 0 | KT4: 0 | KU4: 0 | KV4: 0 | KW4: 0 | KX4: 0 | KY4: 0 | KZ4: 0 | LA4: 0 | LB4: 0 | LC4: 0 | LD4: 0 | LE4: 0 | LF4: 0 | LG4: 0 | LH4: 0 | LI4: 0 | LJ4: 0 | LK4: 0 | LL4: 0 | LM4: 0 | LN4: 0 | LO4: 0 | LP4: 0 | LQ4: 0 | LR4: 0 | LS4: =IF(AND(LS$1>=$F4,LS$1<=$G4),$C4,0) -> 0 | LT4: 0 | LU4: 0 | LV4: 0 | LW4: 0 | LX4: 0 | LY4: 0 | LZ4: 0 | MA4: 0 | MB4: 0 | MC4: 0 | MD4: 0 | ME4: 0 | MF4: 0 | MG4: 0 | MH4: 0 | MI4: 0 | MJ4: 0 | MK4: 0 | ML4: 0 | MM4: 0 | MN4: 0 | MO4: 0 | MP4: 0 | MQ4: 0 | MR4: 0 | MS4: 0 | MT4: 0 | MU4: 0 | MV4: 0 | MW4: 0 | MX4: 0 | MY4: 0 | MZ4: 0 | NA4: 0 | NB4: 0 | NC4: 0 | ND4: 0 | NE4: 0
B5: 4-TPS 3R - PDU | C5: =E83*10 -> 0 | D5: 10 | E5: 0.2 | F5: 217 | G5: =360*SUM($E$2:E5)+1 -> 289 | H5: 4-TPS 3R - PDU | I5: 0 | J5: 0 | K5: 0 | L5: 0 | M5: 0 | N5: 0 | O5: 0 | P5: 0 | Q5: 0 | R5: 0 | S5: 0 | T5: 0 | U5: 0 | V5: 0 | W5: 0 | X5: 0 | Y5: =IF(AND(Y$1>=$F5,Y$1<=$G5),$C5,0) -> 0 | Z5: 0 | AA5: 0 | AB5: 0 | AC5: 0 | AD5: 0 | AE5: 0 | AF5: 0 | AG5: 0 | AH5: 0 | AI5: 0 | AJ5: 0 | AK5: 0 | AL5: 0 | AM5: 0 | AN5: 0 | AO5: 0 | AP5: 0 | AQ5: 0 | AR5: 0 | AS5: 0 | AT5: 0 | AU5: 0 | AV5: 0 | AW5: 0 | AX5: 0 | AY5: 0 | AZ5: 0 | BA5: 0 | BB5: 0 | BC5: 0 | BD5: 0 | BE5: 0 | BF5: 0 | BG5: 0 | BH5: 0 | BI5: 0 | BJ5: 0 | BK5: 0 | BL5: 0 | BM5: 0 | BN5: 0 | BO5: 0 | BP5: 0 | BQ5: 0 | BR5: 0 | BS5: 0 | BT5: 0 | BU5: 0 | BV5: 0 | BW5: 0 | BX5: 0 | BY5: 0 | BZ5: 0 | CA5: 0 | CB5: 0 | CC5: 0 | CD5: 0 | CE5: 0 | CF5: 0 | CG5: 0 | CH5: 0 | CI5: 0 | CJ5: 0 | CK5: 0 | CL5: 0 | CM5: 0 | CN5: 0 | CO5: 0 | CP5: 0 | CQ5: 0 | CR5: 0 | CS5: 0 | CT5: 0 | CU5: 0 | CV5: 0 | CW5: 0 | CX5: 0 | CY5: 0 | CZ5: 0 | DA5: 0 | DB5: 0 | DC5: 0 | DD5: 0 | DE5: 0 | DF5: 0 | DG5: 0 | DH5: 0 | DI5: 0 | DJ5: 0 | DK5: 0 | DL5: 0 | DM5: 0 | DN5: 0 | DO5: 0 | DP5: 0 | DQ5: 0 | DR5: 0 | DS5: 0 | DT5: 0 | DU5: 0 | DV5: 0 | DW5: 0 | DX5: 0 | DY5: 0 | DZ5: 0 | EA5: 0 | EB5: 0 | EC5: 0 | ED5: 0 | EE5: 0 | EF5: 0 | EG5: 0 | EH5: 0 | EI5: 0 | EJ5: 0 | EK5: 0 | EL5: 0 | EM5: 0 | EN5: 0 | EO5: 0 | EP5: 0 | EQ5: 0 | ER5: 0 | ES5: 0 | ET5: 0 | EU5: 0 | EV5: 0 | EW5: 0 | EX5: 0 | EY5: 0 | EZ5: 0 | FA5: 0 | FB5: 0 | FC5: 0 | FD5: 0 | FE5: 0 | FF5: 0 | FG5: 0 | FH5: 0 | FI5: 0 | FJ5: 0 | FK5: 0 | FL5: 0 | FM5: 0 | FN5: 0 | FO5: 0 | FP5: 0 | FQ5: 0 | FR5: 0 | FS5: 0 | FT5: 0 | FU5: 0 | FV5: 0 | FW5: 0 | FX5: 0 | FY5: 0 | FZ5: 0 | GA5: 0 | GB5: 0 | GC5: 0 | GD5: 0 | GE5: 0 | GF5: 0 | GG5: 0 | GH5: 0 | GI5: 0 | GJ5: 0 | GK5: 0 | GL5: 0 | GM5: 0 | GN5: 0 | GO5: 0 | GP5: 0 | GQ5: 0 | GR5: 0 | GS5: 0 | GT5: 0 | GU5: 0 | GV5: 0 | GW5: 0 | GX5: 0 | GY5: 0 | GZ5: 0 | HA5: 0 | HB5: 0 | HC5: 0 | HD5: 0 | HE5: 0 | HF5: 0 | HG5: 0 | HH5: 0 | HI5: 0 | HJ5: 0 | HK5: 0 | HL5: 0 | HM5: 0 | HN5: 0 | HO5: 0 | HP5: 0 | HQ5: 0 | HR5: 0 | HS5: 0 | HT5: 0 | HU5: 0 | HV5: 0 | HW5: 0 | HX5: 0 | HY5: 0 | HZ5: 0 | IA5: 0 | IB5: 0 | IC5: 0 | ID5: 0 | IE5: 0 | IF5: 0 | IG5: 0 | IH5: 0 | II5: 0 | IJ5: 0 | IK5: 0 | IL5: 0 | IM5: 0 | IN5: 0 | IO5: 0 | IP5: 0 | IQ5: 0 | IR5: 0 | IS5: 0 | IT5: 0 | IU5: 0 | IV5: 0 | IW5: 0 | IX5: 0 | IY5: 0 | IZ5: 0 | JA5: 0 | JB5: 0 | JC5: 0 | JD5: 0 | JE5: 0 | JF5: 0 | JG5: 0 | JH5: 0 | JI5: 0 | JJ5: 0 | JK5: 0 | JL5: 0 | JM5: 0 | JN5: 0 | JO5: 0 | JP5: 0 | JQ5: 0 | JR5: 0 | JS5: 0 | JT5: =IF(AND(JT$1>=$F5,JT$1<=$G5),$C5,0) -> 0 | JU5: 0 | JV5: 0 | JW5: 0 | JX5: 0 | JY5: 0 | JZ5: 0 | KA5: 0 | KB5: 0 | KC5: 0 | KD5: 0 | KE5: 0 | KF5: 0 | KG5: 0 | KH5: 0 | KI5: 0 | KJ5: 0 | KK5: 0 | KL5: 0 | KM5: 0 | KN5: 0 | KO5: 0 | KP5: 0 | KQ5: 0 | KR5: 0 | KS5: 0 | KT5: 0 | KU5: 0 | KV5: 0 | KW5: 0 | KX5: 0 | KY5: 0 | KZ5: 0 | LA5: 0 | LB5: 0 | LC5: 0 | LD5: 0 | LE5: 0 | LF5: 0 | LG5: 0 | LH5: 0 | LI5: 0 | LJ5: 0 | LK5: 0 | LL5: 0 | LM5: 0 | LN5: 0 | LO5: 0 | LP5: 0 | LQ5: 0 | LR5: 0 | LS5: 0 | LT5: 0 | LU5: 0 | LV5: 0 | LW5: 0 | LX5: 0 | LY5: 0 | LZ5: 0 | MA5: 0 | MB5: 0 | MC5: 0 | MD5: 0 | ME5: 0 | MF5: 0 | MG5: 0 | MH5: 0 | MI5: 0 | MJ5: 0 | MK5: 0 | ML5: 0 | MM5: 0 | MN5: 0 | MO5: 0 | MP5: 0 | MQ5: 0 | MR5: 0 | MS5: 0 | MT5: 0 | MU5: 0 | MV5: 0 | MW5: 0 | MX5: 0 | MY5: 0 | MZ5: 0 | NA5: 0 | NB5: 0 | NC5: 0 | ND5: 0 | NE5: 0
B6: 5-GHG EMISSIONS | C6: =E89*10 -> 2.666666667 | D6: 10 | E6: 0.2 | F6: 289 | G6: =360*SUM($E$2:E6)+1 -> 361 | H6: 5-GHG EMISSIONS | I6: 0 | J6: 0 | K6: 0 | L6: 0 | M6: 0 | N6: 0 | O6: 0 | P6: 0 | Q6: 0 | R6: 0 | S6: 0 | T6: 0 | U6: 0 | V6: 0 | W6: 0 | X6: 0 | Y6: =IF(AND(Y$1>=$F6,Y$1<=$G6),$C6,0) -> 0 | Z6: 0 | AA6: 0 | AB6: 0 | AC6: 0 | AD6: 0 | AE6: 0 | AF6: 0 | AG6: 0 | AH6: 0 | AI6: 0 | AJ6: 0 | AK6: 0 | AL6: 0 | AM6: 0 | AN6: 0 | AO6: 0 | AP6: 0 | AQ6: 0 | AR6: 0 | AS6: 0 | AT6: 0 | AU6: 0 | AV6: 0 | AW6: 0 | AX6: 0 | AY6: 0 | AZ6: 0 | BA6: 0 | BB6: 0 | BC6: 0 | BD6: 0 | BE6: 0 | BF6: 0 | BG6: 0 | BH6: 0 | BI6: 0 | BJ6: 0 | BK6: 0 | BL6: 0 | BM6: 0 | BN6: 0 | BO6: 0 | BP6: 0 | BQ6: 0 | BR6: 0 | BS6: 0 | BT6: 0 | BU6: 0 | BV6: 0 | BW6: 0 | BX6: 0 | BY6: 0 | BZ6: 0 | CA6: 0 | CB6: 0 | CC6: 0 | CD6: 0 | CE6: 0 | CF6: 0 | CG6: 0 | CH6: 0 | CI6: 0 | CJ6: 0 | CK6: 0 | CL6: 0 | CM6: 0 | CN6: 0 | CO6: 0 | CP6: 0 | CQ6: 0 | CR6: 0 | CS6: 0 | CT6: 0 | CU6: 0 | CV6: 0 | CW6: 0 | CX6: 0 | CY6: 0 | CZ6: 0 | DA6: 0 | DB6: 0 | DC6: 0 | DD6: 0 | DE6: 0 | DF6: 0 | DG6: 0 | DH6: 0 | DI6: 0 | DJ6: 0 | DK6: 0 | DL6: 0 | DM6: 0 | DN6: 0 | DO6: 0 | DP6: 0 | DQ6: 0 | DR6: 0 | DS6: 0 | DT6: 0 | DU6: 0 | DV6: 0 | DW6: 0 | DX6: 0 | DY6: 0 | DZ6: 0 | EA6: 0 | EB6: 0 | EC6: 0 | ED6: 0 | EE6: 0 | EF6: 0 | EG6: 0 | EH6: 0 | EI6: 0 | EJ6: 0 | EK6: 0 | EL6: 0 | EM6: 0 | EN6: 0 | EO6: 0 | EP6: 0 | EQ6: 0 | ER6: 0 | ES6: 0 | ET6: 0 | EU6: 0 | EV6: 0 | EW6: 0 | EX6: 0 | EY6: 0 | EZ6: 0 | FA6: 0 | FB6: 0 | FC6: 0 | FD6: 0 | FE6: 0 | FF6: 0 | FG6: 0 | FH6: 0 | FI6: 0 | FJ6: 0 | FK6: 0 | FL6: 0 | FM6: 0 | FN6: 0 | FO6: 0 | FP6: 0 | FQ6: 0 | FR6: 0 | FS6: 0 | FT6: 0 | FU6: 0 | FV6: 0 | FW6: 0 | FX6: 0 | FY6: 0 | FZ6: 0 | GA6: 0 | GB6: 0 | GC6: 0 | GD6: 0 | GE6: 0 | GF6: 0 | GG6: 0 | GH6: 0 | GI6: 0 | GJ6: 0 | GK6: 0 | GL6: 0 | GM6: 0 | GN6: 0 | GO6: 0 | GP6: 0 | GQ6: 0 | GR6: 0 | GS6: 0 | GT6: 0 | GU6: 0 | GV6: 0 | GW6: 0 | GX6: 0 | GY6: 0 | GZ6: 0 | HA6: 0 | HB6: 0 | HC6: 0 | HD6: 0 | HE6: 0 | HF6: 0 | HG6: 0 | HH6: 0 | HI6: 0 | HJ6: 0 | HK6: 0 | HL6: 0 | HM6: 0 | HN6: 0 | HO6: 0 | HP6: 0 | HQ6: 0 | HR6: 0 | HS6: 0 | HT6: 0 | HU6: 0 | HV6: 0 | HW6: 0 | HX6: 0 | HY6: 0 | HZ6: 0 | IA6: 0 | IB6: 0 | IC6: 0 | ID6: 0 | IE6: 0 | IF6: 0 | IG6: 0 | IH6: 0 | II6: 0 | IJ6: 0 | IK6: 0 | IL6: 0 | IM6: 0 | IN6: 0 | IO6: 0 | IP6: 0 | IQ6: 0 | IR6: 0 | IS6: 0 | IT6: 0 | IU6: 0 | IV6: 0 | IW6: 0 | IX6: 0 | IY6: 0 | IZ6: 0 | JA6: 0 | JB6: 0 | JC6: 0 | JD6: 0 | JE6: 0 | JF6: 0 | JG6: 0 | JH6: 0 | JI6: 0 | JJ6: 0 | JK6: 0 | JL6: 0 | JM6: 0 | JN6: 0 | JO6: 0 | JP6: 0 | JQ6: 0 | JR6: 0 | JS6: 0 | JT6: 0 | JU6: 0 | JV6: 0 | JW6: 0 | JX6: 0 | JY6: 0 | JZ6: 0 | KA6: 0 | KB6: 0 | KC6: 0 | KD6: 0 | KE6: 0 | KF6: 0 | KG6: 0 | KH6: 0 | KI6: 0 | KJ6: 0 | KK6: 0 | KL6: 2.666666667 | KM6: 2.666666667 | KN6: 2.666666667 | KO6: 2.666666667 | KP6: 2.666666667 | KQ6: 2.666666667 | KR6: 2.666666667 | KS6: 2.666666667 | KT6: 2.666666667 | KU6: 2.666666667 | KV6: 2.666666667 | KW6: 2.666666667 | KX6: 2.666666667 | KY6: 2.666666667 | KZ6: 2.666666667 | LA6: 2.666666667 | LB6: 2.666666667 | LC6: 2.666666667 | LD6: 2.666666667 | LE6: 2.666666667 | LF6: 2.666666667 | LG6: 2.666666667 | LH6: 2.666666667 | LI6: 2.666666667 | LJ6: 2.666666667 | LK6: 2.666666667 | LL6: 2.666666667 | LM6: 2.666666667 | LN6: 2.666666667 | LO6: 2.666666667 | LP6: 2.666666667 | LQ6: 2.666666667 | LR6: 2.666666667 | LS6: 2.666666667 | LT6: 2.666666667 | LU6: 2.666666667 | LV6: 2.666666667 | LW6: 2.666666667 | LX6: 2.666666667 | LY6: 2.666666667 | LZ6: 2.666666667 | MA6: 2.666666667 | MB6: 2.666666667 | MC6: 2.666666667 | MD6: 2.666666667 | ME6: 2.666666667 | MF6: 2.666666667 | MG6: 2.666666667 | MH6: 2.666666667 | MI6: 2.666666667 | MJ6: 2.666666667 | MK6: 2.666666667 | ML6: 2.666666667 | MM6: 2.666666667 | MN6: 2.666666667 | MO6: 2.666666667 | MP6: 2.666666667 | MQ6: 2.666666667 | MR6: 2.666666667 | MS6: 2.666666667 | MT6: 2.666666667 | MU6: 2.666666667 | MV6: 2.666666667 | MW6: 2.666666667 | MX6: 2.666666667 | MY6: 2.666666667 | MZ6: 2.666666667 | NA6: 2.666666667 | NB6: 2.666666667 | NC6: 2.666666667 | ND6: 2.666666667 | NE6: 2.666666667
B7: . | C7: 0 | D7: 0 | E7: 0 | F7: 361 | G7: =360*SUM($E$2:E7)+1 -> 361 | H7: . | I7: 0 | J7: 0 | K7: 0 | L7: 0 | M7: 0 | N7: 0 | O7: 0 | P7: 0 | Q7: 0 | R7: 0 | S7: 0 | T7: 0 | U7: 0 | V7: 0 | W7: 0 | X7: 0 | Y7: =IF(AND(Y$1>=$F7,Y$1<=$G7),$C7,0) -> 0 | Z7: 0 | AA7: 0 | AB7: 0 | AC7: 0 | AD7: 0 | AE7: 0 | AF7: 0 | AG7: 0 | AH7: 0 | AI7: 0 | AJ7: 0 | AK7: 0 | AL7: 0 | AM7: 0 | AN7: 0 | AO7: 0 | AP7: 0 | AQ7: 0 | AR7: 0 | AS7: 0 | AT7: 0 | AU7: 0 | AV7: 0 | AW7: 0 | AX7: 0 | AY7: 0 | AZ7: 0 | BA7: 0 | BB7: 0 | BC7: 0 | BD7: 0 | BE7: 0 | BF7: 0 | BG7: 0 | BH7: 0 | BI7: 0 | BJ7: 0 | BK7: 0 | BL7: 0 | BM7: 0 | BN7: 0 | BO7: 0 | BP7: 0 | BQ7: 0 | BR7: 0 | BS7: 0 | BT7: 0 | BU7: 0 | BV7: 0 | BW7: 0 | BX7: 0 | BY7: 0 | BZ7: 0 | CA7: 0 | CB7: 0 | CC7: 0 | CD7: 0 | CE7: 0 | CF7: 0 | CG7: 0 | CH7: 0 | CI7: 0 | CJ7: 0 | CK7: 0 | CL7: 0 | CM7: 0 | CN7: 0 | CO7: 0 | CP7: 0 | CQ7: 0 | CR7: 0 | CS7: 0 | CT7: 0 | CU7: 0 | CV7: 0 | CW7: 0 | CX7: 0 | CY7: 0 | CZ7: 0 | DA7: 0 | DB7: 0 | DC7: 0 | DD7: 0 | DE7: 0 | DF7: 0 | DG7: 0 | DH7: 0 | DI7: 0 | DJ7: 0 | DK7: 0 | DL7: 0 | DM7: 0 | DN7: 0 | DO7: 0 | DP7: 0 | DQ7: 0 | DR7: 0 | DS7: 0 | DT7: 0 | DU7: 0 | DV7: 0 | DW7: 0 | DX7: 0 | DY7: 0 | DZ7: 0 | EA7: 0 | EB7: 0 | EC7: 0 | ED7: 0 | EE7: 0 | EF7: 0 | EG7: 0 | EH7: 0 | EI7: 0 | EJ7: 0 | EK7: 0 | EL7: 0 | EM7: 0 | EN7: 0 | EO7: 0 | EP7: 0 | EQ7: 0 | ER7: 0 | ES7: 0 | ET7: 0 | EU7: 0 | EV7: 0 | EW7: 0 | EX7: 0 | EY7: 0 | EZ7: 0 | FA7: 0 | FB7: 0 | FC7: 0 | FD7: 0 | FE7: 0 | FF7: 0 | FG7: 0 | FH7: 0 | FI7: 0 | FJ7: 0 | FK7: 0 | FL7: 0 | FM7: 0 | FN7: 0 | FO7: 0 | FP7: 0 | FQ7: 0 | FR7: 0 | FS7: 0 | FT7: 0 | FU7: 0 | FV7: 0 | FW7: 0 | FX7: 0 | FY7: 0 | FZ7: 0 | GA7: 0 | GB7: 0 | GC7: 0 | GD7: 0 | GE7: 0 | GF7: 0 | GG7: 0 | GH7: 0 | GI7: 0 | GJ7: 0 | GK7: 0 | GL7: 0 | GM7: 0 | GN7: 0 | GO7: 0 | GP7: 0 | GQ7: 0 | GR7: 0 | GS7: 0 | GT7: 0 | GU7: 0 | GV7: 0 | GW7: 0 | GX7: 0 | GY7: 0 | GZ7: 0 | HA7: 0 | HB7: 0 | HC7: 0 | HD7: 0 | HE7: 0 | HF7: 0 | HG7: 0 | HH7: 0 | HI7: 0 | HJ7: 0 | HK7: 0 | HL7: 0 | HM7: 0 | HN7: 0 | HO7: 0 | HP7: 0 | HQ7: 0 | HR7: 0 | HS7: 0 | HT7: 0 | HU7: 0 | HV7: 0 | HW7: 0 | HX7: 0 | HY7: 0 | HZ7: 0 | IA7: 0 | IB7: 0 | IC7: 0 | ID7: 0 | IE7: 0 | IF7: 0 | IG7: 0 | IH7: 0 | II7: 0 | IJ7: 0 | IK7: 0 | IL7: 0 | IM7: 0 | IN7: 0 | IO7: 0 | IP7: 0 | IQ7: 0 | IR7: 0 | IS7: 0 | IT7: 0 | IU7: 0 | IV7: 0 | IW7: 0 | IX7: 0 | IY7: 0 | IZ7: 0 | JA7: 0 | JB7: 0 | JC7: 0 | JD7: 0 | JE7: 0 | JF7: 0 | JG7: 0 | JH7: 0 | JI7: 0 | JJ7: 0 | JK7: 0 | JL7: 0 | JM7: 0 | JN7: 0 | JO7: 0 | JP7: 0 | JQ7: 0 | JR7: 0 | JS7: 0 | JT7: 0 | JU7: 0 | JV7: 0 | JW7: 0 | JX7: 0 | JY7: 0 | JZ7: 0 | KA7: 0 | KB7: 0 | KC7: 0 | KD7: 0 | KE7: 0 | KF7: 0 | KG7: 0 | KH7: 0 | KI7: 0 | KJ7: 0 | KK7: 0 | KL7: 0 | KM7: 0 | KN7: 0 | KO7: 0 | KP7: 0 | KQ7: 0 | KR7: 0 | KS7: 0 | KT7: 0 | KU7: 0 | KV7: 0 | KW7: 0 | KX7: 0 | KY7: 0 | KZ7: 0 | LA7: 0 | LB7: 0 | LC7: 0 | LD7: 0 | LE7: 0 | LF7: 0 | LG7: 0 | LH7: 0 | LI7: 0 | LJ7: 0 | LK7: 0 | LL7: 0 | LM7: 0 | LN7: 0 | LO7: 0 | LP7: 0 | LQ7: 0 | LR7: 0 | LS7: 0 | LT7: 0 | LU7: 0 | LV7: 0 | LW7: 0 | LX7: 0 | LY7: 0 | LZ7: 0 | MA7: 0 | MB7: 0 | MC7: 0 | MD7: 0 | ME7: 0 | MF7: 0 | MG7: 0 | MH7: 0 | MI7: 0 | MJ7: 0 | MK7: 0 | ML7: 0 | MM7: 0 | MN7: 0 | MO7: 0 | MP7: 0 | MQ7: =IF(AND(MQ$1>=$F7,MQ$1<=$G7),$C7,0) -> 0 | MR7: 0 | MS7: 0 | MT7: 0 | MU7: 0 | MV7: 0 | MW7: 0 | MX7: 0 | MY7: 0 | MZ7: 0 | NA7: 0 | NB7: 0 | NC7: 0 | ND7: 0 | NE7: 0
B8: . | C8: 0 | D8: 0 | E8: 0 | F8: 361 | G8: =360*SUM($E$2:E8)+1 -> 361 | H8: . | I8: 0 | J8: 0 | K8: 0 | L8: 0 | M8: 0 | N8: 0 | O8: 0 | P8: 0 | Q8: 0 | R8: 0 | S8: 0 | T8: 0 | U8: 0 | V8: 0 | W8: 0 | X8: 0 | Y8: =IF(AND(Y$1>=$F8,Y$1<=$G8),$C8,0) -> 0 | Z8: 0 | AA8: 0 | AB8: 0 | AC8: 0 | AD8: 0 | AE8: 0 | AF8: 0 | AG8: 0 | AH8: 0 | AI8: 0 | AJ8: 0 | AK8: 0 | AL8: 0 | AM8: 0 | AN8: 0 | AO8: 0 | AP8: 0 | AQ8: 0 | AR8: 0 | AS8: 0 | AT8: 0 | AU8: 0 | AV8: 0 | AW8: 0 | AX8: 0 | AY8: 0 | AZ8: 0 | BA8: 0 | BB8: 0 | BC8: 0 | BD8: 0 | BE8: 0 | BF8: 0 | BG8: 0 | BH8: 0 | BI8: 0 | BJ8: 0 | BK8: 0 | BL8: 0 | BM8: 0 | BN8: 0 | BO8: 0 | BP8: 0 | BQ8: 0 | BR8: 0 | BS8: 0 | BT8: 0 | BU8: 0 | BV8: 0 | BW8: 0 | BX8: 0 | BY8: 0 | BZ8: 0 | CA8: 0 | CB8: 0 | CC8: 0 | CD8: 0 | CE8: 0 | CF8: 0 | CG8: 0 | CH8: 0 | CI8: 0 | CJ8: 0 | CK8: 0 | CL8: 0 | CM8: 0 | CN8: 0 | CO8: 0 | CP8: 0 | CQ8: 0 | CR8: 0 | CS8: 0 | CT8: 0 | CU8: 0 | CV8: 0 | CW8: 0 | CX8: 0 | CY8: 0 | CZ8: 0 | DA8: 0 | DB8: 0 | DC8: 0 | DD8: 0 | DE8: 0 | DF8: 0 | DG8: 0 | DH8: 0 | DI8: 0 | DJ8: 0 | DK8: 0 | DL8: 0 | DM8: 0 | DN8: 0 | DO8: 0 | DP8: 0 | DQ8: 0 | DR8: 0 | DS8: 0 | DT8: 0 | DU8: 0 | DV8: 0 | DW8: 0 | DX8: 0 | DY8: 0 | DZ8: 0 | EA8: 0 | EB8: 0 | EC8: 0 | ED8: 0 | EE8: 0 | EF8: 0 | EG8: 0 | EH8: 0 | EI8: 0 | EJ8: 0 | EK8: 0 | EL8: 0 | EM8: 0 | EN8: 0 | EO8: 0 | EP8: 0 | EQ8: 0 | ER8: 0 | ES8: 0 | ET8: 0 | EU8: 0 | EV8: 0 | EW8: 0 | EX8: 0 | EY8: 0 | EZ8: 0 | FA8: 0 | FB8: 0 | FC8: 0 | FD8: 0 | FE8: 0 | FF8: 0 | FG8: 0 | FH8: 0 | FI8: 0 | FJ8: 0 | FK8: 0 | FL8: 0 | FM8: 0 | FN8: 0 | FO8: 0 | FP8: 0 | FQ8: 0 | FR8: 0 | FS8: 0 | FT8: 0 | FU8: 0 | FV8: 0 | FW8: 0 | FX8: 0 | FY8: 0 | FZ8: 0 | GA8: 0 | GB8: 0 | GC8: 0 | GD8: 0 | GE8: 0 | GF8: 0 | GG8: 0 | GH8: 0 | GI8: 0 | GJ8: 0 | GK8: 0 | GL8: 0 | GM8: 0 | GN8: 0 | GO8: 0 | GP8: 0 | GQ8: 0 | GR8: 0 | GS8: 0 | GT8: 0 | GU8: 0 | GV8: 0 | GW8: 0 | GX8: 0 | GY8: 0 | GZ8: 0 | HA8: 0 | HB8: 0 | HC8: 0 | HD8: 0 | HE8: 0 | HF8: 0 | HG8: 0 | HH8: 0 | HI8: 0 | HJ8: 0 | HK8: 0 | HL8: 0 | HM8: 0 | HN8: 0 | HO8: 0 | HP8: 0 | HQ8: 0 | HR8: 0 | HS8: 0 | HT8: 0 | HU8: 0 | HV8: 0 | HW8: 0 | HX8: 0 | HY8: 0 | HZ8: 0 | IA8: 0 | IB8: 0 | IC8: 0 | ID8: 0 | IE8: 0 | IF8: 0 | IG8: 0 | IH8: 0 | II8: 0 | IJ8: 0 | IK8: 0 | IL8: 0 | IM8: 0 | IN8: 0 | IO8: 0 | IP8: 0 | IQ8: 0 | IR8: 0 | IS8: 0 | IT8: 0 | IU8: 0 | IV8: 0 | IW8: 0 | IX8: 0 | IY8: 0 | IZ8: 0 | JA8: 0 | JB8: 0 | JC8: 0 | JD8: 0 | JE8: 0 | JF8: 0 | JG8: 0 | JH8: 0 | JI8: 0 | JJ8: 0 | JK8: 0 | JL8: 0 | JM8: 0 | JN8: 0 | JO8: 0 | JP8: 0 | JQ8: 0 | JR8: 0 | JS8: 0 | JT8: =IF(AND(JT$1>=$F8,JT$1<=$G8),$C8,0) -> 0 | JU8: 0 | JV8: 0 | JW8: 0 | JX8: 0 | JY8: 0 | JZ8: 0 | KA8: 0 | KB8: 0 | KC8: 0 | KD8: 0 | KE8: 0 | KF8: 0 | KG8: 0 | KH8: 0 | KI8: 0 | KJ8: 0 | KK8: 0 | KL8: 0 | KM8: 0 | KN8: 0 | KO8: 0 | KP8: 0 | KQ8: 0 | KR8: 0 | KS8: 0 | KT8: 0 | KU8: 0 | KV8: 0 | KW8: 0 | KX8: 0 | KY8: 0 | KZ8: 0 | LA8: 0 | LB8: 0 | LC8: 0 | LD8: 0 | LE8: 0 | LF8: 0 | LG8: 0 | LH8: 0 | LI8: 0 | LJ8: 0 | LK8: 0 | LL8: 0 | LM8: 0 | LN8: 0 | LO8: 0 | LP8: 0 | LQ8: 0 | LR8: 0 | LS8: 0 | LT8: 0 | LU8: 0 | LV8: 0 | LW8: 0 | LX8: 0 | LY8: 0 | LZ8: 0 | MA8: 0 | MB8: 0 | MC8: 0 | MD8: 0 | ME8: 0 | MF8: 0 | MG8: 0 | MH8: 0 | MI8: 0 | MJ8: 0 | MK8: 0 | ML8: 0 | MM8: 0 | MN8: 0 | MO8: 0 | MP8: 0 | MQ8: 0 | MR8: 0 | MS8: 0 | MT8: 0 | MU8: 0 | MV8: 0 | MW8: 0 | MX8: 0 | MY8: 0 | MZ8: 0 | NA8: 0 | NB8: 0 | NC8: 0 | ND8: 0 | NE8: 0
B9: . | C9: 0 | D9: 0 | E9: 0 | F9: 361 | G9: =360*SUM($E$2:E9) -> 360 | H9: . | I9: =NE9 -> 0 | J9: 0 | K9: 0 | L9: 0 | M9: 0 | N9: 0 | O9: 0 | P9: 0 | Q9: 0 | R9: 0 | S9: 0 | T9: 0 | U9: 0 | V9: 0 | W9: 0 | X9: 0 | Y9: =IF(AND(Y$1>=$F9,Y$1<=$G9),$C9,0) -> 0 | Z9: 0 | AA9: 0 | AB9: 0 | AC9: 0 | AD9: 0 | AE9: 0 | AF9: 0 | AG9: 0 | AH9: 0 | AI9: 0 | AJ9: 0 | AK9: 0 | AL9: 0 | AM9: 0 | AN9: 0 | AO9: 0 | AP9: 0 | AQ9: 0 | AR9: 0 | AS9: 0 | AT9: 0 | AU9: 0 | AV9: 0 | AW9: 0 | AX9: 0 | AY9: 0 | AZ9: 0 | BA9: 0 | BB9: 0 | BC9: 0 | BD9: 0 | BE9: 0 | BF9: 0 | BG9: 0 | BH9: 0 | BI9: 0 | BJ9: 0 | BK9: 0 | BL9: 0 | BM9: 0 | BN9: 0 | BO9: 0 | BP9: 0 | BQ9: 0 | BR9: 0 | BS9: 0 | BT9: 0 | BU9: 0 | BV9: 0 | BW9: 0 | BX9: 0 | BY9: 0 | BZ9: 0 | CA9: 0 | CB9: 0 | CC9: 0 | CD9: 0 | CE9: 0 | CF9: 0 | CG9: 0 | CH9: 0 | CI9: 0 | CJ9: 0 | CK9: 0 | CL9: 0 | CM9: 0 | CN9: 0 | CO9: 0 | CP9: 0 | CQ9: 0 | CR9: 0 | CS9: 0 | CT9: 0 | CU9: 0 | CV9: 0 | CW9: 0 | CX9: 0 | CY9: 0 | CZ9: 0 | DA9: 0 | DB9: 0 | DC9: 0 | DD9: 0 | DE9: 0 | DF9: 0 | DG9: 0 | DH9: 0 | DI9: 0 | DJ9: 0 | DK9: 0 | DL9: 0 | DM9: 0 | DN9: 0 | DO9: 0 | DP9: 0 | DQ9: 0 | DR9: 0 | DS9: 0 | DT9: 0 | DU9: 0 | DV9: 0 | DW9: 0 | DX9: 0 | DY9: 0 | DZ9: 0 | EA9: 0 | EB9: 0 | EC9: 0 | ED9: 0 | EE9: 0 | EF9: 0 | EG9: 0 | EH9: 0 | EI9: 0 | EJ9: 0 | EK9: 0 | EL9: 0 | EM9: 0 | EN9: 0 | EO9: 0 | EP9: 0 | EQ9: 0 | ER9: 0 | ES9: 0 | ET9: 0 | EU9: 0 | EV9: 0 | EW9: 0 | EX9: 0 | EY9: 0 | EZ9: 0 | FA9: 0 | FB9: 0 | FC9: 0 | FD9: 0 | FE9: 0 | FF9: 0 | FG9: 0 | FH9: 0 | FI9: 0 | FJ9: 0 | FK9: 0 | FL9: 0 | FM9: 0 | FN9: 0 | FO9: 0 | FP9: 0 | FQ9: 0 | FR9: 0 | FS9: 0 | FT9: 0 | FU9: 0 | FV9: 0 | FW9: 0 | FX9: 0 | FY9: 0 | FZ9: 0 | GA9: 0 | GB9: 0 | GC9: 0 | GD9: 0 | GE9: 0 | GF9: 0 | GG9: 0 | GH9: 0 | GI9: 0 | GJ9: 0 | GK9: 0 | GL9: 0 | GM9: 0 | GN9: 0 | GO9: 0 | GP9: 0 | GQ9: 0 | GR9: 0 | GS9: 0 | GT9: 0 | GU9: 0 | GV9: 0 | GW9: 0 | GX9: 0 | GY9: 0 | GZ9: 0 | HA9: 0 | HB9: 0 | HC9: 0 | HD9: 0 | HE9: 0 | HF9: 0 | HG9: 0 | HH9: 0 | HI9: 0 | HJ9: 0 | HK9: 0 | HL9: 0 | HM9: 0 | HN9: 0 | HO9: 0 | HP9: 0 | HQ9: 0 | HR9: 0 | HS9: 0 | HT9: 0 | HU9: 0 | HV9: 0 | HW9: 0 | HX9: 0 | HY9: 0 | HZ9: 0 | IA9: 0 | IB9: 0 | IC9: 0 | ID9: 0 | IE9: 0 | IF9: 0 | IG9: 0 | IH9: 0 | II9: 0 | IJ9: 0 | IK9: 0 | IL9: 0 | IM9: 0 | IN9: 0 | IO9: 0 | IP9: 0 | IQ9: 0 | IR9: 0 | IS9: 0 | IT9: 0 | IU9: 0 | IV9: 0 | IW9: 0 | IX9: 0 | IY9: 0 | IZ9: 0 | JA9: 0 | JB9: 0 | JC9: 0 | JD9: 0 | JE9: 0 | JF9: 0 | JG9: 0 | JH9: 0 | JI9: 0 | JJ9: 0 | JK9: 0 | JL9: 0 | JM9: 0 | JN9: 0 | JO9: 0 | JP9: 0 | JQ9: 0 | JR9: 0 | JS9: =IF(AND(JS$1>=$F9,JS$1<=$G9),$C9,0) -> 0 | JT9: 0 | JU9: 0 | JV9: 0 | JW9: 0 | JX9: 0 | JY9: 0 | JZ9: 0 | KA9: 0 | KB9: 0 | KC9: 0 | KD9: 0 | KE9: 0 | KF9: 0 | KG9: 0 | KH9: 0 | KI9: 0 | KJ9: 0 | KK9: 0 | KL9: 0 | KM9: 0 | KN9: 0 | KO9: 0 | KP9: 0 | KQ9: 0 | KR9: 0 | KS9: 0 | KT9: 0 | KU9: 0 | KV9: 0 | KW9: 0 | KX9: 0 | KY9: 0 | KZ9: 0 | LA9: 0 | LB9: 0 | LC9: 0 | LD9: 0 | LE9: 0 | LF9: 0 | LG9: 0 | LH9: 0 | LI9: 0 | LJ9: 0 | LK9: 0 | LL9: 0 | LM9: 0 | LN9: 0 | LO9: 0 | LP9: 0 | LQ9: 0 | LR9: 0 | LS9: 0 | LT9: 0 | LU9: 0 | LV9: 0 | LW9: 0 | LX9: 0 | LY9: 0 | LZ9: 0 | MA9: 0 | MB9: 0 | MC9: 0 | MD9: 0 | ME9: 0 | MF9: 0 | MG9: 0 | MH9: 0 | MI9: 0 | MJ9: 0 | MK9: 0 | ML9: 0 | MM9: 0 | MN9: 0 | MO9: 0 | MP9: 0 | MQ9: 0 | MR9: 0 | MS9: 0 | MT9: 0 | MU9: 0 | MV9: 0 | MW9: 0 | MX9: 0 | MY9: 0 | MZ9: 0 | NA9: 0 | NB9: 0 | NC9: 0 | ND9: 0 | NE9: 0
B11: City / Regency: | C11: ='1-WASTE'!B11 -> Kota Pekanbaru
B12: Simulation: | C12: 1
E17: Waste assessment tool
E18: prepared by ACR+ Version 1.0
B26: Summary report
B28: =B1 -> Category | C28: Score
B29: 1-WASTE
B30: 2-GOVERNANCE | C30: 0
B31: 3-ECONOMICS | C31: 0
B32: 4-TPS 3R - PDU | C32: 0
B33: 5-GHG EMISSIONS | C33: 2.666666667
B47: Recommendations
B49: 1- WASTE
C51: ='1-WASTE'!D99 -> score | D51: ='1-WASTE'!E99 -> max | E51: ='1-WASTE'!F99 -> %
B52: ='1-WASTE'!A100 -> Overall evaluation: transportation, TPS - TPS3R, composting | C52: ='1-WASTE'!D100 -> 6 | D52: ='1-WASTE'!E100 -> 40 | E52: ='1-WASTE'!F100 -> 0.15
B54: ='1-WASTE'!A102 -> Recommendations: transportation, waste banks, composting
B55: ='1-WASTE'!A103 -> Current waste handling is: very low. The majority of waste is either dumped into uncontrolled sites, rivers, or burned, generating SLCP (Short Lived Climate Pollutants). The number of waste banks is Low. and the number of TPS3R is Low. About the organic fraction, 0A very little amount of organic fraction is treated by composting. 0 Also, Composting in your area is not facing barriers, which is good aiming at a significant prevention of Greenhouse gases emission.
C57: ='1-WASTE'!D158 -> score | D57: ='1-WASTE'!E158 -> max | E57: ='1-WASTE'!F158 -> %
B58: ='1-WASTE'!A159 -> Overall evaluation: Landfill | C58: ='1-WASTE'!D159 ->  | D58: ='1-WASTE'!E159 -> 31 | E58: ='1-WASTE'!F159 -> 
B60: ='1-WASTE'!A161 -> Recommendations: landfill
B61: ='1-WASTE'!A162 -> 
C63: ='1-WASTE'!B167 -> Score | D63: ='1-WASTE'!C167 -> Max | E63: ='1-WASTE'!D167 -> %
B64: ='1-WASTE'!A168 -> Overall score - WASTE | C64: ='1-WASTE'!B168 ->  | D64: ='1-WASTE'!C168 -> 71 | E64: ='1-WASTE'!D168 -> 
B66: 2- GOVERNANCE
B67: ='2-GOVERNANCE'!A26 -> Recommendations: governance
B68: ='2-GOVERNANCE'!A27 -> In terms of governance, the overall score is very low. According to the provided answers, a lot of policies and actions have still to be implemented. In 8 answers to the proposed questions, the score has been the lowest, meaning that either there's no knowledge about these issue or no policy is in place for issues related to those questions.
C70: ='2-GOVERNANCE'!B23 -> Score | D70: ='2-GOVERNANCE'!C23 -> Max | E70: ='2-GOVERNANCE'!D23 -> %
B71: ='2-GOVERNANCE'!A24 -> Overall score - GOVERNANCE | C71: ='2-GOVERNANCE'!B24 -> 0 | D71: ='2-GOVERNANCE'!C24 -> 48 | E71: ='2-GOVERNANCE'!D24 -> 0
B73: 3 - ECONOMICS
B74: ='3-ECONOMICS'!B41 -> Recommendations: economics
B75: ='3-ECONOMICS'!B42 -> The fact that there is no knowledge about costs for waste management is a strong signal of lack of interest on this issue. The fact that there is no knowledge about costs for waste management is a strong signal of lack of interest on this issue. The budget for waste management is completely used for transportation and disposal to the landfill. There is no financial support to recycling facilities, making it very difficult for them to implement a successful business model when the recycling market is at early stages. The fact that there is no data about the amount of collected waste fees from producers means that the local authority is lacking a very important informaton, key to improve strategies aimed at cost transparency and polluter pay principle Waste collection fee is too low. In low-income countries, the acceptable value for a waste collection fee, as a proportion of monthly household expenditures, typically falls between 1% to 2% of a household's total income or expenditures, so that's 2-3% of non-food expenditures. This range is considered affordable and sustainable for households, ensuring that good waste management services can be provided without placing an excessive financial burden on low-income families.
C76: ='3-ECONOMICS'!C38 -> Score | D76: ='3-ECONOMICS'!D38 -> Max | E76: ='3-ECONOMICS'!E38 -> %
B77: ='3-ECONOMICS'!B39 -> Overall score - ECONOMICS | C77: ='3-ECONOMICS'!C39 -> 0 | D77: ='3-ECONOMICS'!D39 -> 30 | E77: ='3-ECONOMICS'!E39 -> 0
B79: 4 - TPS3R - PDU
B80: ='4-TPS3R - PDU'!A80 -> Recommendations
B81: =CONCATENATE('4-TPS3R - PDU'!A81,CHAR(10),'4-TPS3R - PDU'!A82,CHAR(10),'4-TPS3R - PDU'!A83) -> The organisational capacity is very low and will hamper long term sustainability. Please consider the following: Human resource training addressing not only operational skill for sorting, but also sensitization activities towards households. Maintain and improve the timeliness of waste collection so that a strict obligation to pay waste fees is established. Find the best way to enforce sanctions for those not paying waste fee timely and doing open dumping. Long term sustainability seems very low. Please consider the following: Get to a higher economic sustainability by increasing household waste fee. Perform a survey amongst farmers and other potential compost users in order to understand the acceptance of compost, misconceptions and willingness to pay a certain price. Organic fraction of waste is currently neglected. Please consider the following: Optimize the composting equiplment aiming at a better compost quality, to increase the production of compost fertilizer to be acceptable to meet farmers' needs and avoid selling very far away. Do sensitization campaigns with households to explain the benefits of delivering the organic fraction well separated and with no contaminants. Find support to improve machinery for composting in order to optimize the process (e.g. forced ventilation, turning).
C82: ='4-TPS3R - PDU'!C89 -> Score | D82: ='4-TPS3R - PDU'!D89 -> Max | E82: ='4-TPS3R - PDU'!E89 -> %
B83: ='4-TPS3R - PDU'!B90 -> Overall score - TPS3R - PDU | C83: ='4-TPS3R - PDU'!C90 -> 0 | D83: ='4-TPS3R - PDU'!D90 -> 54 | E83: ='4-TPS3R - PDU'!E90 -> 0
B85: 5-GHG Emissions
B86: ='5-GHG emissions'!A26 -> Recommendations
B87: ='5-GHG emissions'!A27 -> The city has almost reached the best performing scenario in terms of CO2 emissions, congratulations!
B88: ='5-GHG emissions'!A23 -> 0 | C88: ='5-GHG emissions'!B23 -> Score | D88: ='5-GHG emissions'!C23 -> Max | E88: ='5-GHG emissions'!D23 -> %
B89: ='5-GHG emissions'!A24 -> Overall score - GHG emissions | C89: ='5-GHG emissions'!B24 -> 12 | D89: ='5-GHG emissions'!C24 -> 45 | E89: ='5-GHG emissions'!D24 -> 0.2666666667

Sheet Pictures
A2: TPA - site 1 - paste picture from satellite photo here | H2: TPA - site 2 - paste picture from satellite photo here | O2: TPA - site 3 - paste picture from satellite photo here | V2: TPA - site 4 - paste picture from satellite photo here
A3: picture in Pictures sheet | H3: picture in Pictures sheet | O3: picture in Pictures sheet | V3: picture in Pictures sheet
A17: TPS3R - PDU paste pictures here
A18: Pictures in Pictures sheet

Sheet Assumptions
C4: Source
B5: Waste density | C5: https://radarcirebon.disway.id/read/85125/tpa-ciniru-terima-sampah-9405-ton-setiap-hari | D5: 0.33 | E5: ton/m3 | F5: Replace this value with local data if available
C7: Source
C8: Ministry database | D8: ='1-WASTE'!B29 -> 369019.82 | E8: tons/year
B9: Waste generated | C9: https://journal.unpas.ac.id/index.php/trikonomika/article/view/5357/2745 | D9: 823.85 | E9: m3/day | F9: =D9*365 -> 300705.25 | G9: m3/year | H9: =F9*Assumptions!D5 -> 99232.7325 | I9: tons/year
B10: Waste transported | C10: https://journal.unpas.ac.id/index.php/trikonomika/article/view/5357/2745 | D10: 530 | E10: m3/day | F10: =D10/D9 -> 0.6433209929 | H10: =D10*Assumptions!D5 -> 174.9 | I10: tons/day
B12: Waste landfilled
B13: Cirebon | C13: CRIC - Urban Assessment Report | D13: 107 | E13: tons/day
B14: Exchange rate | D14: 15600 | E14: Rupiah/US$

Sheet Tabs
I1: Landfill - operational system | P1: Equipment for sorting and pretreatment:
A2: Provinces | B2: Selected province | C2: List of Regencies or Cities in that Province | F2: Cities/Regencies in alph. Order | G2: Shortlisted cities | I2: Answers | J2: Active zone garbage closure | L2: Leachate management | N2: Utilization of methane gas | P2: Answers | Q2: Score | R2: Data avaiability score
A3: =_xlfn.UNIQUE('Pop-HDI-waste'!A4:A548) -> Aceh | B3: ='1-WASTE'!B6 -> Sumatera Barat | C3: =_xlfn._xlws.FILTER('Pop-HDI-waste'!C4:C548,'Pop-HDI-waste'!A4:A548=Tabs!B3,"") -> Kab. Agam | F3: =_xlfn._xlws.SORT('Pop-HDI-waste'!C4:C548) -> Alor | G3: Kota Cirebon | H3: =INDEX('Pop-HDI-waste'!$A$4:$A$548,MATCH(Tabs!G3,'Pop-HDI-waste'!$C$4:$C$548,0)) -> Jawa Barat | I3: Open dumping | J3: Sebulan sekali | K3: Once a month | L3: Ada, Instalasi Pengolahan Air Lindi (IPAL) di TPA berupa kolam pengendapan dan proses biologi, masih berfungsi baik dan terawat. | M3: There is, the leachate water treatment installation (WWTP) in the TPA in the form of depositional ponds and biological processes, is still functioning well and well maintained. | N3: - | O3: - | P3: Yes, fully operational | Q3: 5 | R3: 3
A4: Bali | C4: Kota Bukittinggi | F4: Asahan | G4: Kota Pekanbaru | H4: =INDEX('Pop-HDI-waste'!$A$4:$A$548,MATCH(Tabs!G4,'Pop-HDI-waste'!$C$4:$C$548,0)) -> Riau | I4: Controlled landfill | J4: Tidak ditutup sama sekali | K4: Not closed at all | L4: Ada, Instalasi Pengolahan Air Lindi (IPAL) di TPA tetapi sudah rusak atau tidak berfungsi dengan baik dan tidak terawat | M4: There is, the leachate water treatment installation (WWTP) in the TPA but has been damaged or not functioning properly and is not maintained | N4: Tidak ada. Gas Metana dibakar. | O4: There isn't any. Methane gas is burned. | P4: Only in limited parts | Q4: 4 | R4: 3
A5: Banten | C5: Dharmasraya | F5: Bandung Barat | G5: Kota Samarinda | H5: =INDEX('Pop-HDI-waste'!$A$4:$A$548,MATCH(Tabs!G5,'Pop-HDI-waste'!$C$4:$C$548,0)) -> Kalimantan Timur | I5: Sanitary landfill | J5: Dua minggu sekali | K5: Once every two weeks | L5: Tidak ada Instalasi Pengolahan Air Lindi (IPAL) di TPA | M5: There is no leachate water treatment installation (WWTP) at the TPA | N5: Untuk Energi Listrik | O5: For electrical energy | P5: Foreseen in the future | Q5: 3 | R5: 3
A6: D.I. Yogyakarta | C6: Kab. Solok | F6: Bantul | I6: Sanitary landfill with biogas recovery | J6: - | K6: - | L6: Ada, Instalasi Pengolahan Air Lindi (IPAL) di TPA hanya berupa kolam pengendapan saja tanpa proses biologi atau proses kimia, masih berfungsi baik dan terawat. | M6: There is, the leachate water treatment installation (IPAL) in the TPA is only a depositional pond without biological processes or chemical processes, still functioning well and well maintained. | N6: Tidak ada. Melepas gas Metana ke udara. | O6: There isn't any. Remove the methane gas into the air. | P6: Not present and not foreseen | Q6: 1 | R6: 3
A7: DKI Jakarta | C7: Kepulauan Mentawai | F7: Banyuasin | J7: Tiga hari sekali atau seminggu dua kali | K7: Once every three days or twice a week | L7: - | M7: - | N7: Untuk Bahan Bakar | O7: For fuel | P7: Don't know | Q7: 1 | R7: 0
A8: Gorontalo | C8: Kota Solok | F8: Batang Hari | J8: Tiga atau Empat Bulan Sekali | K8: Every three or four months | L8: Ada, Instalasi Pengolahan Air Lindi (IPAL) di TPA berupa kolam pengendapan dan proses biologi serta proses kimia, masih berfungsi baik dan terawat. | M8: There is, the leachate water treatment installation (IPAL) in the landfill in the form of depositional ponds and biological processes and chemical processes, still functioning well and well maintained.
A9: Jambi | C9: Kab. Lima Puluh Kota | F9: Batu Bara | J9: Tujuh hari sekali atau Seminggu Sekali | K9: Once seven days or once a week
A10: Jawa Barat | C10: Kota Padang | F10: Bengkulu Selatan | J10: Setiap hari | K10: Every day
A11: Jawa Tengah | C11: Kota Padang Panjang | F11: Binjai | J11: Setahun Sekali | K11: Once a year
A12: Jawa Timur | C12: Kab. Padang Pariaman | F12: Boalemo
A13: Kalimantan Barat | C13: Kota Pariaman | F13: Bombana
A14: Kalimantan Selatan | C14: Kab. Pasaman | F14: Buru Selatan
A15: Kalimantan Tengah | C15: Pasaman Barat | F15: Buton Utara
A16: Kalimantan Timur | C16: Kota Payakumbuh | F16: Cianjur
A17: Kalimantan Utara | C17: Kab. Pesisir Selatan | F17: Dairi
A18: Kepulauan Bangka Belitung | C18: Kota Sawahlunto | F18: Deiyai
A19: Kepulauan Riau | C19: Kab. Sijunjung | F19: Dharmasraya
A20: Bengkulu | C20: Kab. Solok Selatan | F20: Dogiyai
A21: Lampung | C21: Kab. Tanah Datar | F21: Donggala
A22: Maluku | C22: total | F22: Empat Lawang
A23: Maluku Utara | F23: Ende
A24: Nusa Tenggara Barat | F24: Fakfak
A25: Nusa Tenggara Timur | F25: Gorontalo Utara
A26: Papua | F26: Gunungsitoli
A27: Papua Barat Daya | F27: Halmahera Barat
A28: Riau | F28: Halmahera Utara
A29: Sulawesi Barat | F29: HULU SUNGAI UTARA
A30: Sulawesi Selatan | F30: Indragiri Hilir
A31: Sulawesi Tengah | F31: Intan Jaya
A32: Sulawesi Tenggara | F32: Kab. Aceh Barat
A33: Sulawesi Utara | F33: Kab. Aceh Barat Daya
A34: Sumatera Barat | F34: Kab. Aceh Besar
A35: Sumatera Selatan | F35: Kab. Aceh Jaya
A36: Sumatera Utara | F36: Kab. Aceh Selatan
F37: Kab. Aceh Singkil
F38: Kab. Aceh Tamiang
F39: Kab. Aceh Tengah
F40: Kab. Aceh Tenggara
F41: Kab. Aceh Timur
F42: Kab. Aceh Utara
F43: Kab. Adm. Kep. Seribu
F44: Kab. Agam
F45: Kab. Asmat
F46: Kab. Badung
F47: Kab. Balangan
F48: Kab. Banggai
F49: Kab. Banggai Kepulauan
F50: Kab. Banggai Laut
F51: Kab. Bangka
F52: Kab. Bangka Barat
F53: Kab. Bangka Selatan
F54: Kab. Bangka Tengah
F55: Kab. Bangkalan
F56: Kab. Bangli
F57: Kab. Banjar
F58: Kab. Banjarnegara
F59: Kab. Bantaeng
F60: Kab. Banyumas
F61: Kab. Banyuwangi
F62: Kab. Barito Kuala
F63: Kab. Barito Selatan
F64: Kab. Barito Timur
F65: Kab. Barito Utara
F66: Kab. Barru
F67: Kab. Batang
F68: Kab. Bekasi
F69: Kab. Belitung
F70: Kab. Belitung Timur
F71: Kab. Belu
F72: Kab. Bener Meriah
F73: Kab. Bengkalis
F74: Kab. Bengkayang
F75: Kab. Bengkulu Tengah
F76: Kab. Bengkulu Utara
F77: Kab. Berau
F78: Kab. Biak Numfor
F79: Kab. Bima
F80: Kab. Bintan
F81: Kab. Bireuen
F82: Kab. Blitar
F83: Kab. Blora
F84: Kab. Bojonegoro
F85: Kab. Bolaang Mongondow
F86: Kab. Bolaang Mongondow Selatan
F87: Kab. Bolaang Mongondow Utara
F88: Kab. Bondowoso
F89: Kab. Bone
F90: Kab. Bone Bolango
F91: Kab. Boven Digoel
F92: Kab. Boyolali
F93: Kab. Brebes
F94: Kab. Buleleng
F95: Kab. Bulukumba
F96: Kab. Bulungan
F97: Kab. Bungo
F98: Kab. Buol
F99: Kab. Buru
F100: Kab. Buton
F101: Kab. Buton Selatan
F102: Kab. Buton Tengah
F103: Kab. Ciamis
F104: Kab. Cilacap
F105: Kab. Cirebon
F106: Kab. Deli Serdang
F107: Kab. Demak
F108: Kab. Dompu
F109: Kab. Enrekang
F110: Kab. Flores Timur
F111: Kab. Garut
F112: Kab. Gayo Lues
F113: Kab. Gianyar
F114: Kab. Gorontalo
F115: Kab. Gowa
F116: Kab. Gresik
F117: Kab. Grobogan
F118: Kab. Gunung Mas
F119: Kab. Gunungkidul
F120: Kab. Halmahera Selatan
F121: Kab. Halmahera Tengah
F122: Kab. Halmahera Timur
F123: Kab. Hulu Sungai Selatan
F124: Kab. Hulu Sungai Tengah
F125: Kab. Humbang Hasundutan
F126: Kab. Indragiri Hulu
F127: Kab. Indramayu
F128: Kab. Jayawijaya
F129: Kab. Jember
F130: Kab. Jembrana
F131: Kab. Jeneponto
F132: Kab. Jepara
F133: Kab. Jombang
F134: Kab. Kaimana
F135: Kab. Kapuas
F136: Kab. Kapuas Hulu
F137: Kab. Karanganyar
F138: Kab. Karangasem
F139: Kab. Karawang
F140: Kab. Karimun
F141: Kab. Katingan
F142: Kab. Kayong Utara
F143: Kab. Kebumen
F144: Kab. Kediri
F145: Kab. Keerom
F146: Kab. Kendal
F147: Kab. Kepulauan Anambas
F148: Kab. Kepulauan Aru
F149: Kab. Kepulauan Sangihe
F150: Kab. Kepulauan Selayar
F151: Kab. Kepulauan Sula
F152: Kab. Kepulauan Yapen
F153: Kab. Ketapang
F154: Kab. Klaten
F155: Kab. Klungkung
F156: Kab. Kolaka
F157: Kab. Kolaka Timur
F158: Kab. Kolaka Utara
F159: Kab. Konawe
F160: Kab. Konawe Selatan
F161: Kab. Konawe Utara
F162: Kab. Kotabaru
F163: Kab. Kotawaringin Barat
F164: Kab. Kotawaringin Timur
F165: Kab. Kuantan Singingi
F166: Kab. Kubu Raya
F167: Kab. Kudus
F168: Kab. Kulon Progo
F169: Kab. Kuningan
F170: Kab. Kupang
F171: Kab. Kutai Barat
F172: Kab. Kutai Kartanegara
F173: Kab. Kutai Timur
F174: Kab. Labuhanbatu
F175: Kab. Lahat
F176: Kab. Lamongan
F177: Kab. Lampung Tengah
F178: Kab. Lampung Timur
F179: Kab. Landak
F180: Kab. Langkat
F181: Kab. Lebak
F182: Kab. Lebong
F183: Kab. Lembata
F184: Kab. Lima Puluh Kota
F185: Kab. Lombok Barat
F186: Kab. Lombok Tengah
F187: Kab. Lombok Timur
F188: Kab. Lombok Utara
F189: Kab. Lumajang
F190: Kab. Luwu Timur
F191: Kab. Luwu Utara
F192: Kab. Madiun
F193: Kab. Magelang
F194: Kab. Magetan
F195: Kab. Mahakam Ulu
F196: Kab. Majene
F197: Kab. Malaka
F198: Kab. Malang
F199: Kab. Maluku Tenggara
F200: Kab. Mamasa
... 347 more rows

Sheet Glossary
A3: RT | B3: (Rukun Tetangga) | C3: small-scale neighborhood association
A4: RW | B4: Rukun Warga: | C4: large-scale neighborhood association
A5: BUMD | C5: Village-Owned Enterprise
A6: TPS | B6: Tempat Pembuangan Sementara | C6: Transfer station | L6: TPS must fulfill the following technical criteria: The size of the TPS area is up to 200 m2; Available facilities to classify waste into at least five types of waste (organic, non-organic, paper waste, hazardous waste, and residual waste). The type of construction for the temporary garbage container is not a permanent one Both the location and capacity are as needed; Accessible location Does not pollute the environment; The placement of the site does not interfere with the aesthetics aspect and the traffic; and Has a scheduled collection and transportation activity
A7: TPS3R | C7: TPS with sorting and recycling activities wirth minimum requirements operated by KSM (Community Self-Help Group) | L7: The main concept of waste processing in TPS 3R is to reduce the quantity and/or to improve the characteristics of the waste, which will be further processed in the landfill (TPA). The size of the TPS 3R is greater than 200 m2; Available facilities to classify waste into at least 5 (five) types of waste (organic, non-organic, paper waste, hazardous waste, and residual waste) TPS 3R is complemented with a sorting room, organic waste composting, and /or biogas producing units, warehouses, buffer zones, and does not interfere with the aesthetics aspect and the traffic; The type of construction for the residual waste processing containers in TPS 3R is not a permanent container; Placement of the 3R TPS location should be located as close as possible to the service area, at least within a radius of no more than 1 km; Location and capacity as needed; Its location is easily accessible; Does not pollute the environment; and Has a scheduled collection and transportation activity
A8: TPST | B8: Tempat Pemrosesan Sampah Terpadu (TPST) | C8: Integrated Waste Processing Sites | L8: TPST has a more complex waste processing system compared to TPS 3R (Reduce-Reuse-Recycle Waste Processing Site), because TPST manages the final processing of waste so it is safe to be returned to the environment. The area of ​​TPST is greater than 20,000 m2; TPST location can be in the city and/or landfill site; The distance of the TPST to the nearest settlement is at least 500 m; Waste processing in TPST can use the technology referred to in Article 31 paragraph (3); and The TPST facility is equipped with a sorting room, waste treatment plant, environmental pollution control, residue handling, and supporting facilities and buffer zones.
A9: TPA | B9: Tempat Pemrosesan Akhir | C9: Final disposal site | L9: TPA is a place to process and return waste to the environment safely, both for humans and the environment. The significant difference between TPST and TPA is in the waste management system policy.
A10: TPASa | C10: Final Waste Processing Site
A11: DLH | C11: Local Environmental Service

Sheet Pop-HDI-waste
N1: https://sipsn.menlhk.go.id/sipsn/public/data/capaian | AD1: Per capita | AJ1: Percentile rank | AU1: Provincial average estimations | BE1: Top 3 in your province: % Waste reduction | BK1: Top 3 in your province: % Recycling rate
N2: SIPSN - National Waste Management Information System
A3: Province | B3: Total or province | C3: City/regency | D3: population | E3: year | G3: Province | H3: Total or province | I3: City/regency | J3: HDI - 2021 | K3: HDI - 2022 | L3: HDI - 2023 | M3: percentile HDI | N3: Data available | O3: Year | P3: Province | Q3: Regency/City | R3: Annual Waste Generation (tons/year) (A) | S3: Annual Waste Reduction (tons/year) (B) | T3: % Waste Reduction (B/A) | U3: Annual Waste Handling (tons/year) (C) | V3: % Waste Management (C/A) | W3: Annual Managed Waste (tons/year) (B+C) | X3: % Managed Waste (B+C)/A | Y3: Annual Waste Recycling (tons/year) (D) | Z3: Annual Waste Raw Materials (tons/year) (AND) | AA3: Recycling Rate (D+E)/A | AB3: P1/P2 | AD3: Annual Waste Generation (kg/capita/day) (A) | AE3: Annual Waste Reduction (kg/capita/day) (B) | AF3: Annual Waste Handling (kg/capita/day) (C) | AG3: Annual Managed Waste (kg/capita/day) (B+C) | AH3: Annual Waste Recycling (kg/capita/day) (D) | AI3: Annual Waste Raw Materials (kg/capita/day) (AND) | AJ3: Annual Waste Generation per capita | AK3: % Waste Reduction | AL3: % Managed Waste | AM3: Recycling Rate | AU3: Annual Waste Generation (kg/capita) (A) | AV3: Annual Waste Reduction (kg/capita) (B) | AW3: % Waste Reduction (B/A) | AX3: Annual Waste Handling (kg/capita) (C) | AY3: % Waste Management (C/A) | AZ3: Annual Managed Waste (kg/capita) (B+C) | BA3: % Managed Waste (B+C)/A | BB3: Annual Waste Recycling (kg/capita) (D) | BC3: Annual Waste Raw Materials (kg/capita) (AND) | BD3: Recycling Rate (D+E)/A | BE3: 1 | BF3: 2 | BG3: 3 | BH3: 1 | BI3: 2 | BJ3: 3 | BK3: 1 | BL3: 2 | BM3: 3 | BN3: 1 | BO3: 2 | BP3: 3
A4: Aceh | B4: Aceh | C4: Kab. Aceh Barat | D4: 202858 | E4: 2022 | G4: Aceh | H4: Aceh | I4: ACEH BARAT | J4: 71.67 | K4: 72.34 | L4: 74.62 | M4: =PERCENTRANK($L$4:$L$548,L4) -> 0.713 | N4: =IF(R4="",0,1) -> 1 | O4: =IFERROR(INDEX('SISPSN 2023'!H$3:H$442,MATCH($C4,'SISPSN 2023'!$J$3:$J$442,0)),"") -> 2023 | P4: =IFERROR(INDEX('SISPSN 2023'!I$3:I$442,MATCH($C4,'SISPSN 2023'!$J$3:$J$442,0)),"") -> Aceh | Q4: =IFERROR(INDEX('SISPSN 2023'!J$3:J$442,MATCH($C4,'SISPSN 2023'!$J$3:$J$442,0)),"") -> Kab. Aceh Barat | R4: =IFERROR(INDEX('SISPSN 2023'!K$3:K$442,MATCH($C4,'SISPSN 2023'!$J$3:$J$442,0)),"") -> 36813.72 | S4: =IFERROR(INDEX('SISPSN 2023'!L$3:L$442,MATCH($C4,'SISPSN 2023'!$J$3:$J$442,0)),"") -> 3322.76 | T4: =IFERROR(INDEX('SISPSN 2023'!M$3:M$442,MATCH($C4,'SISPSN 2023'!$J$3:$J$442,0)),"") -> 9.03 | U4: =IFERROR(INDEX('SISPSN 2023'!N$3:N$442,MATCH($C4,'SISPSN 2023'!$J$3:$J$442,0)),"") -> 30502.76 | V4: =IFERROR(INDEX('SISPSN 2023'!O$3:O$442,MATCH($C4,'SISPSN 2023'!$J$3:$J$442,0)),"") -> 82.86 | W4: =IFERROR(INDEX('SISPSN 2023'!P$3:P$442,MATCH($C4,'SISPSN 2023'!$J$3:$J$442,0)),"") -> 33825.52 | X4: =IFERROR(INDEX('SISPSN 2023'!Q$3:Q$442,MATCH($C4,'SISPSN 2023'!$J$3:$J$442,0)),"") -> 91.88 | Y4: =IFERROR(INDEX('SISPSN 2023'!R$3:R$442,MATCH($C4,'SISPSN 2023'!$J$3:$J$442,0)),"") -> 1423.5 | Z4: =IFERROR(INDEX('SISPSN 2023'!S$3:S$442,MATCH($C4,'SISPSN 2023'!$J$3:$J$442,0)),"") -> 0 | AA4: =IFERROR(INDEX('SISPSN 2023'!T$3:T$442,MATCH($C4,'SISPSN 2023'!$J$3:$J$442,0)),"") -> 3.87 | AB4: =IFERROR(INDEX('SISPSN 2023'!U$3:U$442,MATCH($C4,'SISPSN 2023'!$J$3:$J$442,0)),"") -> P 2 | AD4: =IF(ISBLANK(#REF!),"",#REF!*1000/$D4/365) ->  | AE4: =IF(ISBLANK(S4),"",S4*1000/$D4/365) -> 0.04487598248 | AF4: =IF(ISBLANK(U4),"",U4*1000/$D4/365) -> 0.4119591314 | AG4: =IF(ISBLANK(W4),"",W4*1000/$D4/365) -> 0.4568351139 | AH4: =IF(ISBLANK(Y4),"",Y4*1000/$D4/365) -> 0.01922527088 | AI4: =IF(ISBLANK(Z4),"",Z4*1000/$D4/365) -> 0 | AJ4: =IFERROR(PERCENTRANK(_xlfn._xlws.FILTER($AD$4:$AD$547,$AD$4:$AD$547<>""),AD4),"") ->  | AK4: =IF(ISBLANK(T4),"",PERCENTRANK($T$4:$T$547,T4)) -> 0.494 | AL4: =IF(ISBLANK(V4),"",PERCENTRANK($V$4:$V$547,V4)) -> 0.95 | AM4: =IF(ISBLANK(AA4),"",PERCENTRANK($AA$4:$AA$547,AA4)) -> 0.417 | AT4: =Tabs!A3 -> Aceh | AU4: =SUMIF($P$4:$P$548,$AT4,$R$4:$R$548)*1000/SUMIF($P$4:$P$548,$AT4,$D$4:$D$548)/365 -> 0.4663108229 | AV4: =SUMIF($P$4:$P$548,$AT4,$S$4:$S$548)*1000/SUMIF($P$4:$P$548,$AT4,$D$4:$D$548)/365 -> 0.03227645408 | AW4: =AV4/AU4 -> 0.06921660938 | AX4: =SUMIF($P$4:$P$548,$AT4,$U$4:$U$548)*1000/SUMIF($P$4:$P$548,$AT4,$D$4:$D$548)/365 -> 0.210603979 | AY4: =AX4/AU4 -> 0.4516386253 | AZ4: =AV4+AX4 -> 0.2428804331 | BA4: =AZ4/AU4 -> 0.5208552346 | BB4: =SUMIF($P$4:$P$548,$AT4,$Y$4:$Y$548)*1000/SUMIF($P$4:$P$548,$AT4,$D$4:$D$548)/365 -> 0.02859166694 | BC4: =SUMIF($P$4:$P$548,$AT4,$Z$4:$Z$548)*1000/SUMIF($P$4:$P$548,$AT4,$D$4:$D$548)/365 -> 0.0003720513956 | BD4: =(BC4+BB4)/AU4 -> 0.06211247288 | BE4: =LARGE(_xlfn._xlws.FILTER($T$4:$T$547,$P$4:$P$547=$AT4),BE$3) -> 17.5 | BF4: =LARGE(_xlfn._xlws.FILTER($T$4:$T$547,$P$4:$P$547=$AT4),BF$3) -> 16.21 | BG4: =LARGE(_xlfn._xlws.FILTER($T$4:$T$547,$P$4:$P$547=$AT4),BG$3) -> 15.07 | BH4: =INDEX(_xlfn._xlws.FILTER($C$4:$C$547,$P$4:$P$547=$AT4),MATCH(BE4,_xlfn._xlws.FILTER($T$4:$T$547,$P$4:$P$547=$AT4),0),0) -> Kab. Bireuen | BI4: =INDEX(_xlfn._xlws.FILTER($C$4:$C$547,$P$4:$P$547=$AT4),MATCH(BF4,_xlfn._xlws.FILTER($T$4:$T$547,$P$4:$P$547=$AT4),0),0) -> Kota Banda Aceh | BJ4: =INDEX(_xlfn._xlws.FILTER($C$4:$C$547,$P$4:$P$547=$AT4),MATCH(BG4,_xlfn._xlws.FILTER($T$4:$T$547,$P$4:$P$547=$AT4),0),0) -> Kab. Pidie | BK4: =LARGE(_xlfn._xlws.FILTER($AA$4:$AA$547,$P$4:$P$547=$AT4),BK$3) -> 17.5 | BL4: =LARGE(_xlfn._xlws.FILTER($AA$4:$AA$547,$P$4:$P$547=$AT4),BL$3) -> 16.09 | BM4: =LARGE(_xlfn._xlws.FILTER($AA$4:$AA$547,$P$4:$P$547=$AT4),BM$3) -> 15.04 | BN4: =INDEX(_xlfn._xlws.FILTER($C$4:$C$547,$P$4:$P$547=$AT4),MATCH(BK4,_xlfn._xlws.FILTER($AA$4:$AA$547,$P$4:$P$547=$AT4),0),0) -> Kab. Bireuen | BO4: =INDEX(_xlfn._xlws.FILTER($C$4:$C$547,$P$4:$P$547=$AT4),MATCH(BL4,_xlfn._xlws.FILTER($AA$4:$AA$547,$P$4:$P$547=$AT4),0),0) -> Kota Banda Aceh | BP4: =INDEX(_xlfn._xlws.FILTER($C$4:$C$547,$P$4:$P$547=$AT4),MATCH(BM4,_xlfn._xlws.FILTER($AA$4:$AA$547,$P$4:$P$547=$AT4),0),0) -> Kab. Pidie
A5: Aceh | B5: Aceh | C5: Kab. Aceh Barat Daya | D5: 155046 | E5: 2022 | G5: Aceh | H5: Aceh | I5: ACEH BARAT DAYA | J5: 66.99 | K5: 67.41 | L5: 70.47 | M5: =PERCENTRANK($L$4:$L$548,L5) -> 0.323 | N5: =IF(O5="",0,1) -> 1 | O5: =IFERROR(INDEX('SISPSN 2023'!H$3:H$442,MATCH($C5,'SISPSN 2023'!$J$3:$J$442,0)),"") -> 2023 | P5: =IFERROR(INDEX('SISPSN 2023'!I$3:I$442,MATCH($C5,'SISPSN 2023'!$J$3:$J$442,0)),"") -> Aceh | Q5: =IFERROR(INDEX('SISPSN 2023'!J$3:J$442,MATCH($C5,'SISPSN 2023'!$J$3:$J$442,0)),"") -> Kab. Aceh Barat Daya | R5: =IFERROR(INDEX('SISPSN 2023'!K$3:K$442,MATCH($C5,'SISPSN 2023'!$J$3:$J$442,0)),"") -> 28348.09 | S5: =IFERROR(INDEX('SISPSN 2023'!L$3:L$442,MATCH($C5,'SISPSN 2023'!$J$3:$J$442,0)),"") -> 1486.82 | T5: =IFERROR(INDEX('SISPSN 2023'!M$3:M$442,MATCH($C5,'SISPSN 2023'!$J$3:$J$442,0)),"") -> 5.24 | U5: =IFERROR(INDEX('SISPSN 2023'!N$3:N$442,MATCH($C5,'SISPSN 2023'!$J$3:$J$442,0)),"") -> 5475 | V5: =IFERROR(INDEX('SISPSN 2023'!O$3:O$442,MATCH($C5,'SISPSN 2023'!$J$3:$J$442,0)),"") -> 19.31 | W5: =IFERROR(INDEX('SISPSN 2023'!P$3:P$442,MATCH($C5,'SISPSN 2023'!$J$3:$J$442,0)),"") -> 6961.82 | X5: =IFERROR(INDEX('SISPSN 2023'!Q$3:Q$442,MATCH($C5,'SISPSN 2023'!$J$3:$J$442,0)),"") -> 24.56 | Y5: =IFERROR(INDEX('SISPSN 2023'!R$3:R$442,MATCH($C5,'SISPSN 2023'!$J$3:$J$442,0)),"") -> 1485.55 | Z5: =IFERROR(INDEX('SISPSN 2023'!S$3:S$442,MATCH($C5,'SISPSN 2023'!$J$3:$J$442,0)),"") -> 0 | AA5: =IFERROR(INDEX('SISPSN 2023'!T$3:T$442,MATCH($C5,'SISPSN 2023'!$J$3:$J$442,0)),"") -> 5.24 | AB5: =IFERROR(INDEX('SISPSN 2023'!U$3:U$442,MATCH($C5,'SISPSN 2023'!$J$3:$J$442,0)),"") -> P 2 | AD5: =IF(ISBLANK(R5),"",R5*1000/$D5/365) -> 0.5009223069 | AE5: =IF(ISBLANK(S5),"",S5*1000/$D5/365) -> 0.02627271553 | AF5: =IF(ISBLANK(U5),"",U5*1000/$D5/365) -> 0.09674548199 | AG5: =IF(ISBLANK(W5),"",W5*1000/$D5/365) -> 0.1230181975 | AH5: =IF(ISBLANK(Y5),"",Y5*1000/$D5/365) -> 0.02625027411 | AI5: =IF(ISBLANK(Z5),"",Z5*1000/$D5/365) -> 0 | AJ5: =IFERROR(PERCENTRANK(_xlfn._xlws.FILTER($AD$4:$AD$547,$AD$4:$AD$547<>""),AD5),"") ->  | AK5: =IF(ISBLANK(T5),"",PERCENTRANK($T$4:$T$547,T5)) -> 0.411 | AL5: =IF(ISBLANK(V5),"",PERCENTRANK($V$4:$V$547,V5)) -> 0.207 | AM5: =IF(ISBLANK(AA5),"",PERCENTRANK($AA$4:$AA$547,AA5)) -> 0.477 | AT5: =Tabs!A4 -> Bali | AU5: 0.7646541254 | AV5: =SUMIF($P$4:$P$548,$AT5,$S$4:$S$548)*1000/SUMIF($P$4:$P$548,$AT5,$D$4:$D$548)/365 -> 0.1094808654 | AW5: =AV5/AU5 -> 0.143176976 | AX5: =SUMIF($P$4:$P$548,$AT5,$U$4:$U$548)*1000/SUMIF($P$4:$P$548,$AT5,$D$4:$D$548)/365 -> 0.4706607148 | AY5: =AX5/AU5 -> 0.6155210561 | AZ5: =AV5+AX5 -> 0.5801415802 | BA5: =AZ5/AU5 -> 0.7586980321 | BB5: =SUMIF($P$4:$P$548,$AT5,$Y$4:$Y$548)*1000/SUMIF($P$4:$P$548,$AT5,$D$4:$D$548)/365 -> 0.1049007586 | BC5: =SUMIF($P$4:$P$548,$AT5,$Z$4:$Z$548)*1000/SUMIF($P$4:$P$548,$AT5,$D$4:$D$548)/365 -> 0.01630712078 | BD5: =(BC5+BB5)/AU5 -> 0.15851334 | BE5: =LARGE(_xlfn._xlws.FILTER($T$4:$T$547,$P$4:$P$547=$AT5),BE$3) -> 23.08 | BF5: =LARGE(_xlfn._xlws.FILTER($T$4:$T$547,$P$4:$P$547=$AT5),BF$3) -> 23.01 | BG5: =LARGE(_xlfn._xlws.FILTER($T$4:$T$547,$P$4:$P$547=$AT5),BG$3) -> 19.74 | BH5: =INDEX(_xlfn._xlws.FILTER($C$4:$C$547,$P$4:$P$547=$AT5),MATCH(BE5,_xlfn._xlws.FILTER($T$4:$T$547,$P$4:$P$547=$AT5),0),0) -> Kab. Badung | BI5: =INDEX(_xlfn._xlws.FILTER($C$4:$C$547,$P$4:$P$547=$AT5),MATCH(BF5,_xlfn._xlws.FILTER($T$4:$T$547,$P$4:$P$547=$AT5),0),0) -> Kab. Jembrana | BJ5: =INDEX(_xlfn._xlws.FILTER($C$4:$C$547,$P$4:$P$547=$AT5),MATCH(BG5,_xlfn._xlws.FILTER($T$4:$T$547,$P$4:$P$547=$AT5),0),0) -> Kab. Bangli | BK5: =LARGE(_xlfn._xlws.FILTER($AA$4:$AA$547,$P$4:$P$547=$AT5),BK$3) -> 24.42 | BL5: =LARGE(_xlfn._xlws.FILTER($AA$4:$AA$547,$P$4:$P$547=$AT5),BL$3) -> 22.54 | BM5: =LARGE(_xlfn._xlws.FILTER($AA$4:$AA$547,$P$4:$P$547=$AT5),BM$3) -> 21.63 | BN5: =INDEX(_xlfn._xlws.FILTER($C$4:$C$547,$P$4:$P$547=$AT5),MATCH(BK5,_xlfn._xlws.FILTER($AA$4:$AA$547,$P$4:$P$547=$AT5),0),0) -> Kab. Badung | BO5: =INDEX(_xlfn._xlws.FILTER($C$4:$C$547,$P$4:$P$547=$AT5),MATCH(BL5,_xlfn._xlws.FILTER($AA$4:$AA$547,$P$4:$P$547=$AT5),0),0) -> Kab. Klungkung | BP5: =INDEX(_xlfn._xlws.FILTER($C$4:$C$547,$P$4:$P$547=$AT5),MATCH(BM5,_xlfn._xlws.FILTER($AA$4:$AA$547,$P$4:$P$547=$AT5),0),0) -> Kab. Jembrana
A6: Aceh | B6: Aceh | C6: Kab. Aceh Besar | D6: 414490 | E6: 2022 | G6: Aceh | H6: Aceh | I6: ACEH BESAR | J6: 73.58 | K6: 74 | L6: 75.98 | M6: 0.793 | N6: 1 | O6: =IFERROR(INDEX('SISPSN 2023'!H$3:H$442,MATCH($C6,'SISPSN 2023'!$J$3:$J$442,0)),"") -> 2023 | P6: =IFERROR(INDEX('SISPSN 2023'!I$3:I$442,MATCH($C6,'SISPSN 2023'!$J$3:$J$442,0)),"") -> Aceh | Q6: =IFERROR(INDEX('SISPSN 2023'!J$3:J$442,MATCH($C6,'SISPSN 2023'!$J$3:$J$442,0)),"") -> Kab. Aceh Besar | R6: =IFERROR(INDEX('SISPSN 2023'!K$3:K$442,MATCH($C6,'SISPSN 2023'!$J$3:$J$442,0)),"") -> 54053.29 | S6: =IFERROR(INDEX('SISPSN 2023'!L$3:L$442,MATCH($C6,'SISPSN 2023'!$J$3:$J$442,0)),"") -> 1016.65 | T6: =IFERROR(INDEX('SISPSN 2023'!M$3:M$442,MATCH($C6,'SISPSN 2023'!$J$3:$J$442,0)),"") -> 1.88 | U6: =IFERROR(INDEX('SISPSN 2023'!N$3:N$442,MATCH($C6,'SISPSN 2023'!$J$3:$J$442,0)),"") -> 35040 | V6: =IFERROR(INDEX('SISPSN 2023'!O$3:O$442,MATCH($C6,'SISPSN 2023'!$J$3:$J$442,0)),"") -> 64.82 | W6: =IFERROR(INDEX('SISPSN 2023'!P$3:P$442,MATCH($C6,'SISPSN 2023'!$J$3:$J$442,0)),"") -> 36056.65 | X6: =IFERROR(INDEX('SISPSN 2023'!Q$3:Q$442,MATCH($C6,'SISPSN 2023'!$J$3:$J$442,0)),"") -> 66.71 | Y6: =IFERROR(INDEX('SISPSN 2023'!R$3:R$442,MATCH($C6,'SISPSN 2023'!$J$3:$J$442,0)),"") -> 851.76 | Z6: =IFERROR(INDEX('SISPSN 2023'!S$3:S$442,MATCH($C6,'SISPSN 2023'!$J$3:$J$442,0)),"") -> 0 | AA6: =IFERROR(INDEX('SISPSN 2023'!T$3:T$442,MATCH($C6,'SISPSN 2023'!$J$3:$J$442,0)),"") -> 1.58 | AB6: =IFERROR(INDEX('SISPSN 2023'!U$3:U$442,MATCH($C6,'SISPSN 2023'!$J$3:$J$442,0)),"") -> P 2 | AD6: 0.3572853518 | AE6: 0.006719926815 | AF6: 0.2316099303 | AG6: 0.2383298571 | AH6: 0.005630024949 | AI6: 0 | AJ6: =IFERROR(PERCENTRANK(_xlfn._xlws.FILTER($AD$4:$AD$547,$AD$4:$AD$547<>""),AD6),"") ->  | AK6: 0.295 | AL6: 0.712 | AM6: 0.331 | AT6: =Tabs!A5 -> Banten | AU6: 0.6273925049 | AV6: 0.08017884322 | AW6: 0.1277969415 | AX6: 0.309632273 | AY6: 0.493522429 | AZ6: 0.3898111162 | BA6: 0.6213193705 | BB6: 0.07892026119 | BC6: 0.000480238684 | BD6: 0.1265563411 | BE6: =LARGE(_xlfn._xlws.FILTER($T$4:$T$547,$P$4:$P$547=$AT6),BE$3) -> 27.51 | BF6: =LARGE(_xlfn._xlws.FILTER($T$4:$T$547,$P$4:$P$547=$AT6),BF$3) -> 24.71 | BG6: =LARGE(_xlfn._xlws.FILTER($T$4:$T$547,$P$4:$P$547=$AT6),BG$3) -> 9.48 | BH6: =INDEX(_xlfn._xlws.FILTER($C$4:$C$547,$P$4:$P$547=$AT6),MATCH(BE6,_xlfn._xlws.FILTER($T$4:$T$547,$P$4:$P$547=$AT6),0),0) -> Kota Tangerang Selatan | BI6: =INDEX(_xlfn._xlws.FILTER($C$4:$C$547,$P$4:$P$547=$AT6),MATCH(BF6,_xlfn._xlws.FILTER($T$4:$T$547,$P$4:$P$547=$AT6),0),0) -> Kota Tangerang | BJ6: =INDEX(_xlfn._xlws.FILTER($C$4:$C$547,$P$4:$P$547=$AT6),MATCH(BG6,_xlfn._xlws.FILTER($T$4:$T$547,$P$4:$P$547=$AT6),0),0) -> Kota Serang | BK6: =LARGE(_xlfn._xlws.FILTER($AA$4:$AA$547,$P$4:$P$547=$AT6),BK$3) -> 27.93 | BL6: =LARGE(_xlfn._xlws.FILTER($AA$4:$AA$547,$P$4:$P$547=$AT6),BL$3) -> 24.02 | BM6: =LARGE(_xlfn._xlws.FILTER($AA$4:$AA$547,$P$4:$P$547=$AT6),BM$3) -> 9.48 | BN6: =INDEX(_xlfn._xlws.FILTER($C$4:$C$547,$P$4:$P$547=$AT6),MATCH(BK6,_xlfn._xlws.FILTER($AA$4:$AA$547,$P$4:$P$547=$AT6),0),0) -> Kota Tangerang Selatan | BO6: =INDEX(_xlfn._xlws.FILTER($C$4:$C$547,$P$4:$P$547=$AT6),MATCH(BL6,_xlfn._xlws.FILTER($AA$4:$AA$547,$P$4:$P$547=$AT6),0),0) -> Kota Tangerang | BP6: =INDEX(_xlfn._xlws.FILTER($C$4:$C$547,$P$4:$P$547=$AT6),MATCH(BM6,_xlfn._xlws.FILTER($AA$4:$AA$547,$P$4:$P$547=$AT6),0),0) -> Kota Serang
A7: Aceh | B7: Aceh | C7: Kab. Aceh Jaya | D7: 96028 | E7: 2022 | G7: Aceh | H7: Aceh | I7: ACEH JAYA | J7: 69.84 | K7: 70.36 | L7: 72.44 | M7: 0.496 | N7: 1 | O7: =IFERROR(INDEX('SISPSN 2023'!H$3:H$442,MATCH($C7,'SISPSN 2023'!$J$3:$J$442,0)),"") -> 2023 | P7: =IFERROR(INDEX('SISPSN 2023'!I$3:I$442,MATCH($C7,'SISPSN 2023'!$J$3:$J$442,0)),"") -> Aceh | Q7: =IFERROR(INDEX('SISPSN 2023'!J$3:J$442,MATCH($C7,'SISPSN 2023'!$J$3:$J$442,0)),"") -> Kab. Aceh Jaya | R7: =IFERROR(INDEX('SISPSN 2023'!K$3:K$442,MATCH($C7,'SISPSN 2023'!$J$3:$J$442,0)),"") -> 17525.11 | S7: =IFERROR(INDEX('SISPSN 2023'!L$3:L$442,MATCH($C7,'SISPSN 2023'!$J$3:$J$442,0)),"") -> 654.66 | T7: =IFERROR(INDEX('SISPSN 2023'!M$3:M$442,MATCH($C7,'SISPSN 2023'!$J$3:$J$442,0)),"") -> 3.74 | U7: =IFERROR(INDEX('SISPSN 2023'!N$3:N$442,MATCH($C7,'SISPSN 2023'!$J$3:$J$442,0)),"") -> 12245.75 | V7: =IFERROR(INDEX('SISPSN 2023'!O$3:O$442,MATCH($C7,'SISPSN 2023'!$J$3:$J$442,0)),"") -> 69.88 | W7: =IFERROR(INDEX('SISPSN 2023'!P$3:P$442,MATCH($C7,'SISPSN 2023'!$J$3:$J$442,0)),"") -> 12900.41 | X7: =IFERROR(INDEX('SISPSN 2023'!Q$3:Q$442,MATCH($C7,'SISPSN 2023'!$J$3:$J$442,0)),"") -> 73.61 | Y7: =IFERROR(INDEX('SISPSN 2023'!R$3:R$442,MATCH($C7,'SISPSN 2023'!$J$3:$J$442,0)),"") -> 287.26 | Z7: =IFERROR(INDEX('SISPSN 2023'!S$3:S$442,MATCH($C7,'SISPSN 2023'!$J$3:$J$442,0)),"") -> 0 | AA7: =IFERROR(INDEX('SISPSN 2023'!T$3:T$442,MATCH($C7,'SISPSN 2023'!$J$3:$J$442,0)),"") -> 1.64 | AB7: =IFERROR(INDEX('SISPSN 2023'!U$3:U$442,MATCH($C7,'SISPSN 2023'!$J$3:$J$442,0)),"") -> P 2 | AD7: 0.5 | AE7: 0.01867777149 | AF7: 0.349377265 | AG7: 0.3680550365 | AH7: 0.008195668957 | AI7: 0 | AJ7: =IFERROR(PERCENTRANK(_xlfn._xlws.FILTER($AD$4:$AD$547,$AD$4:$AD$547<>""),AD7),"") ->  | AK7: 0.359 | AL7: 0.754 | AM7: 0.334 | AT7: =Tabs!A6 -> D.I. Yogyakarta | AU7: 0.5094698005 | AV7: 0.09933402869 | AW7: 0.1949753029 | AX7: 0.1568800029 | AY7: 0.3079279729 | AZ7: 0.2562140316 | BA7: 0.5029032758 | BB7: 0.09633424671 | BC7: 0.0004368324938 | BD7: 0.1899446819 | BE7: =LARGE(_xlfn._xlws.FILTER($T$4:$T$547,$P$4:$P$547=$AT7),BE$3) -> 31.05 | BF7: =LARGE(_xlfn._xlws.FILTER($T$4:$T$547,$P$4:$P$547=$AT7),BF$3) -> 29.03 | BG7: =LARGE(_xlfn._xlws.FILTER($T$4:$T$547,$P$4:$P$547=$AT7),BG$3) -> 18.53 | BH7: =INDEX(_xlfn._xlws.FILTER($C$4:$C$547,$P$4:$P$547=$AT7),MATCH(BE7,_xlfn._xlws.FILTER($T$4:$T$547,$P$4:$P$547=$AT7),0),0) -> Kab. Kulon Progo | BI7: =INDEX(_xlfn._xlws.FILTER($C$4:$C$547,$P$4:$P$547=$AT7),MATCH(BF7,_xlfn._xlws.FILTER($T$4:$T$547,$P$4:$P$547=$AT7),0),0) -> Kab. Gunungkidul | BJ7: =INDEX(_xlfn._xlws.FILTER($C$4:$C$547,$P$4:$P$547=$AT7),MATCH(BG7,_xlfn._xlws.FILTER($T$4:$T$547,$P$4:$P$547=$AT7),0),0) -> Kota Yogyakarta | BK7: =LARGE(_xlfn._xlws.FILTER($AA$4:$AA$547,$P$4:$P$547=$AT7),BK$3) -> 28.62 | BL7: =LARGE(_xlfn._xlws.FILTER($AA$4:$AA$547,$P$4:$P$547=$AT7),BL$3) -> 27.83 | BM7: =LARGE(_xlfn._xlws.FILTER($AA$4:$AA$547,$P$4:$P$547=$AT7),BM$3) -> 18.88 | BN7: =INDEX(_xlfn._xlws.FILTER($C$4:$C$547,$P$4:$P$547=$AT7),MATCH(BK7,_xlfn._xlws.FILTER($AA$4:$AA$547,$P$4:$P$547=$AT7),0),0) -> Kab. Gunungkidul | BO7: =INDEX(_xlfn._xlws.FILTER($C$4:$C$547,$P$4:$P$547=$AT7),MATCH(BL7,_xlfn._xlws.FILTER($AA$4:$AA$547,$P$4:$P$547=$AT7),0),0) -> Kab. Kulon Progo | BP7: =INDEX(_xlfn._xlws.FILTER($C$4:$C$547,$P$4:$P$547=$AT7),MATCH(BM7,_xlfn._xlws.FILTER($AA$4:$AA$547,$P$4:$P$547=$AT7),0),0) -> Kota Yogyakarta
A8: Aceh | B8: Aceh | C8: Kab. Aceh Selatan | D8: 237376 | E8: 2022 | G8: Aceh | H8: Aceh | I8: ACEH SELATAN | J8: 67.44 | K8: 67.87 | L8: 71.14 | M8: 0.383 | N8: 1 | O8: =IFERROR(INDEX('SISPSN 2023'!H$3:H$442,MATCH($C8,'SISPSN 2023'!$J$3:$J$442,0)),"") -> 2023 | P8: =IFERROR(INDEX('SISPSN 2023'!I$3:I$442,MATCH($C8,'SISPSN 2023'!$J$3:$J$442,0)),"") -> Aceh | Q8: =IFERROR(INDEX('SISPSN 2023'!J$3:J$442,MATCH($C8,'SISPSN 2023'!$J$3:$J$442,0)),"") -> Kab. Aceh Selatan | R8: =IFERROR(INDEX('SISPSN 2023'!K$3:K$442,MATCH($C8,'SISPSN 2023'!$J$3:$J$442,0)),"") -> 35323.53 | S8: =IFERROR(INDEX('SISPSN 2023'!L$3:L$442,MATCH($C8,'SISPSN 2023'!$J$3:$J$442,0)),"") -> 113.25 | T8: =IFERROR(INDEX('SISPSN 2023'!M$3:M$442,MATCH($C8,'SISPSN 2023'!$J$3:$J$442,0)),"") -> 0.32 | U8: =IFERROR(INDEX('SISPSN 2023'!N$3:N$442,MATCH($C8,'SISPSN 2023'!$J$3:$J$442,0)),"") -> 12775 | V8: =IFERROR(INDEX('SISPSN 2023'!O$3:O$442,MATCH($C8,'SISPSN 2023'!$J$3:$J$442,0)),"") -> 36.17 | W8: =IFERROR(INDEX('SISPSN 2023'!P$3:P$442,MATCH($C8,'SISPSN 2023'!$J$3:$J$442,0)),"") -> 12888.25 | X8: =IFERROR(INDEX('SISPSN 2023'!Q$3:Q$442,MATCH($C8,'SISPSN 2023'!$J$3:$J$442,0)),"") -> 36.49 | Y8: =IFERROR(INDEX('SISPSN 2023'!R$3:R$442,MATCH($C8,'SISPSN 2023'!$J$3:$J$442,0)),"") -> 67.89 | Z8: =IFERROR(INDEX('SISPSN 2023'!S$3:S$442,MATCH($C8,'SISPSN 2023'!$J$3:$J$442,0)),"") -> 0 | AA8: =IFERROR(INDEX('SISPSN 2023'!T$3:T$442,MATCH($C8,'SISPSN 2023'!$J$3:$J$442,0)),"") -> 0.19 | AB8: =IFERROR(INDEX('SISPSN 2023'!U$3:U$442,MATCH($C8,'SISPSN 2023'!$J$3:$J$442,0)),"") -> P 2 | AD8: 0.4076940993 | AE8: 0.00130709917 | AF8: 0.1474454031 | AG8: 0.1487525022 | AH8: 0.0007835669992 | AI8: 0 | AJ8: =IFERROR(PERCENTRANK(_xlfn._xlws.FILTER($AD$4:$AD$547,$AD$4:$AD$547<>""),AD8),"") ->  | AK8: 0.209 | AL8: 0.444 | AM8: 0.232 | AT8: =Tabs!A7 -> DKI Jakarta | AU8: 0.8059269904 | AV8: 0.2185808474 | AW8: 0.2712166859 | AX8: 0.5842367578 | AY8: 0.7249251666 | AZ8: 0.8028176051 | BA8: 0.9961418524 | BB8: 0.1738546969 | BC8: 0.002789197549 | BD8: 0.2191810133 | BE8: =LARGE(_xlfn._xlws.FILTER($T$4:$T$547,$P$4:$P$547=$AT8),BE$3) -> 27.27 | BF8: =LARGE(_xlfn._xlws.FILTER($T$4:$T$547,$P$4:$P$547=$AT8),BF$3) -> 27.22 | BG8: =LARGE(_xlfn._xlws.FILTER($T$4:$T$547,$P$4:$P$547=$AT8),BG$3) -> 27.11 | BH8: =INDEX(_xlfn._xlws.FILTER($C$4:$C$547,$P$4:$P$547=$AT8),MATCH(BE8,_xlfn._xlws.FILTER($T$4:$T$547,$P$4:$P$547=$AT8),0),0) -> Kota Adm. Jakarta Timur | BI8: =INDEX(_xlfn._xlws.FILTER($C$4:$C$547,$P$4:$P$547=$AT8),MATCH(BF8,_xlfn._xlws.FILTER($T$4:$T$547,$P$4:$P$547=$AT8),0),0) -> Kab. Adm. Kep. Seribu | BJ8: =INDEX(_xlfn._xlws.FILTER($C$4:$C$547,$P$4:$P$547=$AT8),MATCH(BG8,_xlfn._xlws.FILTER($T$4:$T$547,$P$4:$P$547=$AT8),0),0) -> Kota Adm. Jakarta Pusat | BK8: =LARGE(_xlfn._xlws.FILTER($AA$4:$AA$547,$P$4:$P$547=$AT8),BK$3) -> 50.81 | BL8: =LARGE(_xlfn._xlws.FILTER($AA$4:$AA$547,$P$4:$P$547=$AT8),BL$3) -> 25.42 | BM8: =LARGE(_xlfn._xlws.FILTER($AA$4:$AA$547,$P$4:$P$547=$AT8),BM$3) -> 22.73 | BN8: =INDEX(_xlfn._xlws.FILTER($C$4:$C$547,$P$4:$P$547=$AT8),MATCH(BK8,_xlfn._xlws.FILTER($AA$4:$AA$547,$P$4:$P$547=$AT8),0),0) -> Kab. Adm. Kep. Seribu | BO8: =INDEX(_xlfn._xlws.FILTER($C$4:$C$547,$P$4:$P$547=$AT8),MATCH(BL8,_xlfn._xlws.FILTER($AA$4:$AA$547,$P$4:$P$547=$AT8),0),0) -> Kota Adm. Jakarta Timur | BP8: =INDEX(_xlfn._xlws.FILTER($C$4:$C$547,$P$4:$P$547=$AT8),MATCH(BM8,_xlfn._xlws.FILTER($AA$4:$AA$547,$P$4:$P$547=$AT8),0),0) -> Kota Adm. Jakarta Selatan
A9: Aceh | B9: Aceh | C9: Kab. Aceh Singkil | D9: 130787 | E9: 2022 | G9: Aceh | H9: Aceh | I9: ACEH SINGKIL | J9: 69.22 | K9: 69.62 | L9: 71.14 | M9: 0.383 | N9: 1 | O9: =IFERROR(INDEX('SISPSN 2023'!H$3:H$442,MATCH($C9,'SISPSN 2023'!$J$3:$J$442,0)),"") -> 2023 | P9: =IFERROR(INDEX('SISPSN 2023'!I$3:I$442,MATCH($C9,'SISPSN 2023'!$J$3:$J$442,0)),"") -> Aceh | Q9: =IFERROR(INDEX('SISPSN 2023'!J$3:J$442,MATCH($C9,'SISPSN 2023'!$J$3:$J$442,0)),"") -> Kab. Aceh Singkil | R9: =IFERROR(INDEX('SISPSN 2023'!K$3:K$442,MATCH($C9,'SISPSN 2023'!$J$3:$J$442,0)),"") -> 19094.9 | S9: =IFERROR(INDEX('SISPSN 2023'!L$3:L$442,MATCH($C9,'SISPSN 2023'!$J$3:$J$442,0)),"") -> 1202.68 | T9: =IFERROR(INDEX('SISPSN 2023'!M$3:M$442,MATCH($C9,'SISPSN 2023'!$J$3:$J$442,0)),"") -> 6.3 | U9: =IFERROR(INDEX('SISPSN 2023'!N$3:N$442,MATCH($C9,'SISPSN 2023'!$J$3:$J$442,0)),"") -> 2190 | V9: =IFERROR(INDEX('SISPSN 2023'!O$3:O$442,MATCH($C9,'SISPSN 2023'!$J$3:$J$442,0)),"") -> 11.47 | W9: =IFERROR(INDEX('SISPSN 2023'!P$3:P$442,MATCH($C9,'SISPSN 2023'!$J$3:$J$442,0)),"") -> 3392.68 | X9: =IFERROR(INDEX('SISPSN 2023'!Q$3:Q$442,MATCH($C9,'SISPSN 2023'!$J$3:$J$442,0)),"") -> 17.77 | Y9: =IFERROR(INDEX('SISPSN 2023'!R$3:R$442,MATCH($C9,'SISPSN 2023'!$J$3:$J$442,0)),"") -> 1202.68 | Z9: =IFERROR(INDEX('SISPSN 2023'!S$3:S$442,MATCH($C9,'SISPSN 2023'!$J$3:$J$442,0)),"") -> 0 | AA9: =IFERROR(INDEX('SISPSN 2023'!T$3:T$442,MATCH($C9,'SISPSN 2023'!$J$3:$J$442,0)),"") -> 6.3 | AB9: =IFERROR(INDEX('SISPSN 2023'!U$3:U$442,MATCH($C9,'SISPSN 2023'!$J$3:$J$442,0)),"") -> P 2 | AD9: 0.3999999581 | AE9: 0.02519374019 | AF9: 0.04587611919 | AG9: 0.07106985938 | AH9: 0.02519374019 | AI9: 0 | AJ9: =IFERROR(PERCENTRANK(_xlfn._xlws.FILTER($AD$4:$AD$547,$AD$4:$AD$547<>""),AD9),"") ->  | AK9: 0.45 | AL9: 0.077 | AM9: 0.502 | AT9: =Tabs!A8 -> Gorontalo | AU9: 0.4549542158 | AV9: 0.05400983784 | AW9: 0.1187148859 | AX9: 0.1583771559 | AY9: 0.3481166904 | AZ9: 0.2123869937 | BA9: 0.4668315763 | BB9: 0.04117622875 | BC9: 0.003392911172 | BD9: 0.09796401127 | BE9: =LARGE(_xlfn._xlws.FILTER($T$4:$T$547,$P$4:$P$547=$AT9),BE$3) -> 24.45 | BF9: =LARGE(_xlfn._xlws.FILTER($T$4:$T$547,$P$4:$P$547=$AT9),BF$3) -> 12.23 | BG9: =LARGE(_xlfn._xlws.FILTER($T$4:$T$547,$P$4:$P$547=$AT9),BG$3) -> 11.01 | BH9: =INDEX(_xlfn._xlws.FILTER($C$4:$C$547,$P$4:$P$547=$AT9),MATCH(BE9,_xlfn._xlws.FILTER($T$4:$T$547,$P$4:$P$547=$AT9),0),0) -> Kota Gorontalo | BI9: =INDEX(_xlfn._xlws.FILTER($C$4:$C$547,$P$4:$P$547=$AT9),MATCH(BF9,_xlfn._xlws.FILTER($T$4:$T$547,$P$4:$P$547=$AT9),0),0) -> Kab. Bone Bolango | BJ9: =INDEX(_xlfn._xlws.FILTER($C$4:$C$547,$P$4:$P$547=$AT9),MATCH(BG9,_xlfn._xlws.FILTER($T$4:$T$547,$P$4:$P$547=$AT9),0),0) -> Kab. Pohuwato | BK9: =LARGE(_xlfn._xlws.FILTER($AA$4:$AA$547,$P$4:$P$547=$AT9),BK$3) -> 22.39 | BL9: =LARGE(_xlfn._xlws.FILTER($AA$4:$AA$547,$P$4:$P$547=$AT9),BL$3) -> 12.68 | BM9: =LARGE(_xlfn._xlws.FILTER($AA$4:$AA$547,$P$4:$P$547=$AT9),BM$3) -> 2.48 | BN9: =INDEX(_xlfn._xlws.FILTER($C$4:$C$547,$P$4:$P$547=$AT9),MATCH(BK9,_xlfn._xlws.FILTER($AA$4:$AA$547,$P$4:$P$547=$AT9),0),0) -> Kota Gorontalo | BO9: =INDEX(_xlfn._xlws.FILTER($C$4:$C$547,$P$4:$P$547=$AT9),MATCH(BL9,_xlfn._xlws.FILTER($AA$4:$AA$547,$P$4:$P$547=$AT9),0),0) -> Kab. Pohuwato | BP9: =INDEX(_xlfn._xlws.FILTER($C$4:$C$547,$P$4:$P$547=$AT9),MATCH(BM9,_xlfn._xlws.FILTER($AA$4:$AA$547,$P$4:$P$547=$AT9),0),0) -> Kab. Bone Bolango
A10: Aceh | B10: Aceh | C10: Kab. Aceh Tamiang | D10: 301492 | E10: 2022 | G10: Aceh | H10: Aceh | I10: ACEH TAMIANG | J10: 69.48 | K10: 70.43 | L10: 73.02 | M10: 0.55 | N10: 1 | O10: =IFERROR(INDEX('SISPSN 2023'!H$3:H$442,MATCH($C10,'SISPSN 2023'!$J$3:$J$442,0)),"") -> 2023 | P10: =IFERROR(INDEX('SISPSN 2023'!I$3:I$442,MATCH($C10,'SISPSN 2023'!$J$3:$J$442,0)),"") -> Aceh | Q10: =IFERROR(INDEX('SISPSN 2023'!J$3:J$442,MATCH($C10,'SISPSN 2023'!$J$3:$J$442,0)),"") -> Kab. Aceh Tamiang | R10: =IFERROR(INDEX('SISPSN 2023'!K$3:K$442,MATCH($C10,'SISPSN 2023'!$J$3:$J$442,0)),"") -> 44561.68 | S10: =IFERROR(INDEX('SISPSN 2023'!L$3:L$442,MATCH($C10,'SISPSN 2023'!$J$3:$J$442,0)),"") -> 3627.75 | T10: =IFERROR(INDEX('SISPSN 2023'!M$3:M$442,MATCH($C10,'SISPSN 2023'!$J$3:$J$442,0)),"") -> 8.14 | U10: =IFERROR(INDEX('SISPSN 2023'!N$3:N$442,MATCH($C10,'SISPSN 2023'!$J$3:$J$442,0)),"") -> 16070.95 | V10: =IFERROR(INDEX('SISPSN 2023'!O$3:O$442,MATCH($C10,'SISPSN 2023'!$J$3:$J$442,0)),"") -> 36.06 | W10: =IFERROR(INDEX('SISPSN 2023'!P$3:P$442,MATCH($C10,'SISPSN 2023'!$J$3:$J$442,0)),"") -> 19698.7 | X10: =IFERROR(INDEX('SISPSN 2023'!Q$3:Q$442,MATCH($C10,'SISPSN 2023'!$J$3:$J$442,0)),"") -> 44.21 | Y10: =IFERROR(INDEX('SISPSN 2023'!R$3:R$442,MATCH($C10,'SISPSN 2023'!$J$3:$J$442,0)),"") -> 3540.5 | Z10: =IFERROR(INDEX('SISPSN 2023'!S$3:S$442,MATCH($C10,'SISPSN 2023'!$J$3:$J$442,0)),"") -> 0 | AA10: =IFERROR(INDEX('SISPSN 2023'!T$3:T$442,MATCH($C10,'SISPSN 2023'!$J$3:$J$442,0)),"") -> 7.95 | AB10: =IFERROR(INDEX('SISPSN 2023'!U$3:U$442,MATCH($C10,'SISPSN 2023'!$J$3:$J$442,0)),"") -> P 2 | AD10: 0.4049420698 | AE10: 0.03296618516 | AF10: 0.1460403593 | AG10: 0.1790065444 | AH10: 0.03217332467 | AI10: 0 | AJ10: =IFERROR(PERCENTRANK(_xlfn._xlws.FILTER($AD$4:$AD$547,$AD$4:$AD$547<>""),AD10),"") ->  | AK10: 0.48 | AL10: 0.441 | AM10: 0.533 | AT10: =Tabs!A9 -> Jambi | AU10: 0.5564934405 | AV10: 0.07853152287 | AW10: 0.1411185059 | AX10: 0.3294165808 | AY10: 0.5919505187 | AZ10: 0.4079481037 | BA10: 0.7330690246 | BB10: 0.06278043391 | BC10: 0.01471302852 | BD10: 0.1392531462 | BE10: =LARGE(_xlfn._xlws.FILTER($T$4:$T$547,$P$4:$P$547=$AT10),BE$3) -> 22.7 | BF10: =LARGE(_xlfn._xlws.FILTER($T$4:$T$547,$P$4:$P$547=$AT10),BF$3) -> 14.92 | BG10: =LARGE(_xlfn._xlws.FILTER($T$4:$T$547,$P$4:$P$547=$AT10),BG$3) -> 12.86 | BH10: =INDEX(_xlfn._xlws.FILTER($C$4:$C$547,$P$4:$P$547=$AT10),MATCH(BE10,_xlfn._xlws.FILTER($T$4:$T$547,$P$4:$P$547=$AT10),0),0) -> Kab. Bungo | BI10: =INDEX(_xlfn._xlws.FILTER($C$4:$C$547,$P$4:$P$547=$AT10),MATCH(BF10,_xlfn._xlws.FILTER($T$4:$T$547,$P$4:$P$547=$AT10),0),0) -> Kota Jambi | BJ10: =INDEX(_xlfn._xlws.FILTER($C$4:$C$547,$P$4:$P$547=$AT10),MATCH(BG10,_xlfn._xlws.FILTER($T$4:$T$547,$P$4:$P$547=$AT10),0),0) -> Kota Sungai Penuh | BK10: =LARGE(_xlfn._xlws.FILTER($AA$4:$AA$547,$P$4:$P$547=$AT10),BK$3) -> 30.54 | BL10: =LARGE(_xlfn._xlws.FILTER($AA$4:$AA$547,$P$4:$P$547=$AT10),BL$3) -> 12.8 | BM10: =LARGE(_xlfn._xlws.FILTER($AA$4:$AA$547,$P$4:$P$547=$AT10),BM$3) -> 11.74 | BN10: =INDEX(_xlfn._xlws.FILTER($C$4:$C$547,$P$4:$P$547=$AT10),MATCH(BK10,_xlfn._xlws.FILTER($AA$4:$AA$547,$P$4:$P$547=$AT10),0),0) -> Kab. Bungo | BO10: =INDEX(_xlfn._xlws.FILTER($C$4:$C$547,$P$4:$P$547=$AT10),MATCH(BL10,_xlfn._xlws.FILTER($AA$4:$AA$547,$P$4:$P$547=$AT10),0),0) -> Kota Sungai Penuh | BP10: =INDEX(_xlfn._xlws.FILTER($C$4:$C$547,$P$4:$P$547=$AT10),MATCH(BM10,_xlfn._xlws.FILTER($AA$4:$AA$547,$P$4:$P$547=$AT10),0),0) -> Kota Jambi
A11: Aceh | B11: Aceh | C11: Kab. Aceh Tengah | D11: 222673 | E11: 2022 | G11: Aceh | H11: Aceh | I11: ACEH TENGAH | J11: 73.37 | K11: 73.95 | L11: 76.45 | M11: 0.806 | N11: 1 | O11: =IFERROR(INDEX('SISPSN 2023'!H$3:H$442,MATCH($C11,'SISPSN 2023'!$J$3:$J$442,0)),"") -> 2023 | P11: =IFERROR(INDEX('SISPSN 2023'!I$3:I$442,MATCH($C11,'SISPSN 2023'!$J$3:$J$442,0)),"") -> Aceh | Q11: =IFERROR(INDEX('SISPSN 2023'!J$3:J$442,MATCH($C11,'SISPSN 2023'!$J$3:$J$442,0)),"") -> Kab. Aceh Tengah | R11: =IFERROR(INDEX('SISPSN 2023'!K$3:K$442,MATCH($C11,'SISPSN 2023'!$J$3:$J$442,0)),"") -> 40050.24 | S11: =IFERROR(INDEX('SISPSN 2023'!L$3:L$442,MATCH($C11,'SISPSN 2023'!$J$3:$J$442,0)),"") -> 1093.18 | T11: =IFERROR(INDEX('SISPSN 2023'!M$3:M$442,MATCH($C11,'SISPSN 2023'!$J$3:$J$442,0)),"") -> 2.73 | U11: =IFERROR(INDEX('SISPSN 2023'!N$3:N$442,MATCH($C11,'SISPSN 2023'!$J$3:$J$442,0)),"") -> 22630 | V11: =IFERROR(INDEX('SISPSN 2023'!O$3:O$442,MATCH($C11,'SISPSN 2023'!$J$3:$J$442,0)),"") -> 56.5 | W11: =IFERROR(INDEX('SISPSN 2023'!P$3:P$442,MATCH($C11,'SISPSN 2023'!$J$3:$J$442,0)),"") -> 23723.18 | X11: =IFERROR(INDEX('SISPSN 2023'!Q$3:Q$442,MATCH($C11,'SISPSN 2023'!$J$3:$J$442,0)),"") -> 59.23 | Y11: =IFERROR(INDEX('SISPSN 2023'!R$3:R$442,MATCH($C11,'SISPSN 2023'!$J$3:$J$442,0)),"") -> 1093.18 | Z11: =IFERROR(INDEX('SISPSN 2023'!S$3:S$442,MATCH($C11,'SISPSN 2023'!$J$3:$J$442,0)),"") -> 0 | AA11: =IFERROR(INDEX('SISPSN 2023'!T$3:T$442,MATCH($C11,'SISPSN 2023'!$J$3:$J$442,0)),"") -> 2.73 | AB11: =IFERROR(INDEX('SISPSN 2023'!U$3:U$442,MATCH($C11,'SISPSN 2023'!$J$3:$J$442,0)),"") -> P 2 | AD11: 0.4927704972 | AE11: 0.01345027776 | AF11: 0.2784351942 | AG11: 0.291885472 | AH11: 0.01345027776 | AI11: 0 | AJ11: =IFERROR(PERCENTRANK(_xlfn._xlws.FILTER($AD$4:$AD$547,$AD$4:$AD$547<>""),AD11),"") ->  | AK11: 0.328 | AL11: 0.643 | AM11: 0.381 | AT11: =Tabs!A10 -> Jawa Barat | AU11: 0.4087120168 | AV11: 0.04394811183 | AW11: 0.1075283085 | AX11: 0.2241567591 | AY11: 0.5484467055 | AZ11: 0.2681048709 | BA11: 0.6559750139 | BB11: 0.04035897948 | BC11: 0.004090720465 | BD11: 0.1087555494 | BE11: =LARGE(_xlfn._xlws.FILTER($T$4:$T$547,$P$4:$P$547=$AT11),BE$3) -> 39.2 | BF11: =LARGE(_xlfn._xlws.FILTER($T$4:$T$547,$P$4:$P$547=$AT11),BF$3) -> 26.01 | BG11: =LARGE(_xlfn._xlws.FILTER($T$4:$T$547,$P$4:$P$547=$AT11),BG$3) -> 26.01 | BH11: =INDEX(_xlfn._xlws.FILTER($C$4:$C$547,$P$4:$P$547=$AT11),MATCH(BE11,_xlfn._xlws.FILTER($T$4:$T$547,$P$4:$P$547=$AT11),0),0) -> Kab. Ciamis | BI11: =INDEX(_xlfn._xlws.FILTER($C$4:$C$547,$P$4:$P$547=$AT11),MATCH(BF11,_xlfn._xlws.FILTER($T$4:$T$547,$P$4:$P$547=$AT11),0),0) -> Kota Sukabumi | BJ11: =INDEX(_xlfn._xlws.FILTER($C$4:$C$547,$P$4:$P$547=$AT11),MATCH(BG11,_xlfn._xlws.FILTER($T$4:$T$547,$P$4:$P$547=$AT11),0),0) -> Kota Sukabumi | BK11: =LARGE(_xlfn._xlws.FILTER($AA$4:$AA$547,$P$4:$P$547=$AT11),BK$3) -> 56.68 | BL11: =LARGE(_xlfn._xlws.FILTER($AA$4:$AA$547,$P$4:$P$547=$AT11),BL$3) -> 41.61 | BM11: =LARGE(_xlfn._xlws.FILTER($AA$4:$AA$547,$P$4:$P$547=$AT11),BM$3) -> 29.84 | BN11: =INDEX(_xlfn._xlws.FILTER($C$4:$C$547,$P$4:$P$547=$AT11),MATCH(BK11,_xlfn._xlws.FILTER($AA$4:$AA$547,$P$4:$P$547=$AT11),0),0) -> Kab. Ciamis | BO11: =INDEX(_xlfn._xlws.FILTER($C$4:$C$547,$P$4:$P$547=$AT11),MATCH(BL11,_xlfn._xlws.FILTER($AA$4:$AA$547,$P$4:$P$547=$AT11),0),0) -> Kota Banjar | BP11: =INDEX(_xlfn._xlws.FILTER($C$4:$C$547,$P$4:$P$547=$AT11),MATCH(BM11,_xlfn._xlws.FILTER($AA$4:$AA$547,$P$4:$P$547=$AT11),0),0) -> Kota Cimahi
A12: Aceh | B12: Aceh | C12: Kab. Aceh Tenggara | D12: 228308 | E12: 2022 | G12: Aceh | H12: Aceh | I12: ACEH TENGGARA | J12: 69.44 | K12: 70.32 | L12: 72.93 | M12: 0.531 | N12: 1 | O12: =IFERROR(INDEX('SISPSN 2023'!H$3:H$442,MATCH($C12,'SISPSN 2023'!$J$3:$J$442,0)),"") -> 2023 | P12: =IFERROR(INDEX('SISPSN 2023'!I$3:I$442,MATCH($C12,'SISPSN 2023'!$J$3:$J$442,0)),"") -> Aceh | Q12: =IFERROR(INDEX('SISPSN 2023'!J$3:J$442,MATCH($C12,'SISPSN 2023'!$J$3:$J$442,0)),"") -> Kab. Aceh Tenggara | R12: =IFERROR(INDEX('SISPSN 2023'!K$3:K$442,MATCH($C12,'SISPSN 2023'!$J$3:$J$442,0)),"") -> 41666.21 | S12: =IFERROR(INDEX('SISPSN 2023'!L$3:L$442,MATCH($C12,'SISPSN 2023'!$J$3:$J$442,0)),"") -> 25.55 | T12: =IFERROR(INDEX('SISPSN 2023'!M$3:M$442,MATCH($C12,'SISPSN 2023'!$J$3:$J$442,0)),"") -> 0.06 | U12: =IFERROR(INDEX('SISPSN 2023'!N$3:N$442,MATCH($C12,'SISPSN 2023'!$J$3:$J$442,0)),"") -> 7227 | V12: =IFERROR(INDEX('SISPSN 2023'!O$3:O$442,MATCH($C12,'SISPSN 2023'!$J$3:$J$442,0)),"") -> 17.34 | W12: =IFERROR(INDEX('SISPSN 2023'!P$3:P$442,MATCH($C12,'SISPSN 2023'!$J$3:$J$442,0)),"") -> 7252.55 | X12: =IFERROR(INDEX('SISPSN 2023'!Q$3:Q$442,MATCH($C12,'SISPSN 2023'!$J$3:$J$442,0)),"") -> 17.41 | Y12: =IFERROR(INDEX('SISPSN 2023'!R$3:R$442,MATCH($C12,'SISPSN 2023'!$J$3:$J$442,0)),"") -> 0 | Z12: =IFERROR(INDEX('SISPSN 2023'!S$3:S$442,MATCH($C12,'SISPSN 2023'!$J$3:$J$442,0)),"") -> 0 | AA12: =IFERROR(INDEX('SISPSN 2023'!T$3:T$442,MATCH($C12,'SISPSN 2023'!$J$3:$J$442,0)),"") -> 0 | AB12: =IFERROR(INDEX('SISPSN 2023'!U$3:U$442,MATCH($C12,'SISPSN 2023'!$J$3:$J$442,0)),"") -> P 2 | AD12: 0.5 | AE12: 0.0003066033604 | AF12: 0.08672495051 | AG12: 0.08703155387 | AH12: 0 | AI12: 0 | AJ12: =IFERROR(PERCENTRANK(_xlfn._xlws.FILTER($AD$4:$AD$547,$AD$4:$AD$547<>""),AD12),"") ->  | AK12: 0.151 | AL12: 0.171 | AM12: 0 | AT12: =Tabs!A11 -> Jawa Tengah | AU12: 0.4687052455 | AV12: 0.09766466797 | AW12: 0.2083711862 | AX12: 0.1898414782 | AY12: 0.4050338246 | AZ12: 0.2875061461 | BA12: 0.6134050108 | BB12: 0.07267459559 | BC12: 0.02374170716 | BD12: 0.2057077528 | BE12: =LARGE(_xlfn._xlws.FILTER($T$4:$T$547,$P$4:$P$547=$AT12),BE$3) -> 67.09 | BF12: =LARGE(_xlfn._xlws.FILTER($T$4:$T$547,$P$4:$P$547=$AT12),BF$3) -> 47.12 | BG12: =LARGE(_xlfn._xlws.FILTER($T$4:$T$547,$P$4:$P$547=$AT12),BG$3) -> 38.91 | BH12: =INDEX(_xlfn._xlws.FILTER($C$4:$C$547,$P$4:$P$547=$AT12),MATCH(BE12,_xlfn._xlws.FILTER($T$4:$T$547,$P$4:$P$547=$AT12),0),0) -> Kab. Banyumas | BI12: =INDEX(_xlfn._xlws.FILTER($C$4:$C$547,$P$4:$P$547=$AT12),MATCH(BF12,_xlfn._xlws.FILTER($T$4:$T$547,$P$4:$P$547=$AT12),0),0) -> Kab. Kebumen | BJ12: =INDEX(_xlfn._xlws.FILTER($C$4:$C$547,$P$4:$P$547=$AT12),MATCH(BG12,_xlfn._xlws.FILTER($T$4:$T$547,$P$4:$P$547=$AT12),0),0) -> Kab. Wonogiri | BK12: =LARGE(_xlfn._xlws.FILTER($AA$4:$AA$547,$P$4:$P$547=$AT12),BK$3) -> 46.7 | BL12: =LARGE(_xlfn._xlws.FILTER($AA$4:$AA$547,$P$4:$P$547=$AT12),BL$3) -> 41.33 | BM12: =LARGE(_xlfn._xlws.FILTER($AA$4:$AA$547,$P$4:$P$547=$AT12),BM$3) -> 40.45 | BN12: =INDEX(_xlfn._xlws.FILTER($C$4:$C$547,$P$4:$P$547=$AT12),MATCH(BK12,_xlfn._xlws.FILTER($AA$4:$AA$547,$P$4:$P$547=$AT12),0),0) -> Kab. Kebumen | BO12: =INDEX(_xlfn._xlws.FILTER($C$4:$C$547,$P$4:$P$547=$AT12),MATCH(BL12,_xlfn._xlws.FILTER($AA$4:$AA$547,$P$4:$P$547=$AT12),0),0) -> Kab. Grobogan | BP12: =INDEX(_xlfn._xlws.FILTER($C$4:$C$547,$P$4:$P$547=$AT12),MATCH(BM12,_xlfn._xlws.FILTER($AA$4:$AA$547,$P$4:$P$547=$AT12),0),0) -> Kab. Cilacap
A13: Aceh | B13: Aceh | C13: Kab. Aceh Timur | D13: 432849 | E13: 2022 | G13: Aceh | H13: Aceh | I13: ACEH TIMUR | J13: 67.83 | K13: 68.72 | L13: 70.73 | M13: 0.342 | N13: 1 | O13: =IFERROR(INDEX('SISPSN 2023'!H$3:H$442,MATCH($C13,'SISPSN 2023'!$J$3:$J$442,0)),"") -> 2023 | P13: =IFERROR(INDEX('SISPSN 2023'!I$3:I$442,MATCH($C13,'SISPSN 2023'!$J$3:$J$442,0)),"") -> Aceh | Q13: =IFERROR(INDEX('SISPSN 2023'!J$3:J$442,MATCH($C13,'SISPSN 2023'!$J$3:$J$442,0)),"") -> Kab. Aceh Timur | R13: =IFERROR(INDEX('SISPSN 2023'!K$3:K$442,MATCH($C13,'SISPSN 2023'!$J$3:$J$442,0)),"") -> 65670.22 | S13: =IFERROR(INDEX('SISPSN 2023'!L$3:L$442,MATCH($C13,'SISPSN 2023'!$J$3:$J$442,0)),"") -> 1044.8 | T13: =IFERROR(INDEX('SISPSN 2023'!M$3:M$442,MATCH($C13,'SISPSN 2023'!$J$3:$J$442,0)),"") -> 1.59 | U13: =IFERROR(INDEX('SISPSN 2023'!N$3:N$442,MATCH($C13,'SISPSN 2023'!$J$3:$J$442,0)),"") -> 22747.55 | V13: =IFERROR(INDEX('SISPSN 2023'!O$3:O$442,MATCH($C13,'SISPSN 2023'!$J$3:$J$442,0)),"") -> 34.64 | W13: =IFERROR(INDEX('SISPSN 2023'!P$3:P$442,MATCH($C13,'SISPSN 2023'!$J$3:$J$442,0)),"") -> 23792.35 | X13: =IFERROR(INDEX('SISPSN 2023'!Q$3:Q$442,MATCH($C13,'SISPSN 2023'!$J$3:$J$442,0)),"") -> 36.23 | Y13: =IFERROR(INDEX('SISPSN 2023'!R$3:R$442,MATCH($C13,'SISPSN 2023'!$J$3:$J$442,0)),"") -> 857.75 | Z13: =IFERROR(INDEX('SISPSN 2023'!S$3:S$442,MATCH($C13,'SISPSN 2023'!$J$3:$J$442,0)),"") -> 0 | AA13: =IFERROR(INDEX('SISPSN 2023'!T$3:T$442,MATCH($C13,'SISPSN 2023'!$J$3:$J$442,0)),"") -> 1.31 | AB13: =IFERROR(INDEX('SISPSN 2023'!U$3:U$442,MATCH($C13,'SISPSN 2023'!$J$3:$J$442,0)),"") -> P 2 | AD13: 0.415660914 | AE13: 0.006613081591 | AF13: 0.143981053 | AG13: 0.1505941346 | AH13: 0.005429145037 | AI13: 0 | AJ13: =IFERROR(PERCENTRANK(_xlfn._xlws.FILTER($AD$4:$AD$547,$AD$4:$AD$547<>""),AD13),"") ->  | AK13: 0.287 | AL13: 0.422 | AM13: 0.314 | AT13: =Tabs!A12 -> Jawa Timur | AU13: 0.4296628071 | AV13: 0.0637705587 | AW13: 0.1484200113 | AX13: 0.1869914924 | AY13: 0.4352052104 | AZ13: 0.2507620511 | BA13: 0.5836252218 | BB13: 0.05311440418 | BC13: 0.009938668042 | BD13: 0.1467501287 | BE13: =LARGE(_xlfn._xlws.FILTER($T$4:$T$547,$P$4:$P$547=$AT13),BE$3) -> 52.26 | BF13: =LARGE(_xlfn._xlws.FILTER($T$4:$T$547,$P$4:$P$547=$AT13),BF$3) -> 31.13 | BG13: =LARGE(_xlfn._xlws.FILTER($T$4:$T$547,$P$4:$P$547=$AT13),BG$3) -> 30.22 | BH13: =INDEX(_xlfn._xlws.FILTER($C$4:$C$547,$P$4:$P$547=$AT13),MATCH(BE13,_xlfn._xlws.FILTER($T$4:$T$547,$P$4:$P$547=$AT13),0),0) -> Kab. Magetan | BI13: =INDEX(_xlfn._xlws.FILTER($C$4:$C$547,$P$4:$P$547=$AT13),MATCH(BF13,_xlfn._xlws.FILTER($T$4:$T$547,$P$4:$P$547=$AT13),0),0) -> Kab. Madiun | BJ13: =INDEX(_xlfn._xlws.FILTER($C$4:$C$547,$P$4:$P$547=$AT13),MATCH(BG13,_xlfn._xlws.FILTER($T$4:$T$547,$P$4:$P$547=$AT13),0),0) -> Kab. Banyuwangi | BK13: =LARGE(_xlfn._xlws.FILTER($AA$4:$AA$547,$P$4:$P$547=$AT13),BK$3) -> 53.12 | BL13: =LARGE(_xlfn._xlws.FILTER($AA$4:$AA$547,$P$4:$P$547=$AT13),BL$3) -> 32.61 | BM13: =LARGE(_xlfn._xlws.FILTER($AA$4:$AA$547,$P$4:$P$547=$AT13),BM$3) -> 29.42 | BN13: =INDEX(_xlfn._xlws.FILTER($C$4:$C$547,$P$4:$P$547=$AT13),MATCH(BK13,_xlfn._xlws.FILTER($AA$4:$AA$547,$P$4:$P$547=$AT13),0),0) -> Kab. Magetan | BO13: =INDEX(_xlfn._xlws.FILTER($C$4:$C$547,$P$4:$P$547=$AT13),MATCH(BL13,_xlfn._xlws.FILTER($AA$4:$AA$547,$P$4:$P$547=$AT13),0),0) -> Kota Malang | BP13: =INDEX(_xlfn._xlws.FILTER($C$4:$C$547,$P$4:$P$547=$AT13),MATCH(BM13,_xlfn._xlws.FILTER($AA$4:$AA$547,$P$4:$P$547=$AT13),0),0) -> Kab. Banyuwangi
A14: Aceh | B14: Aceh | C14: Kab. Aceh Utara | D14: 614640 | E14: 2022 | G14: Aceh | H14: Aceh | I14: ACEH UTARA | J14: 69.46 | K14: 70.22 | L14: 72.5 | M14: 0.509 | N14: 1 | O14: =IFERROR(INDEX('SISPSN 2023'!H$3:H$442,MATCH($C14,'SISPSN 2023'!$J$3:$J$442,0)),"") -> 2023 | P14: =IFERROR(INDEX('SISPSN 2023'!I$3:I$442,MATCH($C14,'SISPSN 2023'!$J$3:$J$442,0)),"") -> Aceh | Q14: =IFERROR(INDEX('SISPSN 2023'!J$3:J$442,MATCH($C14,'SISPSN 2023'!$J$3:$J$442,0)),"") -> Kab. Aceh Utara | R14: =IFERROR(INDEX('SISPSN 2023'!K$3:K$442,MATCH($C14,'SISPSN 2023'!$J$3:$J$442,0)),"") -> 112171.8 | S14: =IFERROR(INDEX('SISPSN 2023'!L$3:L$442,MATCH($C14,'SISPSN 2023'!$J$3:$J$442,0)),"") -> 12.78 | T14: =IFERROR(INDEX('SISPSN 2023'!M$3:M$442,MATCH($C14,'SISPSN 2023'!$J$3:$J$442,0)),"") -> 0.01 | U14: =IFERROR(INDEX('SISPSN 2023'!N$3:N$442,MATCH($C14,'SISPSN 2023'!$J$3:$J$442,0)),"") -> 18250 | V14: =IFERROR(INDEX('SISPSN 2023'!O$3:O$442,MATCH($C14,'SISPSN 2023'!$J$3:$J$442,0)),"") -> 16.27 | W14: =IFERROR(INDEX('SISPSN 2023'!P$3:P$442,MATCH($C14,'SISPSN 2023'!$J$3:$J$442,0)),"") -> 18262.78 | X14: =IFERROR(INDEX('SISPSN 2023'!Q$3:Q$442,MATCH($C14,'SISPSN 2023'!$J$3:$J$442,0)),"") -> 16.28 | Y14: =IFERROR(INDEX('SISPSN 2023'!R$3:R$442,MATCH($C14,'SISPSN 2023'!$J$3:$J$442,0)),"") -> 0 | Z14: =IFERROR(INDEX('SISPSN 2023'!S$3:S$442,MATCH($C14,'SISPSN 2023'!$J$3:$J$442,0)),"") -> 0 | AA14: =IFERROR(INDEX('SISPSN 2023'!T$3:T$442,MATCH($C14,'SISPSN 2023'!$J$3:$J$442,0)),"") -> 0 | AB14: =IFERROR(INDEX('SISPSN 2023'!U$3:U$442,MATCH($C14,'SISPSN 2023'!$J$3:$J$442,0)),"") -> P 2 | AD14: 0.5 | AE14: 5.696618936e-05 | AF14: 0.0813484316 | AG14: 0.08140539779 | AH14: 0 | AI14: 0 | AJ14: =IFERROR(PERCENTRANK(_xlfn._xlws.FILTER($AD$4:$AD$547,$AD$4:$AD$547<>""),AD14),"") ->  | AK14: 0.121 | AL14: 0.151 | AM14: 0 | AT14: =Tabs!A13 -> Kalimantan Barat | AU14: 0.5293539179 | AV14: 0.02444462338 | AW14: 0.04617822321 | AX14: 0.1794497716 | AY14: 0.3389977207 | AZ14: 0.203894395 | BA14: 0.3851759439 | BB14: 0.02123760626 | BC14: 0.0003192026525 | BD14: 0.04072286648 | BE14: =LARGE(_xlfn._xlws.FILTER($T$4:$T$547,$P$4:$P$547=$AT14),BE$3) -> 24.35 | BF14: =LARGE(_xlfn._xlws.FILTER($T$4:$T$547,$P$4:$P$547=$AT14),BF$3) -> 17.96 | BG14: =LARGE(_xlfn._xlws.FILTER($T$4:$T$547,$P$4:$P$547=$AT14),BG$3) -> 6.48 | BH14: =INDEX(_xlfn._xlws.FILTER($C$4:$C$547,$P$4:$P$547=$AT14),MATCH(BE14,_xlfn._xlws.FILTER($T$4:$T$547,$P$4:$P$547=$AT14),0),0) -> Kota Pontianak | BI14: =INDEX(_xlfn._xlws.FILTER($C$4:$C$547,$P$4:$P$547=$AT14),MATCH(BF14,_xlfn._xlws.FILTER($T$4:$T$547,$P$4:$P$547=$AT14),0),0) -> Kota Singkawang | BJ14: =INDEX(_xlfn._xlws.FILTER($C$4:$C$547,$P$4:$P$547=$AT14),MATCH(BG14,_xlfn._xlws.FILTER($T$4:$T$547,$P$4:$P$547=$AT14),0),0) -> Kab. Sekadau | BK14: =LARGE(_xlfn._xlws.FILTER($AA$4:$AA$547,$P$4:$P$547=$AT14),BK$3) -> 22.55 | BL14: =LARGE(_xlfn._xlws.FILTER($AA$4:$AA$547,$P$4:$P$547=$AT14),BL$3) -> 17.93 | BM14: =LARGE(_xlfn._xlws.FILTER($AA$4:$AA$547,$P$4:$P$547=$AT14),BM$3) -> 1.9 | BN14: =INDEX(_xlfn._xlws.FILTER($C$4:$C$547,$P$4:$P$547=$AT14),MATCH(BK14,_xlfn._xlws.FILTER($AA$4:$AA$547,$P$4:$P$547=$AT14),0),0) -> Kota Pontianak | BO14: =INDEX(_xlfn._xlws.FILTER($C$4:$C$547,$P$4:$P$547=$AT14),MATCH(BL14,_xlfn._xlws.FILTER($AA$4:$AA$547,$P$4:$P$547=$AT14),0),0) -> Kota Singkawang | BP14: =INDEX(_xlfn._xlws.FILTER($C$4:$C$547,$P$4:$P$547=$AT14),MATCH(BM14,_xlfn._xlws.FILTER($AA$4:$AA$547,$P$4:$P$547=$AT14),0),0) -> Kab. Kayong Utara
A15: Aceh | B15: Aceh | C15: Kota Banda Aceh | D15: 257635 | E15: 2022 | G15: Aceh | H15: Aceh | I15: BANDA ACEH | J15: 85.71 | K15: 86.28 | L15: 88.32 | M15: 1 | N15: 1 | O15: =IFERROR(INDEX('SISPSN 2023'!H$3:H$442,MATCH($C15,'SISPSN 2023'!$J$3:$J$442,0)),"") -> 2023 | P15: =IFERROR(INDEX('SISPSN 2023'!I$3:I$442,MATCH($C15,'SISPSN 2023'!$J$3:$J$442,0)),"") -> Aceh | Q15: =IFERROR(INDEX('SISPSN 2023'!J$3:J$442,MATCH($C15,'SISPSN 2023'!$J$3:$J$442,0)),"") -> Kota Banda Aceh | R15: =IFERROR(INDEX('SISPSN 2023'!K$3:K$442,MATCH($C15,'SISPSN 2023'!$J$3:$J$442,0)),"") -> 93370.54 | S15: =IFERROR(INDEX('SISPSN 2023'!L$3:L$442,MATCH($C15,'SISPSN 2023'!$J$3:$J$442,0)),"") -> 15137.63 | T15: =IFERROR(INDEX('SISPSN 2023'!M$3:M$442,MATCH($C15,'SISPSN 2023'!$J$3:$J$442,0)),"") -> 16.21 | U15: =IFERROR(INDEX('SISPSN 2023'!N$3:N$442,MATCH($C15,'SISPSN 2023'!$J$3:$J$442,0)),"") -> 76817.72 | V15: =IFERROR(INDEX('SISPSN 2023'!O$3:O$442,MATCH($C15,'SISPSN 2023'!$J$3:$J$442,0)),"") -> 82.27 | W15: =IFERROR(INDEX('SISPSN 2023'!P$3:P$442,MATCH($C15,'SISPSN 2023'!$J$3:$J$442,0)),"") -> 91955.35 | X15: =IFERROR(INDEX('SISPSN 2023'!Q$3:Q$442,MATCH($C15,'SISPSN 2023'!$J$3:$J$442,0)),"") -> 98.48 | Y15: =IFERROR(INDEX('SISPSN 2023'!R$3:R$442,MATCH($C15,'SISPSN 2023'!$J$3:$J$442,0)),"") -> 15020.06 | Z15: =IFERROR(INDEX('SISPSN 2023'!S$3:S$442,MATCH($C15,'SISPSN 2023'!$J$3:$J$442,0)),"") -> 0 | AA15: =IFERROR(INDEX('SISPSN 2023'!T$3:T$442,MATCH($C15,'SISPSN 2023'!$J$3:$J$442,0)),"") -> 16.09 | AB15: =IFERROR(INDEX('SISPSN 2023'!U$3:U$442,MATCH($C15,'SISPSN 2023'!$J$3:$J$442,0)),"") -> P 2 | AD15: 0.9929151654 | AE15: 0.1609756396 | AF15: 0.8168902007 | AG15: 0.9778658403 | AH15: 0.159725384 | AI15: 0 | AJ15: =IFERROR(PERCENTRANK(_xlfn._xlws.FILTER($AD$4:$AD$547,$AD$4:$AD$547<>""),AD15),"") ->  | AK15: 0.696 | AL15: 0.947 | AM15: 0.732 | AT15: =Tabs!A14 -> Kalimantan Selatan | AU15: 0.4731552218 | AV15: 0.0753411213 | AW15: 0.1592313005 | AX15: 0.2917867279 | AY15: 0.6166828865 | AZ15: 0.3671278492 | BA15: 0.775914187 | BB15: 0.0601723839 | BC15: 0.004803739672 | BD15: 0.1373251749 | BE15: =LARGE(_xlfn._xlws.FILTER($T$4:$T$547,$P$4:$P$547=$AT15),BE$3) -> 27.81 | BF15: =LARGE(_xlfn._xlws.FILTER($T$4:$T$547,$P$4:$P$547=$AT15),BF$3) -> 25.44 | BG15: =LARGE(_xlfn._xlws.FILTER($T$4:$T$547,$P$4:$P$547=$AT15),BG$3) -> 22.87 | BH15: =INDEX(_xlfn._xlws.FILTER($C$4:$C$547,$P$4:$P$547=$AT15),MATCH(BE15,_xlfn._xlws.FILTER($T$4:$T$547,$P$4:$P$547=$AT15),0),0) -> Kab. Barito Kuala | BI15: =INDEX(_xlfn._xlws.FILTER($C$4:$C$547,$P$4:$P$547=$AT15),MATCH(BF15,_xlfn._xlws.FILTER($T$4:$T$547,$P$4:$P$547=$AT15),0),0) -> Kota Banjarmasin | BJ15: =INDEX(_xlfn._xlws.FILTER($C$4:$C$547,$P$4:$P$547=$AT15),MATCH(BG15,_xlfn._xlws.FILTER($T$4:$T$547,$P$4:$P$547=$AT15),0),0) -> Kab. Hulu Sungai Tengah | BK15: =LARGE(_xlfn._xlws.FILTER($AA$4:$AA$547,$P$4:$P$547=$AT15),BK$3) -> 27.45 | BL15: =LARGE(_xlfn._xlws.FILTER($AA$4:$AA$547,$P$4:$P$547=$AT15),BL$3) -> 23 | BM15: =LARGE(_xlfn._xlws.FILTER($AA$4:$AA$547,$P$4:$P$547=$AT15),BM$3) -> 22.11 | BN15: =INDEX(_xlfn._xlws.FILTER($C$4:$C$547,$P$4:$P$547=$AT15),MATCH(BK15,_xlfn._xlws.FILTER($AA$4:$AA$547,$P$4:$P$547=$AT15),0),0) -> Kab. Barito Kuala | BO15: =INDEX(_xlfn._xlws.FILTER($C$4:$C$547,$P$4:$P$547=$AT15),MATCH(BL15,_xlfn._xlws.FILTER($AA$4:$AA$547,$P$4:$P$547=$AT15),0),0) -> Kota Banjarmasin | BP15: =INDEX(_xlfn._xlws.FILTER($C$4:$C$547,$P$4:$P$547=$AT15),MATCH(BM15,_xlfn._xlws.FILTER($AA$4:$AA$547,$P$4:$P$547=$AT15),0),0) -> Kab. Hulu Sungai Tengah
A16: Aceh | B16: Aceh | C16: Kab. Bener Meriah | D16: 168690 | E16: 2022 | G16: Aceh | H16: Aceh | I16: BENER MERIAH | J16: 73.27 | K16: 73.9 | L16: 76.06 | M16: 0.797 | N16: 1 | O16: =IFERROR(INDEX('SISPSN 2023'!H$3:H$442,MATCH($C16,'SISPSN 2023'!$J$3:$J$442,0)),"") -> 2023 | P16: =IFERROR(INDEX('SISPSN 2023'!I$3:I$442,MATCH($C16,'SISPSN 2023'!$J$3:$J$442,0)),"") -> Aceh | Q16: =IFERROR(INDEX('SISPSN 2023'!J$3:J$442,MATCH($C16,'SISPSN 2023'!$J$3:$J$442,0)),"") -> Kab. Bener Meriah | R16: =IFERROR(INDEX('SISPSN 2023'!K$3:K$442,MATCH($C16,'SISPSN 2023'!$J$3:$J$442,0)),"") -> 24685.68 | S16: =IFERROR(INDEX('SISPSN 2023'!L$3:L$442,MATCH($C16,'SISPSN 2023'!$J$3:$J$442,0)),"") -> 1137.12 | T16: =IFERROR(INDEX('SISPSN 2023'!M$3:M$442,MATCH($C16,'SISPSN 2023'!$J$3:$J$442,0)),"") -> 4.61 | U16: =IFERROR(INDEX('SISPSN 2023'!N$3:N$442,MATCH($C16,'SISPSN 2023'!$J$3:$J$442,0)),"") -> 9468.1 | V16: =IFERROR(INDEX('SISPSN 2023'!O$3:O$442,MATCH($C16,'SISPSN 2023'!$J$3:$J$442,0)),"") -> 38.35 | W16: =IFERROR(INDEX('SISPSN 2023'!P$3:P$442,MATCH($C16,'SISPSN 2023'!$J$3:$J$442,0)),"") -> 10605.22 | X16: =IFERROR(INDEX('SISPSN 2023'!Q$3:Q$442,MATCH($C16,'SISPSN 2023'!$J$3:$J$442,0)),"") -> 42.96 | Y16: =IFERROR(INDEX('SISPSN 2023'!R$3:R$442,MATCH($C16,'SISPSN 2023'!$J$3:$J$442,0)),"") -> 1111.79 | Z16: =IFERROR(INDEX('SISPSN 2023'!S$3:S$442,MATCH($C16,'SISPSN 2023'!$J$3:$J$442,0)),"") -> 0 | AA16: =IFERROR(INDEX('SISPSN 2023'!T$3:T$442,MATCH($C16,'SISPSN 2023'!$J$3:$J$442,0)),"") -> 4.5 | AB16: =IFERROR(INDEX('SISPSN 2023'!U$3:U$442,MATCH($C16,'SISPSN 2023'!$J$3:$J$442,0)),"") -> P 2 | AD16: 0.4009247733 | AE16: 0.01846817986 | AF16: 0.1537731934 | AG16: 0.1722413733 | AH16: 0.01805679056 | AI16: 0 | AJ16: =IFERROR(PERCENTRANK(_xlfn._xlws.FILTER($AD$4:$AD$547,$AD$4:$AD$547<>""),AD16),"") ->  | AK16: 0.389 | AL16: 0.486 | AM16: 0.444 | AT16: =Tabs!A15 -> Kalimantan Tengah | AU16: 0.501011356 | AV16: 0.02780318671 | AW16: 0.0554941248 | AX16: 0.1618860843 | AY16: 0.3231185928 | AZ16: 0.189689271 | BA16: 0.3786127176 | BB16: 0.02432243972 | BC16: 0.0007163927281 | BD16: 0.04997657667 | BE16: =LARGE(_xlfn._xlws.FILTER($T$4:$T$547,$P$4:$P$547=$AT16),BE$3) -> 27.17 | BF16: =LARGE(_xlfn._xlws.FILTER($T$4:$T$547,$P$4:$P$547=$AT16),BF$3) -> 20.79 | BG16: =LARGE(_xlfn._xlws.FILTER($T$4:$T$547,$P$4:$P$547=$AT16),BG$3) -> 5.92 | BH16: =INDEX(_xlfn._xlws.FILTER($C$4:$C$547,$P$4:$P$547=$AT16),MATCH(BE16,_xlfn._xlws.FILTER($T$4:$T$547,$P$4:$P$547=$AT16),0),0) -> Kota Palangkaraya | BI16: =INDEX(_xlfn._xlws.FILTER($C$4:$C$547,$P$4:$P$547=$AT16),MATCH(BF16,_xlfn._xlws.FILTER($T$4:$T$547,$P$4:$P$547=$AT16),0),0) -> Kab. Sukamara | BJ16: =INDEX(_xlfn._xlws.FILTER($C$4:$C$547,$P$4:$P$547=$AT16),MATCH(BG16,_xlfn._xlws.FILTER($T$4:$T$547,$P$4:$P$547=$AT16),0),0) -> Kab. Barito Utara | BK16: =LARGE(_xlfn._xlws.FILTER($AA$4:$AA$547,$P$4:$P$547=$AT16),BK$3) -> 24 | BL16: =LARGE(_xlfn._xlws.FILTER($AA$4:$AA$547,$P$4:$P$547=$AT16),BL$3) -> 19.24 | BM16: =LARGE(_xlfn._xlws.FILTER($AA$4:$AA$547,$P$4:$P$547=$AT16),BM$3) -> 6.11 | BN16: =INDEX(_xlfn._xlws.FILTER($C$4:$C$547,$P$4:$P$547=$AT16),MATCH(BK16,_xlfn._xlws.FILTER($AA$4:$AA$547,$P$4:$P$547=$AT16),0),0) -> Kota Palangkaraya | BO16: =INDEX(_xlfn._xlws.FILTER($C$4:$C$547,$P$4:$P$547=$AT16),MATCH(BL16,_xlfn._xlws.FILTER($AA$4:$AA$547,$P$4:$P$547=$AT16),0),0) -> Kab. Sukamara | BP16: =INDEX(_xlfn._xlws.FILTER($C$4:$C$547,$P$4:$P$547=$AT16),MATCH(BM16,_xlfn._xlws.FILTER($AA$4:$AA$547,$P$4:$P$547=$AT16),0),0) -> Kab. Barito Utara
A17: Aceh | B17: Aceh | C17: Kab. Bireuen | D17: 443874 | E17: 2022 | G17: Aceh | H17: Aceh | I17: BIREUEN | J17: 72.33 | K17: 73.16 | L17: 74.56 | M17: 0.705 | N17: 1 | O17: =IFERROR(INDEX('SISPSN 2023'!H$3:H$442,MATCH($C17,'SISPSN 2023'!$J$3:$J$442,0)),"") -> 2023 | P17: =IFERROR(INDEX('SISPSN 2023'!I$3:I$442,MATCH($C17,'SISPSN 2023'!$J$3:$J$442,0)),"") -> Aceh | Q17: =IFERROR(INDEX('SISPSN 2023'!J$3:J$442,MATCH($C17,'SISPSN 2023'!$J$3:$J$442,0)),"") -> Kab. Bireuen | R17: =IFERROR(INDEX('SISPSN 2023'!K$3:K$442,MATCH($C17,'SISPSN 2023'!$J$3:$J$442,0)),"") -> 57800.09 | S17: =IFERROR(INDEX('SISPSN 2023'!L$3:L$442,MATCH($C17,'SISPSN 2023'!$J$3:$J$442,0)),"") -> 10113.35 | T17: =IFERROR(INDEX('SISPSN 2023'!M$3:M$442,MATCH($C17,'SISPSN 2023'!$J$3:$J$442,0)),"") -> 17.5 | U17: =IFERROR(INDEX('SISPSN 2023'!N$3:N$442,MATCH($C17,'SISPSN 2023'!$J$3:$J$442,0)),"") -> 22630 | V17: =IFERROR(INDEX('SISPSN 2023'!O$3:O$442,MATCH($C17,'SISPSN 2023'!$J$3:$J$442,0)),"") -> 39.15 | W17: =IFERROR(INDEX('SISPSN 2023'!P$3:P$442,MATCH($C17,'SISPSN 2023'!$J$3:$J$442,0)),"") -> 32743.35 | X17: =IFERROR(INDEX('SISPSN 2023'!Q$3:Q$442,MATCH($C17,'SISPSN 2023'!$J$3:$J$442,0)),"") -> 56.65 | Y17: =IFERROR(INDEX('SISPSN 2023'!R$3:R$442,MATCH($C17,'SISPSN 2023'!$J$3:$J$442,0)),"") -> 10113.35 | Z17: =IFERROR(INDEX('SISPSN 2023'!S$3:S$442,MATCH($C17,'SISPSN 2023'!$J$3:$J$442,0)),"") -> 0 | AA17: =IFERROR(INDEX('SISPSN 2023'!T$3:T$442,MATCH($C17,'SISPSN 2023'!$J$3:$J$442,0)),"") -> 17.5 | AB17: =IFERROR(INDEX('SISPSN 2023'!U$3:U$442,MATCH($C17,'SISPSN 2023'!$J$3:$J$442,0)),"") -> P 2 | AD17: 0.3567598259 | AE17: 0.06242268801 | AF17: 0.1396792784 | AG17: 0.2021019664 | AH17: 0.06242268801 | AI17: 0 | AJ17: =IFERROR(PERCENTRANK(_xlfn._xlws.FILTER($AD$4:$AD$547,$AD$4:$AD$547<>""),AD17),"") ->  | AK17: 0.737 | AL17: 0.5 | AM17: 0.779 | AT17: =Tabs!A16 -> Kalimantan Timur | AU17: 0.5671341282 | AV17: 0.1024633176 | AW17: 0.1806685801 | AX17: 0.3836005702 | AY17: 0.6763842116 | AZ17: 0.4860638878 | BA17: 0.8570527916 | BB17: 0.08376696177 | BC17: 0.003334012821 | BD17: 0.1535809084 | BE17: =LARGE(_xlfn._xlws.FILTER($T$4:$T$547,$P$4:$P$547=$AT17),BE$3) -> 30.11 | BF17: =LARGE(_xlfn._xlws.FILTER($T$4:$T$547,$P$4:$P$547=$AT17),BF$3) -> 27.01 | BG17: =LARGE(_xlfn._xlws.FILTER($T$4:$T$547,$P$4:$P$547=$AT17),BG$3) -> 20.22 | BH17: =INDEX(_xlfn._xlws.FILTER($C$4:$C$547,$P$4:$P$547=$AT17),MATCH(BE17,_xlfn._xlws.FILTER($T$4:$T$547,$P$4:$P$547=$AT17),0),0) -> Kota Bontang | BI17: =INDEX(_xlfn._xlws.FILTER($C$4:$C$547,$P$4:$P$547=$AT17),MATCH(BF17,_xlfn._xlws.FILTER($T$4:$T$547,$P$4:$P$547=$AT17),0),0) -> Kota Balikpapan | BJ17: =INDEX(_xlfn._xlws.FILTER($C$4:$C$547,$P$4:$P$547=$AT17),MATCH(BG17,_xlfn._xlws.FILTER($T$4:$T$547,$P$4:$P$547=$AT17),0),0) -> Kab. Penajam Paser Utara | BK17: =LARGE(_xlfn._xlws.FILTER($AA$4:$AA$547,$P$4:$P$547=$AT17),BK$3) -> 29.42 | BL17: =LARGE(_xlfn._xlws.FILTER($AA$4:$AA$547,$P$4:$P$547=$AT17),BL$3) -> 20.27 | BM17: =LARGE(_xlfn._xlws.FILTER($AA$4:$AA$547,$P$4:$P$547=$AT17),BM$3) -> 18.57 | BN17: =INDEX(_xlfn._xlws.FILTER($C$4:$C$547,$P$4:$P$547=$AT17),MATCH(BK17,_xlfn._xlws.FILTER($AA$4:$AA$547,$P$4:$P$547=$AT17),0),0) -> Kota Bontang | BO17: =INDEX(_xlfn._xlws.FILTER($C$4:$C$547,$P$4:$P$547=$AT17),MATCH(BL17,_xlfn._xlws.FILTER($AA$4:$AA$547,$P$4:$P$547=$AT17),0),0) -> Kota Balikpapan | BP17: =INDEX(_xlfn._xlws.FILTER($C$4:$C$547,$P$4:$P$547=$AT17),MATCH(BM17,_xlfn._xlws.FILTER($AA$4:$AA$547,$P$4:$P$547=$AT17),0),0) -> Kota Samarinda
A18: Aceh | B18: Aceh | C18: Kab. Gayo Lues | D18: 103131 | E18: 2022 | G18: Aceh | H18: Aceh | I18: GAYO LUES | J18: 67.56 | K18: 68.25 | L18: 70.82 | M18: 0.35 | N18: 1 | O18: =IFERROR(INDEX('SISPSN 2023'!H$3:H$442,MATCH($C18,'SISPSN 2023'!$J$3:$J$442,0)),"") -> 2023 | P18: =IFERROR(INDEX('SISPSN 2023'!I$3:I$442,MATCH($C18,'SISPSN 2023'!$J$3:$J$442,0)),"") -> Aceh | Q18: =IFERROR(INDEX('SISPSN 2023'!J$3:J$442,MATCH($C18,'SISPSN 2023'!$J$3:$J$442,0)),"") -> Kab. Gayo Lues | R18: =IFERROR(INDEX('SISPSN 2023'!K$3:K$442,MATCH($C18,'SISPSN 2023'!$J$3:$J$442,0)),"") -> 15068.51 | S18: =IFERROR(INDEX('SISPSN 2023'!L$3:L$442,MATCH($C18,'SISPSN 2023'!$J$3:$J$442,0)),"") -> 1463.64 | T18: =IFERROR(INDEX('SISPSN 2023'!M$3:M$442,MATCH($C18,'SISPSN 2023'!$J$3:$J$442,0)),"") -> 9.71 | U18: =IFERROR(INDEX('SISPSN 2023'!N$3:N$442,MATCH($C18,'SISPSN 2023'!$J$3:$J$442,0)),"") -> 7716.1 | V18: =IFERROR(INDEX('SISPSN 2023'!O$3:O$442,MATCH($C18,'SISPSN 2023'!$J$3:$J$442,0)),"") -> 51.21 | W18: =IFERROR(INDEX('SISPSN 2023'!P$3:P$442,MATCH($C18,'SISPSN 2023'!$J$3:$J$442,0)),"") -> 9179.74 | X18: =IFERROR(INDEX('SISPSN 2023'!Q$3:Q$442,MATCH($C18,'SISPSN 2023'!$J$3:$J$442,0)),"") -> 60.92 | Y18: =IFERROR(INDEX('SISPSN 2023'!R$3:R$442,MATCH($C18,'SISPSN 2023'!$J$3:$J$442,0)),"") -> 1460 | Z18: =IFERROR(INDEX('SISPSN 2023'!S$3:S$442,MATCH($C18,'SISPSN 2023'!$J$3:$J$442,0)),"") -> 0 | AA18: =IFERROR(INDEX('SISPSN 2023'!T$3:T$442,MATCH($C18,'SISPSN 2023'!$J$3:$J$442,0)),"") -> 9.69 | AB18: =IFERROR(INDEX('SISPSN 2023'!U$3:U$442,MATCH($C18,'SISPSN 2023'!$J$3:$J$442,0)),"") -> P 2 | AD18: 0.4003024216 | AE18: 0.03888232057 | AF18: 0.2049820132 | AG18: 0.2438643337 | AH18: 0.03878562217 | AI18: 0 | AJ18: =IFERROR(PERCENTRANK(_xlfn._xlws.FILTER($AD$4:$AD$547,$AD$4:$AD$547<>""),AD18),"") ->  | AK18: 0.511 | AL18: 0.593 | AM18: 0.571 | AT18: =Tabs!A17 -> Kalimantan Utara | AU18: 0.4444120292 | AV18: 0.03087442913 | AW18: 0.06947253248 | AX18: 0.2680875738 | AY18: 0.6032410381 | AZ18: 0.298962003 | BA18: 0.6727135706 | BB18: 0.03001070841 | BC18: 7.765268538e-05 | BD18: 0.06770375039 | BE18: =LARGE(_xlfn._xlws.FILTER($T$4:$T$547,$P$4:$P$547=$AT18),BE$3) -> 26.98 | BF18: =LARGE(_xlfn._xlws.FILTER($T$4:$T$547,$P$4:$P$547=$AT18),BF$3) -> 0.75 | BG18: =LARGE(_xlfn._xlws.FILTER($T$4:$T$547,$P$4:$P$547=$AT18),BG$3) -> 0.2 | BH18: =INDEX(_xlfn._xlws.FILTER($C$4:$C$547,$P$4:$P$547=$AT18),MATCH(BE18,_xlfn._xlws.FILTER($T$4:$T$547,$P$4:$P$547=$AT18),0),0) -> Kab. Nunukan | BI18: =INDEX(_xlfn._xlws.FILTER($C$4:$C$547,$P$4:$P$547=$AT18),MATCH(BF18,_xlfn._xlws.FILTER($T$4:$T$547,$P$4:$P$547=$AT18),0),0) -> Kab. Tana Tidung | BJ18: =INDEX(_xlfn._xlws.FILTER($C$4:$C$547,$P$4:$P$547=$AT18),MATCH(BG18,_xlfn._xlws.FILTER($T$4:$T$547,$P$4:$P$547=$AT18),0),0) -> Kab. Bulungan | BK18: =LARGE(_xlfn._xlws.FILTER($AA$4:$AA$547,$P$4:$P$547=$AT18),BK$3) -> 26.7 | BL18: =LARGE(_xlfn._xlws.FILTER($AA$4:$AA$547,$P$4:$P$547=$AT18),BL$3) -> 0.75 | BM18: =LARGE(_xlfn._xlws.FILTER($AA$4:$AA$547,$P$4:$P$547=$AT18),BM$3) -> 0.04 | BN18: =INDEX(_xlfn._xlws.FILTER($C$4:$C$547,$P$4:$P$547=$AT18),MATCH(BK18,_xlfn._xlws.FILTER($AA$4:$AA$547,$P$4:$P$547=$AT18),0),0) -> Kab. Nunukan | BO18: =INDEX(_xlfn._xlws.FILTER($C$4:$C$547,$P$4:$P$547=$AT18),MATCH(BL18,_xlfn._xlws.FILTER($AA$4:$AA$547,$P$4:$P$547=$AT18),0),0) -> Kab. Tana Tidung | BP18: =INDEX(_xlfn._xlws.FILTER($C$4:$C$547,$P$4:$P$547=$AT18),MATCH(BM18,_xlfn._xlws.FILTER($AA$4:$AA$547,$P$4:$P$547=$AT18),0),0) -> Kab. Bulungan
A19: Aceh | B19: Aceh | C19: Kota Langsa | D19: 192630 | E19: 2022 | G19: Aceh | H19: Aceh | I19: LANGSA | J19: 77.44 | K19: 77.82 | L19: 80.5 | M19: 0.911 | N19: 1 | O19: =IFERROR(INDEX('SISPSN 2023'!H$3:H$442,MATCH($C19,'SISPSN 2023'!$J$3:$J$442,0)),"") -> 2023 | P19: =IFERROR(INDEX('SISPSN 2023'!I$3:I$442,MATCH($C19,'SISPSN 2023'!$J$3:$J$442,0)),"") -> Aceh | Q19: =IFERROR(INDEX('SISPSN 2023'!J$3:J$442,MATCH($C19,'SISPSN 2023'!$J$3:$J$442,0)),"") -> Kota Langsa | R19: =IFERROR(INDEX('SISPSN 2023'!K$3:K$442,MATCH($C19,'SISPSN 2023'!$J$3:$J$442,0)),"") -> 35154.98 | S19: =IFERROR(INDEX('SISPSN 2023'!L$3:L$442,MATCH($C19,'SISPSN 2023'!$J$3:$J$442,0)),"") -> 4774.27 | T19: =IFERROR(INDEX('SISPSN 2023'!M$3:M$442,MATCH($C19,'SISPSN 2023'!$J$3:$J$442,0)),"") -> 13.58 | U19: =IFERROR(INDEX('SISPSN 2023'!N$3:N$442,MATCH($C19,'SISPSN 2023'!$J$3:$J$442,0)),"") -> 25416.78 | V19: =IFERROR(INDEX('SISPSN 2023'!O$3:O$442,MATCH($C19,'SISPSN 2023'!$J$3:$J$442,0)),"") -> 72.3 | W19: =IFERROR(INDEX('SISPSN 2023'!P$3:P$442,MATCH($C19,'SISPSN 2023'!$J$3:$J$442,0)),"") -> 30191.04 | X19: =IFERROR(INDEX('SISPSN 2023'!Q$3:Q$442,MATCH($C19,'SISPSN 2023'!$J$3:$J$442,0)),"") -> 85.88 | Y19: =IFERROR(INDEX('SISPSN 2023'!R$3:R$442,MATCH($C19,'SISPSN 2023'!$J$3:$J$442,0)),"") -> 543.2 | Z19: =IFERROR(INDEX('SISPSN 2023'!S$3:S$442,MATCH($C19,'SISPSN 2023'!$J$3:$J$442,0)),"") -> 734.38 | AA19: =IFERROR(INDEX('SISPSN 2023'!T$3:T$442,MATCH($C19,'SISPSN 2023'!$J$3:$J$442,0)),"") -> 3.63 | AB19: =IFERROR(INDEX('SISPSN 2023'!U$3:U$442,MATCH($C19,'SISPSN 2023'!$J$3:$J$442,0)),"") -> P 2 | AD19: 0.5000000711 | AE19: 0.06790319151 | AF19: 0.3614962036 | AG19: 0.4293992529 | AH19: 0.0077257913 | AI19: 0.01044489436 | AJ19: =IFERROR(PERCENTRANK(_xlfn._xlws.FILTER($AD$4:$AD$547,$AD$4:$AD$547<>""),AD19),"") ->  | AK19: 0.607 | AL19: 0.814 | AM19: 0.408 | AT19: =Tabs!A18 -> Kepulauan Bangka Belitung | AU19: 0.4067714559 | AV19: 0.04596852721 | AW19: 0.1130082422 | AX19: 0.1893897471 | AY19: 0.4655925198 | AZ19: 0.2353582743 | BA19: 0.578600762 | BB19: 0.04121029012 | BC19: 0.00220377119 | BD19: 0.1067283869 | BE19: =LARGE(_xlfn._xlws.FILTER($T$4:$T$547,$P$4:$P$547=$AT19),BE$3) -> 19.26 | BF19: =LARGE(_xlfn._xlws.FILTER($T$4:$T$547,$P$4:$P$547=$AT19),BF$3) -> 18.65 | BG19: =LARGE(_xlfn._xlws.FILTER($T$4:$T$547,$P$4:$P$547=$AT19),BG$3) -> 14.86 | BH19: =INDEX(_xlfn._xlws.FILTER($C$4:$C$547,$P$4:$P$547=$AT19),MATCH(BE19,_xlfn._xlws.FILTER($T$4:$T$547,$P$4:$P$547=$AT19),0),0) -> Kab. Bangka Tengah | BI19: =INDEX(_xlfn._xlws.FILTER($C$4:$C$547,$P$4:$P$547=$AT19),MATCH(BF19,_xlfn._xlws.FILTER($T$4:$T$547,$P$4:$P$547=$AT19),0),0) -> Kab. Bangka Selatan | BJ19: =INDEX(_xlfn._xlws.FILTER($C$4:$C$547,$P$4:$P$547=$AT19),MATCH(BG19,_xlfn._xlws.FILTER($T$4:$T$547,$P$4:$P$547=$AT19),0),0) -> Kab. Belitung | BK19: =LARGE(_xlfn._xlws.FILTER($AA$4:$AA$547,$P$4:$P$547=$AT19),BK$3) -> 19.36 | BL19: =LARGE(_xlfn._xlws.FILTER($AA$4:$AA$547,$P$4:$P$547=$AT19),BL$3) -> 18.2 | BM19: =LARGE(_xlfn._xlws.FILTER($AA$4:$AA$547,$P$4:$P$547=$AT19),BM$3) -> 14.94 | BN19: =INDEX(_xlfn._xlws.FILTER($C$4:$C$547,$P$4:$P$547=$AT19),MATCH(BK19,_xlfn._xlws.FILTER($AA$4:$AA$547,$P$4:$P$547=$AT19),0),0) -> Kab. Bangka Selatan | BO19: =INDEX(_xlfn._xlws.FILTER($C$4:$C$547,$P$4:$P$547=$AT19),MATCH(BL19,_xlfn._xlws.FILTER($AA$4:$AA$547,$P$4:$P$547=$AT19),0),0) -> Kab. Bangka Tengah | BP19: =INDEX(_xlfn._xlws.FILTER($C$4:$C$547,$P$4:$P$547=$AT19),MATCH(BM19,_xlfn._xlws.FILTER($AA$4:$AA$547,$P$4:$P$547=$AT19),0),0) -> Kab. Belitung
A20: Aceh | B20: Aceh | C20: Kota Lhokseumawe | D20: 191396 | E20: 2022 | G20: Aceh | H20: Aceh | I20: LHOKSEUMAWE | J20: 77.57 | K20: 78.04 | L20: 80.26 | M20: 0.903 | N20: 1 | O20: =IFERROR(INDEX('SISPSN 2023'!H$3:H$442,MATCH($C20,'SISPSN 2023'!$J$3:$J$442,0)),"") -> 2023 | P20: =IFERROR(INDEX('SISPSN 2023'!I$3:I$442,MATCH($C20,'SISPSN 2023'!$J$3:$J$442,0)),"") -> Aceh | Q20: =IFERROR(INDEX('SISPSN 2023'!J$3:J$442,MATCH($C20,'SISPSN 2023'!$J$3:$J$442,0)),"") -> Kota Lhokseumawe | R20: =IFERROR(INDEX('SISPSN 2023'!K$3:K$442,MATCH($C20,'SISPSN 2023'!$J$3:$J$442,0)),"") -> 35793.28 | S20: =IFERROR(INDEX('SISPSN 2023'!L$3:L$442,MATCH($C20,'SISPSN 2023'!$J$3:$J$442,0)),"") -> 3312.83 | T20: =IFERROR(INDEX('SISPSN 2023'!M$3:M$442,MATCH($C20,'SISPSN 2023'!$J$3:$J$442,0)),"") -> 9.26 | U20: =IFERROR(INDEX('SISPSN 2023'!N$3:N$442,MATCH($C20,'SISPSN 2023'!$J$3:$J$442,0)),"") -> 27823.95 | V20: =IFERROR(INDEX('SISPSN 2023'!O$3:O$442,MATCH($C20,'SISPSN 2023'!$J$3:$J$442,0)),"") -> 77.74 | W20: =IFERROR(INDEX('SISPSN 2023'!P$3:P$442,MATCH($C20,'SISPSN 2023'!$J$3:$J$442,0)),"") -> 31136.78 | X20: =IFERROR(INDEX('SISPSN 2023'!Q$3:Q$442,MATCH($C20,'SISPSN 2023'!$J$3:$J$442,0)),"") -> 86.99 | Y20: =IFERROR(INDEX('SISPSN 2023'!R$3:R$442,MATCH($C20,'SISPSN 2023'!$J$3:$J$442,0)),"") -> 3312.83 | Z20: =IFERROR(INDEX('SISPSN 2023'!S$3:S$442,MATCH($C20,'SISPSN 2023'!$J$3:$J$442,0)),"") -> 0 | AA20: =IFERROR(INDEX('SISPSN 2023'!T$3:T$442,MATCH($C20,'SISPSN 2023'!$J$3:$J$442,0)),"") -> 9.26 | AB20: =IFERROR(INDEX('SISPSN 2023'!U$3:U$442,MATCH($C20,'SISPSN 2023'!$J$3:$J$442,0)),"") -> P 2 | AD20: 0.5123606597 | AE20: 0.04742129708 | AF20: 0.3982841857 | AG20: 0.4457054827 | AH20: 0.04742129708 | AI20: 0 | AJ20: =IFERROR(PERCENTRANK(_xlfn._xlws.FILTER($AD$4:$AD$547,$AD$4:$AD$547<>""),AD20),"") ->  | AK20: 0.497 | AL20: 0.911 | AM20: 0.552 | AT20: =Tabs!A19 -> Kepulauan Riau | AU20: 0.8129798142 | AV20: 0.1368892648 | AW20: 0.1683796602 | AX20: 0.5775549767 | AY20: 0.7104173641 | AZ20: 0.7144442415 | BA20: 0.8787970243 | BB20: 0.06762714529 | BC20: 0.004267698103 | BD20: 0.08843373739 | BE20: =LARGE(_xlfn._xlws.FILTER($T$4:$T$547,$P$4:$P$547=$AT20),BE$3) -> 23.51 | BF20: =LARGE(_xlfn._xlws.FILTER($T$4:$T$547,$P$4:$P$547=$AT20),BF$3) -> 16.8 | BG20: =LARGE(_xlfn._xlws.FILTER($T$4:$T$547,$P$4:$P$547=$AT20),BG$3) -> 16.53 | BH20: =INDEX(_xlfn._xlws.FILTER($C$4:$C$547,$P$4:$P$547=$AT20),MATCH(BE20,_xlfn._xlws.FILTER($T$4:$T$547,$P$4:$P$547=$AT20),0),0) -> Kota Tanjung Pinang | BI20: =INDEX(_xlfn._xlws.FILTER($C$4:$C$547,$P$4:$P$547=$AT20),MATCH(BF20,_xlfn._xlws.FILTER($T$4:$T$547,$P$4:$P$547=$AT20),0),0) -> Kab. Karimun | BJ20: =INDEX(_xlfn._xlws.FILTER($C$4:$C$547,$P$4:$P$547=$AT20),MATCH(BG20,_xlfn._xlws.FILTER($T$4:$T$547,$P$4:$P$547=$AT20),0),0) -> Kota Batam | BK20: =LARGE(_xlfn._xlws.FILTER($AA$4:$AA$547,$P$4:$P$547=$AT20),BK$3) -> 28.94 | BL20: =LARGE(_xlfn._xlws.FILTER($AA$4:$AA$547,$P$4:$P$547=$AT20),BL$3) -> 15.33 | BM20: =LARGE(_xlfn._xlws.FILTER($AA$4:$AA$547,$P$4:$P$547=$AT20),BM$3) -> 14.07 | BN20: =INDEX(_xlfn._xlws.FILTER($C$4:$C$547,$P$4:$P$547=$AT20),MATCH(BK20,_xlfn._xlws.FILTER($AA$4:$AA$547,$P$4:$P$547=$AT20),0),0) -> Kota Tanjung Pinang | BO20: =INDEX(_xlfn._xlws.FILTER($C$4:$C$547,$P$4:$P$547=$AT20),MATCH(BL20,_xlfn._xlws.FILTER($AA$4:$AA$547,$P$4:$P$547=$AT20),0),0) -> Kab. Karimun | BP20: =INDEX(_xlfn._xlws.FILTER($C$4:$C$547,$P$4:$P$547=$AT20),MATCH(BM20,_xlfn._xlws.FILTER($AA$4:$AA$547,$P$4:$P$547=$AT20),0),0) -> Kab. Natuna
A21: Aceh | B21: Aceh | C21: Kab. Nagan Raya | D21: 173393 | E21: 2022 | G21: Aceh | H21: Aceh | I21: NAGAN RAYA | J21: 69.31 | K21: 70.1 | L21: 72.15 | M21: 0.463 | N21: 1 | O21: =IFERROR(INDEX('SISPSN 2023'!H$3:H$442,MATCH($C21,'SISPSN 2023'!$J$3:$J$442,0)),"") -> 2023 | P21: =IFERROR(INDEX('SISPSN 2023'!I$3:I$442,MATCH($C21,'SISPSN 2023'!$J$3:$J$442,0)),"") -> Aceh | Q21: =IFERROR(INDEX('SISPSN 2023'!J$3:J$442,MATCH($C21,'SISPSN 2023'!$J$3:$J$442,0)),"") -> Kab. Nagan Raya | R21: =IFERROR(INDEX('SISPSN 2023'!K$3:K$442,MATCH($C21,'SISPSN 2023'!$J$3:$J$442,0)),"") -> 25451.6 | S21: =IFERROR(INDEX('SISPSN 2023'!L$3:L$442,MATCH($C21,'SISPSN 2023'!$J$3:$J$442,0)),"") -> 3680.73 | T21: =IFERROR(INDEX('SISPSN 2023'!M$3:M$442,MATCH($C21,'SISPSN 2023'!$J$3:$J$442,0)),"") -> 14.46 | U21: =IFERROR(INDEX('SISPSN 2023'!N$3:N$442,MATCH($C21,'SISPSN 2023'!$J$3:$J$442,0)),"") -> 13077.95 | V21: =IFERROR(INDEX('SISPSN 2023'!O$3:O$442,MATCH($C21,'SISPSN 2023'!$J$3:$J$442,0)),"") -> 51.38 | W21: =IFERROR(INDEX('SISPSN 2023'!P$3:P$442,MATCH($C21,'SISPSN 2023'!$J$3:$J$442,0)),"") -> 16758.68 | X21: =IFERROR(INDEX('SISPSN 2023'!Q$3:Q$442,MATCH($C21,'SISPSN 2023'!$J$3:$J$442,0)),"") -> 65.85 | Y21: =IFERROR(INDEX('SISPSN 2023'!R$3:R$442,MATCH($C21,'SISPSN 2023'!$J$3:$J$442,0)),"") -> 3620.53 | Z21: =IFERROR(INDEX('SISPSN 2023'!S$3:S$442,MATCH($C21,'SISPSN 2023'!$J$3:$J$442,0)),"") -> 0 | AA21: =IFERROR(INDEX('SISPSN 2023'!T$3:T$442,MATCH($C21,'SISPSN 2023'!$J$3:$J$442,0)),"") -> 14.23 | AB21: =IFERROR(INDEX('SISPSN 2023'!U$3:U$442,MATCH($C21,'SISPSN 2023'!$J$3:$J$442,0)),"") -> P 2 | AD21: 0.4021523992 | AE21: 0.05815800973 | AF21: 0.2066404065 | AG21: 0.2647984162 | AH21: 0.05720680924 | AI21: 0 | AJ21: =IFERROR(PERCENTRANK(_xlfn._xlws.FILTER($AD$4:$AD$547,$AD$4:$AD$547<>""),AD21),"") ->  | AK21: 0.632 | AL21: 0.596 | AM21: 0.676 | AT21: =Tabs!A20 -> Bengkulu | AU21: 0.6405714679 | AV21: 0.03480060529 | AW21: 0.05432743578 | AX21: 0.2889465794 | AY21: 0.4510762558 | AZ21: 0.3237471846 | BA21: 0.5054036916 | BB21: 0.02222760324 | BC21: 0.004421434333 | BD21: 0.04160197403 | BE21: =LARGE(_xlfn._xlws.FILTER($T$4:$T$547,$P$4:$P$547=$AT21),BE$3) -> 11.23 | BF21: =LARGE(_xlfn._xlws.FILTER($T$4:$T$547,$P$4:$P$547=$AT21),BF$3) -> 10.18 | BG21: =LARGE(_xlfn._xlws.FILTER($T$4:$T$547,$P$4:$P$547=$AT21),BG$3) -> 1.34 | BH21: =INDEX(_xlfn._xlws.FILTER($C$4:$C$547,$P$4:$P$547=$AT21),MATCH(BE21,_xlfn._xlws.FILTER($T$4:$T$547,$P$4:$P$547=$AT21),0),0) -> Kab. Bengkulu Utara | BI21: =INDEX(_xlfn._xlws.FILTER($C$4:$C$547,$P$4:$P$547=$AT21),MATCH(BF21,_xlfn._xlws.FILTER($T$4:$T$547,$P$4:$P$547=$AT21),0),0) -> Kota Bengkulu | BJ21: =INDEX(_xlfn._xlws.FILTER($C$4:$C$547,$P$4:$P$547=$AT21),MATCH(BG21,_xlfn._xlws.FILTER($T$4:$T$547,$P$4:$P$547=$AT21),0),0) -> Kab. Bengkulu Tengah | BK21: =LARGE(_xlfn._xlws.FILTER($AA$4:$AA$547,$P$4:$P$547=$AT21),BK$3) -> 14.67 | BL21: =LARGE(_xlfn._xlws.FILTER($AA$4:$AA$547,$P$4:$P$547=$AT21),BL$3) -> 3.69 | BM21: =LARGE(_xlfn._xlws.FILTER($AA$4:$AA$547,$P$4:$P$547=$AT21),BM$3) -> 1.31 | BN21: =INDEX(_xlfn._xlws.FILTER($C$4:$C$547,$P$4:$P$547=$AT21),MATCH(BK21,_xlfn._xlws.FILTER($AA$4:$AA$547,$P$4:$P$547=$AT21),0),0) -> Kab. Bengkulu Utara | BO21: =INDEX(_xlfn._xlws.FILTER($C$4:$C$547,$P$4:$P$547=$AT21),MATCH(BL21,_xlfn._xlws.FILTER($AA$4:$AA$547,$P$4:$P$547=$AT21),0),0) -> Kota Bengkulu | BP21: =INDEX(_xlfn._xlws.FILTER($C$4:$C$547,$P$4:$P$547=$AT21),MATCH(BM21,_xlfn._xlws.FILTER($AA$4:$AA$547,$P$4:$P$547=$AT21),0),0) -> Kab. Bengkulu Tengah
A22: Aceh | B22: Aceh | C22: Kab. Pidie | D22: 444505 | E22: 2022 | G22: Aceh | H22: Aceh | I22: PIDIE | J22: 70.7 | K22: 71.2 | L22: 72.95 | M22: 0.536 | N22: 1 | O22: =IFERROR(INDEX('SISPSN 2023'!H$3:H$442,MATCH($C22,'SISPSN 2023'!$J$3:$J$442,0)),"") -> 2023 | P22: =IFERROR(INDEX('SISPSN 2023'!I$3:I$442,MATCH($C22,'SISPSN 2023'!$J$3:$J$442,0)),"") -> Aceh | Q22: =IFERROR(INDEX('SISPSN 2023'!J$3:J$442,MATCH($C22,'SISPSN 2023'!$J$3:$J$442,0)),"") -> Kab. Pidie | R22: =IFERROR(INDEX('SISPSN 2023'!K$3:K$442,MATCH($C22,'SISPSN 2023'!$J$3:$J$442,0)),"") -> 64634.93 | S22: =IFERROR(INDEX('SISPSN 2023'!L$3:L$442,MATCH($C22,'SISPSN 2023'!$J$3:$J$442,0)),"") -> 9740.99 | T22: =IFERROR(INDEX('SISPSN 2023'!M$3:M$442,MATCH($C22,'SISPSN 2023'!$J$3:$J$442,0)),"") -> 15.07 | U22: =IFERROR(INDEX('SISPSN 2023'!N$3:N$442,MATCH($C22,'SISPSN 2023'!$J$3:$J$442,0)),"") -> 15410.3 | V22: =IFERROR(INDEX('SISPSN 2023'!O$3:O$442,MATCH($C22,'SISPSN 2023'!$J$3:$J$442,0)),"") -> 23.84 | W22: =IFERROR(INDEX('SISPSN 2023'!P$3:P$442,MATCH($C22,'SISPSN 2023'!$J$3:$J$442,0)),"") -> 25151.29 | X22: =IFERROR(INDEX('SISPSN 2023'!Q$3:Q$442,MATCH($C22,'SISPSN 2023'!$J$3:$J$442,0)),"") -> 38.91 | Y22: =IFERROR(INDEX('SISPSN 2023'!R$3:R$442,MATCH($C22,'SISPSN 2023'!$J$3:$J$442,0)),"") -> 9724.07 | Z22: =IFERROR(INDEX('SISPSN 2023'!S$3:S$442,MATCH($C22,'SISPSN 2023'!$J$3:$J$442,0)),"") -> 0 | AA22: =IFERROR(INDEX('SISPSN 2023'!T$3:T$442,MATCH($C22,'SISPSN 2023'!$J$3:$J$442,0)),"") -> 15.04 | AB22: =IFERROR(INDEX('SISPSN 2023'!U$3:U$442,MATCH($C22,'SISPSN 2023'!$J$3:$J$442,0)),"") -> P 2 | AD22: 0.3983802207 | AE22: 0.06003901831 | AF22: 0.09498205869 | AG22: 0.155021077 | AH22: 0.05993473115 | AI22: 0 | AJ22: =IFERROR(PERCENTRANK(_xlfn._xlws.FILTER($AD$4:$AD$547,$AD$4:$AD$547<>""),AD22),"") ->  | AK22: 0.662 | AL22: 0.267 | AM22: 0.718 | AT22: =Tabs!A21 -> Lampung | AU22: 0.4949122918 | AV22: 0.02768052644 | AW22: 0.05593016561 | AX22: 0.166476224 | AY22: 0.3363752059 | AZ22: 0.1941567505 | BA22: 0.3923053715 | BB22: 0.01293627138 | BC22: 0.01121255021 | BD22: 0.04879414391 | BE22: =LARGE(_xlfn._xlws.FILTER($T$4:$T$547,$P$4:$P$547=$AT22),BE$3) -> 19.17 | BF22: =LARGE(_xlfn._xlws.FILTER($T$4:$T$547,$P$4:$P$547=$AT22),BF$3) -> 17.64 | BG22: =LARGE(_xlfn._xlws.FILTER($T$4:$T$547,$P$4:$P$547=$AT22),BG$3) -> 11.67 | BH22: =INDEX(_xlfn._xlws.FILTER($C$4:$C$547,$P$4:$P$547=$AT22),MATCH(BE22,_xlfn._xlws.FILTER($T$4:$T$547,$P$4:$P$547=$AT22),0),0) -> Kab. Tulang Bawang Barat | BI22: =INDEX(_xlfn._xlws.FILTER($C$4:$C$547,$P$4:$P$547=$AT22),MATCH(BF22,_xlfn._xlws.FILTER($T$4:$T$547,$P$4:$P$547=$AT22),0),0) -> Kota Metro | BJ22: =INDEX(_xlfn._xlws.FILTER($C$4:$C$547,$P$4:$P$547=$AT22),MATCH(BG22,_xlfn._xlws.FILTER($T$4:$T$547,$P$4:$P$547=$AT22),0),0) -> Kab. Pringsewu | BK22: =LARGE(_xlfn._xlws.FILTER($AA$4:$AA$547,$P$4:$P$547=$AT22),BK$3) -> 18.37 | BL22: =LARGE(_xlfn._xlws.FILTER($AA$4:$AA$547,$P$4:$P$547=$AT22),BL$3) -> 12.3 | BM22: =LARGE(_xlfn._xlws.FILTER($AA$4:$AA$547,$P$4:$P$547=$AT22),BM$3) -> 10.79 | BN22: =INDEX(_xlfn._xlws.FILTER($C$4:$C$547,$P$4:$P$547=$AT22),MATCH(BK22,_xlfn._xlws.FILTER($AA$4:$AA$547,$P$4:$P$547=$AT22),0),0) -> Kota Metro | BO22: =INDEX(_xlfn._xlws.FILTER($C$4:$C$547,$P$4:$P$547=$AT22),MATCH(BL22,_xlfn._xlws.FILTER($AA$4:$AA$547,$P$4:$P$547=$AT22),0),0) -> Kab. Pringsewu | BP22: =INDEX(_xlfn._xlws.FILTER($C$4:$C$547,$P$4:$P$547=$AT22),MATCH(BM22,_xlfn._xlws.FILTER($AA$4:$AA$547,$P$4:$P$547=$AT22),0),0) -> Kab. Lampung Tengah
A23: Aceh | B23: Aceh | C23: Kab. Pidie Jaya | D23: 162771 | E23: 2022 | G23: Aceh | H23: Aceh | I23: PIDIE JAYA | J23: 73.6 | K23: 74.34 | L23: 76.04 | M23: 0.795 | N23: 1 | O23: =IFERROR(INDEX('SISPSN 2023'!H$3:H$442,MATCH($C23,'SISPSN 2023'!$J$3:$J$442,0)),"") -> 2023 | P23: =IFERROR(INDEX('SISPSN 2023'!I$3:I$442,MATCH($C23,'SISPSN 2023'!$J$3:$J$442,0)),"") -> Aceh | Q23: =IFERROR(INDEX('SISPSN 2023'!J$3:J$442,MATCH($C23,'SISPSN 2023'!$J$3:$J$442,0)),"") -> Kab. Pidie Jaya | R23: =IFERROR(INDEX('SISPSN 2023'!K$3:K$442,MATCH($C23,'SISPSN 2023'!$J$3:$J$442,0)),"") -> 29581.54 | S23: =IFERROR(INDEX('SISPSN 2023'!L$3:L$442,MATCH($C23,'SISPSN 2023'!$J$3:$J$442,0)),"") -> 0 | T23: =IFERROR(INDEX('SISPSN 2023'!M$3:M$442,MATCH($C23,'SISPSN 2023'!$J$3:$J$442,0)),"") -> 0 | U23: =IFERROR(INDEX('SISPSN 2023'!N$3:N$442,MATCH($C23,'SISPSN 2023'!$J$3:$J$442,0)),"") -> 5475 | V23: =IFERROR(INDEX('SISPSN 2023'!O$3:O$442,MATCH($C23,'SISPSN 2023'!$J$3:$J$442,0)),"") -> 18.51 | W23: =IFERROR(INDEX('SISPSN 2023'!P$3:P$442,MATCH($C23,'SISPSN 2023'!$J$3:$J$442,0)),"") -> 5475 | X23: =IFERROR(INDEX('SISPSN 2023'!Q$3:Q$442,MATCH($C23,'SISPSN 2023'!$J$3:$J$442,0)),"") -> 18.51 | Y23: =IFERROR(INDEX('SISPSN 2023'!R$3:R$442,MATCH($C23,'SISPSN 2023'!$J$3:$J$442,0)),"") -> 0 | Z23: =IFERROR(INDEX('SISPSN 2023'!S$3:S$442,MATCH($C23,'SISPSN 2023'!$J$3:$J$442,0)),"") -> 0 | AA23: =IFERROR(INDEX('SISPSN 2023'!T$3:T$442,MATCH($C23,'SISPSN 2023'!$J$3:$J$442,0)),"") -> 0 | AB23: =IFERROR(INDEX('SISPSN 2023'!U$3:U$442,MATCH($C23,'SISPSN 2023'!$J$3:$J$442,0)),"") -> P 2 | AD23: 0.4979100397 | AE23: 0 | AF23: 0.09215400778 | AG23: 0.09215400778 | AH23: 0 | AI23: 0 | AJ23: =IFERROR(PERCENTRANK(_xlfn._xlws.FILTER($AD$4:$AD$547,$AD$4:$AD$547<>""),AD23),"") ->  | AK23: 0 | AL23: 0.187 | AM23: 0 | AT23: =Tabs!A22 -> Maluku | AU23: 0.527937516 | AV23: 0.002453357583 | AW23: 0.004647060512 | AX23: 0.2503469456 | AY23: 0.4741980594 | AZ23: 0.2528003031 | BA23: 0.4788451199 | BB23: 0.001550301826 | BC23: 0 | BD23: 0.002936525212 | BE23: =LARGE(_xlfn._xlws.FILTER($T$4:$T$547,$P$4:$P$547=$AT23),BE$3) -> 1.27 | BF23: =LARGE(_xlfn._xlws.FILTER($T$4:$T$547,$P$4:$P$547=$AT23),BF$3) -> 0.71 | BG23: =LARGE(_xlfn._xlws.FILTER($T$4:$T$547,$P$4:$P$547=$AT23),BG$3) -> 0 | BH23: =INDEX(_xlfn._xlws.FILTER($C$4:$C$547,$P$4:$P$547=$AT23),MATCH(BE23,_xlfn._xlws.FILTER($T$4:$T$547,$P$4:$P$547=$AT23),0),0) -> Kota Tual | BI23: =INDEX(_xlfn._xlws.FILTER($C$4:$C$547,$P$4:$P$547=$AT23),MATCH(BF23,_xlfn._xlws.FILTER($T$4:$T$547,$P$4:$P$547=$AT23),0),0) -> Kota Ambon | BJ23: =INDEX(_xlfn._xlws.FILTER($C$4:$C$547,$P$4:$P$547=$AT23),MATCH(BG23,_xlfn._xlws.FILTER($T$4:$T$547,$P$4:$P$547=$AT23),0),0) -> Kab. Buru | BK23: =LARGE(_xlfn._xlws.FILTER($AA$4:$AA$547,$P$4:$P$547=$AT23),BK$3) -> 0.64 | BL23: =LARGE(_xlfn._xlws.FILTER($AA$4:$AA$547,$P$4:$P$547=$AT23),BL$3) -> 0 | BM23: =LARGE(_xlfn._xlws.FILTER($AA$4:$AA$547,$P$4:$P$547=$AT23),BM$3) -> 0 | BN23: =INDEX(_xlfn._xlws.FILTER($C$4:$C$547,$P$4:$P$547=$AT23),MATCH(BK23,_xlfn._xlws.FILTER($AA$4:$AA$547,$P$4:$P$547=$AT23),0),0) -> Kota Ambon | BO23: =INDEX(_xlfn._xlws.FILTER($C$4:$C$547,$P$4:$P$547=$AT23),MATCH(BL23,_xlfn._xlws.FILTER($AA$4:$AA$547,$P$4:$P$547=$AT23),0),0) -> Kab. Buru | BP23: =INDEX(_xlfn._xlws.FILTER($C$4:$C$547,$P$4:$P$547=$AT23),MATCH(BM23,_xlfn._xlws.FILTER($AA$4:$AA$547,$P$4:$P$547=$AT23),0),0) -> Kab. Buru
A24: Aceh | B24: Aceh | C24: Kota Sabang | D24: 43208 | E24: 2022 | G24: Aceh | H24: Aceh | I24: SABANG | J24: 76.11 | K24: 76.85 | L24: 78.7 | M24: 0.872 | N24: 1 | O24: =IFERROR(INDEX('SISPSN 2023'!H$3:H$442,MATCH($C24,'SISPSN 2023'!$J$3:$J$442,0)),"") -> 2023 | P24: =IFERROR(INDEX('SISPSN 2023'!I$3:I$442,MATCH($C24,'SISPSN 2023'!$J$3:$J$442,0)),"") -> Aceh | Q24: =IFERROR(INDEX('SISPSN 2023'!J$3:J$442,MATCH($C24,'SISPSN 2023'!$J$3:$J$442,0)),"") -> Kota Sabang | R24: =IFERROR(INDEX('SISPSN 2023'!K$3:K$442,MATCH($C24,'SISPSN 2023'!$J$3:$J$442,0)),"") -> 6308.37 | S24: =IFERROR(INDEX('SISPSN 2023'!L$3:L$442,MATCH($C24,'SISPSN 2023'!$J$3:$J$442,0)),"") -> 27.74 | T24: =IFERROR(INDEX('SISPSN 2023'!M$3:M$442,MATCH($C24,'SISPSN 2023'!$J$3:$J$442,0)),"") -> 0.44 | U24: =IFERROR(INDEX('SISPSN 2023'!N$3:N$442,MATCH($C24,'SISPSN 2023'!$J$3:$J$442,0)),"") -> 5971.4 | V24: =IFERROR(INDEX('SISPSN 2023'!O$3:O$442,MATCH($C24,'SISPSN 2023'!$J$3:$J$442,0)),"") -> 94.66 | W24: =IFERROR(INDEX('SISPSN 2023'!P$3:P$442,MATCH($C24,'SISPSN 2023'!$J$3:$J$442,0)),"") -> 5999.14 | X24: =IFERROR(INDEX('SISPSN 2023'!Q$3:Q$442,MATCH($C24,'SISPSN 2023'!$J$3:$J$442,0)),"") -> 95.1 | Y24: =IFERROR(INDEX('SISPSN 2023'!R$3:R$442,MATCH($C24,'SISPSN 2023'!$J$3:$J$442,0)),"") -> 0 | Z24: =IFERROR(INDEX('SISPSN 2023'!S$3:S$442,MATCH($C24,'SISPSN 2023'!$J$3:$J$442,0)),"") -> 0 | AA24: =IFERROR(INDEX('SISPSN 2023'!T$3:T$442,MATCH($C24,'SISPSN 2023'!$J$3:$J$442,0)),"") -> 0 | AB24: =IFERROR(INDEX('SISPSN 2023'!U$3:U$442,MATCH($C24,'SISPSN 2023'!$J$3:$J$442,0)),"") -> P 2 | AD24: 0.4000001268 | AE24: 0.001758933531 | AF24: 0.3786335864 | AG24: 0.3803925199 | AH24: 0 | AI24: 0 | AJ24: =IFERROR(PERCENTRANK(_xlfn._xlws.FILTER($AD$4:$AD$547,$AD$4:$AD$547<>""),AD24),"") ->  | AK24: 0.218 | AL24: 0.997 | AM24: 0 | AT24: =Tabs!A23 -> Maluku Utara | AU24: 0.4758182941 | AV24: 0.006137535171 | AW24: 0.01289890542 | AX24: 0.2481029683 | AY24: 0.521423769 | AZ24: 0.2542405034 | BA24: 0.5343226744 | BB24: 0.006137535171 | BC24: 1.419001253e-05 | BD24: 0.01292872775 | BE24: =LARGE(_xlfn._xlws.FILTER($T$4:$T$547,$P$4:$P$547=$AT24),BE$3) -> 9.97 | BF24: =LARGE(_xlfn._xlws.FILTER($T$4:$T$547,$P$4:$P$547=$AT24),BF$3) -> 0.02 | BG24: =LARGE(_xlfn._xlws.FILTER($T$4:$T$547,$P$4:$P$547=$AT24),BG$3) -> 0 | BH24: =INDEX(_xlfn._xlws.FILTER($C$4:$C$547,$P$4:$P$547=$AT24),MATCH(BE24,_xlfn._xlws.FILTER($T$4:$T$547,$P$4:$P$547=$AT24),0),0) -> Kota Tidore Kepulauan | BI24: =INDEX(_xlfn._xlws.FILTER($C$4:$C$547,$P$4:$P$547=$AT24),MATCH(BF24,_xlfn._xlws.FILTER($T$4:$T$547,$P$4:$P$547=$AT24),0),0) -> Kab. Halmahera Timur | BJ24: =INDEX(_xlfn._xlws.FILTER($C$4:$C$547,$P$4:$P$547=$AT24),MATCH(BG24,_xlfn._xlws.FILTER($T$4:$T$547,$P$4:$P$547=$AT24),0),0) -> Kab. Halmahera Selatan | BK24: =LARGE(_xlfn._xlws.FILTER($AA$4:$AA$547,$P$4:$P$547=$AT24),BK$3) -> 9.97 | BL24: =LARGE(_xlfn._xlws.FILTER($AA$4:$AA$547,$P$4:$P$547=$AT24),BL$3) -> 0.02 | BM24: =LARGE(_xlfn._xlws.FILTER($AA$4:$AA$547,$P$4:$P$547=$AT24),BM$3) -> 0.01 | BN24: =INDEX(_xlfn._xlws.FILTER($C$4:$C$547,$P$4:$P$547=$AT24),MATCH(BK24,_xlfn._xlws.FILTER($AA$4:$AA$547,$P$4:$P$547=$AT24),0),0) -> Kota Tidore Kepulauan | BO24: =INDEX(_xlfn._xlws.FILTER($C$4:$C$547,$P$4:$P$547=$AT24),MATCH(BL24,_xlfn._xlws.FILTER($AA$4:$AA$547,$P$4:$P$547=$AT24),0),0) -> Kab. Halmahera Timur | BP24: =INDEX(_xlfn._xlws.FILTER($C$4:$C$547,$P$4:$P$547=$AT24),MATCH(BM24,_xlfn._xlws.FILTER($AA$4:$AA$547,$P$4:$P$547=$AT24),0),0) -> Kab. Halmahera Selatan
A25: Aceh | B25: Aceh | C25: Kab. Simeulue | D25: 94876 | E25: 2022 | G25: Aceh | H25: Aceh | I25: SIMEULUE | J25: 66.41 | K25: 67.27 | L25: 69.98 | M25: 0.284 | N25: 1 | O25: =IFERROR(INDEX('SISPSN 2023'!H$3:H$442,MATCH($C25,'SISPSN 2023'!$J$3:$J$442,0)),"") -> 2023 | P25: =IFERROR(INDEX('SISPSN 2023'!I$3:I$442,MATCH($C25,'SISPSN 2023'!$J$3:$J$442,0)),"") -> Aceh | Q25: =IFERROR(INDEX('SISPSN 2023'!J$3:J$442,MATCH($C25,'SISPSN 2023'!$J$3:$J$442,0)),"") -> Kab. Simeulue | R25: =IFERROR(INDEX('SISPSN 2023'!K$3:K$442,MATCH($C25,'SISPSN 2023'!$J$3:$J$442,0)),"") -> 16476.21 | S25: =IFERROR(INDEX('SISPSN 2023'!L$3:L$442,MATCH($C25,'SISPSN 2023'!$J$3:$J$442,0)),"") -> 665.5 | T25: =IFERROR(INDEX('SISPSN 2023'!M$3:M$442,MATCH($C25,'SISPSN 2023'!$J$3:$J$442,0)),"") -> 4.04 | U25: =IFERROR(INDEX('SISPSN 2023'!N$3:N$442,MATCH($C25,'SISPSN 2023'!$J$3:$J$442,0)),"") -> 6142.95 | V25: =IFERROR(INDEX('SISPSN 2023'!O$3:O$442,MATCH($C25,'SISPSN 2023'!$J$3:$J$442,0)),"") -> 37.28 | W25: =IFERROR(INDEX('SISPSN 2023'!P$3:P$442,MATCH($C25,'SISPSN 2023'!$J$3:$J$442,0)),"") -> 6808.45 | X25: =IFERROR(INDEX('SISPSN 2023'!Q$3:Q$442,MATCH($C25,'SISPSN 2023'!$J$3:$J$442,0)),"") -> 41.32 | Y25: =IFERROR(INDEX('SISPSN 2023'!R$3:R$442,MATCH($C25,'SISPSN 2023'!$J$3:$J$442,0)),"") -> 665.5 | Z25: =IFERROR(INDEX('SISPSN 2023'!S$3:S$442,MATCH($C25,'SISPSN 2023'!$J$3:$J$442,0)),"") -> 0 | AA25: =IFERROR(INDEX('SISPSN 2023'!T$3:T$442,MATCH($C25,'SISPSN 2023'!$J$3:$J$442,0)),"") -> 4.04 | AB25: =IFERROR(INDEX('SISPSN 2023'!U$3:U$442,MATCH($C25,'SISPSN 2023'!$J$3:$J$442,0)),"") -> P 2 | AD25: 0.4757820879 | AE25: 0.01921758581 | AF25: 0.1773894346 | AG25: 0.1966070204 | AH25: 0.01921758581 | AI25: 0 | AJ25: =IFERROR(PERCENTRANK(_xlfn._xlws.FILTER($AD$4:$AD$547,$AD$4:$AD$547<>""),AD25),"") ->  | AK25: 0.367 | AL25: 0.466 | AM25: 0.422 | AT25: =Tabs!A24 -> Nusa Tenggara Barat | AU25: 0.5487317554 | AV25: 0.07427121282 | AW25: 0.1353506738 | AX25: 0.3425470447 | AY25: 0.6242522715 | AZ25: 0.4168182576 | BA25: 0.7596029453 | BB25: 0.07290554703 | BC25: 0.0005303693468 | BD25: 0.1338284429 | BE25: =LARGE(_xlfn._xlws.FILTER($T$4:$T$547,$P$4:$P$547=$AT25),BE$3) -> 22.8 | BF25: =LARGE(_xlfn._xlws.FILTER($T$4:$T$547,$P$4:$P$547=$AT25),BF$3) -> 3.89 | BG25: =LARGE(_xlfn._xlws.FILTER($T$4:$T$547,$P$4:$P$547=$AT25),BG$3) ->  | BH25: =INDEX(_xlfn._xlws.FILTER($C$4:$C$547,$P$4:$P$547=$AT25),MATCH(BE25,_xlfn._xlws.FILTER($T$4:$T$547,$P$4:$P$547=$AT25),0),0) -> Kota Mataram | BI25: =INDEX(_xlfn._xlws.FILTER($C$4:$C$547,$P$4:$P$547=$AT25),MATCH(BF25,_xlfn._xlws.FILTER($T$4:$T$547,$P$4:$P$547=$AT25),0),0) -> Kab. Sumbawa | BJ25: =INDEX(_xlfn._xlws.FILTER($C$4:$C$547,$P$4:$P$547=$AT25),MATCH(BG25,_xlfn._xlws.FILTER($T$4:$T$547,$P$4:$P$547=$AT25),0),0) ->  | BK25: =LARGE(_xlfn._xlws.FILTER($AA$4:$AA$547,$P$4:$P$547=$AT25),BK$3) -> 22.5 | BL25: =LARGE(_xlfn._xlws.FILTER($AA$4:$AA$547,$P$4:$P$547=$AT25),BL$3) -> 3.89 | BM25: =LARGE(_xlfn._xlws.FILTER($AA$4:$AA$547,$P$4:$P$547=$AT25),BM$3) ->  | BN25: =INDEX(_xlfn._xlws.FILTER($C$4:$C$547,$P$4:$P$547=$AT25),MATCH(BK25,_xlfn._xlws.FILTER($AA$4:$AA$547,$P$4:$P$547=$AT25),0),0) -> Kota Mataram | BO25: =INDEX(_xlfn._xlws.FILTER($C$4:$C$547,$P$4:$P$547=$AT25),MATCH(BL25,_xlfn._xlws.FILTER($AA$4:$AA$547,$P$4:$P$547=$AT25),0),0) -> Kab. Sumbawa | BP25: =INDEX(_xlfn._xlws.FILTER($C$4:$C$547,$P$4:$P$547=$AT25),MATCH(BM25,_xlfn._xlws.FILTER($AA$4:$AA$547,$P$4:$P$547=$AT25),0),0) -> 
A26: Aceh | B26: Aceh | C26: Kota Subulussalam | D26: 95199 | E26: 2022 | G26: Aceh | H26: Aceh | I26: SUBULUSSALAM | J26: 65.27 | K26: 66.2 | L26: 69.66 | M26: 0.259 | N26: 1 | O26: =IFERROR(INDEX('SISPSN 2023'!H$3:H$442,MATCH($C26,'SISPSN 2023'!$J$3:$J$442,0)),"") -> 2023 | P26: =IFERROR(INDEX('SISPSN 2023'!I$3:I$442,MATCH($C26,'SISPSN 2023'!$J$3:$J$442,0)),"") -> Aceh | Q26: =IFERROR(INDEX('SISPSN 2023'!J$3:J$442,MATCH($C26,'SISPSN 2023'!$J$3:$J$442,0)),"") -> Kota Subulussalam | R26: =IFERROR(INDEX('SISPSN 2023'!K$3:K$442,MATCH($C26,'SISPSN 2023'!$J$3:$J$442,0)),"") -> 20831.06 | S26: =IFERROR(INDEX('SISPSN 2023'!L$3:L$442,MATCH($C26,'SISPSN 2023'!$J$3:$J$442,0)),"") -> 54.75 | T26: =IFERROR(INDEX('SISPSN 2023'!M$3:M$442,MATCH($C26,'SISPSN 2023'!$J$3:$J$442,0)),"") -> 0.26 | U26: =IFERROR(INDEX('SISPSN 2023'!N$3:N$442,MATCH($C26,'SISPSN 2023'!$J$3:$J$442,0)),"") -> 14600 | V26: =IFERROR(INDEX('SISPSN 2023'!O$3:O$442,MATCH($C26,'SISPSN 2023'!$J$3:$J$442,0)),"") -> 70.09 | W26: =IFERROR(INDEX('SISPSN 2023'!P$3:P$442,MATCH($C26,'SISPSN 2023'!$J$3:$J$442,0)),"") -> 14654.75 | X26: =IFERROR(INDEX('SISPSN 2023'!Q$3:Q$442,MATCH($C26,'SISPSN 2023'!$J$3:$J$442,0)),"") -> 70.35 | Y26: =IFERROR(INDEX('SISPSN 2023'!R$3:R$442,MATCH($C26,'SISPSN 2023'!$J$3:$J$442,0)),"") -> 54.75 | Z26: =IFERROR(INDEX('SISPSN 2023'!S$3:S$442,MATCH($C26,'SISPSN 2023'!$J$3:$J$442,0)),"") -> 0 | AA26: =IFERROR(INDEX('SISPSN 2023'!T$3:T$442,MATCH($C26,'SISPSN 2023'!$J$3:$J$442,0)),"") -> 0.26 | AB26: =IFERROR(INDEX('SISPSN 2023'!U$3:U$442,MATCH($C26,'SISPSN 2023'!$J$3:$J$442,0)),"") -> P 2 | AD26: 0.5994957642 | AE26: 0.001575646803 | AF26: 0.4201724808 | AG26: 0.4217481276 | AH26: 0.001575646803 | AI26: 0 | AJ26: =IFERROR(PERCENTRANK(_xlfn._xlws.FILTER($AD$4:$AD$547,$AD$4:$AD$547<>""),AD26),"") ->  | AK26: 0.204 | AL26: 0.756 | AM26: 0.243 | AT26: =Tabs!A25 -> Nusa Tenggara Timur | AU26: 0.507120249 | AV26: 0.00677629597 | AW26: 0.01336230605 | AX26: 0.1140160766 | AY26: 0.2248304555 | AZ26: 0.1207923725 | BA26: 0.2381927615 | BB26: 0.00531504852 | BC26: 9.415683152e-07 | BD26: 0.01048270129 | BE26: =LARGE(_xlfn._xlws.FILTER($T$4:$T$547,$P$4:$P$547=$AT26),BE$3) -> 7.5 | BF26: =LARGE(_xlfn._xlws.FILTER($T$4:$T$547,$P$4:$P$547=$AT26),BF$3) -> 2.2 | BG26: =LARGE(_xlfn._xlws.FILTER($T$4:$T$547,$P$4:$P$547=$AT26),BG$3) -> 0.18 | BH26: =INDEX(_xlfn._xlws.FILTER($C$4:$C$547,$P$4:$P$547=$AT26),MATCH(BE26,_xlfn._xlws.FILTER($T$4:$T$547,$P$4:$P$547=$AT26),0),0) -> Kota Kupang | BI26: =INDEX(_xlfn._xlws.FILTER($C$4:$C$547,$P$4:$P$547=$AT26),MATCH(BF26,_xlfn._xlws.FILTER($T$4:$T$547,$P$4:$P$547=$AT26),0),0) -> Kab. Nagekeo | BJ26: =INDEX(_xlfn._xlws.FILTER($C$4:$C$547,$P$4:$P$547=$AT26),MATCH(BG26,_xlfn._xlws.FILTER($T$4:$T$547,$P$4:$P$547=$AT26),0),0) -> Kab. Sumba Tengah | BK26: =LARGE(_xlfn._xlws.FILTER($AA$4:$AA$547,$P$4:$P$547=$AT26),BK$3) -> 5.88 | BL26: =LARGE(_xlfn._xlws.FILTER($AA$4:$AA$547,$P$4:$P$547=$AT26),BL$3) -> 2.2 | BM26: =LARGE(_xlfn._xlws.FILTER($AA$4:$AA$547,$P$4:$P$547=$AT26),BM$3) -> 0.18 | BN26: =INDEX(_xlfn._xlws.FILTER($C$4:$C$547,$P$4:$P$547=$AT26),MATCH(BK26,_xlfn._xlws.FILTER($AA$4:$AA$547,$P$4:$P$547=$AT26),0),0) -> Kota Kupang | BO26: =INDEX(_xlfn._xlws.FILTER($C$4:$C$547,$P$4:$P$547=$AT26),MATCH(BL26,_xlfn._xlws.FILTER($AA$4:$AA$547,$P$4:$P$547=$AT26),0),0) -> Kab. Nagekeo | BP26: =INDEX(_xlfn._xlws.FILTER($C$4:$C$547,$P$4:$P$547=$AT26),MATCH(BM26,_xlfn._xlws.FILTER($AA$4:$AA$547,$P$4:$P$547=$AT26),0),0) -> Kab. Sumba Tengah
A27: Aceh | B27: total | C27: total | D27: 5407855 | E27: 2022 | G27: ACEH | H27: total | I27: ACEH | J27: 72.18 | K27: 72.8 | L27: 74.7 | M27: 0.725 | N27: 0 | O27: =IFERROR(INDEX('SISPSN 2023'!H$3:H$442,MATCH($C27,'SISPSN 2023'!$J$3:$J$442,0)),"") ->  | P27: =IFERROR(INDEX('SISPSN 2023'!I$3:I$442,MATCH($C27,'SISPSN 2023'!$J$3:$J$442,0)),"") ->  | Q27: =IFERROR(INDEX('SISPSN 2023'!J$3:J$442,MATCH($C27,'SISPSN 2023'!$J$3:$J$442,0)),"") ->  | R27: =IFERROR(INDEX('SISPSN 2023'!K$3:K$442,MATCH($C27,'SISPSN 2023'!$J$3:$J$442,0)),"") ->  | S27: =IFERROR(INDEX('SISPSN 2023'!L$3:L$442,MATCH($C27,'SISPSN 2023'!$J$3:$J$442,0)),"") ->  | T27: =IFERROR(INDEX('SISPSN 2023'!M$3:M$442,MATCH($C27,'SISPSN 2023'!$J$3:$J$442,0)),"") ->  | U27: =IFERROR(INDEX('SISPSN 2023'!N$3:N$442,MATCH($C27,'SISPSN 2023'!$J$3:$J$442,0)),"") ->  | V27: =IFERROR(INDEX('SISPSN 2023'!O$3:O$442,MATCH($C27,'SISPSN 2023'!$J$3:$J$442,0)),"") ->  | W27: =IFERROR(INDEX('SISPSN 2023'!P$3:P$442,MATCH($C27,'SISPSN 2023'!$J$3:$J$442,0)),"") ->  | X27: =IFERROR(INDEX('SISPSN 2023'!Q$3:Q$442,MATCH($C27,'SISPSN 2023'!$J$3:$J$442,0)),"") ->  | Y27: =IFERROR(INDEX('SISPSN 2023'!R$3:R$442,MATCH($C27,'SISPSN 2023'!$J$3:$J$442,0)),"") ->  | Z27: =IFERROR(INDEX('SISPSN 2023'!S$3:S$442,MATCH($C27,'SISPSN 2023'!$J$3:$J$442,0)),"") ->  | AA27: =IFERROR(INDEX('SISPSN 2023'!T$3:T$442,MATCH($C27,'SISPSN 2023'!$J$3:$J$442,0)),"") ->  | AB27: =IFERROR(INDEX('SISPSN 2023'!U$3:U$442,MATCH($C27,'SISPSN 2023'!$J$3:$J$442,0)),"") ->  | AJ27: =IFERROR(PERCENTRANK(_xlfn._xlws.FILTER($AD$4:$AD$547,$AD$4:$AD$547<>""),AD27),"") ->  | AT27: =Tabs!A26 -> Papua | AU27: 0.6733173063 | AV27: 0.03830950336 | AW27: 0.05689665631 | AX27: 0.5054435329 | AY27: 0.7506765803 | AZ27: 0.5437530363 | BA27: 0.8075732366 | BB27: 0.02948282761 | BC27: 5.324269297e-05 | BD27: 0.04386649508 | BE27: =LARGE(_xlfn._xlws.FILTER($T$4:$T$547,$P$4:$P$547=$AT27),BE$3) -> 18.59 | BF27: =LARGE(_xlfn._xlws.FILTER($T$4:$T$547,$P$4:$P$547=$AT27),BF$3) -> 5.07 | BG27: =LARGE(_xlfn._xlws.FILTER($T$4:$T$547,$P$4:$P$547=$AT27),BG$3) -> 5.07 | BH27: =INDEX(_xlfn._xlws.FILTER($C$4:$C$547,$P$4:$P$547=$AT27),MATCH(BE27,_xlfn._xlws.FILTER($T$4:$T$547,$P$4:$P$547=$AT27),0),0) -> Kab. Biak Numfor | BI27: =INDEX(_xlfn._xlws.FILTER($C$4:$C$547,$P$4:$P$547=$AT27),MATCH(BF27,_xlfn._xlws.FILTER($T$4:$T$547,$P$4:$P$547=$AT27),0),0) -> Kota Jayapura | BJ27: =INDEX(_xlfn._xlws.FILTER($C$4:$C$547,$P$4:$P$547=$AT27),MATCH(BG27,_xlfn._xlws.FILTER($T$4:$T$547,$P$4:$P$547=$AT27),0),0) -> Kota Jayapura | BK27: =LARGE(_xlfn._xlws.FILTER($AA$4:$AA$547,$P$4:$P$547=$AT27),BK$3) -> 16.85 | BL27: =LARGE(_xlfn._xlws.FILTER($AA$4:$AA$547,$P$4:$P$547=$AT27),BL$3) -> 3.58 | BM27: =LARGE(_xlfn._xlws.FILTER($AA$4:$AA$547,$P$4:$P$547=$AT27),BM$3) -> 3.58 | BN27: =INDEX(_xlfn._xlws.FILTER($C$4:$C$547,$P$4:$P$547=$AT27),MATCH(BK27,_xlfn._xlws.FILTER($AA$4:$AA$547,$P$4:$P$547=$AT27),0),0) -> Kab. Biak Numfor | BO27: =INDEX(_xlfn._xlws.FILTER($C$4:$C$547,$P$4:$P$547=$AT27),MATCH(BL27,_xlfn._xlws.FILTER($AA$4:$AA$547,$P$4:$P$547=$AT27),0),0) -> Kota Jayapura | BP27: =INDEX(_xlfn._xlws.FILTER($C$4:$C$547,$P$4:$P$547=$AT27),MATCH(BM27,_xlfn._xlws.FILTER($AA$4:$AA$547,$P$4:$P$547=$AT27),0),0) -> Kota Jayapura
A28: Bali | B28: Bali | C28: Kab. Badung | D28: 563300 | E28: 2023 | G28: Bali | H28: Bali | I28: Kab. Badung | J28: 81.84 | K28: 82.13 | L28: 83 | M28: 0.964 | N28: 1 | O28: =IFERROR(INDEX('SISPSN 2023'!H$3:H$442,MATCH($C28,'SISPSN 2023'!$J$3:$J$442,0)),"") -> 2023 | P28: =IFERROR(INDEX('SISPSN 2023'!I$3:I$442,MATCH($C28,'SISPSN 2023'!$J$3:$J$442,0)),"") -> Bali | Q28: =IFERROR(INDEX('SISPSN 2023'!J$3:J$442,MATCH($C28,'SISPSN 2023'!$J$3:$J$442,0)),"") -> Kab. Badung | R28: =IFERROR(INDEX('SISPSN 2023'!K$3:K$442,MATCH($C28,'SISPSN 2023'!$J$3:$J$442,0)),"") -> 195222.49 | S28: =IFERROR(INDEX('SISPSN 2023'!L$3:L$442,MATCH($C28,'SISPSN 2023'!$J$3:$J$442,0)),"") -> 45066.53 | T28: =IFERROR(INDEX('SISPSN 2023'!M$3:M$442,MATCH($C28,'SISPSN 2023'!$J$3:$J$442,0)),"") -> 23.08 | U28: =IFERROR(INDEX('SISPSN 2023'!N$3:N$442,MATCH($C28,'SISPSN 2023'!$J$3:$J$442,0)),"") -> 78955.34 | V28: =IFERROR(INDEX('SISPSN 2023'!O$3:O$442,MATCH($C28,'SISPSN 2023'!$J$3:$J$442,0)),"") -> 40.44 | W28: =IFERROR(INDEX('SISPSN 2023'!P$3:P$442,MATCH($C28,'SISPSN 2023'!$J$3:$J$442,0)),"") -> 124021.87 | X28: =IFERROR(INDEX('SISPSN 2023'!Q$3:Q$442,MATCH($C28,'SISPSN 2023'!$J$3:$J$442,0)),"") -> 63.53 | Y28: =IFERROR(INDEX('SISPSN 2023'!R$3:R$442,MATCH($C28,'SISPSN 2023'!$J$3:$J$442,0)),"") -> 44935.5 | Z28: =IFERROR(INDEX('SISPSN 2023'!S$3:S$442,MATCH($C28,'SISPSN 2023'!$J$3:$J$442,0)),"") -> 2743.34 | AA28: =IFERROR(INDEX('SISPSN 2023'!T$3:T$442,MATCH($C28,'SISPSN 2023'!$J$3:$J$442,0)),"") -> 24.42 | AB28: =IFERROR(INDEX('SISPSN 2023'!U$3:U$442,MATCH($C28,'SISPSN 2023'!$J$3:$J$442,0)),"") -> P 2 | AD28: 0.9495049476 | AE28: 0.2191903874 | AF28: 0.3840156222 | AG28: 0.6032060096 | AH28: 0.2185530959 | AI28: 0.01334280135 | AJ28: =IFERROR(PERCENTRANK(_xlfn._xlws.FILTER($AD$4:$AD$547,$AD$4:$AD$547<>""),AD28),"") ->  | AK28: 0.864 | AL28: 0.511 | AM28: 0.919 | AT28: =Tabs!A27 -> Papua Barat Daya | AU28: 0.481505486 | AV28: 0.0130054747 | AW28: 0.02701002394 | AX28: 0.08976307172 | AY28: 0.186421701 | AZ28: 0.1027685464 | BA28: 0.2134317249 | BB28: 0.008156083991 | BC28: 0 | BD28: 0.01693871457 | BE28: =LARGE(_xlfn._xlws.FILTER($T$4:$T$547,$P$4:$P$547=$AT28),BE$3) -> 11.89 | BF28: =LARGE(_xlfn._xlws.FILTER($T$4:$T$547,$P$4:$P$547=$AT28),BF$3) -> 0.33 | BG28: =LARGE(_xlfn._xlws.FILTER($T$4:$T$547,$P$4:$P$547=$AT28),BG$3) -> 0 | BH28: =INDEX(_xlfn._xlws.FILTER($C$4:$C$547,$P$4:$P$547=$AT28),MATCH(BE28,_xlfn._xlws.FILTER($T$4:$T$547,$P$4:$P$547=$AT28),0),0) -> Kab. Sorong | BI28: =INDEX(_xlfn._xlws.FILTER($C$4:$C$547,$P$4:$P$547=$AT28),MATCH(BF28,_xlfn._xlws.FILTER($T$4:$T$547,$P$4:$P$547=$AT28),0),0) -> Kab. Raja Ampat | BJ28: =INDEX(_xlfn._xlws.FILTER($C$4:$C$547,$P$4:$P$547=$AT28),MATCH(BG28,_xlfn._xlws.FILTER($T$4:$T$547,$P$4:$P$547=$AT28),0),0) -> Kota Sorong | BK28: =LARGE(_xlfn._xlws.FILTER($AA$4:$AA$547,$P$4:$P$547=$AT28),BK$3) -> 7.42 | BL28: =LARGE(_xlfn._xlws.FILTER($AA$4:$AA$547,$P$4:$P$547=$AT28),BL$3) -> 0.26 | BM28: =LARGE(_xlfn._xlws.FILTER($AA$4:$AA$547,$P$4:$P$547=$AT28),BM$3) -> 0 | BN28: =INDEX(_xlfn._xlws.FILTER($C$4:$C$547,$P$4:$P$547=$AT28),MATCH(BK28,_xlfn._xlws.FILTER($AA$4:$AA$547,$P$4:$P$547=$AT28),0),0) -> Kab. Sorong | BO28: =INDEX(_xlfn._xlws.FILTER($C$4:$C$547,$P$4:$P$547=$AT28),MATCH(BL28,_xlfn._xlws.FILTER($AA$4:$AA$547,$P$4:$P$547=$AT28),0),0) -> Kab. Raja Ampat | BP28: =INDEX(_xlfn._xlws.FILTER($C$4:$C$547,$P$4:$P$547=$AT28),MATCH(BM28,_xlfn._xlws.FILTER($AA$4:$AA$547,$P$4:$P$547=$AT28),0),0) -> Kota Sorong
A29: Bali | B29: Bali | C29: Kab. Bangli | D29: 261400 | E29: 2023 | G29: Bali | H29: Bali | I29: Kab. Bangli | J29: 70.6 | K29: 71.47 | L29: 71.99 | M29: 0.449 | N29: 1 | O29: =IFERROR(INDEX('SISPSN 2023'!H$3:H$442,MATCH($C29,'SISPSN 2023'!$J$3:$J$442,0)),"") -> 2023 | P29: =IFERROR(INDEX('SISPSN 2023'!I$3:I$442,MATCH($C29,'SISPSN 2023'!$J$3:$J$442,0)),"") -> Bali | Q29: =IFERROR(INDEX('SISPSN 2023'!J$3:J$442,MATCH($C29,'SISPSN 2023'!$J$3:$J$442,0)),"") -> Kab. Bangli | R29: =IFERROR(INDEX('SISPSN 2023'!K$3:K$442,MATCH($C29,'SISPSN 2023'!$J$3:$J$442,0)),"") -> 41195.36 | S29: =IFERROR(INDEX('SISPSN 2023'!L$3:L$442,MATCH($C29,'SISPSN 2023'!$J$3:$J$442,0)),"") -> 8133.21 | T29: =IFERROR(INDEX('SISPSN 2023'!M$3:M$442,MATCH($C29,'SISPSN 2023'!$J$3:$J$442,0)),"") -> 19.74 | U29: =IFERROR(INDEX('SISPSN 2023'!N$3:N$442,MATCH($C29,'SISPSN 2023'!$J$3:$J$442,0)),"") -> 30944.7 | V29: =IFERROR(INDEX('SISPSN 2023'!O$3:O$442,MATCH($C29,'SISPSN 2023'!$J$3:$J$442,0)),"") -> 75.12 | W29: =IFERROR(INDEX('SISPSN 2023'!P$3:P$442,MATCH($C29,'SISPSN 2023'!$J$3:$J$442,0)),"") -> 39077.91 | X29: =IFERROR(INDEX('SISPSN 2023'!Q$3:Q$442,MATCH($C29,'SISPSN 2023'!$J$3:$J$442,0)),"") -> 94.86 | Y29: =IFERROR(INDEX('SISPSN 2023'!R$3:R$442,MATCH($C29,'SISPSN 2023'!$J$3:$J$442,0)),"") -> 6799.23 | Z29: =IFERROR(INDEX('SISPSN 2023'!S$3:S$442,MATCH($C29,'SISPSN 2023'!$J$3:$J$442,0)),"") -> 281.05 | AA29: =IFERROR(INDEX('SISPSN 2023'!T$3:T$442,MATCH($C29,'SISPSN 2023'!$J$3:$J$442,0)),"") -> 17.19 | AB29: =IFERROR(INDEX('SISPSN 2023'!U$3:U$442,MATCH($C29,'SISPSN 2023'!$J$3:$J$442,0)),"") -> P 2 | AD29: 0.4317674063 | AE29: 0.08524394462 | AF29: 0.3243305279 | AG29: 0.4095744725 | AH29: 0.07126253786 | AI29: 0.002945677123 | AJ29: =IFERROR(PERCENTRANK(_xlfn._xlws.FILTER($AD$4:$AD$547,$AD$4:$AD$547<>""),AD29),"") ->  | AK29: 0.803 | AL29: 0.878 | AM29: 0.759 | AT29: =Tabs!A28 -> Riau | AU29: 0.5903436079 | AV29: 0.03563130678 | AW29: 0.06035689437 | AX29: 0.2735418783 | AY29: 0.4633604475 | AZ29: 0.3091731851 | BA29: 0.5237173418 | BB29: 0.03362709432 | BC29: 0.0005391051432 | BD29: 0.05787510698 | BE29: =LARGE(_xlfn._xlws.FILTER($T$4:$T$547,$P$4:$P$547=$AT29),BE$3) -> 13.84 | BF29: =LARGE(_xlfn._xlws.FILTER($T$4:$T$547,$P$4:$P$547=$AT29),BF$3) -> 12.51 | BG29: =LARGE(_xlfn._xlws.FILTER($T$4:$T$547,$P$4:$P$547=$AT29),BG$3) -> 11.37 | BH29: =INDEX(_xlfn._xlws.FILTER($C$4:$C$547,$P$4:$P$547=$AT29),MATCH(BE29,_xlfn._xlws.FILTER($T$4:$T$547,$P$4:$P$547=$AT29),0),0) -> Kab. Kuantan Singingi | BI29: =INDEX(_xlfn._xlws.FILTER($C$4:$C$547,$P$4:$P$547=$AT29),MATCH(BF29,_xlfn._xlws.FILTER($T$4:$T$547,$P$4:$P$547=$AT29),0),0) -> Kab. Siak | BJ29: =INDEX(_xlfn._xlws.FILTER($C$4:$C$547,$P$4:$P$547=$AT29),MATCH(BG29,_xlfn._xlws.FILTER($T$4:$T$547,$P$4:$P$547=$AT29),0),0) -> Kota Dumai | BK29: =LARGE(_xlfn._xlws.FILTER($AA$4:$AA$547,$P$4:$P$547=$AT29),BK$3) -> 13.78 | BL29: =LARGE(_xlfn._xlws.FILTER($AA$4:$AA$547,$P$4:$P$547=$AT29),BL$3) -> 11.69 | BM29: =LARGE(_xlfn._xlws.FILTER($AA$4:$AA$547,$P$4:$P$547=$AT29),BM$3) -> 11.36 | BN29: =INDEX(_xlfn._xlws.FILTER($C$4:$C$547,$P$4:$P$547=$AT29),MATCH(BK29,_xlfn._xlws.FILTER($AA$4:$AA$547,$P$4:$P$547=$AT29),0),0) -> Kab. Kuantan Singingi | BO29: =INDEX(_xlfn._xlws.FILTER($C$4:$C$547,$P$4:$P$547=$AT29),MATCH(BL29,_xlfn._xlws.FILTER($AA$4:$AA$547,$P$4:$P$547=$AT29),0),0) -> Kab. Siak | BP29: =INDEX(_xlfn._xlws.FILTER($C$4:$C$547,$P$4:$P$547=$AT29),MATCH(BM29,_xlfn._xlws.FILTER($AA$4:$AA$547,$P$4:$P$547=$AT29),0),0) -> Kota Dumai
A30: Bali | B30: Bali | C30: Kab. Buleleng | D30: 808900 | E30: 2023 | G30: Bali | H30: Bali | I30: Kab. Buleleng | J30: 73.6 | K30: 74.48 | L30: 74.87 | M30: 0.738 | N30: 1 | O30: =IFERROR(INDEX('SISPSN 2023'!H$3:H$442,MATCH($C30,'SISPSN 2023'!$J$3:$J$442,0)),"") -> 2023 | P30: =IFERROR(INDEX('SISPSN 2023'!I$3:I$442,MATCH($C30,'SISPSN 2023'!$J$3:$J$442,0)),"") -> Bali | Q30: =IFERROR(INDEX('SISPSN 2023'!J$3:J$442,MATCH($C30,'SISPSN 2023'!$J$3:$J$442,0)),"") -> Kab. Buleleng | R30: =IFERROR(INDEX('SISPSN 2023'!K$3:K$442,MATCH($C30,'SISPSN 2023'!$J$3:$J$442,0)),"") -> 150562.5 | S30: =IFERROR(INDEX('SISPSN 2023'!L$3:L$442,MATCH($C30,'SISPSN 2023'!$J$3:$J$442,0)),"") -> 15801.87 | T30: =IFERROR(INDEX('SISPSN 2023'!M$3:M$442,MATCH($C30,'SISPSN 2023'!$J$3:$J$442,0)),"") -> 10.5 | U30: =IFERROR(INDEX('SISPSN 2023'!N$3:N$442,MATCH($C30,'SISPSN 2023'!$J$3:$J$442,0)),"") -> 56612.7 | V30: =IFERROR(INDEX('SISPSN 2023'!O$3:O$442,MATCH($C30,'SISPSN 2023'!$J$3:$J$442,0)),"") -> 37.6 | W30: =IFERROR(INDEX('SISPSN 2023'!P$3:P$442,MATCH($C30,'SISPSN 2023'!$J$3:$J$442,0)),"") -> 72414.58 | X30: =IFERROR(INDEX('SISPSN 2023'!Q$3:Q$442,MATCH($C30,'SISPSN 2023'!$J$3:$J$442,0)),"") -> 48.1 | Y30: =IFERROR(INDEX('SISPSN 2023'!R$3:R$442,MATCH($C30,'SISPSN 2023'!$J$3:$J$442,0)),"") -> 15348.65 | Z30: =IFERROR(INDEX('SISPSN 2023'!S$3:S$442,MATCH($C30,'SISPSN 2023'!$J$3:$J$442,0)),"") -> 1.2 | AA30: =IFERROR(INDEX('SISPSN 2023'!T$3:T$442,MATCH($C30,'SISPSN 2023'!$J$3:$J$442,0)),"") -> 10.2 | AB30: =IFERROR(INDEX('SISPSN 2023'!U$3:U$442,MATCH($C30,'SISPSN 2023'!$J$3:$J$442,0)),"") -> P 2 | AD30: 0.5099517864 | AE30: 0.05352057673 | AF30: 0.1917459361 | AG30: 0.2452665467 | AH30: 0.05198553083 | AI30: 4.064372893e-06 | AJ30: =IFERROR(PERCENTRANK(_xlfn._xlws.FILTER($AD$4:$AD$547,$AD$4:$AD$547<>""),AD30),"") ->  | AK30: 0.538 | AL30: 0.472 | AM30: 0.577 | AT30: =Tabs!A29 -> Sulawesi Barat | AU30: 0.4000000173 | AV30: 0.008492151182 | AW30: 0.02123037704 | AX30: 0.1085634715 | AY30: 0.2714086671 | AZ30: 0.1170556227 | BA30: 0.2926390441 | BB30: 0.006382232943 | BC30: 0 | BD30: 0.01595558167 | BE30: =LARGE(_xlfn._xlws.FILTER($T$4:$T$547,$P$4:$P$547=$AT30),BE$3) -> 3.8 | BF30: =LARGE(_xlfn._xlws.FILTER($T$4:$T$547,$P$4:$P$547=$AT30),BF$3) -> 0 | BG30: =LARGE(_xlfn._xlws.FILTER($T$4:$T$547,$P$4:$P$547=$AT30),BG$3) ->  | BH30: =INDEX(_xlfn._xlws.FILTER($C$4:$C$547,$P$4:$P$547=$AT30),MATCH(BE30,_xlfn._xlws.FILTER($T$4:$T$547,$P$4:$P$547=$AT30),0),0) -> Kab. Majene | BI30: =INDEX(_xlfn._xlws.FILTER($C$4:$C$547,$P$4:$P$547=$AT30),MATCH(BF30,_xlfn._xlws.FILTER($T$4:$T$547,$P$4:$P$547=$AT30),0),0) -> Kab. Mamuju Tengah | BJ30: =INDEX(_xlfn._xlws.FILTER($C$4:$C$547,$P$4:$P$547=$AT30),MATCH(BG30,_xlfn._xlws.FILTER($T$4:$T$547,$P$4:$P$547=$AT30),0),0) ->  | BK30: =LARGE(_xlfn._xlws.FILTER($AA$4:$AA$547,$P$4:$P$547=$AT30),BK$3) -> 2.86 | BL30: =LARGE(_xlfn._xlws.FILTER($AA$4:$AA$547,$P$4:$P$547=$AT30),BL$3) -> 0 | BM30: =LARGE(_xlfn._xlws.FILTER($AA$4:$AA$547,$P$4:$P$547=$AT30),BM$3) ->  | BN30: =INDEX(_xlfn._xlws.FILTER($C$4:$C$547,$P$4:$P$547=$AT30),MATCH(BK30,_xlfn._xlws.FILTER($AA$4:$AA$547,$P$4:$P$547=$AT30),0),0) -> Kab. Majene | BO30: =INDEX(_xlfn._xlws.FILTER($C$4:$C$547,$P$4:$P$547=$AT30),MATCH(BL30,_xlfn._xlws.FILTER($AA$4:$AA$547,$P$4:$P$547=$AT30),0),0) -> Kab. Mamuju Tengah | BP30: =INDEX(_xlfn._xlws.FILTER($C$4:$C$547,$P$4:$P$547=$AT30),MATCH(BM30,_xlfn._xlws.FILTER($AA$4:$AA$547,$P$4:$P$547=$AT30),0),0) -> 
A31: Bali | B31: Bali | C31: Kab. Gianyar | D31: 524000 | E31: 2023 | G31: Bali | H31: Bali | I31: Kab. Gianyar | J31: 78.21 | K31: 78.87 | L31: 79.69 | M31: 0.886 | N31: 1 | O31: =IFERROR(INDEX('SISPSN 2023'!H$3:H$442,MATCH($C31,'SISPSN 2023'!$J$3:$J$442,0)),"") -> 2023 | P31: =IFERROR(INDEX('SISPSN 2023'!I$3:I$442,MATCH($C31,'SISPSN 2023'!$J$3:$J$442,0)),"") -> Bali | Q31: =IFERROR(INDEX('SISPSN 2023'!J$3:J$442,MATCH($C31,'SISPSN 2023'!$J$3:$J$442,0)),"") -> Kab. Gianyar | R31: =IFERROR(INDEX('SISPSN 2023'!K$3:K$442,MATCH($C31,'SISPSN 2023'!$J$3:$J$442,0)),"") -> 196698.5 | S31: =IFERROR(INDEX('SISPSN 2023'!L$3:L$442,MATCH($C31,'SISPSN 2023'!$J$3:$J$442,0)),"") -> 18864.07 | T31: =IFERROR(INDEX('SISPSN 2023'!M$3:M$442,MATCH($C31,'SISPSN 2023'!$J$3:$J$442,0)),"") -> 9.59 | U31: =IFERROR(INDEX('SISPSN 2023'!N$3:N$442,MATCH($C31,'SISPSN 2023'!$J$3:$J$442,0)),"") -> 169725 | V31: =IFERROR(INDEX('SISPSN 2023'!O$3:O$442,MATCH($C31,'SISPSN 2023'!$J$3:$J$442,0)),"") -> 86.29 | W31: =IFERROR(INDEX('SISPSN 2023'!P$3:P$442,MATCH($C31,'SISPSN 2023'!$J$3:$J$442,0)),"") -> 188589.07 | X31: =IFERROR(INDEX('SISPSN 2023'!Q$3:Q$442,MATCH($C31,'SISPSN 2023'!$J$3:$J$442,0)),"") -> 95.88 | Y31: =IFERROR(INDEX('SISPSN 2023'!R$3:R$442,MATCH($C31,'SISPSN 2023'!$J$3:$J$442,0)),"") -> 18508.9 | Z31: =IFERROR(INDEX('SISPSN 2023'!S$3:S$442,MATCH($C31,'SISPSN 2023'!$J$3:$J$442,0)),"") -> 0 | AA31: =IFERROR(INDEX('SISPSN 2023'!T$3:T$442,MATCH($C31,'SISPSN 2023'!$J$3:$J$442,0)),"") -> 9.41 | AB31: =IFERROR(INDEX('SISPSN 2023'!U$3:U$442,MATCH($C31,'SISPSN 2023'!$J$3:$J$442,0)),"") -> P 2 | AD31: 1.028435115 | AE31: 0.09863050298 | AF31: 0.8874045802 | AG31: 0.9860350831 | AH31: 0.09677350204 | AI31: 0 | AJ31: =IFERROR(PERCENTRANK(_xlfn._xlws.FILTER($AD$4:$AD$547,$AD$4:$AD$547<>""),AD31),"") ->  | AK31: 0.505 | AL31: 0.98 | AM31: 0.56 | AT31: =Tabs!A30 -> Sulawesi Selatan | AU31: 0.4884288973 | AV31: 0.05195297726 | AW31: 0.1063675338 | AX31: 0.2819260933 | AY31: 0.5772101014 | AZ31: 0.3338790706 | BA31: 0.6835776352 | BB31: 0.04069884407 | BC31: 0.00192100555 | BD31: 0.08725906647 | BE31: =LARGE(_xlfn._xlws.FILTER($T$4:$T$547,$P$4:$P$547=$AT31),BE$3) -> 25.92 | BF31: =LARGE(_xlfn._xlws.FILTER($T$4:$T$547,$P$4:$P$547=$AT31),BF$3) -> 24.46 | BG31: =LARGE(_xlfn._xlws.FILTER($T$4:$T$547,$P$4:$P$547=$AT31),BG$3) -> 22.01 | BH31: =INDEX(_xlfn._xlws.FILTER($C$4:$C$547,$P$4:$P$547=$AT31),MATCH(BE31,_xlfn._xlws.FILTER($T$4:$T$547,$P$4:$P$547=$AT31),0),0) -> Kab. Bantaeng | BI31: =INDEX(_xlfn._xlws.FILTER($C$4:$C$547,$P$4:$P$547=$AT31),MATCH(BF31,_xlfn._xlws.FILTER($T$4:$T$547,$P$4:$P$547=$AT31),0),0) -> Kab. Bulukumba | BJ31: =INDEX(_xlfn._xlws.FILTER($C$4:$C$547,$P$4:$P$547=$AT31),MATCH(BG31,_xlfn._xlws.FILTER($T$4:$T$547,$P$4:$P$547=$AT31),0),0) -> Kab. Sinjai | BK31: =LARGE(_xlfn._xlws.FILTER($AA$4:$AA$547,$P$4:$P$547=$AT31),BK$3) -> 27.8 | BL31: =LARGE(_xlfn._xlws.FILTER($AA$4:$AA$547,$P$4:$P$547=$AT31),BL$3) -> 23.65 | BM31: =LARGE(_xlfn._xlws.FILTER($AA$4:$AA$547,$P$4:$P$547=$AT31),BM$3) -> 19.78 | BN31: =INDEX(_xlfn._xlws.FILTER($C$4:$C$547,$P$4:$P$547=$AT31),MATCH(BK31,_xlfn._xlws.FILTER($AA$4:$AA$547,$P$4:$P$547=$AT31),0),0) -> Kab. Bantaeng | BO31: =INDEX(_xlfn._xlws.FILTER($C$4:$C$547,$P$4:$P$547=$AT31),MATCH(BL31,_xlfn._xlws.FILTER($AA$4:$AA$547,$P$4:$P$547=$AT31),0),0) -> Kab. Enrekang | BP31: =INDEX(_xlfn._xlws.FILTER($C$4:$C$547,$P$4:$P$547=$AT31),MATCH(BM31,_xlfn._xlws.FILTER($AA$4:$AA$547,$P$4:$P$547=$AT31),0),0) -> Kab. Sidenreng Rappang
A32: Bali | B32: Bali | C32: Kab. Jembrana | D32: 323500 | E32: 2023 | G32: Bali | H32: Bali | I32: Kab. Jembrana | J32: 73.57 | K32: 74.38 | L32: 74.8 | M32: 0.736 | N32: 1 | O32: =IFERROR(INDEX('SISPSN 2023'!H$3:H$442,MATCH($C32,'SISPSN 2023'!$J$3:$J$442,0)),"") -> 2023 | P32: =IFERROR(INDEX('SISPSN 2023'!I$3:I$442,MATCH($C32,'SISPSN 2023'!$J$3:$J$442,0)),"") -> Bali | Q32: =IFERROR(INDEX('SISPSN 2023'!J$3:J$442,MATCH($C32,'SISPSN 2023'!$J$3:$J$442,0)),"") -> Kab. Jembrana | R32: =IFERROR(INDEX('SISPSN 2023'!K$3:K$442,MATCH($C32,'SISPSN 2023'!$J$3:$J$442,0)),"") -> 59765.28 | S32: =IFERROR(INDEX('SISPSN 2023'!L$3:L$442,MATCH($C32,'SISPSN 2023'!$J$3:$J$442,0)),"") -> 13751.92 | T32: =IFERROR(INDEX('SISPSN 2023'!M$3:M$442,MATCH($C32,'SISPSN 2023'!$J$3:$J$442,0)),"") -> 23.01 | U32: =IFERROR(INDEX('SISPSN 2023'!N$3:N$442,MATCH($C32,'SISPSN 2023'!$J$3:$J$442,0)),"") -> 31025 | V32: =IFERROR(INDEX('SISPSN 2023'!O$3:O$442,MATCH($C32,'SISPSN 2023'!$J$3:$J$442,0)),"") -> 51.91 | W32: =IFERROR(INDEX('SISPSN 2023'!P$3:P$442,MATCH($C32,'SISPSN 2023'!$J$3:$J$442,0)),"") -> 44776.92 | X32: =IFERROR(INDEX('SISPSN 2023'!Q$3:Q$442,MATCH($C32,'SISPSN 2023'!$J$3:$J$442,0)),"") -> 74.92 | Y32: =IFERROR(INDEX('SISPSN 2023'!R$3:R$442,MATCH($C32,'SISPSN 2023'!$J$3:$J$442,0)),"") -> 12927.92 | Z32: =IFERROR(INDEX('SISPSN 2023'!S$3:S$442,MATCH($C32,'SISPSN 2023'!$J$3:$J$442,0)),"") -> 0 | AA32: =IFERROR(INDEX('SISPSN 2023'!T$3:T$442,MATCH($C32,'SISPSN 2023'!$J$3:$J$442,0)),"") -> 21.63 | AB32: =IFERROR(INDEX('SISPSN 2023'!U$3:U$442,MATCH($C32,'SISPSN 2023'!$J$3:$J$442,0)),"") -> P 2 | AD32: 0.5061529927 | AE32: 0.1164652029 | AF32: 0.2627511592 | AG32: 0.3792163621 | AH32: 0.1094867354 | AI32: 0 | AJ32: =IFERROR(PERCENTRANK(_xlfn._xlws.FILTER($AD$4:$AD$547,$AD$4:$AD$547<>""),AD32),"") ->  | AK32: 0.861 | AL32: 0.604 | AM32: 0.856 | AT32: =Tabs!A31 -> Sulawesi Tengah | AU32: 0.4999518807 | AV32: 0.02138705192 | AW32: 0.04277822076 | AX32: 0.1925883686 | AY32: 0.3852138097 | AZ32: 0.2139754205 | BA32: 0.4279920304 | BB32: 0.006282741403 | BC32: 8.604324532e-05 | BD32: 0.01273879526 | BE32: =LARGE(_xlfn._xlws.FILTER($T$4:$T$547,$P$4:$P$547=$AT32),BE$3) -> 11.3 | BF32: =LARGE(_xlfn._xlws.FILTER($T$4:$T$547,$P$4:$P$547=$AT32),BF$3) -> 6.94 | BG32: =LARGE(_xlfn._xlws.FILTER($T$4:$T$547,$P$4:$P$547=$AT32),BG$3) -> 6.32 | BH32: =INDEX(_xlfn._xlws.FILTER($C$4:$C$547,$P$4:$P$547=$AT32),MATCH(BE32,_xlfn._xlws.FILTER($T$4:$T$547,$P$4:$P$547=$AT32),0),0) -> Kab. Banggai Kepulauan | BI32: =INDEX(_xlfn._xlws.FILTER($C$4:$C$547,$P$4:$P$547=$AT32),MATCH(BF32,_xlfn._xlws.FILTER($T$4:$T$547,$P$4:$P$547=$AT32),0),0) -> Kab. Sigi | BJ32: =INDEX(_xlfn._xlws.FILTER($C$4:$C$547,$P$4:$P$547=$AT32),MATCH(BG32,_xlfn._xlws.FILTER($T$4:$T$547,$P$4:$P$547=$AT32),0),0) -> Kab. Banggai | BK32: =LARGE(_xlfn._xlws.FILTER($AA$4:$AA$547,$P$4:$P$547=$AT32),BK$3) -> 5.23 | BL32: =LARGE(_xlfn._xlws.FILTER($AA$4:$AA$547,$P$4:$P$547=$AT32),BL$3) -> 1.43 | BM32: =LARGE(_xlfn._xlws.FILTER($AA$4:$AA$547,$P$4:$P$547=$AT32),BM$3) -> 0.39 | BN32: =INDEX(_xlfn._xlws.FILTER($C$4:$C$547,$P$4:$P$547=$AT32),MATCH(BK32,_xlfn._xlws.FILTER($AA$4:$AA$547,$P$4:$P$547=$AT32),0),0) -> Kab. Parigi Moutong | BO32: =INDEX(_xlfn._xlws.FILTER($C$4:$C$547,$P$4:$P$547=$AT32),MATCH(BL32,_xlfn._xlws.FILTER($AA$4:$AA$547,$P$4:$P$547=$AT32),0),0) -> Kab. Banggai Laut | BP32: =INDEX(_xlfn._xlws.FILTER($C$4:$C$547,$P$4:$P$547=$AT32),MATCH(BM32,_xlfn._xlws.FILTER($AA$4:$AA$547,$P$4:$P$547=$AT32),0),0) -> Kota Palu
A33: Bali | B33: Bali | C33: Kab. Karangasem | D33: 500000 | E33: 2023 | G33: Bali | H33: Bali | I33: Kab. Karangasem | J33: 68.58 | K33: 69.48 | L33: 70.09 | M33: 0.29 | N33: 1 | O33: =IFERROR(INDEX('SISPSN 2023'!H$3:H$442,MATCH($C33,'SISPSN 2023'!$J$3:$J$442,0)),"") -> 2023 | P33: =IFERROR(INDEX('SISPSN 2023'!I$3:I$442,MATCH($C33,'SISPSN 2023'!$J$3:$J$442,0)),"") -> Bali | Q33: =IFERROR(INDEX('SISPSN 2023'!J$3:J$442,MATCH($C33,'SISPSN 2023'!$J$3:$J$442,0)),"") -> Kab. Karangasem | R33: =IFERROR(INDEX('SISPSN 2023'!K$3:K$442,MATCH($C33,'SISPSN 2023'!$J$3:$J$442,0)),"") -> 102643.48 | S33: =IFERROR(INDEX('SISPSN 2023'!L$3:L$442,MATCH($C33,'SISPSN 2023'!$J$3:$J$442,0)),"") -> 7911.41 | T33: =IFERROR(INDEX('SISPSN 2023'!M$3:M$442,MATCH($C33,'SISPSN 2023'!$J$3:$J$442,0)),"") -> 7.71 | U33: =IFERROR(INDEX('SISPSN 2023'!N$3:N$442,MATCH($C33,'SISPSN 2023'!$J$3:$J$442,0)),"") -> 22162.8 | V33: =IFERROR(INDEX('SISPSN 2023'!O$3:O$442,MATCH($C33,'SISPSN 2023'!$J$3:$J$442,0)),"") -> 21.59 | W33: =IFERROR(INDEX('SISPSN 2023'!P$3:P$442,MATCH($C33,'SISPSN 2023'!$J$3:$J$442,0)),"") -> 30074.21 | X33: =IFERROR(INDEX('SISPSN 2023'!Q$3:Q$442,MATCH($C33,'SISPSN 2023'!$J$3:$J$442,0)),"") -> 29.3 | Y33: =IFERROR(INDEX('SISPSN 2023'!R$3:R$442,MATCH($C33,'SISPSN 2023'!$J$3:$J$442,0)),"") -> 7806.92 | Z33: =IFERROR(INDEX('SISPSN 2023'!S$3:S$442,MATCH($C33,'SISPSN 2023'!$J$3:$J$442,0)),"") -> 0 | AA33: =IFERROR(INDEX('SISPSN 2023'!T$3:T$442,MATCH($C33,'SISPSN 2023'!$J$3:$J$442,0)),"") -> 7.61 | AB33: =IFERROR(INDEX('SISPSN 2023'!U$3:U$442,MATCH($C33,'SISPSN 2023'!$J$3:$J$442,0)),"") -> P 2 | AD33: 0.5624300274 | AE33: 0.04335019178 | AF33: 0.12144 | AG33: 0.1647901918 | AH33: 0.04277764384 | AI33: 0 | AJ33: =IFERROR(PERCENTRANK(_xlfn._xlws.FILTER($AD$4:$AD$547,$AD$4:$AD$547<>""),AD33),"") ->  | AK33: 0.477 | AL33: 0.237 | AM33: 0.527 | AT33: =Tabs!A32 -> Sulawesi Tenggara | AU33: 0.4832502434 | AV33: 0.01467003319 | AW33: 0.03035701148 | AX33: 0.194929209 | AY33: 0.4033711553 | AZ33: 0.2095992422 | BA33: 0.4337281668 | BB33: 0.01345456562 | BC33: 0.002895528325 | BD33: 0.03383359691 | BE33: =LARGE(_xlfn._xlws.FILTER($T$4:$T$547,$P$4:$P$547=$AT33),BE$3) -> 11.06 | BF33: =LARGE(_xlfn._xlws.FILTER($T$4:$T$547,$P$4:$P$547=$AT33),BF$3) -> 7.23 | BG33: =LARGE(_xlfn._xlws.FILTER($T$4:$T$547,$P$4:$P$547=$AT33),BG$3) -> 5.82 | BH33: =INDEX(_xlfn._xlws.FILTER($C$4:$C$547,$P$4:$P$547=$AT33),MATCH(BE33,_xlfn._xlws.FILTER($T$4:$T$547,$P$4:$P$547=$AT33),0),0) -> Kota Bau Bau | BI33: =INDEX(_xlfn._xlws.FILTER($C$4:$C$547,$P$4:$P$547=$AT33),MATCH(BF33,_xlfn._xlws.FILTER($T$4:$T$547,$P$4:$P$547=$AT33),0),0) -> Kab. Kolaka | BJ33: =INDEX(_xlfn._xlws.FILTER($C$4:$C$547,$P$4:$P$547=$AT33),MATCH(BG33,_xlfn._xlws.FILTER($T$4:$T$547,$P$4:$P$547=$AT33),0),0) -> Kab. Kolaka Utara | BK33: =LARGE(_xlfn._xlws.FILTER($AA$4:$AA$547,$P$4:$P$547=$AT33),BK$3) -> 12.11 | BL33: =LARGE(_xlfn._xlws.FILTER($AA$4:$AA$547,$P$4:$P$547=$AT33),BL$3) -> 10.83 | BM33: =LARGE(_xlfn._xlws.FILTER($AA$4:$AA$547,$P$4:$P$547=$AT33),BM$3) -> 7.34 | BN33: =INDEX(_xlfn._xlws.FILTER($C$4:$C$547,$P$4:$P$547=$AT33),MATCH(BK33,_xlfn._xlws.FILTER($AA$4:$AA$547,$P$4:$P$547=$AT33),0),0) -> Kab. Kolaka Utara | BO33: =INDEX(_xlfn._xlws.FILTER($C$4:$C$547,$P$4:$P$547=$AT33),MATCH(BL33,_xlfn._xlws.FILTER($AA$4:$AA$547,$P$4:$P$547=$AT33),0),0) -> Kota Bau Bau | BP33: =INDEX(_xlfn._xlws.FILTER($C$4:$C$547,$P$4:$P$547=$AT33),MATCH(BM33,_xlfn._xlws.FILTER($AA$4:$AA$547,$P$4:$P$547=$AT33),0),0) -> Kab. Kolaka
A34: Bali | B34: Bali | C34: Kab. Klungkung | D34: 208700 | E34: 2023 | G34: Bali | H34: Bali | I34: Kab. Klungkung | J34: 72.98 | K34: 73.77 | L34: 74.18 | M34: 0.672 | N34: 1 | O34: =IFERROR(INDEX('SISPSN 2023'!H$3:H$442,MATCH($C34,'SISPSN 2023'!$J$3:$J$442,0)),"") -> 2023 | P34: =IFERROR(INDEX('SISPSN 2023'!I$3:I$442,MATCH($C34,'SISPSN 2023'!$J$3:$J$442,0)),"") -> Bali | Q34: =IFERROR(INDEX('SISPSN 2023'!J$3:J$442,MATCH($C34,'SISPSN 2023'!$J$3:$J$442,0)),"") -> Kab. Klungkung | R34: =IFERROR(INDEX('SISPSN 2023'!K$3:K$442,MATCH($C34,'SISPSN 2023'!$J$3:$J$442,0)),"") -> 40239.61 | S34: =IFERROR(INDEX('SISPSN 2023'!L$3:L$442,MATCH($C34,'SISPSN 2023'!$J$3:$J$442,0)),"") -> 6636.02 | T34: =IFERROR(INDEX('SISPSN 2023'!M$3:M$442,MATCH($C34,'SISPSN 2023'!$J$3:$J$442,0)),"") -> 16.49 | U34: =IFERROR(INDEX('SISPSN 2023'!N$3:N$442,MATCH($C34,'SISPSN 2023'!$J$3:$J$442,0)),"") -> 29532.96 | V34: =IFERROR(INDEX('SISPSN 2023'!O$3:O$442,MATCH($C34,'SISPSN 2023'!$J$3:$J$442,0)),"") -> 73.39 | W34: =IFERROR(INDEX('SISPSN 2023'!P$3:P$442,MATCH($C34,'SISPSN 2023'!$J$3:$J$442,0)),"") -> 36168.98 | X34: =IFERROR(INDEX('SISPSN 2023'!Q$3:Q$442,MATCH($C34,'SISPSN 2023'!$J$3:$J$442,0)),"") -> 89.88 | Y34: =IFERROR(INDEX('SISPSN 2023'!R$3:R$442,MATCH($C34,'SISPSN 2023'!$J$3:$J$442,0)),"") -> 6260.12 | Z34: =IFERROR(INDEX('SISPSN 2023'!S$3:S$442,MATCH($C34,'SISPSN 2023'!$J$3:$J$442,0)),"") -> 2811.31 | AA34: =IFERROR(INDEX('SISPSN 2023'!T$3:T$442,MATCH($C34,'SISPSN 2023'!$J$3:$J$442,0)),"") -> 22.54 | AB34: =IFERROR(INDEX('SISPSN 2023'!U$3:U$442,MATCH($C34,'SISPSN 2023'!$J$3:$J$442,0)),"") -> P 2 | AD34: 0.5282487151 | AE34: 0.08711488602 | AF34: 0.3876963066 | AG34: 0.4748111926 | AH34: 0.08218022855 | AI34: 0.03690569803 | AJ34: =IFERROR(PERCENTRANK(_xlfn._xlws.FILTER($AD$4:$AD$547,$AD$4:$AD$547<>""),AD34),"") ->  | AK34: 0.709 | AL34: 0.85 | AM34: 0.872 | AT34: =Tabs!A33 -> Sulawesi Utara | AU34: 0.5861000318 | AV34: 0.03053536245 | AW34: 0.05209923356 | AX34: 0.3577978761 | AY34: 0.610472371 | AZ34: 0.3883332385 | BA34: 0.6625716046 | BB34: 0.01707500014 | BC34: 0.0003124291228 | BD34: 0.02966631687 | BE34: =LARGE(_xlfn._xlws.FILTER($T$4:$T$547,$P$4:$P$547=$AT34),BE$3) -> 10.47 | BF34: =LARGE(_xlfn._xlws.FILTER($T$4:$T$547,$P$4:$P$547=$AT34),BF$3) -> 8.64 | BG34: =LARGE(_xlfn._xlws.FILTER($T$4:$T$547,$P$4:$P$547=$AT34),BG$3) -> 7.07 | BH34: =INDEX(_xlfn._xlws.FILTER($C$4:$C$547,$P$4:$P$547=$AT34),MATCH(BE34,_xlfn._xlws.FILTER($T$4:$T$547,$P$4:$P$547=$AT34),0),0) -> Kab. Minahasa Utara | BI34: =INDEX(_xlfn._xlws.FILTER($C$4:$C$547,$P$4:$P$547=$AT34),MATCH(BF34,_xlfn._xlws.FILTER($T$4:$T$547,$P$4:$P$547=$AT34),0),0) -> Kota Kotamobagu | BJ34: =INDEX(_xlfn._xlws.FILTER($C$4:$C$547,$P$4:$P$547=$AT34),MATCH(BG34,_xlfn._xlws.FILTER($T$4:$T$547,$P$4:$P$547=$AT34),0),0) -> Kota Manado | BK34: =LARGE(_xlfn._xlws.FILTER($AA$4:$AA$547,$P$4:$P$547=$AT34),BK$3) -> 8.84 | BL34: =LARGE(_xlfn._xlws.FILTER($AA$4:$AA$547,$P$4:$P$547=$AT34),BL$3) -> 6.83 | BM34: =LARGE(_xlfn._xlws.FILTER($AA$4:$AA$547,$P$4:$P$547=$AT34),BM$3) -> 3.01 | BN34: =INDEX(_xlfn._xlws.FILTER($C$4:$C$547,$P$4:$P$547=$AT34),MATCH(BK34,_xlfn._xlws.FILTER($AA$4:$AA$547,$P$4:$P$547=$AT34),0),0) -> Kota Kotamobagu | BO34: =INDEX(_xlfn._xlws.FILTER($C$4:$C$547,$P$4:$P$547=$AT34),MATCH(BL34,_xlfn._xlws.FILTER($AA$4:$AA$547,$P$4:$P$547=$AT34),0),0) -> Kota Manado | BP34: =INDEX(_xlfn._xlws.FILTER($C$4:$C$547,$P$4:$P$547=$AT34),MATCH(BM34,_xlfn._xlws.FILTER($AA$4:$AA$547,$P$4:$P$547=$AT34),0),0) -> Kab. Bolaang Mongondow Selatan
A35: Bali | B35: Bali | C35: Kab. Tabanan | D35: 466100 | E35: 2023 | G35: Bali | H35: Bali | I35: Kab. Tabanan | J35: 76.95 | K35: 77.22 | L35: 77.87 | M35: 0.849 | N35: 1 | O35: =IFERROR(INDEX('SISPSN 2023'!H$3:H$442,MATCH($C35,'SISPSN 2023'!$J$3:$J$442,0)),"") -> 2023 | P35: =IFERROR(INDEX('SISPSN 2023'!I$3:I$442,MATCH($C35,'SISPSN 2023'!$J$3:$J$442,0)),"") -> Bali | Q35: =IFERROR(INDEX('SISPSN 2023'!J$3:J$442,MATCH($C35,'SISPSN 2023'!$J$3:$J$442,0)),"") -> Kab. Tabanan | R35: =IFERROR(INDEX('SISPSN 2023'!K$3:K$442,MATCH($C35,'SISPSN 2023'!$J$3:$J$442,0)),"") -> 84922.73 | S35: =IFERROR(INDEX('SISPSN 2023'!L$3:L$442,MATCH($C35,'SISPSN 2023'!$J$3:$J$442,0)),"") -> 1286.3 | T35: =IFERROR(INDEX('SISPSN 2023'!M$3:M$442,MATCH($C35,'SISPSN 2023'!$J$3:$J$442,0)),"") -> 1.51 | U35: =IFERROR(INDEX('SISPSN 2023'!N$3:N$442,MATCH($C35,'SISPSN 2023'!$J$3:$J$442,0)),"") -> 51100 | V35: =IFERROR(INDEX('SISPSN 2023'!O$3:O$442,MATCH($C35,'SISPSN 2023'!$J$3:$J$442,0)),"") -> 60.17 | W35: =IFERROR(INDEX('SISPSN 2023'!P$3:P$442,MATCH($C35,'SISPSN 2023'!$J$3:$J$442,0)),"") -> 52386.3 | X35: =IFERROR(INDEX('SISPSN 2023'!Q$3:Q$442,MATCH($C35,'SISPSN 2023'!$J$3:$J$442,0)),"") -> 61.69 | Y35: =IFERROR(INDEX('SISPSN 2023'!R$3:R$442,MATCH($C35,'SISPSN 2023'!$J$3:$J$442,0)),"") -> 830.05 | Z35: =IFERROR(INDEX('SISPSN 2023'!S$3:S$442,MATCH($C35,'SISPSN 2023'!$J$3:$J$442,0)),"") -> 0 | AA35: =IFERROR(INDEX('SISPSN 2023'!T$3:T$442,MATCH($C35,'SISPSN 2023'!$J$3:$J$442,0)),"") -> 0.98 | AB35: =IFERROR(INDEX('SISPSN 2023'!U$3:U$442,MATCH($C35,'SISPSN 2023'!$J$3:$J$442,0)),"") -> P 2 | AD35: 0.4991740264 | AE35: 0.00756084443 | AF35: 0.3003647286 | AG35: 0.307925573 | AH35: 0.004879016497 | AI35: 0 | AJ35: =IFERROR(PERCENTRANK(_xlfn._xlws.FILTER($AD$4:$AD$547,$AD$4:$AD$547<>""),AD35),"") ->  | AK35: 0.281 | AL35: 0.668 | AM35: 0.295 | AT35: =Tabs!A34 -> Sumatera Barat | AU35: 0.4868750105 | AV35: 0.08178937459 | AW35: 0.1679884423 | AX35: 0.2192289697 | AY35: 0.45027772 | AZ35: 0.3010183443 | BA35: 0.6182661623 | BB35: 0.06548353272 | BC35: 0.001642013493 | BD35: 0.1378701818 | BE35: =LARGE(_xlfn._xlws.FILTER($T$4:$T$547,$P$4:$P$547=$AT35),BE$3) -> 25.42 | BF35: =LARGE(_xlfn._xlws.FILTER($T$4:$T$547,$P$4:$P$547=$AT35),BF$3) -> 25.18 | BG35: =LARGE(_xlfn._xlws.FILTER($T$4:$T$547,$P$4:$P$547=$AT35),BG$3) -> 23.76 | BH35: =INDEX(_xlfn._xlws.FILTER($C$4:$C$547,$P$4:$P$547=$AT35),MATCH(BE35,_xlfn._xlws.FILTER($T$4:$T$547,$P$4:$P$547=$AT35),0),0) -> Kab. Pasaman | BI35: =INDEX(_xlfn._xlws.FILTER($C$4:$C$547,$P$4:$P$547=$AT35),MATCH(BF35,_xlfn._xlws.FILTER($T$4:$T$547,$P$4:$P$547=$AT35),0),0) -> Kota Sawahlunto | BJ35: =INDEX(_xlfn._xlws.FILTER($C$4:$C$547,$P$4:$P$547=$AT35),MATCH(BG35,_xlfn._xlws.FILTER($T$4:$T$547,$P$4:$P$547=$AT35),0),0) -> Kab. Solok Selatan | BK35: =LARGE(_xlfn._xlws.FILTER($AA$4:$AA$547,$P$4:$P$547=$AT35),BK$3) -> 25.42 | BL35: =LARGE(_xlfn._xlws.FILTER($AA$4:$AA$547,$P$4:$P$547=$AT35),BL$3) -> 23.62 | BM35: =LARGE(_xlfn._xlws.FILTER($AA$4:$AA$547,$P$4:$P$547=$AT35),BM$3) -> 22.39 | BN35: =INDEX(_xlfn._xlws.FILTER($C$4:$C$547,$P$4:$P$547=$AT35),MATCH(BK35,_xlfn._xlws.FILTER($AA$4:$AA$547,$P$4:$P$547=$AT35),0),0) -> Kab. Pasaman | BO35: =INDEX(_xlfn._xlws.FILTER($C$4:$C$547,$P$4:$P$547=$AT35),MATCH(BL35,_xlfn._xlws.FILTER($AA$4:$AA$547,$P$4:$P$547=$AT35),0),0) -> Kab. Solok Selatan | BP35: =INDEX(_xlfn._xlws.FILTER($C$4:$C$547,$P$4:$P$547=$AT35),MATCH(BM35,_xlfn._xlws.FILTER($AA$4:$AA$547,$P$4:$P$547=$AT35),0),0) -> Kab. Sijunjung
A36: Bali | B36: Bali | C36: Kota Denpasar | D36: 748400 | E36: 2023 | G36: Bali | H36: Bali | I36: Kota Denpasar | J36: 84.04 | K36: 84.39 | L36: 84.68 | M36: 0.991 | N36: 1 | O36: =IFERROR(INDEX('SISPSN 2023'!H$3:H$442,MATCH($C36,'SISPSN 2023'!$J$3:$J$442,0)),"") -> 2023 | P36: =IFERROR(INDEX('SISPSN 2023'!I$3:I$442,MATCH($C36,'SISPSN 2023'!$J$3:$J$442,0)),"") -> Bali | Q36: =IFERROR(INDEX('SISPSN 2023'!J$3:J$442,MATCH($C36,'SISPSN 2023'!$J$3:$J$442,0)),"") -> Kota Denpasar | R36: =IFERROR(INDEX('SISPSN 2023'!K$3:K$442,MATCH($C36,'SISPSN 2023'!$J$3:$J$442,0)),"") -> 357984.7 | S36: =IFERROR(INDEX('SISPSN 2023'!L$3:L$442,MATCH($C36,'SISPSN 2023'!$J$3:$J$442,0)),"") -> 58546.77 | T36: =IFERROR(INDEX('SISPSN 2023'!M$3:M$442,MATCH($C36,'SISPSN 2023'!$J$3:$J$442,0)),"") -> 16.35 | U36: =IFERROR(INDEX('SISPSN 2023'!N$3:N$442,MATCH($C36,'SISPSN 2023'!$J$3:$J$442,0)),"") -> 286561.31 | V36: =IFERROR(INDEX('SISPSN 2023'!O$3:O$442,MATCH($C36,'SISPSN 2023'!$J$3:$J$442,0)),"") -> 80.05 | W36: =IFERROR(INDEX('SISPSN 2023'!P$3:P$442,MATCH($C36,'SISPSN 2023'!$J$3:$J$442,0)),"") -> 345108.08 | X36: =IFERROR(INDEX('SISPSN 2023'!Q$3:Q$442,MATCH($C36,'SISPSN 2023'!$J$3:$J$442,0)),"") -> 96.4 | Y36: =IFERROR(INDEX('SISPSN 2023'!R$3:R$442,MATCH($C36,'SISPSN 2023'!$J$3:$J$442,0)),"") -> 55217.97 | Z36: =IFERROR(INDEX('SISPSN 2023'!S$3:S$442,MATCH($C36,'SISPSN 2023'!$J$3:$J$442,0)),"") -> 20377.93 | AA36: =IFERROR(INDEX('SISPSN 2023'!T$3:T$442,MATCH($C36,'SISPSN 2023'!$J$3:$J$442,0)),"") -> 21.12 | AB36: =IFERROR(INDEX('SISPSN 2023'!U$3:U$442,MATCH($C36,'SISPSN 2023'!$J$3:$J$442,0)),"") -> P 2 | AD36: 1.310502405 | AE36: 0.2143267098 | AF36: 1.049037252 | AG36: 1.263363962 | AH36: 0.202140713 | AI36: 0.07459907163 | AJ36: =IFERROR(PERCENTRANK(_xlfn._xlws.FILTER($AD$4:$AD$547,$AD$4:$AD$547<>""),AD36),"") ->  | AK36: 0.707 | AL36: 0.936 | AM36: 0.848 | AT36: =Tabs!A35 -> Sumatera Selatan | AU36: 0.4411368818 | AV36: 0.05323629976 | AW36: 0.1206797753 | AX36: 0.1586884683 | AY36: 0.3597261413 | AZ36: 0.211924768 | BA36: 0.4804059166 | BB36: 0.04738502085 | BC36: 0.0001013425894 | BD36: 0.1076454167 | BE36: =LARGE(_xlfn._xlws.FILTER($T$4:$T$547,$P$4:$P$547=$AT36),BE$3) -> 24 | BF36: =LARGE(_xlfn._xlws.FILTER($T$4:$T$547,$P$4:$P$547=$AT36),BF$3) -> 22.34 | BG36: =LARGE(_xlfn._xlws.FILTER($T$4:$T$547,$P$4:$P$547=$AT36),BG$3) -> 19.07 | BH36: =INDEX(_xlfn._xlws.FILTER($C$4:$C$547,$P$4:$P$547=$AT36),MATCH(BE36,_xlfn._xlws.FILTER($T$4:$T$547,$P$4:$P$547=$AT36),0),0) -> Kab. Musi Banyuasin | BI36: =INDEX(_xlfn._xlws.FILTER($C$4:$C$547,$P$4:$P$547=$AT36),MATCH(BF36,_xlfn._xlws.FILTER($T$4:$T$547,$P$4:$P$547=$AT36),0),0) -> Kab. Muara Enim | BJ36: =INDEX(_xlfn._xlws.FILTER($C$4:$C$547,$P$4:$P$547=$AT36),MATCH(BG36,_xlfn._xlws.FILTER($T$4:$T$547,$P$4:$P$547=$AT36),0),0) -> Kota Prabumulih | BK36: =LARGE(_xlfn._xlws.FILTER($AA$4:$AA$547,$P$4:$P$547=$AT36),BK$3) -> 22.33 | BL36: =LARGE(_xlfn._xlws.FILTER($AA$4:$AA$547,$P$4:$P$547=$AT36),BL$3) -> 18.51 | BM36: =LARGE(_xlfn._xlws.FILTER($AA$4:$AA$547,$P$4:$P$547=$AT36),BM$3) -> 17.43 | BN36: =INDEX(_xlfn._xlws.FILTER($C$4:$C$547,$P$4:$P$547=$AT36),MATCH(BK36,_xlfn._xlws.FILTER($AA$4:$AA$547,$P$4:$P$547=$AT36),0),0) -> Kab. Muara Enim | BO36: =INDEX(_xlfn._xlws.FILTER($C$4:$C$547,$P$4:$P$547=$AT36),MATCH(BL36,_xlfn._xlws.FILTER($AA$4:$AA$547,$P$4:$P$547=$AT36),0),0) -> Kab. Musi Banyuasin | BP36: =INDEX(_xlfn._xlws.FILTER($C$4:$C$547,$P$4:$P$547=$AT36),MATCH(BM36,_xlfn._xlws.FILTER($AA$4:$AA$547,$P$4:$P$547=$AT36),0),0) -> Kota Prabumulih
A37: Bali | B37: total | C37: total | D37: 4404300 | E37: 2023 | G37: Provinsi Bali | H37: total | I37: Provinsi Bali | J37: 76.69 | K37: 77.4 | L37: 78.01 | M37: 0.851 | N37: 0 | O37: =IFERROR(INDEX('SISPSN 2023'!H$3:H$442,MATCH($C37,'SISPSN 2023'!$J$3:$J$442,0)),"") ->  | P37: =IFERROR(INDEX('SISPSN 2023'!I$3:I$442,MATCH($C37,'SISPSN 2023'!$J$3:$J$442,0)),"") ->  | Q37: =IFERROR(INDEX('SISPSN 2023'!J$3:J$442,MATCH($C37,'SISPSN 2023'!$J$3:$J$442,0)),"") ->  | R37: =IFERROR(INDEX('SISPSN 2023'!K$3:K$442,MATCH($C37,'SISPSN 2023'!$J$3:$J$442,0)),"") ->  | S37: =IFERROR(INDEX('SISPSN 2023'!L$3:L$442,MATCH($C37,'SISPSN 2023'!$J$3:$J$442,0)),"") ->  | T37: =IFERROR(INDEX('SISPSN 2023'!M$3:M$442,MATCH($C37,'SISPSN 2023'!$J$3:$J$442,0)),"") ->  | U37: =IFERROR(INDEX('SISPSN 2023'!N$3:N$442,MATCH($C37,'SISPSN 2023'!$J$3:$J$442,0)),"") ->  | V37: =IFERROR(INDEX('SISPSN 2023'!O$3:O$442,MATCH($C37,'SISPSN 2023'!$J$3:$J$442,0)),"") ->  | W37: =IFERROR(INDEX('SISPSN 2023'!P$3:P$442,MATCH($C37,'SISPSN 2023'!$J$3:$J$442,0)),"") ->  | X37: =IFERROR(INDEX('SISPSN 2023'!Q$3:Q$442,MATCH($C37,'SISPSN 2023'!$J$3:$J$442,0)),"") ->  | Y37: =IFERROR(INDEX('SISPSN 2023'!R$3:R$442,MATCH($C37,'SISPSN 2023'!$J$3:$J$442,0)),"") ->  | Z37: =IFERROR(INDEX('SISPSN 2023'!S$3:S$442,MATCH($C37,'SISPSN 2023'!$J$3:$J$442,0)),"") ->  | AA37: =IFERROR(INDEX('SISPSN 2023'!T$3:T$442,MATCH($C37,'SISPSN 2023'!$J$3:$J$442,0)),"") ->  | AB37: =IFERROR(INDEX('SISPSN 2023'!U$3:U$442,MATCH($C37,'SISPSN 2023'!$J$3:$J$442,0)),"") ->  | AJ37: =IFERROR(PERCENTRANK(_xlfn._xlws.FILTER($AD$4:$AD$547,$AD$4:$AD$547<>""),AD37),"") ->  | AT37: =Tabs!A36 -> Sumatera Utara | AU37: 0.5878059184 | AV37: 0.06356188323 | AW37: 0.1081341328 | AX37: 0.2750989925 | AY37: 0.4680099058 | AZ37: 0.3386608757 | BA37: 0.5761440386 | BB37: 0.06192595395 | BC37: 0.001165217245 | BD37: 0.1073333378 | BE37: =LARGE(_xlfn._xlws.FILTER($T$4:$T$547,$P$4:$P$547=$AT37),BE$3) -> 26.88 | BF37: =LARGE(_xlfn._xlws.FILTER($T$4:$T$547,$P$4:$P$547=$AT37),BF$3) -> 20.57 | BG37: =LARGE(_xlfn._xlws.FILTER($T$4:$T$547,$P$4:$P$547=$AT37),BG$3) -> 13.9 | BH37: =INDEX(_xlfn._xlws.FILTER($C$4:$C$547,$P$4:$P$547=$AT37),MATCH(BE37,_xlfn._xlws.FILTER($T$4:$T$547,$P$4:$P$547=$AT37),0),0) -> Kota Tebing Tinggi | BI37: =INDEX(_xlfn._xlws.FILTER($C$4:$C$547,$P$4:$P$547=$AT37),MATCH(BF37,_xlfn._xlws.FILTER($T$4:$T$547,$P$4:$P$547=$AT37),0),0) -> Kab. Deli Serdang | BJ37: =INDEX(_xlfn._xlws.FILTER($C$4:$C$547,$P$4:$P$547=$AT37),MATCH(BG37,_xlfn._xlws.FILTER($T$4:$T$547,$P$4:$P$547=$AT37),0),0) -> Kota Medan | BK37: =LARGE(_xlfn._xlws.FILTER($AA$4:$AA$547,$P$4:$P$547=$AT37),BK$3) -> 27.33 | BL37: =LARGE(_xlfn._xlws.FILTER($AA$4:$AA$547,$P$4:$P$547=$AT37),BL$3) -> 20.86 | BM37: =LARGE(_xlfn._xlws.FILTER($AA$4:$AA$547,$P$4:$P$547=$AT37),BM$3) -> 13.61 | BN37: =INDEX(_xlfn._xlws.FILTER($C$4:$C$547,$P$4:$P$547=$AT37),MATCH(BK37,_xlfn._xlws.FILTER($AA$4:$AA$547,$P$4:$P$547=$AT37),0),0) -> Kota Tebing Tinggi | BO37: =INDEX(_xlfn._xlws.FILTER($C$4:$C$547,$P$4:$P$547=$AT37),MATCH(BL37,_xlfn._xlws.FILTER($AA$4:$AA$547,$P$4:$P$547=$AT37),0),0) -> Kab. Deli Serdang | BP37: =INDEX(_xlfn._xlws.FILTER($C$4:$C$547,$P$4:$P$547=$AT37),MATCH(BM37,_xlfn._xlws.FILTER($AA$4:$AA$547,$P$4:$P$547=$AT37),0),0) -> Kota Medan
A38: Banten | B38: Banten | C38: Kab. Lebak | D38: 1433853 | E38: 2023 | G38: Banten | H38: Banten | I38: Kab Lebak | J38: 64.03 | K38: 64.71 | L38: 65.21 | M38: 0.094 | N38: 1 | O38: =IFERROR(INDEX('SISPSN 2023'!H$3:H$442,MATCH($C38,'SISPSN 2023'!$J$3:$J$442,0)),"") -> 2023 | P38: =IFERROR(INDEX('SISPSN 2023'!I$3:I$442,MATCH($C38,'SISPSN 2023'!$J$3:$J$442,0)),"") -> Banten | Q38: =IFERROR(INDEX('SISPSN 2023'!J$3:J$442,MATCH($C38,'SISPSN 2023'!$J$3:$J$442,0)),"") -> Kab. Lebak | R38: =IFERROR(INDEX('SISPSN 2023'!K$3:K$442,MATCH($C38,'SISPSN 2023'!$J$3:$J$442,0)),"") -> 218266.5 | S38: =IFERROR(INDEX('SISPSN 2023'!L$3:L$442,MATCH($C38,'SISPSN 2023'!$J$3:$J$442,0)),"") -> 8033.39 | T38: =IFERROR(INDEX('SISPSN 2023'!M$3:M$442,MATCH($C38,'SISPSN 2023'!$J$3:$J$442,0)),"") -> 3.68 | U38: =IFERROR(INDEX('SISPSN 2023'!N$3:N$442,MATCH($C38,'SISPSN 2023'!$J$3:$J$442,0)),"") -> 43435 | V38: =IFERROR(INDEX('SISPSN 2023'!O$3:O$442,MATCH($C38,'SISPSN 2023'!$J$3:$J$442,0)),"") -> 19.9 | W38: =IFERROR(INDEX('SISPSN 2023'!P$3:P$442,MATCH($C38,'SISPSN 2023'!$J$3:$J$442,0)),"") -> 51468.39 | X38: =IFERROR(INDEX('SISPSN 2023'!Q$3:Q$442,MATCH($C38,'SISPSN 2023'!$J$3:$J$442,0)),"") -> 23.58 | Y38: =IFERROR(INDEX('SISPSN 2023'!R$3:R$442,MATCH($C38,'SISPSN 2023'!$J$3:$J$442,0)),"") -> 7515.83 | Z38: =IFERROR(INDEX('SISPSN 2023'!S$3:S$442,MATCH($C38,'SISPSN 2023'!$J$3:$J$442,0)),"") -> 0 | AA38: =IFERROR(INDEX('SISPSN 2023'!T$3:T$442,MATCH($C38,'SISPSN 2023'!$J$3:$J$442,0)),"") -> 3.44 | AB38: =IFERROR(INDEX('SISPSN 2023'!U$3:U$442,MATCH($C38,'SISPSN 2023'!$J$3:$J$442,0)),"") -> P 2 | AD38: 0.4170514069 | AE38: 0.0153497518 | AF38: 0.08299316597 | AG38: 0.09834291777 | AH38: 0.01436082713 | AI38: 0 | AJ38: =IFERROR(PERCENTRANK(_xlfn._xlws.FILTER($AD$4:$AD$547,$AD$4:$AD$547<>""),AD38),"") ->  | AK38: 0.356 | AL38: 0.215 | AM38: 0.395
A39: Banten | B39: Banten | C39: Kab. Pandeglang | D39: 1307090 | E39: 2023 | G39: Banten | H39: Banten | I39: Kab Pandeglang | J39: 65.17 | K39: 65.84 | L39: 66.42 | M39: 0.138 | N39: 1 | O39: =IFERROR(INDEX('SISPSN 2023'!H$3:H$442,MATCH($C39,'SISPSN 2023'!$J$3:$J$442,0)),"") -> 2023 | P39: =IFERROR(INDEX('SISPSN 2023'!I$3:I$442,MATCH($C39,'SISPSN 2023'!$J$3:$J$442,0)),"") -> Banten | Q39: =IFERROR(INDEX('SISPSN 2023'!J$3:J$442,MATCH($C39,'SISPSN 2023'!$J$3:$J$442,0)),"") -> Kab. Pandeglang | R39: =IFERROR(INDEX('SISPSN 2023'!K$3:K$442,MATCH($C39,'SISPSN 2023'!$J$3:$J$442,0)),"") -> 185812.3 | S39: =IFERROR(INDEX('SISPSN 2023'!L$3:L$442,MATCH($C39,'SISPSN 2023'!$J$3:$J$442,0)),"") -> 473.59 | T39: =IFERROR(INDEX('SISPSN 2023'!M$3:M$442,MATCH($C39,'SISPSN 2023'!$J$3:$J$442,0)),"") -> 0.25 | U39: =IFERROR(INDEX('SISPSN 2023'!N$3:N$442,MATCH($C39,'SISPSN 2023'!$J$3:$J$442,0)),"") -> 64203.5 | V39: =IFERROR(INDEX('SISPSN 2023'!O$3:O$442,MATCH($C39,'SISPSN 2023'!$J$3:$J$442,0)),"") -> 34.55 | W39: =IFERROR(INDEX('SISPSN 2023'!P$3:P$442,MATCH($C39,'SISPSN 2023'!$J$3:$J$442,0)),"") -> 64677.09 | X39: =IFERROR(INDEX('SISPSN 2023'!Q$3:Q$442,MATCH($C39,'SISPSN 2023'!$J$3:$J$442,0)),"") -> 34.81 | Y39: =IFERROR(INDEX('SISPSN 2023'!R$3:R$442,MATCH($C39,'SISPSN 2023'!$J$3:$J$442,0)),"") -> 462.64 | Z39: =IFERROR(INDEX('SISPSN 2023'!S$3:S$442,MATCH($C39,'SISPSN 2023'!$J$3:$J$442,0)),"") -> 0 | AA39: =IFERROR(INDEX('SISPSN 2023'!T$3:T$442,MATCH($C39,'SISPSN 2023'!$J$3:$J$442,0)),"") -> 0.25 | AB39: =IFERROR(INDEX('SISPSN 2023'!U$3:U$442,MATCH($C39,'SISPSN 2023'!$J$3:$J$442,0)),"") -> P 2 | AD39: 0.3894718761 | AE39: 0.0009926683314 | AF39: 0.1345737478 | AG39: 0.1355664161 | AH39: 0.0009697165836 | AI39: 0 | AJ39: =IFERROR(PERCENTRANK(_xlfn._xlws.FILTER($AD$4:$AD$547,$AD$4:$AD$547<>""),AD39),"") ->  | AK39: 0.201 | AL39: 0.419 | AM39: 0.24
A40: Banten | B40: Banten | C40: Kab. Serang | D40: 1678915 | E40: 2023 | G40: Banten | H40: Banten | I40: Kab Serang | J40: 66.82 | K40: 67.75 | L40: 68.39 | M40: 0.202 | N40: 1 | O40: =IFERROR(INDEX('SISPSN 2023'!H$3:H$442,MATCH($C40,'SISPSN 2023'!$J$3:$J$442,0)),"") -> 2023 | P40: =IFERROR(INDEX('SISPSN 2023'!I$3:I$442,MATCH($C40,'SISPSN 2023'!$J$3:$J$442,0)),"") -> Banten | Q40: =IFERROR(INDEX('SISPSN 2023'!J$3:J$442,MATCH($C40,'SISPSN 2023'!$J$3:$J$442,0)),"") -> Kab. Serang | R40: =IFERROR(INDEX('SISPSN 2023'!K$3:K$442,MATCH($C40,'SISPSN 2023'!$J$3:$J$442,0)),"") -> 428962.78 | S40: =IFERROR(INDEX('SISPSN 2023'!L$3:L$442,MATCH($C40,'SISPSN 2023'!$J$3:$J$442,0)),"") -> 175.92 | T40: =IFERROR(INDEX('SISPSN 2023'!M$3:M$442,MATCH($C40,'SISPSN 2023'!$J$3:$J$442,0)),"") -> 0.04 | U40: =IFERROR(INDEX('SISPSN 2023'!N$3:N$442,MATCH($C40,'SISPSN 2023'!$J$3:$J$442,0)),"") -> 31453.73 | V40: =IFERROR(INDEX('SISPSN 2023'!O$3:O$442,MATCH($C40,'SISPSN 2023'!$J$3:$J$442,0)),"") -> 7.33 | W40: =IFERROR(INDEX('SISPSN 2023'!P$3:P$442,MATCH($C40,'SISPSN 2023'!$J$3:$J$442,0)),"") -> 31629.65 | X40: =IFERROR(INDEX('SISPSN 2023'!Q$3:Q$442,MATCH($C40,'SISPSN 2023'!$J$3:$J$442,0)),"") -> 7.37 | Y40: =IFERROR(INDEX('SISPSN 2023'!R$3:R$442,MATCH($C40,'SISPSN 2023'!$J$3:$J$442,0)),"") -> 175.92 | Z40: =IFERROR(INDEX('SISPSN 2023'!S$3:S$442,MATCH($C40,'SISPSN 2023'!$J$3:$J$442,0)),"") -> 0.4 | AA40: =IFERROR(INDEX('SISPSN 2023'!T$3:T$442,MATCH($C40,'SISPSN 2023'!$J$3:$J$442,0)),"") -> 0.04 | AB40: =IFERROR(INDEX('SISPSN 2023'!U$3:U$442,MATCH($C40,'SISPSN 2023'!$J$3:$J$442,0)),"") -> P 2 | AD40: 0.6999999959 | AE40: 0.0002870738559 | AF40: 0.05132755544 | AG40: 0.05161462929 | AH40: 0.0002870738559 | AI40: 6.527372803e-07 | AJ40: =IFERROR(PERCENTRANK(_xlfn._xlws.FILTER($AD$4:$AD$547,$AD$4:$AD$547<>""),AD40),"") ->  | AK40: 0.135 | AL40: 0.044 | AM40: 0.182
A41: Banten | B41: Banten | C41: Kab. Tangerang | D41: 3352472 | E41: 2023 | G41: Banten | H41: Banten | I41: Kab Tangerang | J41: 72.29 | K41: 72.97 | L41: 73.43 | M41: 0.593 | N41: 0 | O41: =IFERROR(INDEX('SISPSN 2023'!H$3:H$442,MATCH($C41,'SISPSN 2023'!$J$3:$J$442,0)),"") ->  | P41: =IFERROR(INDEX('SISPSN 2023'!I$3:I$442,MATCH($C41,'SISPSN 2023'!$J$3:$J$442,0)),"") ->  | Q41: =IFERROR(INDEX('SISPSN 2023'!J$3:J$442,MATCH($C41,'SISPSN 2023'!$J$3:$J$442,0)),"") ->  | R41: =IFERROR(INDEX('SISPSN 2023'!K$3:K$442,MATCH($C41,'SISPSN 2023'!$J$3:$J$442,0)),"") ->  | S41: =IFERROR(INDEX('SISPSN 2023'!L$3:L$442,MATCH($C41,'SISPSN 2023'!$J$3:$J$442,0)),"") ->  | T41: =IFERROR(INDEX('SISPSN 2023'!M$3:M$442,MATCH($C41,'SISPSN 2023'!$J$3:$J$442,0)),"") ->  | U41: =IFERROR(INDEX('SISPSN 2023'!N$3:N$442,MATCH($C41,'SISPSN 2023'!$J$3:$J$442,0)),"") ->  | V41: =IFERROR(INDEX('SISPSN 2023'!O$3:O$442,MATCH($C41,'SISPSN 2023'!$J$3:$J$442,0)),"") ->  | W41: =IFERROR(INDEX('SISPSN 2023'!P$3:P$442,MATCH($C41,'SISPSN 2023'!$J$3:$J$442,0)),"") ->  | X41: =IFERROR(INDEX('SISPSN 2023'!Q$3:Q$442,MATCH($C41,'SISPSN 2023'!$J$3:$J$442,0)),"") ->  | Y41: =IFERROR(INDEX('SISPSN 2023'!R$3:R$442,MATCH($C41,'SISPSN 2023'!$J$3:$J$442,0)),"") ->  | Z41: =IFERROR(INDEX('SISPSN 2023'!S$3:S$442,MATCH($C41,'SISPSN 2023'!$J$3:$J$442,0)),"") ->  | AA41: =IFERROR(INDEX('SISPSN 2023'!T$3:T$442,MATCH($C41,'SISPSN 2023'!$J$3:$J$442,0)),"") ->  | AB41: =IFERROR(INDEX('SISPSN 2023'!U$3:U$442,MATCH($C41,'SISPSN 2023'!$J$3:$J$442,0)),"") ->  | AJ41: =IFERROR(PERCENTRANK(_xlfn._xlws.FILTER($AD$4:$AD$547,$AD$4:$AD$547<>""),AD41),"") -> 
A42: Banten | B42: Banten | C42: Kota Cilegon | D42: 450271 | E42: 2023 | G42: Banten | H42: Banten | I42: Kota Cilegon | J42: 73.35 | K42: 73.95 | L42: 74.54 | M42: 0.701 | N42: 1 | O42: =IFERROR(INDEX('SISPSN 2023'!H$3:H$442,MATCH($C42,'SISPSN 2023'!$J$3:$J$442,0)),"") -> 2023 | P42: =IFERROR(INDEX('SISPSN 2023'!I$3:I$442,MATCH($C42,'SISPSN 2023'!$J$3:$J$442,0)),"") -> Banten | Q42: =IFERROR(INDEX('SISPSN 2023'!J$3:J$442,MATCH($C42,'SISPSN 2023'!$J$3:$J$442,0)),"") -> Kota Cilegon | R42: =IFERROR(INDEX('SISPSN 2023'!K$3:K$442,MATCH($C42,'SISPSN 2023'!$J$3:$J$442,0)),"") -> 101772.8 | S42: =IFERROR(INDEX('SISPSN 2023'!L$3:L$442,MATCH($C42,'SISPSN 2023'!$J$3:$J$442,0)),"") -> 2249.28 | T42: =IFERROR(INDEX('SISPSN 2023'!M$3:M$442,MATCH($C42,'SISPSN 2023'!$J$3:$J$442,0)),"") -> 2.21 | U42: =IFERROR(INDEX('SISPSN 2023'!N$3:N$442,MATCH($C42,'SISPSN 2023'!$J$3:$J$442,0)),"") -> 86140 | V42: =IFERROR(INDEX('SISPSN 2023'!O$3:O$442,MATCH($C42,'SISPSN 2023'!$J$3:$J$442,0)),"") -> 84.64 | W42: =IFERROR(INDEX('SISPSN 2023'!P$3:P$442,MATCH($C42,'SISPSN 2023'!$J$3:$J$442,0)),"") -> 88389.28 | X42: =IFERROR(INDEX('SISPSN 2023'!Q$3:Q$442,MATCH($C42,'SISPSN 2023'!$J$3:$J$442,0)),"") -> 86.85 | Y42: =IFERROR(INDEX('SISPSN 2023'!R$3:R$442,MATCH($C42,'SISPSN 2023'!$J$3:$J$442,0)),"") -> 2249.28 | Z42: =IFERROR(INDEX('SISPSN 2023'!S$3:S$442,MATCH($C42,'SISPSN 2023'!$J$3:$J$442,0)),"") -> 0 | AA42: =IFERROR(INDEX('SISPSN 2023'!T$3:T$442,MATCH($C42,'SISPSN 2023'!$J$3:$J$442,0)),"") -> 2.21 | AB42: =IFERROR(INDEX('SISPSN 2023'!U$3:U$442,MATCH($C42,'SISPSN 2023'!$J$3:$J$442,0)),"") -> P 2 | AD42: 0.6192483838 | AE42: 0.01368600456 | AF42: 0.5241288024 | AG42: 0.537814807 | AH42: 0.01368600456 | AI42: 0 | AJ42: =IFERROR(PERCENTRANK(_xlfn._xlws.FILTER($AD$4:$AD$547,$AD$4:$AD$547<>""),AD42),"") ->  | AK42: 0.314 | AL42: 0.972 | AM42: 0.361
A43: Banten | B43: Banten | C43: Kota Serang | D43: 720362 | E43: 2023 | G43: Banten | H43: Banten | I43: Kota Serang | J43: 72.44 | K43: 72.98 | L43: 73.48 | M43: 0.604 | N43: 1 | O43: =IFERROR(INDEX('SISPSN 2023'!H$3:H$442,MATCH($C43,'SISPSN 2023'!$J$3:$J$442,0)),"") -> 2023 | P43: =IFERROR(INDEX('SISPSN 2023'!I$3:I$442,MATCH($C43,'SISPSN 2023'!$J$3:$J$442,0)),"") -> Banten | Q43: =IFERROR(INDEX('SISPSN 2023'!J$3:J$442,MATCH($C43,'SISPSN 2023'!$J$3:$J$442,0)),"") -> Kota Serang | R43: =IFERROR(INDEX('SISPSN 2023'!K$3:K$442,MATCH($C43,'SISPSN 2023'!$J$3:$J$442,0)),"") -> 219503.03 | S43: =IFERROR(INDEX('SISPSN 2023'!L$3:L$442,MATCH($C43,'SISPSN 2023'!$J$3:$J$442,0)),"") -> 20818.54 | T43: =IFERROR(INDEX('SISPSN 2023'!M$3:M$442,MATCH($C43,'SISPSN 2023'!$J$3:$J$442,0)),"") -> 9.48 | U43: =IFERROR(INDEX('SISPSN 2023'!N$3:N$442,MATCH($C43,'SISPSN 2023'!$J$3:$J$442,0)),"") -> 128782.6 | V43: =IFERROR(INDEX('SISPSN 2023'!O$3:O$442,MATCH($C43,'SISPSN 2023'!$J$3:$J$442,0)),"") -> 58.67 | W43: =IFERROR(INDEX('SISPSN 2023'!P$3:P$442,MATCH($C43,'SISPSN 2023'!$J$3:$J$442,0)),"") -> 149601.14 | X43: =IFERROR(INDEX('SISPSN 2023'!Q$3:Q$442,MATCH($C43,'SISPSN 2023'!$J$3:$J$442,0)),"") -> 68.15 | Y43: =IFERROR(INDEX('SISPSN 2023'!R$3:R$442,MATCH($C43,'SISPSN 2023'!$J$3:$J$442,0)),"") -> 20812.3 | Z43: =IFERROR(INDEX('SISPSN 2023'!S$3:S$442,MATCH($C43,'SISPSN 2023'!$J$3:$J$442,0)),"") -> 0 | AA43: =IFERROR(INDEX('SISPSN 2023'!T$3:T$442,MATCH($C43,'SISPSN 2023'!$J$3:$J$442,0)),"") -> 9.48 | AB43: =IFERROR(INDEX('SISPSN 2023'!U$3:U$442,MATCH($C43,'SISPSN 2023'!$J$3:$J$442,0)),"") -> P 2 | AD43: =IF(ISBLANK(R43),"",R43*1000/$D43/365) -> 0.8348277177 | AE43: =IF(ISBLANK(S43),"",S43*1000/$D43/365) -> 0.07917837961 | AF43: =IF(ISBLANK(U43),"",U43*1000/$D43/365) -> 0.4897940773 | AG43: =IF(ISBLANK(W43),"",W43*1000/$D43/365) -> 0.5689724569 | AH43: =IF(ISBLANK(Y43),"",Y43*1000/$D43/365) -> 0.07915464725 | AI43: =IF(ISBLANK(Z43),"",Z43*1000/$D43/365) -> 0 | AJ43: =IFERROR(PERCENTRANK(_xlfn._xlws.FILTER($AD$4:$AD$547,$AD$4:$AD$547<>""),AD43),"") ->  | AK43: 0.502 | AL43: 0.66 | AM43: 0.563
A44: Banten | B44: Banten | C44: Kota Tangerang | D44: 1930556 | E44: 2023 | G44: Banten | H44: Banten | I44: Kota Tangerang | J44: 78.5 | K44: 78.9 | L44: 79.46 | M44: 0.878 | N44: 1 | O44: =IFERROR(INDEX('SISPSN 2023'!H$3:H$442,MATCH($C44,'SISPSN 2023'!$J$3:$J$442,0)),"") -> 2023 | P44: =IFERROR(INDEX('SISPSN 2023'!I$3:I$442,MATCH($C44,'SISPSN 2023'!$J$3:$J$442,0)),"") -> Banten | Q44: =IFERROR(INDEX('SISPSN 2023'!J$3:J$442,MATCH($C44,'SISPSN 2023'!$J$3:$J$442,0)),"") -> Kota Tangerang | R44: =IFERROR(INDEX('SISPSN 2023'!K$3:K$442,MATCH($C44,'SISPSN 2023'!$J$3:$J$442,0)),"") -> 514478.12 | S44: =IFERROR(INDEX('SISPSN 2023'!L$3:L$442,MATCH($C44,'SISPSN 2023'!$J$3:$J$442,0)),"") -> 127138.73 | T44: =IFERROR(INDEX('SISPSN 2023'!M$3:M$442,MATCH($C44,'SISPSN 2023'!$J$3:$J$442,0)),"") -> 24.71 | U44: =IFERROR(INDEX('SISPSN 2023'!N$3:N$442,MATCH($C44,'SISPSN 2023'!$J$3:$J$442,0)),"") -> 386535 | V44: =IFERROR(INDEX('SISPSN 2023'!O$3:O$442,MATCH($C44,'SISPSN 2023'!$J$3:$J$442,0)),"") -> 75.13 | W44: =IFERROR(INDEX('SISPSN 2023'!P$3:P$442,MATCH($C44,'SISPSN 2023'!$J$3:$J$442,0)),"") -> 513673.73 | X44: =IFERROR(INDEX('SISPSN 2023'!Q$3:Q$442,MATCH($C44,'SISPSN 2023'!$J$3:$J$442,0)),"") -> 99.84 | Y44: =IFERROR(INDEX('SISPSN 2023'!R$3:R$442,MATCH($C44,'SISPSN 2023'!$J$3:$J$442,0)),"") -> 123585.2 | Z44: =IFERROR(INDEX('SISPSN 2023'!S$3:S$442,MATCH($C44,'SISPSN 2023'!$J$3:$J$442,0)),"") -> 0 | AA44: =IFERROR(INDEX('SISPSN 2023'!T$3:T$442,MATCH($C44,'SISPSN 2023'!$J$3:$J$442,0)),"") -> 24.02 | AB44: =IFERROR(INDEX('SISPSN 2023'!U$3:U$442,MATCH($C44,'SISPSN 2023'!$J$3:$J$442,0)),"") -> P 2 | AD44: 0.7301156226 | AE44: 0.1804274456 | AF44: 0.5485466363 | AG44: 0.7289740819 | AH44: 0.175384495 | AI44: 0 | AJ44: =IFERROR(PERCENTRANK(_xlfn._xlws.FILTER($AD$4:$AD$547,$AD$4:$AD$547<>""),AD44),"") ->  | AK44: 0.895 | AL44: 0.881 | AM44: 0.911
A45: Banten | B45: Banten | C45: Kota Tangerang Selatan | D45: 1378466 | E45: 2023 | G45: Banten | H45: Banten | I45: Kota Tangerang Selatan | J45: 81.6 | K45: 81.95 | L45: 82.28 | M45: 0.952 | N45: 1 | O45: =IFERROR(INDEX('SISPSN 2023'!H$3:H$442,MATCH($C45,'SISPSN 2023'!$J$3:$J$442,0)),"") -> 2023 | P45: =IFERROR(INDEX('SISPSN 2023'!I$3:I$442,MATCH($C45,'SISPSN 2023'!$J$3:$J$442,0)),"") -> Banten | Q45: =IFERROR(INDEX('SISPSN 2023'!J$3:J$442,MATCH($C45,'SISPSN 2023'!$J$3:$J$442,0)),"") -> Kota Tangerang Selatan | R45: =IFERROR(INDEX('SISPSN 2023'!K$3:K$442,MATCH($C45,'SISPSN 2023'!$J$3:$J$442,0)),"") -> 369177.5 | S45: =IFERROR(INDEX('SISPSN 2023'!L$3:L$442,MATCH($C45,'SISPSN 2023'!$J$3:$J$442,0)),"") -> 101557.27 | T45: =IFERROR(INDEX('SISPSN 2023'!M$3:M$442,MATCH($C45,'SISPSN 2023'!$J$3:$J$442,0)),"") -> 27.51 | U45: =IFERROR(INDEX('SISPSN 2023'!N$3:N$442,MATCH($C45,'SISPSN 2023'!$J$3:$J$442,0)),"") -> 265235.57 | V45: =IFERROR(INDEX('SISPSN 2023'!O$3:O$442,MATCH($C45,'SISPSN 2023'!$J$3:$J$442,0)),"") -> 71.84 | W45: =IFERROR(INDEX('SISPSN 2023'!P$3:P$442,MATCH($C45,'SISPSN 2023'!$J$3:$J$442,0)),"") -> 366792.84 | X45: =IFERROR(INDEX('SISPSN 2023'!Q$3:Q$442,MATCH($C45,'SISPSN 2023'!$J$3:$J$442,0)),"") -> 99.35 | Y45: =IFERROR(INDEX('SISPSN 2023'!R$3:R$442,MATCH($C45,'SISPSN 2023'!$J$3:$J$442,0)),"") -> 101557.27 | Z45: =IFERROR(INDEX('SISPSN 2023'!S$3:S$442,MATCH($C45,'SISPSN 2023'!$J$3:$J$442,0)),"") -> 1559.57 | AA45: =IFERROR(INDEX('SISPSN 2023'!T$3:T$442,MATCH($C45,'SISPSN 2023'!$J$3:$J$442,0)),"") -> 27.93 | AB45: =IFERROR(INDEX('SISPSN 2023'!U$3:U$442,MATCH($C45,'SISPSN 2023'!$J$3:$J$442,0)),"") -> P 2 | AD45: 0.7337469372 | AE45: 0.2018469051 | AF45: 0.5271604773 | AG45: 0.7290073824 | AH45: 0.2018469051 | AI45: 0.003099673493 | AJ45: =IFERROR(PERCENTRANK(_xlfn._xlws.FILTER($AD$4:$AD$547,$AD$4:$AD$547<>""),AD45),"") ->  | AK45: 0.958 | AL45: 0.79 | AM45: 0.953
A46: Banten | B46: total | C46: total | D46: 12251985 | E46: 2023 | G46: Provinsi Banten | H46: total | I46: Provinsi Banten | J46: 72.72 | K46: 73.32 | L46: 73.87 | M46: 0.639 | N46: 0 | O46: =IFERROR(INDEX('SISPSN 2023'!H$3:H$442,MATCH($C46,'SISPSN 2023'!$J$3:$J$442,0)),"") ->  | P46: =IFERROR(INDEX('SISPSN 2023'!I$3:I$442,MATCH($C46,'SISPSN 2023'!$J$3:$J$442,0)),"") ->  | Q46: =IFERROR(INDEX('SISPSN 2023'!J$3:J$442,MATCH($C46,'SISPSN 2023'!$J$3:$J$442,0)),"") ->  | R46: =IFERROR(INDEX('SISPSN 2023'!K$3:K$442,MATCH($C46,'SISPSN 2023'!$J$3:$J$442,0)),"") ->  | S46: =IFERROR(INDEX('SISPSN 2023'!L$3:L$442,MATCH($C46,'SISPSN 2023'!$J$3:$J$442,0)),"") ->  | T46: =IFERROR(INDEX('SISPSN 2023'!M$3:M$442,MATCH($C46,'SISPSN 2023'!$J$3:$J$442,0)),"") ->  | U46: =IFERROR(INDEX('SISPSN 2023'!N$3:N$442,MATCH($C46,'SISPSN 2023'!$J$3:$J$442,0)),"") ->  | V46: =IFERROR(INDEX('SISPSN 2023'!O$3:O$442,MATCH($C46,'SISPSN 2023'!$J$3:$J$442,0)),"") ->  | W46: =IFERROR(INDEX('SISPSN 2023'!P$3:P$442,MATCH($C46,'SISPSN 2023'!$J$3:$J$442,0)),"") ->  | X46: =IFERROR(INDEX('SISPSN 2023'!Q$3:Q$442,MATCH($C46,'SISPSN 2023'!$J$3:$J$442,0)),"") ->  | Y46: =IFERROR(INDEX('SISPSN 2023'!R$3:R$442,MATCH($C46,'SISPSN 2023'!$J$3:$J$442,0)),"") ->  | Z46: =IFERROR(INDEX('SISPSN 2023'!S$3:S$442,MATCH($C46,'SISPSN 2023'!$J$3:$J$442,0)),"") ->  | AA46: =IFERROR(INDEX('SISPSN 2023'!T$3:T$442,MATCH($C46,'SISPSN 2023'!$J$3:$J$442,0)),"") ->  | AB46: =IFERROR(INDEX('SISPSN 2023'!U$3:U$442,MATCH($C46,'SISPSN 2023'!$J$3:$J$442,0)),"") ->  | AJ46: =IFERROR(PERCENTRANK(_xlfn._xlws.FILTER($AD$4:$AD$547,$AD$4:$AD$547<>""),AD46),"") -> 
A47: D.I. Yogyakarta | B47: D.I. Yogyakarta | C47: Bantul | D47: 1064286 | E47: 2022 | G47: D.I. Yogyakarta | H47: D.I. Yogyakarta | I47: Bantul | J47: 80.01 | K47: 80.28 | L47: 80.69 | M47: 0.917 | N47: 0 | O47: =IFERROR(INDEX('SISPSN 2023'!H$3:H$442,MATCH($C47,'SISPSN 2023'!$J$3:$J$442,0)),"") ->  | P47: =IFERROR(INDEX('SISPSN 2023'!I$3:I$442,MATCH($C47,'SISPSN 2023'!$J$3:$J$442,0)),"") ->  | Q47: =IFERROR(INDEX('SISPSN 2023'!J$3:J$442,MATCH($C47,'SISPSN 2023'!$J$3:$J$442,0)),"") ->  | R47: =IFERROR(INDEX('SISPSN 2023'!K$3:K$442,MATCH($C47,'SISPSN 2023'!$J$3:$J$442,0)),"") ->  | S47: =IFERROR(INDEX('SISPSN 2023'!L$3:L$442,MATCH($C47,'SISPSN 2023'!$J$3:$J$442,0)),"") ->  | T47: =IFERROR(INDEX('SISPSN 2023'!M$3:M$442,MATCH($C47,'SISPSN 2023'!$J$3:$J$442,0)),"") ->  | U47: =IFERROR(INDEX('SISPSN 2023'!N$3:N$442,MATCH($C47,'SISPSN 2023'!$J$3:$J$442,0)),"") ->  | V47: =IFERROR(INDEX('SISPSN 2023'!O$3:O$442,MATCH($C47,'SISPSN 2023'!$J$3:$J$442,0)),"") ->  | W47: =IFERROR(INDEX('SISPSN 2023'!P$3:P$442,MATCH($C47,'SISPSN 2023'!$J$3:$J$442,0)),"") ->  | X47: =IFERROR(INDEX('SISPSN 2023'!Q$3:Q$442,MATCH($C47,'SISPSN 2023'!$J$3:$J$442,0)),"") ->  | Y47: =IFERROR(INDEX('SISPSN 2023'!R$3:R$442,MATCH($C47,'SISPSN 2023'!$J$3:$J$442,0)),"") ->  | Z47: =IFERROR(INDEX('SISPSN 2023'!S$3:S$442,MATCH($C47,'SISPSN 2023'!$J$3:$J$442,0)),"") ->  | AA47: =IFERROR(INDEX('SISPSN 2023'!T$3:T$442,MATCH($C47,'SISPSN 2023'!$J$3:$J$442,0)),"") ->  | AB47: =IFERROR(INDEX('SISPSN 2023'!U$3:U$442,MATCH($C47,'SISPSN 2023'!$J$3:$J$442,0)),"") ->  | AJ47: =IFERROR(PERCENTRANK(_xlfn._xlws.FILTER($AD$4:$AD$547,$AD$4:$AD$547<>""),AD47),"") -> 
A48: D.I. Yogyakarta | B48: D.I. Yogyakarta | C48: Kab. Gunungkidul | D48: 776705 | E48: 2022 | G48: D.I. Yogyakarta | H48: D.I. Yogyakarta | I48: Gunungkidul | J48: 69.98 | K48: 70.16 | L48: 70.96 | M48: 0.364 | N48: 1 | O48: =IFERROR(INDEX('SISPSN 2023'!H$3:H$442,MATCH($C48,'SISPSN 2023'!$J$3:$J$442,0)),"") -> 2023 | P48: =IFERROR(INDEX('SISPSN 2023'!I$3:I$442,MATCH($C48,'SISPSN 2023'!$J$3:$J$442,0)),"") -> D.I. Yogyakarta | Q48: =IFERROR(INDEX('SISPSN 2023'!J$3:J$442,MATCH($C48,'SISPSN 2023'!$J$3:$J$442,0)),"") -> Kab. Gunungkidul | R48: =IFERROR(INDEX('SISPSN 2023'!K$3:K$442,MATCH($C48,'SISPSN 2023'!$J$3:$J$442,0)),"") -> 140580.21 | S48: =IFERROR(INDEX('SISPSN 2023'!L$3:L$442,MATCH($C48,'SISPSN 2023'!$J$3:$J$442,0)),"") -> 40816.88 | T48: =IFERROR(INDEX('SISPSN 2023'!M$3:M$442,MATCH($C48,'SISPSN 2023'!$J$3:$J$442,0)),"") -> 29.03 | U48: =IFERROR(INDEX('SISPSN 2023'!N$3:N$442,MATCH($C48,'SISPSN 2023'!$J$3:$J$442,0)),"") -> 19063.22 | V48: =IFERROR(INDEX('SISPSN 2023'!O$3:O$442,MATCH($C48,'SISPSN 2023'!$J$3:$J$442,0)),"") -> 13.56 | W48: =IFERROR(INDEX('SISPSN 2023'!P$3:P$442,MATCH($C48,'SISPSN 2023'!$J$3:$J$442,0)),"") -> 59880.1 | X48: =IFERROR(INDEX('SISPSN 2023'!Q$3:Q$442,MATCH($C48,'SISPSN 2023'!$J$3:$J$442,0)),"") -> 42.59 | Y48: =IFERROR(INDEX('SISPSN 2023'!R$3:R$442,MATCH($C48,'SISPSN 2023'!$J$3:$J$442,0)),"") -> 40153.27 | Z48: =IFERROR(INDEX('SISPSN 2023'!S$3:S$442,MATCH($C48,'SISPSN 2023'!$J$3:$J$442,0)),"") -> 83.22 | AA48: =IFERROR(INDEX('SISPSN 2023'!T$3:T$442,MATCH($C48,'SISPSN 2023'!$J$3:$J$442,0)),"") -> 28.62 | AB48: =IFERROR(INDEX('SISPSN 2023'!U$3:U$442,MATCH($C48,'SISPSN 2023'!$J$3:$J$442,0)),"") -> P 2 | AD48: 0.4958784355 | AE48: 0.1439762439 | AF48: 0.06724303307 | AG48: 0.2112192769 | AH48: 0.1416354458 | AI48: 0.0002935477434 | AJ48: =IFERROR(PERCENTRANK(_xlfn._xlws.FILTER($AD$4:$AD$547,$AD$4:$AD$547<>""),AD48),"") ->  | AK48: 0.969 | AL48: 0.11 | AM48: 0.955
A49: D.I. Yogyakarta | B49: D.I. Yogyakarta | C49: Kab. Kulon Progo | D49: 448131 | E49: 2022 | G49: D.I. Yogyakarta | H49: D.I. Yogyakarta | I49: Kulonprogo | J49: 74.46 | K49: 74.71 | L49: 75.46 | M49: 0.771 | N49: 1 | O49: =IFERROR(INDEX('SISPSN 2023'!H$3:H$442,MATCH($C49,'SISPSN 2023'!$J$3:$J$442,0)),"") -> 2023 | P49: =IFERROR(INDEX('SISPSN 2023'!I$3:I$442,MATCH($C49,'SISPSN 2023'!$J$3:$J$442,0)),"") -> D.I. Yogyakarta | Q49: =IFERROR(INDEX('SISPSN 2023'!J$3:J$442,MATCH($C49,'SISPSN 2023'!$J$3:$J$442,0)),"") -> Kab. Kulon Progo | R49: =IFERROR(INDEX('SISPSN 2023'!K$3:K$442,MATCH($C49,'SISPSN 2023'!$J$3:$J$442,0)),"") -> 80033.9 | S49: =IFERROR(INDEX('SISPSN 2023'!L$3:L$442,MATCH($C49,'SISPSN 2023'!$J$3:$J$442,0)),"") -> 24851.11 | T49: =IFERROR(INDEX('SISPSN 2023'!M$3:M$442,MATCH($C49,'SISPSN 2023'!$J$3:$J$442,0)),"") -> 31.05 | U49: =IFERROR(INDEX('SISPSN 2023'!N$3:N$442,MATCH($C49,'SISPSN 2023'!$J$3:$J$442,0)),"") -> 12164.27 | V49: =IFERROR(INDEX('SISPSN 2023'!O$3:O$442,MATCH($C49,'SISPSN 2023'!$J$3:$J$442,0)),"") -> 15.2 | W49: =IFERROR(INDEX('SISPSN 2023'!P$3:P$442,MATCH($C49,'SISPSN 2023'!$J$3:$J$442,0)),"") -> 37015.38 | X49: =IFERROR(INDEX('SISPSN 2023'!Q$3:Q$442,MATCH($C49,'SISPSN 2023'!$J$3:$J$442,0)),"") -> 46.25 | Y49: =IFERROR(INDEX('SISPSN 2023'!R$3:R$442,MATCH($C49,'SISPSN 2023'!$J$3:$J$442,0)),"") -> 22276.46 | Z49: =IFERROR(INDEX('SISPSN 2023'!S$3:S$442,MATCH($C49,'SISPSN 2023'!$J$3:$J$442,0)),"") -> 0 | AA49: =IFERROR(INDEX('SISPSN 2023'!T$3:T$442,MATCH($C49,'SISPSN 2023'!$J$3:$J$442,0)),"") -> 27.83 | AB49: =IFERROR(INDEX('SISPSN 2023'!U$3:U$442,MATCH($C49,'SISPSN 2023'!$J$3:$J$442,0)),"") -> P 2 | AD49: 0.4893010278 | AE49: 0.1519315398 | AF49: 0.07436835908 | AG49: 0.2262998989 | AH49: 0.1361909738 | AI49: 0 | AJ49: =IFERROR(PERCENTRANK(_xlfn._xlws.FILTER($AD$4:$AD$547,$AD$4:$AD$547<>""),AD49),"") ->  | AK49: 0.983 | AL49: 0.129 | AM49: 0.95
A50: D.I. Yogyakarta | B50: D.I. Yogyakarta | C50: Kab. Sleman | D50: 1282804 | E50: 2022 | G50: D.I. Yogyakarta | H50: D.I. Yogyakarta | I50: Sleman | J50: 83.84 | K50: 84 | L50: 84.31 | M50: 0.985 | N50: 1 | O50: =IFERROR(INDEX('SISPSN 2023'!H$3:H$442,MATCH($C50,'SISPSN 2023'!$J$3:$J$442,0)),"") -> 2023 | P50: =IFERROR(INDEX('SISPSN 2023'!I$3:I$442,MATCH($C50,'SISPSN 2023'!$J$3:$J$442,0)),"") -> D.I. Yogyakarta | Q50: =IFERROR(INDEX('SISPSN 2023'!J$3:J$442,MATCH($C50,'SISPSN 2023'!$J$3:$J$442,0)),"") -> Kab. Sleman | R50: =IFERROR(INDEX('SISPSN 2023'!K$3:K$442,MATCH($C50,'SISPSN 2023'!$J$3:$J$442,0)),"") -> 219653.64 | S50: =IFERROR(INDEX('SISPSN 2023'!L$3:L$442,MATCH($C50,'SISPSN 2023'!$J$3:$J$442,0)),"") -> 21236.96 | T50: =IFERROR(INDEX('SISPSN 2023'!M$3:M$442,MATCH($C50,'SISPSN 2023'!$J$3:$J$442,0)),"") -> 9.67 | U50: =IFERROR(INDEX('SISPSN 2023'!N$3:N$442,MATCH($C50,'SISPSN 2023'!$J$3:$J$442,0)),"") -> 71536.35 | V50: =IFERROR(INDEX('SISPSN 2023'!O$3:O$442,MATCH($C50,'SISPSN 2023'!$J$3:$J$442,0)),"") -> 32.57 | W50: =IFERROR(INDEX('SISPSN 2023'!P$3:P$442,MATCH($C50,'SISPSN 2023'!$J$3:$J$442,0)),"") -> 92773.32 | X50: =IFERROR(INDEX('SISPSN 2023'!Q$3:Q$442,MATCH($C50,'SISPSN 2023'!$J$3:$J$442,0)),"") -> 42.24 | Y50: =IFERROR(INDEX('SISPSN 2023'!R$3:R$442,MATCH($C50,'SISPSN 2023'!$J$3:$J$442,0)),"") -> 21236.96 | Z50: =IFERROR(INDEX('SISPSN 2023'!S$3:S$442,MATCH($C50,'SISPSN 2023'!$J$3:$J$442,0)),"") -> 0 | AA50: =IFERROR(INDEX('SISPSN 2023'!T$3:T$442,MATCH($C50,'SISPSN 2023'!$J$3:$J$442,0)),"") -> 9.67 | AB50: =IFERROR(INDEX('SISPSN 2023'!U$3:U$442,MATCH($C50,'SISPSN 2023'!$J$3:$J$442,0)),"") -> P 2 | AD50: 0.4691213892 | AE50: 0.04535646292 | AF50: 0.1527824983 | AG50: 0.1981389826 | AH50: 0.04535646292 | AI50: 0 | AJ50: =IFERROR(PERCENTRANK(_xlfn._xlws.FILTER($AD$4:$AD$547,$AD$4:$AD$547<>""),AD50),"") ->  | AK50: 0.508 | AL50: 0.406 | AM50: 0.569
A51: D.I. Yogyakarta | B51: D.I. Yogyakarta | C51: Kota Yogyakarta | D51: 449890 | E51: 2022 | G51: D.I. Yogyakarta | H51: D.I. Yogyakarta | I51: Yogyakarta | J51: 86.61 | K51: 87.18 | L51: 87.69 | M51: 0.997 | N51: 1 | O51: =IFERROR(INDEX('SISPSN 2023'!H$3:H$442,MATCH($C51,'SISPSN 2023'!$J$3:$J$442,0)),"") -> 2023 | P51: =IFERROR(INDEX('SISPSN 2023'!I$3:I$442,MATCH($C51,'SISPSN 2023'!$J$3:$J$442,0)),"") -> D.I. Yogyakarta | Q51: =IFERROR(INDEX('SISPSN 2023'!J$3:J$442,MATCH($C51,'SISPSN 2023'!$J$3:$J$442,0)),"") -> Kota Yogyakarta | R51: =IFERROR(INDEX('SISPSN 2023'!K$3:K$442,MATCH($C51,'SISPSN 2023'!$J$3:$J$442,0)),"") -> 109704.11 | S51: =IFERROR(INDEX('SISPSN 2023'!L$3:L$442,MATCH($C51,'SISPSN 2023'!$J$3:$J$442,0)),"") -> 20325.98 | T51: =IFERROR(INDEX('SISPSN 2023'!M$3:M$442,MATCH($C51,'SISPSN 2023'!$J$3:$J$442,0)),"") -> 18.53 | U51: =IFERROR(INDEX('SISPSN 2023'!N$3:N$442,MATCH($C51,'SISPSN 2023'!$J$3:$J$442,0)),"") -> 66587.88 | V51: =IFERROR(INDEX('SISPSN 2023'!O$3:O$442,MATCH($C51,'SISPSN 2023'!$J$3:$J$442,0)),"") -> 60.7 | W51: =IFERROR(INDEX('SISPSN 2023'!P$3:P$442,MATCH($C51,'SISPSN 2023'!$J$3:$J$442,0)),"") -> 86913.86 | X51: =IFERROR(INDEX('SISPSN 2023'!Q$3:Q$442,MATCH($C51,'SISPSN 2023'!$J$3:$J$442,0)),"") -> 79.23 | Y51: =IFERROR(INDEX('SISPSN 2023'!R$3:R$442,MATCH($C51,'SISPSN 2023'!$J$3:$J$442,0)),"") -> 20325.98 | Z51: =IFERROR(INDEX('SISPSN 2023'!S$3:S$442,MATCH($C51,'SISPSN 2023'!$J$3:$J$442,0)),"") -> 388.34 | AA51: =IFERROR(INDEX('SISPSN 2023'!T$3:T$442,MATCH($C51,'SISPSN 2023'!$J$3:$J$442,0)),"") -> 18.88 | AB51: =IFERROR(INDEX('SISPSN 2023'!U$3:U$442,MATCH($C51,'SISPSN 2023'!$J$3:$J$442,0)),"") -> P 2 | AD51: 0.6680726522 | AE51: 0.1237805162 | AF51: 0.4055047855 | AG51: 0.5292853017 | AH51: 0.1237805162 | AI51: 0.002364900766 | AJ51: =IFERROR(PERCENTRANK(_xlfn._xlws.FILTER($AD$4:$AD$547,$AD$4:$AD$547<>""),AD51),"") ->  | AK51: 0.762 | AL51: 0.674 | AM51: 0.814
A52: D.I. Yogyakarta | B52: total | C52: total | D52: 4021816 | E52: 2022 | G52: D.I. Yogyakarta | H52: total | I52: D.I. Yogyakarta | J52: 79.97 | K52: 80.22 | L52: 80.64 | M52: 0.915 | N52: 0 | O52: =IFERROR(INDEX('SISPSN 2023'!H$3:H$442,MATCH($C52,'SISPSN 2023'!$J$3:$J$442,0)),"") ->  | P52: =IFERROR(INDEX('SISPSN 2023'!I$3:I$442,MATCH($C52,'SISPSN 2023'!$J$3:$J$442,0)),"") ->  | Q52: =IFERROR(INDEX('SISPSN 2023'!J$3:J$442,MATCH($C52,'SISPSN 2023'!$J$3:$J$442,0)),"") ->  | R52: =IFERROR(INDEX('SISPSN 2023'!K$3:K$442,MATCH($C52,'SISPSN 2023'!$J$3:$J$442,0)),"") ->  | S52: =IFERROR(INDEX('SISPSN 2023'!L$3:L$442,MATCH($C52,'SISPSN 2023'!$J$3:$J$442,0)),"") ->  | T52: =IFERROR(INDEX('SISPSN 2023'!M$3:M$442,MATCH($C52,'SISPSN 2023'!$J$3:$J$442,0)),"") ->  | U52: =IFERROR(INDEX('SISPSN 2023'!N$3:N$442,MATCH($C52,'SISPSN 2023'!$J$3:$J$442,0)),"") ->  | V52: =IFERROR(INDEX('SISPSN 2023'!O$3:O$442,MATCH($C52,'SISPSN 2023'!$J$3:$J$442,0)),"") ->  | W52: =IFERROR(INDEX('SISPSN 2023'!P$3:P$442,MATCH($C52,'SISPSN 2023'!$J$3:$J$442,0)),"") ->  | X52: =IFERROR(INDEX('SISPSN 2023'!Q$3:Q$442,MATCH($C52,'SISPSN 2023'!$J$3:$J$442,0)),"") ->  | Y52: =IFERROR(INDEX('SISPSN 2023'!R$3:R$442,MATCH($C52,'SISPSN 2023'!$J$3:$J$442,0)),"") ->  | Z52: =IFERROR(INDEX('SISPSN 2023'!S$3:S$442,MATCH($C52,'SISPSN 2023'!$J$3:$J$442,0)),"") ->  | AA52: =IFERROR(INDEX('SISPSN 2023'!T$3:T$442,MATCH($C52,'SISPSN 2023'!$J$3:$J$442,0)),"") ->  | AB52: =IFERROR(INDEX('SISPSN 2023'!U$3:U$442,MATCH($C52,'SISPSN 2023'!$J$3:$J$442,0)),"") ->  | AJ52: =IFERROR(PERCENTRANK(_xlfn._xlws.FILTER($AD$4:$AD$547,$AD$4:$AD$547<>""),AD52),"") -> 
A53: DKI Jakarta | B53: DKI Jakarta | C53: Kota Adm. Jakarta Barat | D53: 2448975 | E53: 2022 | N53: 1 | O53: =IFERROR(INDEX('SISPSN 2023'!H$3:H$442,MATCH($C53,'SISPSN 2023'!$J$3:$J$442,0)),"") -> 2023 | P53: =IFERROR(INDEX('SISPSN 2023'!I$3:I$442,MATCH($C53,'SISPSN 2023'!$J$3:$J$442,0)),"") -> DKI Jakarta | Q53: =IFERROR(INDEX('SISPSN 2023'!J$3:J$442,MATCH($C53,'SISPSN 2023'!$J$3:$J$442,0)),"") -> Kota Adm. Jakarta Barat | R53: =IFERROR(INDEX('SISPSN 2023'!K$3:K$442,MATCH($C53,'SISPSN 2023'!$J$3:$J$442,0)),"") -> 748135.3 | S53: =IFERROR(INDEX('SISPSN 2023'!L$3:L$442,MATCH($C53,'SISPSN 2023'!$J$3:$J$442,0)),"") -> 202487.98 | T53: =IFERROR(INDEX('SISPSN 2023'!M$3:M$442,MATCH($C53,'SISPSN 2023'!$J$3:$J$442,0)),"") -> 27.07 | U53: =IFERROR(INDEX('SISPSN 2023'!N$3:N$442,MATCH($C53,'SISPSN 2023'!$J$3:$J$442,0)),"") -> 539251.01 | V53: =IFERROR(INDEX('SISPSN 2023'!O$3:O$442,MATCH($C53,'SISPSN 2023'!$J$3:$J$442,0)),"") -> 72.08 | W53: =IFERROR(INDEX('SISPSN 2023'!P$3:P$442,MATCH($C53,'SISPSN 2023'!$J$3:$J$442,0)),"") -> 741738.99 | X53: =IFERROR(INDEX('SISPSN 2023'!Q$3:Q$442,MATCH($C53,'SISPSN 2023'!$J$3:$J$442,0)),"") -> 99.15 | Y53: =IFERROR(INDEX('SISPSN 2023'!R$3:R$442,MATCH($C53,'SISPSN 2023'!$J$3:$J$442,0)),"") -> 150820.52 | Z53: =IFERROR(INDEX('SISPSN 2023'!S$3:S$442,MATCH($C53,'SISPSN 2023'!$J$3:$J$442,0)),"") -> 0 | AA53: =IFERROR(INDEX('SISPSN 2023'!T$3:T$442,MATCH($C53,'SISPSN 2023'!$J$3:$J$442,0)),"") -> 20.16 | AB53: =IFERROR(INDEX('SISPSN 2023'!U$3:U$442,MATCH($C53,'SISPSN 2023'!$J$3:$J$442,0)),"") -> P 2 | AD53: 0.8369565853 | AE53: 0.2265280736 | AF53: 0.603272809 | AG53: 0.8298008826 | AH53: 0.1687264689 | AI53: 0 | AJ53: =IFERROR(PERCENTRANK(_xlfn._xlws.FILTER($AD$4:$AD$547,$AD$4:$AD$547<>""),AD53),"") ->  | AK53: 0.936 | AL53: 0.809 | AM53: 0.837
